Workbook

Sheet jednotlivci
B2: Celkové umístění jednotlivců na turnajích v BOWLINGU 2013 | AF2: turnaje
B3: 0 | E3: garáže | AA3: Počet turnajů | AB3: Počet celkových bodů | AD3: Průměer na hru | AE3: Průměr na turnaj
B4: =SUM(B3+1) -> 1 | C4: Šafařík Luděk | D4: =IF(AA4<6,0,1) -> 1 | E4: Hostivař | F4: 1 | G4: =IF(F4="","",IF(F4>50,"",51-F4)) -> 50 | H4: 928 | I4: 3 | J4: =IF(I4="","",IF(I4>50,"",51-I4)) -> 48 | K4: 905 | L4: 2 | M4: =IF(L4="","",IF(L4>50,"",51-L4)) -> 49 | N4: 897 | O4: 2 | P4: =IF(O4="","",IF(O4>50,"",51-O4)) -> 49 | Q4: 883 | R4: 8 | S4: =IF(R4="","",IF(R4>50,"",51-R4)) -> 43 | T4: 805 | U4: 1 | V4: =IF(U4="","",IF(U4>50,"",51-U4)) -> 50 | W4: 962 | X4: 7 | Y4: =IF(X4="","",IF(X4>50,"",51-X4)) -> 44 | Z4: 833 | AA4: =COUNT(X4,U4,R4,O4,L4,I4,F4) -> 7 | AB4: =SUM(G4,J4,M4,P4,S4,V4,Y4) -> 333 | AC4: =IF(AB4=0,"",SUM(AB4*1000)+AD4) -> 333177.5143 | AD4: =IF(AA4=0,"",AE4/5) -> 177.5142857 | AE4: =IF(AA4=0,"",(H4+K4+N4+Q4+T4+W4+Z4)/AA4) -> 887.5714286
B5: 2 | C5: Kocúr Jaroslav | D5: 1 | E5: Řepy | F5: 15 | G5: 36 | H5: 744 | I5: 2 | J5: 49 | K5: 915 | L5: 1 | M5: 50 | N5: 960 | R5: 4 | S5: 47 | T5: 854 | U5: 4 | V5: 47 | W5: 889 | X5: 5 | Y5: 46 | Z5: 850 | AA5: 6 | AB5: 275 | AC5: 275173.7333 | AD5: 173.7333333 | AE5: 868.6666667
B6: 3 | C6: Lazur Ladislav | D6: 1 | E6: Hostivař | F6: 5 | G6: 46 | H6: 847 | I6: 1 | J6: 50 | K6: 945 | L6: 8 | M6: 43 | N6: 831 | R6: 12 | S6: 39 | T6: 794 | U6: 2 | V6: 49 | W6: 901 | X6: 3 | Y6: 48 | Z6: 863 | AA6: 6 | AB6: 275 | AC6: 275172.7 | AD6: 172.7 | AE6: 863.5
B7: 4 | C7: Krupa Jozef | D7: 1 | E7: Vršovice | F7: 9 | G7: 42 | H7: 799 | I7: 5 | J7: 46 | K7: 891 | L7: 17 | M7: 34 | N7: 760 | O7: 3 | P7: 48 | Q7: 883 | R7: 1 | S7: 50 | T7: 959 | U7: 7 | V7: 44 | W7: 847 | X7: 4 | Y7: 47 | Z7: 860 | AA7: 7 | AB7: 311 | AC7: 311171.4 | AD7: 171.4 | AE7: 857
B8: 5 | C8: Pospíšil Václav | D8: 1 | E8: Řepy | F8: 3 | G8: 48 | H8: 881 | I8: 6 | J8: 45 | K8: 876 | L8: 10 | M8: 41 | N8: 814 | O8: 1 | P8: 50 | Q8: 901 | R8: 15 | S8: 36 | T8: 766 | U8: 8 | V8: 43 | W8: 834 | X8: 6 | Y8: 45 | Z8: 844 | AA8: 7 | AB8: 308 | AC8: 308169.0286 | AD8: 169.0285714 | AE8: 845.1428571
B9: 6 | C9: Novotný Lukáš | D9: 0 | E9: Klíčov | F9: 4 | G9: 47 | H9: 860 | I9: 8 | J9: 43 | K9: 833 | L9: 12 | M9: 39 | N9: 793 | U9: 11 | V9: 40 | W9: 814 | X9: 2 | Y9: 49 | Z9: 888 | AA9: 5 | AB9: 218 | AC9: 218167.52 | AD9: 167.52 | AE9: 837.6
B10: 7 | C10: Holkup Jan | D10: 0 | E10: Vršovice | F10: 13 | G10: 38 | H10: 755 | I10: 14 | J10: 37 | K10: 790 | R10: 2 | S10: 49 | T10: 912 | U10: 9 | V10: 42 | W10: 823 | X10: 12 | Y10: 39 | Z10: 802 | AA10: 5 | AB10: 205 | AC10: 205163.28 | AD10: 163.28 | AE10: 816.4
B11: 8 | C11: Ondřich František | D11: 1 | E11: Kačerov | F11: 10 | G11: 41 | H11: 796 | I11: 11 | J11: 40 | K11: 815 | L11: 3 | M11: 48 | N11: 895 | O11: 30 | P11: 21 | Q11: 664 | R11: 3 | S11: 48 | T11: 858 | U11: 5 | V11: 46 | W11: 863 | X11: 10 | Y11: 41 | Z11: 809 | AA11: 7 | AB11: 285 | AC11: 285162.8571 | AD11: 162.8571429 | AE11: 814.2857143
B12: 9 | C12: Pecka Jiří | D12: 1 | E12: Klíčov | F12: 8 | G12: 43 | H12: 814 | I12: 9 | J12: 42 | K12: 831 | L12: 7 | M12: 44 | N12: 831 | R12: 17 | S12: 34 | T12: 751 | U12: 6 | V12: 45 | W12: 854 | X12: 15 | Y12: 36 | Z12: 790 | AA12: 6 | AB12: 244 | AC12: 244162.3667 | AD12: 162.3666667 | AE12: 811.8333333
B13: 10 | C13: Mašát Petr | D13: 1 | E13: Kačerov | F13: 2 | G13: 49 | H13: 895 | I13: 10 | J13: 41 | K13: 826 | L13: 4 | M13: 47 | N13: 859 | O13: 4 | P13: 47 | Q13: 854 | U13: 31 | V13: 20 | W13: 657 | X13: 30 | Y13: 21 | Z13: 669 | AA13: 6 | AB13: 225 | AC13: 225158.6667 | AD13: 158.6666667 | AE13: 793.3333333
B14: 11 | C14: Kalfiřt Petr | D14: 1 | E14: Klíčov | F14: 25 | G14: 26 | H14: 680 | I14: 13 | J14: 38 | K14: 796 | L14: 15 | M14: 36 | N14: 768 | O14: 8 | P14: 43 | Q14: 807 | R14: 7 | S14: 44 | T14: 822 | U14: 3 | V14: 48 | W14: 894 | X14: 17 | Y14: 34 | Z14: 761 | AA14: 7 | AB14: 269 | AC14: 269157.9429 | AD14: 157.9428571 | AE14: 789.7142857
B15: 12 | C15: Kročil Tomáš | D15: 1 | E15: Řepy | F15: 11 | G15: 40 | H15: 786 | I15: 12 | J15: 39 | K15: 806 | L15: 18 | M15: 33 | N15: 742 | O15: 9 | P15: 42 | Q15: 791 | R15: 9 | S15: 42 | T15: 802 | U15: 18 | V15: 33 | W15: 728 | X15: 13 | Y15: 38 | Z15: 796 | AA15: 7 | AB15: 267 | AC15: 267155.7429 | AD15: 155.7428571 | AE15: 778.7142857
B16: 13 | C16: Carvan Pavel | D16: 1 | E16: Kačerov | F16: 14 | G16: 37 | H16: 752 | I16: 7 | J16: 44 | K16: 860 | L16: 25 | M16: 26 | N16: 705 | O16: 5 | P16: 46 | Q16: 842 | R16: 30 | S16: 21 | T16: 683 | U16: 15 | V16: 36 | W16: 762 | X16: 9 | Y16: 42 | Z16: 810 | AA16: 7 | AB16: 252 | AC16: 252154.6857 | AD16: 154.6857143 | AE16: 773.4285714
B17: 14 | C17: Alba Vladimír | D17: 1 | E17: Řepy | F17: 12 | G17: 39 | H17: 777 | I17: 23 | J17: 28 | K17: 701 | L17: 13 | M17: 38 | N17: 770 | O17: 16 | P17: 35 | Q17: 738 | R17: 14 | S17: 37 | T17: 776 | U17: 10 | V17: 41 | W17: 814 | X17: 22 | Y17: 29 | Z17: 722 | AA17: 7 | AB17: 247 | AC17: 247151.3714 | AD17: 151.3714286 | AE17: 756.8571429
B18: 15 | C18: Jelínek Jan | D18: 1 | E18: Hostivař | F18: 18 | G18: 33 | H18: 727 | I18: 20 | J18: 31 | K18: 719 | L18: 14 | M18: 37 | N18: 770 | O18: 28 | P18: 23 | Q18: 666 | R18: 13 | S18: 38 | T18: 782 | U18: 13 | V18: 38 | W18: 775 | X18: 8 | Y18: 43 | Z18: 816 | AA18: 7 | AB18: 243 | AC18: 243150.1429 | AD18: 150.1428571 | AE18: 750.7142857
B19: 16 | C19: Tomášek Zdeněk | D19: 0 | E19: Kačerov | F19: 7 | G19: 44 | H19: 825 | I19: 19 | J19: 32 | K19: 728 | L19: 20 | M19: 31 | N19: 733 | O19: 20 | P19: 31 | Q19: 723 | R19: 18 | S19: 33 | T19: 725 | AA19: 5 | AB19: 171 | AC19: 171149.36 | AD19: 149.36 | AE19: 746.8
B20: 17 | C20: Sladovník Miloš | D20: 1 | E20: Řepy | F20: 19 | G20: 32 | H20: 720 | I20: 24 | J20: 27 | K20: 693 | L20: 21 | M20: 30 | N20: 727 | O20: 6 | P20: 45 | Q20: 842 | R20: 35 | S20: 16 | T20: 668 | X20: 19 | Y20: 32 | Z20: 755 | AA20: 6 | AB20: 182 | AC20: 182146.8333 | AD20: 146.8333333 | AE20: 734.1666667
B21: 18 | C21: Hübner Jiří | D21: 0 | E21: Kačerov | F21: 17 | G21: 34 | H21: 737 | O21: 17 | P21: 34 | Q21: 725 | R21: 26 | S21: 25 | T21: 703 | U21: 27 | V21: 24 | W21: 677 | X21: 11 | Y21: 40 | Z21: 803 | AA21: 5 | AB21: 157 | AC21: 157145.8 | AD21: 145.8 | AE21: 729
B22: 19 | C22: Berger Michal | D22: 0 | E22: Hostivař | I22: 26 | J22: 25 | K22: 689 | L22: 16 | M22: 35 | N22: 767 | O22: 22 | P22: 29 | Q22: 703 | U22: 17 | V22: 34 | W22: 730 | X22: 21 | Y22: 30 | Z22: 729 | AA22: 5 | AB22: 153 | AC22: 153144.72 | AD22: 144.72 | AE22: 723.6
B23: 20 | C23: Skružná Pavla | D23: 0 | E23: Vršovice | F23: 37 | G23: 14 | H23: 616 | I23: 18 | J23: 33 | K23: 738 | L23: 11 | M23: 40 | N23: 811 | R23: 11 | S23: 40 | T23: 795 | X23: 35 | Y23: 16 | Z23: 647 | AA23: 5 | AB23: 143 | AC23: 143144.28 | AD23: 144.28 | AE23: 721.4
B24: 21 | C24: Bošek Jan | D24: 0 | E24: Vršovice | I24: 21 | J24: 30 | K24: 710 | L24: 33 | M24: 18 | N24: 673 | O24: 27 | P24: 24 | Q24: 675 | R24: 19 | S24: 32 | T24: 723 | U24: 14 | V24: 37 | W24: 773 | AA24: 5 | AB24: 141 | AC24: 141142.16 | AD24: 142.16 | AE24: 710.8
B25: 22 | C25: Křemenák Petr | D25: 0 | E25: Klíčov | F25: 21 | G25: 30 | H25: 707 | L25: 26 | M25: 25 | N25: 703 | O25: 32 | P25: 19 | Q25: 638 | R25: 10 | S25: 41 | T25: 801 | X25: 25 | Y25: 26 | Z25: 687 | AA25: 5 | AB25: 141 | AC25: 141141.44 | AD25: 141.44 | AE25: 707.2
B26: 23 | C26: Troller Pavel | D26: 0 | E26: Klíčov | F26: 24 | G26: 27 | H26: 691 | I26: 33 | J26: 18 | K26: 638 | R26: 16 | S26: 35 | T26: 757 | U26: 21 | V26: 30 | W26: 701 | X26: 20 | Y26: 31 | Z26: 742 | AA26: 5 | AB26: 141 | AC26: 141141.16 | AD26: 141.16 | AE26: 705.8
B27: 24 | C27: Mysliveček Jaroslav | D27: 1 | E27: Hostivař | F27: 23 | G27: 28 | H27: 702 | I27: 15 | J27: 36 | K27: 768 | L27: 38 | M27: 13 | N27: 631 | O27: 14 | P27: 37 | Q27: 754 | R27: 27 | S27: 24 | T27: 701 | U27: 34 | V27: 17 | W27: 642 | X27: 23 | Y27: 28 | Z27: 717 | AA27: 7 | AB27: 183 | AC27: 183140.4286 | AD27: 140.4285714 | AE27: 702.1428571
B28: 25 | C28: Radová Petra | D28: 1 | E28: Kačerov | F28: 20 | G28: 31 | H28: 718 | I28: 27 | J28: 24 | K28: 686 | L28: 28 | M28: 23 | N28: 684 | O28: 24 | P28: 27 | Q28: 688 | R28: 24 | S28: 27 | T28: 717 | U28: 26 | V28: 25 | W28: 685 | X28: 28 | Y28: 23 | Z28: 675 | AA28: 7 | AB28: 180 | AC28: 180138.6571 | AD28: 138.6571429 | AE28: 693.2857143
B29: 26 | C29: Douša Adam | D29: 1 | E29: Kačerov | F29: 33 | G29: 18 | H29: 636 | I29: 16 | J29: 35 | K29: 766 | L29: 34 | M29: 17 | N29: 672 | O29: 10 | P29: 41 | Q29: 785 | R29: 34 | S29: 17 | T29: 669 | X29: 40 | Y29: 11 | Z29: 631 | AA29: 6 | AB29: 139 | AC29: 139138.6333 | AD29: 138.6333333 | AE29: 693.1666667
B30: 27 | C30: Mottl Pavel | D30: 1 | E30: Řepy | F30: 27 | G30: 24 | H30: 664 | I30: 45 | J30: 6 | K30: 596 | L30: 6 | M30: 45 | N30: 838 | O30: 12 | P30: 39 | Q30: 773 | R30: 39 | S30: 12 | T30: 630 | U30: 29 | V30: 22 | W30: 673 | X30: 41 | Y30: 10 | Z30: 628 | AA30: 7 | AB30: 158 | AC30: 158137.2 | AD30: 137.2 | AE30: 686
B31: 28 | C31: Brož Stanislav | D31: 1 | E31: Kačerov | F31: 29 | G31: 22 | H31: 657 | I31: 25 | J31: 26 | K31: 693 | L31: 19 | M31: 32 | N31: 742 | O31: 29 | P31: 22 | Q31: 666 | U31: 19 | V31: 32 | W31: 723 | X31: 42 | Y31: 9 | Z31: 625 | AA31: 6 | AB31: 143 | AC31: 143136.8667 | AD31: 136.8666667 | AE31: 684.3333333
B32: 29 | C32: Křápek Roman | D32: 0 | E32: Hostivař | F32: 32 | G32: 19 | H32: 637 | I32: 36 | J32: 15 | K32: 632 | R32: 5 | S32: 46 | T32: 834 | U32: 35 | V32: 16 | W32: 633 | X32: 31 | Y32: 20 | Z32: 668 | AA32: 5 | AB32: 116 | AC32: 116136.16 | AD32: 136.16 | AE32: 680.8
B33: 30 | C33: Brejcha Jaroslav | D33: 1 | E33: Kačerov | F33: 38 | G33: 13 | H33: 614 | I33: 39 | J33: 12 | K33: 618 | L33: 29 | M33: 22 | N33: 683 | O33: 15 | P33: 36 | Q33: 753 | R33: 22 | S33: 29 | T33: 718 | U33: 25 | V33: 26 | W33: 691 | X33: 27 | Y33: 24 | Z33: 681 | AA33: 7 | AB33: 162 | AC33: 162135.9429 | AD33: 135.9428571 | AE33: 679.7142857
B34: 31 | C34: Kazda Jan | D34: 1 | E34: Vršovice | F34: 30 | G34: 21 | H34: 655 | I34: 32 | J34: 19 | K34: 656 | L34: 32 | M34: 19 | N34: 676 | O34: 23 | P34: 28 | Q34: 700 | U34: 24 | V34: 27 | W34: 694 | X34: 26 | Y34: 25 | Z34: 682 | AA34: 6 | AB34: 139 | AC34: 139135.4333 | AD34: 135.4333333 | AE34: 677.1666667
B35: 32 | C35: Sehnal Ivan | D35: 1 | E35: Řepy | F35: 34 | G35: 17 | H35: 631 | I35: 30 | J35: 21 | K35: 665 | L35: 31 | M35: 20 | N35: 680 | O35: 13 | P35: 38 | Q35: 761 | R35: 20 | S35: 31 | T35: 722 | U35: 42 | V35: 9 | W35: 612 | X35: 32 | Y35: 19 | Z35: 658 | AA35: 7 | AB35: 155 | AC35: 155135.1143 | AD35: 135.1142857 | AE35: 675.5714286
B36: =SUM(B35+1) -> 33 | C36: Tichý Hugo | D36: =IF(AA36<6,0,1) -> 0 | E36: Řepy | F36: 22 | G36: =IF(F36="","",IF(F36>50,"",51-F36)) -> 29 | H36: 705 | I36: 34 | J36: =IF(I36="","",IF(I36>50,"",51-I36)) -> 17 | K36: 636 | L36: 24 | M36: =IF(L36="","",IF(L36>50,"",51-L36)) -> 27 | N36: 711 | O36: 36 | P36: =IF(O36="","",IF(O36>50,"",51-O36)) -> 15 | Q36: 618 | S36: =IF(R36="","",IF(R36>50,"",51-R36)) ->  | U36: 45 | V36: 6 | W36: 597 | Y36: =IF(X36="","",IF(X36>50,"",51-X36)) ->  | AA36: =COUNT(X36,U36,R36,O36,L36,I36,F36) -> 5 | AB36: =SUM(G36,J36,M36,P36,S36,V36,Y36) -> 94 | AC36: =IF(AB36=0,"",SUM(AB36*1000)+AD36) -> 94130.68 | AD36: =IF(AA36=0,"",AE36/5) -> 130.68 | AE36: =IF(AA36=0,"",(H36+K36+N36+Q36+T36+W36+Z36)/AA36) -> 653.4
B37: 34 | C37: Kovář Jaroslav | D37: 0 | E37: Vršovice | F37: 26 | G37: 25 | H37: 673 | L37: 22 | M37: 29 | N37: 726 | O37: 41 | P37: 10 | Q37: 569 | R37: 29 | S37: 22 | T37: 688 | U37: 46 | V37: 5 | W37: 596 | AA37: 5 | AB37: 91 | AC37: 91130.08 | AD37: 130.08 | AE37: 650.4
B38: 35 | C38: Šafář Vladimír | D38: 1 | E38: Hostivař | F38: 36 | G38: 15 | H38: 616 | I38: 22 | J38: 29 | K38: 708 | L38: 42 | M38: 9 | N38: 593 | O38: 33 | P38: 18 | Q38: 632 | R38: 31 | S38: 20 | T38: 683 | U38: 36 | V38: 15 | W38: 631 | X38: 33 | Y38: 18 | Z38: 652 | AA38: 7 | AB38: 124 | AC38: 124129 | AD38: 129 | AE38: 645
B39: 36 | C39: Novotná Petra | D39: 0 | E39: Klíčov | F39: 40 | G39: 11 | H39: 590 | I39: 35 | J39: 16 | K39: 636 | L39: 30 | M39: 21 | N39: 681 | O39: 38 | P39: 13 | Q39: 594 | R39: 42 | S39: 9 | T39: 606 | AA39: 5 | AB39: 70 | AC39: 70124.28 | AD39: 124.28 | AE39: 621.4
B40: 37 | C40: Pospíšil Lukáš | D40: 1 | E40: Vršovice | F40: 39 | G40: 12 | H40: 611 | I40: 29 | J40: 22 | K40: 683 | L40: 44 | M40: 7 | N40: 573 | O40: 39 | P40: 12 | Q40: 583 | R40: 28 | S40: 23 | T40: 697 | X40: 47 | Y40: 4 | Z40: 575 | AA40: 6 | AB40: 80 | AC40: 80124.06667 | AD40: 124.0666667 | AE40: 620.3333333
B41: 38 | C41: Aunický František | D41: 1 | E41: Vršovice | F41: 46 | G41: 5 | H41: 560 | I41: 42 | J41: 9 | K41: 604 | L41: 40 | M41: 11 | N41: 605 | O41: 21 | P41: 30 | Q41: 705 | R41: 41 | S41: 10 | T41: 619 | U41: 47 | V41: =IF(U41="","",IF(U41>50,"",51-U41)) -> 4 | W41: 593 | X41: 38 | Y41: 13 | Z41: 640 | AA41: 7 | AB41: 82 | AC41: 82123.6 | AD41: 123.6 | AE41: 618
B42: 39 | C42: Kollár Pavel | D42: 1 | E42: Hostivař | F42: 44 | G42: 7 | H42: 571 | L42: 48 | M42: 3 | N42: 529 | O42: 43 | P42: 8 | Q42: 558 | R42: 32 | S42: 19 | T42: 681 | U42: 22 | V42: 29 | W42: 695 | X42: 29 | Y42: 22 | Z42: 672 | AA42: 6 | AB42: 88 | AC42: 88123.53333 | AD42: 123.5333333 | AE42: 617.6666667
B43: 40 | C43: Kutina Pavel | D43: 1 | E43: Kačerov | F43: 50 | G43: 1 | H43: 473 | I43: 40 | J43: 11 | K43: 611 | L43: 41 | M43: 10 | N43: 599 | O43: 25 | P43: 26 | Q43: 682 | R43: 33 | S43: 18 | T43: 676 | U43: 37 | V43: 14 | W43: 627 | X43: 44 | Y43: 7 | Z43: 615 | AA43: 7 | AB43: 87 | AC43: 87122.37143 | AD43: 122.3714286 | AE43: 611.8571429
B44: 41 | C44: Křikava Miroslav | D44: 1 | E44: Řepy | F44: 43 | G44: 8 | H44: 572 | I44: 48 | J44: 3 | K44: 548 | L44: 47 | M44: 4 | N44: 536 | O44: 31 | P44: 20 | Q44: 651 | R44: 40 | S44: 11 | T44: 619 | U44: 39 | V44: 12 | W44: 626 | X44: 36 | Y44: 15 | Z44: 644 | AA44: 7 | AB44: 73 | AC44: 73119.88571 | AD44: 119.8857143 | AE44: 599.4285714
B45: 42 | C45: Fay Vlastimil | D45: 1 | E45: Vršovice | F45: 45 | G45: 6 | H45: 571 | I45: 43 | J45: 8 | K45: 603 | L45: 39 | M45: 12 | N45: 611 | O45: 37 | P45: 14 | Q45: 601 | R45: 48 | S45: 3 | T45: 539 | U45: 44 | V45: 7 | W45: 598 | AA45: 6 | AB45: 50 | AC45: 50117.43333 | AD45: 117.4333333 | AE45: 587.1666667
B46: 43 | C46: Čermák Tomáš | D46: 0 | E46: Hostivař | F46: 42 | G46: 9 | H46: 577 | L46: 46 | M46: 5 | N46: 564 | O46: 34 | P46: 17 | Q46: 631 | R46: 45 | S46: 6 | T46: 561 | U46: 48 | V46: 3 | W46: 585 | AA46: 5 | AB46: 40 | AC46: 40116.72 | AD46: 116.72 | AE46: 583.6
B47: 44 | C47: Řehák František | D47: 0 | E47: Klíčov | F47: 47 | G47: 4 | H47: 553 | I47: 46 | J47: 5 | K47: 573 | L47: 45 | M47: 6 | N47: 567 | O47: 42 | P47: 9 | Q47: 560 | R47: 37 | S47: 14 | T47: 649 | AA47: 5 | AB47: 38 | AC47: 38116.08 | AD47: 116.08 | AE47: 580.4
B48: 45 | C48: Táborský František | D48: 0 | E48: Klíčov | F48: 48 | G48: 3 | H48: 530 | I48: 47 | J48: 4 | K48: 563 | O48: 46 | P48: 5 | Q48: 535 | U48: 41 | V48: 10 | W48: 615 | X48: 49 | Y48: 2 | Z48: 544 | AA48: 5 | AB48: 24 | AC48: 24111.48 | AD48: 111.48 | AE48: 557.4
B49: 46 | C49: Stejskal Martin | D49: 0 | E49: Kačerov | L49: 5 | M49: 46 | N49: 846 | AA49: 1 | AB49: 46 | AC49: 46169.2 | AD49: 169.2 | AE49: 846
B50: 47 | C50: Greman Milan | D50: 0 | E50: Vršovice | O50: 7 | P50: 44 | Q50: 840 | AA50: 1 | AB50: 44 | AC50: 44168 | AD50: 168 | AE50: 840
B51: 48 | C51: Podhola Martin | D51: 0 | E51: Vršovice | I51: 4 | J51: 47 | K51: 896 | L51: 9 | M51: 42 | N51: 824 | R51: 6 | S51: 45 | T51: 826 | X51: 18 | Y51: 33 | Z51: 757 | AA51: 4 | AB51: 167 | AC51: 167165.15 | AD51: 165.15 | AE51: 825.75
B52: 49 | C52: Věchtík Antonín | D52: 0 | E52: Vršovice | F52: 6 | G52: 45 | H52: 830 | X52: 16 | Y52: 35 | Z52: 766 | AA52: 2 | AB52: 80 | AC52: 80159.6 | AD52: 159.6 | AE52: 798
B53: 50 | C53: Froněk Martin | D53: 0 | E53: Řepy | L53: 23 | M53: 28 | N53: 720 | U53: 12 | V53: 39 | W53: 778 | X53: 1 | Y53: 50 | Z53: 893 | AA53: 3 | AB53: 117 | AC53: 117159.4 | AD53: 159.4 | AE53: 797
B54: 51 | C54: Růžička Ladislav | D54: 0 | E54: Hostivař | F54: 16 | G54: 35 | H54: 744 | R54: 23 | S54: 28 | T54: 717 | U54: 30 | V54: 21 | W54: 664 | X54: 14 | Y54: 37 | Z54: 792 | AA54: 4 | AB54: 121 | AC54: 121145.85 | AD54: 145.85 | AE54: 729.25
B55: 52 | C55: Krupová Martina | D55: 0 | E55: Vršovice | I55: 31 | J55: 20 | K55: 662 | O55: 18 | P55: 33 | Q55: 725 | U55: 16 | V55: 35 | W55: 755 | AA55: 3 | AB55: 88 | AC55: 88142.8 | AD55: 142.8 | AE55: 714
B56: 53 | C56: Šafář Bohumil | D56: 0 | E56: Klíčov | I56: 17 | J56: 34 | K56: 751 | L56: 37 | M56: 14 | N56: 660 | AA56: 2 | AB56: 48 | AC56: 48141.1 | AD56: 141.1 | AE56: 705.5
B57: 54 | C57: Štěpán Radek | D57: 0 | E57: Klíčov | O57: 11 | P57: 40 | Q57: 779 | R57: 36 | S57: 15 | T57: 667 | U57: 20 | V57: 31 | W57: 716 | X57: 37 | Y57: 14 | Z57: 642 | AA57: 4 | AB57: 100 | AC57: 100140.2 | AD57: 140.2 | AE57: 701
B58: 55 | C58: Kučera Miroslav | D58: 0 | E58: Vršovice | G58: =IF(F58="","",IF(F58>50,"",51-F58)) ->  | J58: =IF(I58="","",IF(I58>50,"",51-I58)) ->  | L58: 36 | M58: =IF(L58="","",IF(L58>50,"",51-L58)) -> 15 | N58: 665 | O58: 19 | P58: 32 | Q58: 724 | AA58: 2 | AB58: 47 | AC58: 47138.9 | AD58: 138.9 | AE58: 694.5
B59: 56 | C59: Táborský Lukáš | D59: 0 | E59: Klíčov | F59: 28 | G59: =IF(F59="","",IF(F59>50,"",51-F59)) -> 23 | H59: 661 | J59: =IF(I59="","",IF(I59>50,"",51-I59)) ->  | M59: =IF(L59="","",IF(L59>50,"",51-L59)) ->  | U59: 23 | V59: 28 | W59: 695 | X59: 24 | Y59: 27 | Z59: 697 | AA59: 3 | AB59: 78 | AC59: 78136.86667 | AD59: 136.8666667 | AE59: 684.3333333
B60: 57 | C60: Turek Stanislav | D60: 0 | E60: Kačerov | G60: =IF(F60="","",IF(F60>50,"",51-F60)) ->  | J60: =IF(I60="","",IF(I60>50,"",51-I60)) ->  | M60: =IF(L60="","",IF(L60>50,"",51-L60)) ->  | R60: 21 | S60: 30 | T60: 721 | U60: 28 | V60: 23 | W60: 674 | X60: 34 | Y60: 17 | Z60: 649 | AA60: 3 | AB60: 70 | AC60: 70136.26667 | AD60: 136.2666667 | AE60: 681.3333333
B61: 58 | C61: Číhal František | D61: 0 | E61: Řepy | G61: =IF(F61="","",IF(F61>50,"",51-F61)) ->  | J61: =IF(I61="","",IF(I61>50,"",51-I61)) ->  | M61: =IF(L61="","",IF(L61>50,"",51-L61)) ->  | O61: 26 | P61: 25 | Q61: 681 | AA61: 1 | AB61: 25 | AC61: 25136.2 | AD61: 136.2 | AE61: 681
B62: 59 | C62: Lokvenc Jiří | D62: 0 | E62: Klíčov | G62: =IF(F62="","",IF(F62>50,"",51-F62)) ->  | I62: 28 | J62: =IF(I62="","",IF(I62>50,"",51-I62)) -> 23 | K62: 686 | M62: =IF(L62="","",IF(L62>50,"",51-L62)) ->  | U62: 33 | V62: 18 | W62: 645 | AA62: 2 | AB62: 41 | AC62: 41133.1 | AD62: 133.1 | AE62: 665.5
B63: 60 | C63: Křikavová Miroslava | D63: 0 | E63: Řepy | R63: 38 | S63: 13 | T63: 640 | AA63: 1 | AB63: 13 | AC63: 13128 | AD63: 128 | AE63: 640
B64: 61 | C64: Kolář Ladislav | D64: 0 | E64: Klíčov | G64: =IF(F64="","",IF(F64>50,"",51-F64)) ->  | I64: 38 | J64: =IF(I64="","",IF(I64>50,"",51-I64)) -> 13 | K64: 621 | M64: =IF(L64="","",IF(L64>50,"",51-L64)) ->  | U64: 32 | V64: =IF(U64="","",IF(U64>50,"",51-U64)) -> 19 | W64: 650 | AA64: 2 | AB64: 32 | AC64: 32127.1 | AD64: 127.1 | AE64: 635.5
B65: 62 | C65: Lazurová Jiřina | D65: 0 | E65: Hostivař | I65: 44 | J65: 7 | K65: 598 | L65: 35 | M65: 16 | N65: 669 | R65: 25 | S65: 26 | T65: 704 | X65: 48 | Y65: 3 | Z65: 551 | AA65: 4 | AB65: 52 | AC65: 52126.1 | AD65: 126.1 | AE65: 630.5
B66: 63 | C66: Plecháček Miroslav | D66: 0 | E66: Řepy | F66: 31 | G66: 20 | H66: 653 | I66: 41 | J66: 10 | K66: 608 | AA66: 2 | AB66: 30 | AC66: 30126.1 | AD66: 126.1 | AE66: 630.5
B67: 64 | C67: Krupka Jakub | D67: 0 | E67: Klíčov | F67: 35 | G67: 16 | H67: 627 | AA67: 1 | AB67: 16 | AC67: 16125.4 | AD67: 125.4 | AE67: 627
B68: =SUM(B67+1) -> 65 | C68: Žalud Miroslav | D68: =IF(AA68<6,0,1) -> 0 | E68: Kačerov | I68: 37 | J68: 14 | K68: 625 | Y68: =IF(X68="","",IF(X68>50,"",51-X68)) ->  | AA68: =COUNT(X68,U68,R68,O68,L68,I68,F68) -> 1 | AB68: =SUM(G68,J68,M68,P68,S68,V68,Y68) -> 14 | AC68: =IF(AB68=0,"",SUM(AB68*1000)+AD68) -> 14125 | AD68: =IF(AA68=0,"",AE68/5) -> 125 | AE68: =IF(AA68=0,"",(H68+K68+N68+Q68+T68+W68+Z68)/AA68) -> 625
B69: 66 | C69: Hájek Mojmír | D69: 0 | E69: Klíčov | L69: 27 | M69: 24 | N69: 699 | O69: 45 | P69: 6 | Q69: 549 | AA69: 2 | AB69: 30 | AC69: 30124.8 | AD69: 124.8 | AE69: 624
B70: 67 | C70: Pavlíček Rudolf | D70: 0 | E70: Vršovice | R70: 44 | S70: 7 | T70: 564 | U70: 40 | V70: 11 | W70: 623 | X70: 43 | Y70: 8 | Z70: 619 | AA70: 3 | AB70: 26 | AC70: 26120.4 | AD70: 120.4 | AE70: 602
B71: 68 | C71: Růžička Václav | D71: 0 | E71: Řepy | O71: 35 | P71: 16 | Q71: 619 | U71: 43 | V71: 8 | W71: 598 | X71: 45 | Y71: 6 | Z71: 586 | AA71: 3 | AB71: 30 | AC71: 30120.2 | AD71: 120.2 | AE71: 601
B72: 69 | C72: Katolický Zdeněk | D72: 0 | E72: Kačerov | R72: 46 | S72: 5 | T72: 557 | U72: 38 | V72: 13 | W72: 627 | AA72: 2 | AB72: 18 | AC72: 18118.4 | AD72: 118.4 | AE72: 592
B73: 70 | C73: Veselý Vlastimil | D73: 0 | E73: Vršovice | F73: 41 | G73: =IF(F73="","",IF(F73>50,"",51-F73)) -> 10 | H73: 589 | J73: =IF(I73="","",IF(I73>50,"",51-I73)) ->  | M73: =IF(L73="","",IF(L73>50,"",51-L73)) ->  | P73: =IF(O73="","",IF(O73>50,"",51-O73)) ->  | AA73: 1 | AB73: 10 | AC73: 10117.8 | AD73: 117.8 | AE73: 589
B74: 71 | C74: Novotná Jana | D74: 0 | E74: Klíčov | G74: =IF(F74="","",IF(F74>50,"",51-F74)) ->  | J74: =IF(I74="","",IF(I74>50,"",51-I74)) ->  | L74: 43 | M74: =IF(L74="","",IF(L74>50,"",51-L74)) -> 8 | N74: 581 | P74: =IF(O74="","",IF(O74>50,"",51-O74)) ->  | R74: 43 | S74: 8 | T74: 585 | AA74: 2 | AB74: 16 | AC74: 16116.6 | AD74: 116.6 | AE74: 583
B75: 72 | C75: Pipek Pavel | D75: 0 | E75: Klíčov | O75: 40 | P75: =IF(O75="","",IF(O75>50,"",51-O75)) -> 11 | Q75: 577 | U75: 49 | V75: 2 | W75: 538 | X75: 39 | Y75: 12 | Z75: 632 | AA75: 3 | AB75: 25 | AC75: 25116.46667 | AD75: 116.4666667 | AE75: 582.3333333
B76: 73 | C76: Pelikán Stanislav | D76: 0 | E76: Klíčov | G76: =IF(F76="","",IF(F76>50,"",51-F76)) ->  | J76: =IF(I76="","",IF(I76>50,"",51-I76)) ->  | M76: =IF(L76="","",IF(L76>50,"",51-L76)) ->  | P76: =IF(O76="","",IF(O76>50,"",51-O76)) ->  | S76: =IF(R76="","",IF(R76>50,"",51-R76)) ->  | X76: 46 | Y76: 5 | Z76: 578 | AA76: 1 | AB76: 5 | AC76: 5115.6 | AD76: 115.6 | AE76: 578
B77: 74 | C77: Neshyba Jaroslav | D77: 0 | E77: Klíčov | R77: 47 | S77: 4 | T77: 550 | AA77: 1 | AB77: 4 | AC77: 4110 | AD77: 110 | AE77: 550
B78: 75 | C78: Vychnerová Michala | D78: 0 | E78: Klíčov | G78: =IF(F78="","",IF(F78>50,"",51-F78)) ->  | J78: =IF(I78="","",IF(I78>50,"",51-I78)) ->  | L78: 49 | M78: =IF(L78="","",IF(L78>50,"",51-L78)) -> 2 | N78: 508 | O78: 44 | P78: =IF(O78="","",IF(O78>50,"",51-O78)) -> 7 | Q78: 556 | V78: =IF(U78="","",IF(U78>50,"",51-U78)) ->  | AA78: 2 | AB78: 9 | AC78: 9106.4 | AD78: 106.4 | AE78: 532
B79: 76 | C79: Dvořák Petr | D79: 0 | E79: Řepy | G79: =IF(F79="","",IF(F79>50,"",51-F79)) ->  | J79: =IF(I79="","",IF(I79>50,"",51-I79)) ->  | M79: =IF(L79="","",IF(L79>50,"",51-L79)) ->  | P79: =IF(O79="","",IF(O79>50,"",51-O79)) ->  | R79: 49 | S79: 2 | T79: 524 | V79: =IF(U79="","",IF(U79>50,"",51-U79)) ->  | AA79: 1 | AB79: 2 | AC79: 2104.8 | AD79: 104.8 | AE79: 524
B80: 77 | C80: Šafrová Martina | D80: 0 | E80: Klíčov | R80: 50 | S80: 1 | T80: 518 | AA80: 1 | AB80: 1 | AC80: 1103.6 | AD80: 103.6 | AE80: 518
B81: 78 | C81: Kalošová Dagmar | D81: 0 | E81: Hostivař | F81: 49 | G81: =IF(F81="","",IF(F81>50,"",51-F81)) -> 2 | H81: 496 | I81: 50 | J81: =IF(I81="","",IF(I81>50,"",51-I81)) -> 1 | K81: 498 | M81: =IF(L81="","",IF(L81>50,"",51-L81)) ->  | O81: 47 | P81: =IF(O81="","",IF(O81>50,"",51-O81)) -> 4 | Q81: 533 | V81: =IF(U81="","",IF(U81>50,"",51-U81)) ->  | AA81: 3 | AB81: 7 | AC81: 7101.8 | AD81: 101.8 | AE81: 509
B82: 79 | C82: Bergerová Marcela | D82: 0 | E82: Hostivař | G82: =IF(F82="","",IF(F82>50,"",51-F82)) ->  | I82: 49 | J82: =IF(I82="","",IF(I82>50,"",51-I82)) -> 2 | K82: 504 | M82: =IF(L82="","",IF(L82>50,"",51-L82)) ->  | O82: 48 | P82: 3 | Q82: 511 | V82: =IF(U82="","",IF(U82>50,"",51-U82)) ->  | AA82: 2 | AB82: 5 | AC82: 5101.5 | AD82: 101.5 | AE82: 507.5
B83: 80 | C83: Štarková Tereza | D83: 0 | E83: Klíčov | O83: 50 | P83: 1 | Q83: 487 | AA83: 1 | AB83: 1 | AC83: 1097.4 | AD83: 97.4 | AE83: 487
B84: 81 | C84: Svítil Pavel | D84: 0 | E84: Hostivař | L84: 50 | M84: =IF(L84="","",IF(L84>50,"",51-L84)) -> 1 | N84: 480 | O84: 49 | P84: 2 | Q84: 490 | AA84: 2 | AB84: 3 | AC84: 3097 | AD84: 97 | AE84: 485
B85: 82 | C85: Hyková Lucie | D85: 0 | E85: Vršovice | G85: =IF(F85="","",IF(F85>50,"",51-F85)) ->  | J85: =IF(I85="","",IF(I85>50,"",51-I85)) ->  | S85: =IF(R85="","",IF(R85>50,"",51-R85)) ->  | U85: 50 | V85: =IF(U85="","",IF(U85>50,"",51-U85)) -> 1 | W85: 333 | X85: 50 | Y85: 1 | Z85: 400 | AA85: 2 | AB85: 2 | AC85: 2073.3 | AD85: 73.3 | AE85: 366.5
D86: 0 | G86: =IF(F86="","",IF(F86>50,"",51-F86)) ->  | J86: =IF(I86="","",IF(I86>50,"",51-I86)) ->  | S86: =IF(R86="","",IF(R86>50,"",51-R86)) ->  | V86: =IF(U86="","",IF(U86>50,"",51-U86)) -> 
D87: 0 | G87: =IF(F87="","",IF(F87>50,"",51-F87)) ->  | J87: =IF(I87="","",IF(I87>50,"",51-I87)) ->  | S87: =IF(R87="","",IF(R87>50,"",51-R87)) ->  | V87: =IF(U87="","",IF(U87>50,"",51-U87)) -> 
D88: 0 | G88: =IF(F88="","",IF(F88>50,"",51-F88)) ->  | J88: =IF(I88="","",IF(I88>50,"",51-I88)) ->  | S88: =IF(R88="","",IF(R88>50,"",51-R88)) ->  | V88: =IF(U88="","",IF(U88>50,"",51-U88)) -> 
D89: 0 | G89: =IF(F89="","",IF(F89>50,"",51-F89)) ->  | J89: =IF(I89="","",IF(I89>50,"",51-I89)) ->  | S89: =IF(R89="","",IF(R89>50,"",51-R89)) ->  | V89: =IF(U89="","",IF(U89>50,"",51-U89)) -> 

Sheet garáže
B1: jméno | C1: 19.1. | D1: 9.2. | E1: 9.3. | F1: 27.4. | G1: 12.10. | H1: 9.11. | I1: 8.12. | J1: kuželky | L1: průměr | N1: garáž | O1: průměr na 1 hru | P1: průměr na turnaj | Q1: zpět
A2: Dejvice | B2: Štěrba Ladislav | C2: =zápis!H5 -> 0 | D2: =zápis!N5 -> 0 | E2: =zápis!T5 -> 0 | F2: =zápis!Z5 -> 0 | G2: =zápis!AF5 -> 0 | H2: =zápis!AL5 -> 0 | I2: =zápis!AR5 -> 0 | J2: =SUM(C2:I2) -> 0 | K2: =zápis!AT5 -> 0 | L2: =IF(K2=0,"",J2/K2) ->  | N2: Řepy | O2: =zápis!$AU$97 -> 144.742029 | P2: =SUM(O2*5) -> 723.7101449
A3: Dejvice | B3: Jošt Michal | C3: =zápis!H2 -> 0 | D3: =zápis!N2 -> 0 | E3: =zápis!T2 -> 0 | F3: =zápis!Z2 -> 0 | G3: =zápis!AF2 -> 0 | H3: =zápis!AL2 -> 0 | I3: =zápis!AR2 -> 0 | J3: 0 | K3: =zápis!AT2 -> 0 | N3: Kačerov | O3: =zápis!$AU$48 -> 143.1742857 | P3: =SUM(O3*5) -> 715.8714286
A4: Dejvice | B4: Joštová Alena | C4: =zápis!H4 -> 0 | D4: =zápis!N4 -> 0 | E4: =zápis!T4 -> 0 | F4: =zápis!Z4 -> 0 | G4: =zápis!AF4 -> 0 | H4: =zápis!AL4 -> 0 | I4: =zápis!AR4 -> 0 | J4: 0 | K4: =zápis!AT4 -> 0 | N4: Hostivař | O4: =zápis!$AU$31 -> 138.6636364 | P4: =SUM(O4*5) -> 693.3181818
A5: Dejvice | B5: Pěchočová Soňa | C5: =zápis!H3 -> 0 | D5: =zápis!N3 -> 0 | E5: =zápis!T3 -> 0 | F5: =zápis!Z3 -> 0 | G5: =zápis!AF3 -> 0 | H5: =zápis!AL3 -> 0 | I5: =zápis!AR3 -> 0 | J5: 0 | K5: =zápis!AT3 -> 0 | N5: Vršovice | O5: =zápis!$AU$121 -> 138.6457143 | P5: =SUM(O5*5) -> 693.2285714
A6: Dejvice | B6: Novák Antonín | C6: =zápis!H6 -> 0 | D6: =zápis!N6 -> 0 | E6: =zápis!T6 -> 0 | F6: =zápis!Z6 -> 0 | G6: =zápis!AF6 -> 0 | H6: =zápis!AL6 -> 0 | I6: =zápis!AR6 -> 0 | J6: 0 | K6: =zápis!AT6 -> 0 | N6: Klíčov | O6: =zápis!$AU$74 -> 135.1514286 | P6: =SUM(O6*5) -> 675.7571429
A7: Hostivař | B7: Šafařík Luděk | C7: =zápis!H10 -> 928 | D7: =zápis!N10 -> 905 | E7: =zápis!T10 -> 897 | F7: =zápis!Z10 -> 883 | G7: =zápis!AF10 -> 805 | H7: =zápis!AL10 -> 962 | I7: =zápis!AR10 -> 833 | J7: 6213 | K7: =zápis!AT10 -> 35 | L7: 177.5142857 | N7: Dejvice
A8: Hostivař | B8: Lazur Ladislav | C8: =zápis!H19 -> 847 | D8: =zápis!N19 -> 945 | E8: =zápis!T19 -> 831 | F8: =zápis!Z19 -> 0 | G8: =zápis!AF19 -> 794 | H8: =zápis!AL19 -> 901 | I8: =zápis!AR19 -> 863 | J8: 5181 | K8: =zápis!AT19 -> 30 | L8: 172.7
A9: Hostivař | B9: Jelínek Jan | C9: =zápis!H12 -> 727 | D9: =zápis!N12 -> 719 | E9: =zápis!T12 -> 770 | F9: =zápis!Z12 -> 666 | G9: =zápis!AF12 -> 782 | H9: =zápis!AL12 -> 775 | I9: =zápis!AR12 -> 816 | J9: 5255 | K9: =zápis!AT12 -> 35 | L9: 150.1428571
A10: Hostivař | B10: Růžička Ladislav | C10: =zápis!H28 -> 744 | D10: =zápis!N28 -> 0 | E10: =zápis!T28 -> 0 | F10: =zápis!Z28 -> 0 | G10: =zápis!AF28 -> 717 | H10: =zápis!AL28 -> 664 | I10: =zápis!AR28 -> 792 | J10: 2917 | K10: =zápis!AT28 -> 20 | L10: 145.85
A11: Hostivař | B11: Berger Michal | C11: =zápis!H24 -> 0 | D11: =zápis!N24 -> 689 | E11: =zápis!T24 -> 767 | F11: =zápis!Z24 -> 703 | G11: =zápis!AF24 -> 0 | H11: =zápis!AL24 -> 730 | I11: =zápis!AR24 -> 729 | J11: 3618 | K11: =zápis!AT24 -> 25 | L11: 144.72
A12: Hostivař | B12: Mysliveček Jaroslav | C12: =zápis!H13 -> 702 | D12: =zápis!N13 -> 768 | E12: =zápis!T13 -> 631 | F12: =zápis!Z13 -> 754 | G12: =zápis!AF13 -> 701 | H12: =zápis!AL13 -> 642 | I12: =zápis!AR13 -> 717 | J12: 4915 | K12: =zápis!AT13 -> 35 | L12: 140.4285714
A13: Hostivař | B13: Křápek Roman | C13: =zápis!H15 -> 637 | D13: =zápis!N15 -> 632 | E13: =zápis!T15 -> 0 | F13: =zápis!Z15 -> 0 | G13: =zápis!AF15 -> 834 | H13: =zápis!AL15 -> 633 | I13: =zápis!AR15 -> 668 | J13: 3404 | K13: =zápis!AT15 -> 25 | L13: 136.16
A14: Hostivař | B14: Šafář Vladimír | C14: =zápis!H26 -> 616 | D14: =zápis!N26 -> 708 | E14: =zápis!T26 -> 593 | F14: =zápis!Z26 -> 632 | G14: =zápis!AF26 -> 683 | H14: =zápis!AL26 -> 631 | I14: =zápis!AR26 -> 652 | J14: 4515 | K14: =zápis!AT26 -> 35 | L14: 129
A15: Hostivař | B15: Lazurová Jiřina | C15: =zápis!H20 -> 0 | D15: =zápis!N20 -> 598 | E15: =zápis!T20 -> 669 | F15: =zápis!Z20 -> 0 | G15: =zápis!AF20 -> 704 | H15: =zápis!AL20 -> 0 | I15: =zápis!AR20 -> 551 | J15: 2522 | K15: =zápis!AT20 -> 20 | L15: 126.1
A16: Hostivař | B16: Kollár Pavel | C16: =zápis!H25 -> 571 | D16: =zápis!N25 -> 0 | E16: =zápis!T25 -> 529 | F16: =zápis!Z25 -> 558 | G16: =zápis!AF25 -> 681 | H16: =zápis!AL25 -> 695 | I16: =zápis!AR25 -> 672 | J16: 3706 | K16: =zápis!AT25 -> 30 | L16: 123.5333333
A17: Hostivař | B17: Čermák Tomáš | C17: =zápis!H17 -> 577 | D17: =zápis!N17 -> 0 | E17: =zápis!T17 -> 564 | F17: =zápis!Z17 -> 631 | G17: =zápis!AF17 -> 561 | H17: =zápis!AL17 -> 585 | I17: =zápis!AR17 -> 0 | J17: 2918 | K17: =zápis!AT17 -> 25 | L17: 116.72
A18: Hostivař | B18: Kalošová Dagmar | C18: =zápis!H23 -> 496 | D18: =zápis!N23 -> 498 | E18: =zápis!T23 -> 0 | F18: =zápis!Z23 -> 533 | G18: =zápis!AF23 -> 0 | H18: =zápis!AL23 -> 0 | I18: =zápis!AR23 -> 0 | J18: 1527 | K18: =zápis!AT23 -> 15 | L18: 101.8
A19: Hostivař | B19: Bergerová Marcela | C19: =zápis!H27 -> 0 | D19: =zápis!N27 -> 504 | E19: =zápis!T27 -> 0 | F19: =zápis!Z27 -> 511 | G19: =zápis!AF27 -> 0 | H19: =zápis!AL27 -> 0 | I19: =zápis!AR27 -> 0 | J19: 1015 | K19: =zápis!AT27 -> 10 | L19: 101.5
A20: Hostivař | B20: Svítil Pavel | C20: =zápis!H16 -> 0 | D20: =zápis!N16 -> 0 | E20: =zápis!T16 -> 480 | F20: =zápis!Z16 -> 490 | G20: =zápis!AF16 -> 0 | H20: =zápis!AL16 -> 0 | I20: =zápis!AR16 -> 0 | J20: 970 | K20: =zápis!AT16 -> 10 | L20: 97
A21: Hostivař | B21: Jirkovská Iveta | C21: =zápis!H14 -> 0 | D21: =zápis!N14 -> 0 | E21: =zápis!T14 -> 0 | F21: =zápis!Z14 -> 0 | G21: =zápis!AF14 -> 0 | H21: =zápis!AL14 -> 0 | I21: =zápis!AR14 -> 0
A22: Hostivař | B22: Kačena Martin | C22: =zápis!H21 -> 0 | D22: =zápis!N21 -> 0 | E22: =zápis!T21 -> 0 | F22: =zápis!Z21 -> 0 | G22: =zápis!AF21 -> 0 | H22: =zápis!AL21 -> 0 | I22: =zápis!AR21 -> 0
A23: Hostivař | B23: Sláma Karel | C23: =zápis!H11 -> 0 | D23: =zápis!N11 -> 0 | E23: =zápis!T11 -> 0 | F23: =zápis!Z11 -> 0 | G23: =zápis!AF11 -> 0 | H23: =zápis!AL11 -> 0 | I23: =zápis!AR11 -> 0
A24: Kačerov | B24: Stejskal Martin | C24: =zápis!H42 -> 0 | D24: =zápis!N42 -> 0 | E24: =zápis!T42 -> 846 | F24: =zápis!Z42 -> 0 | G24: =zápis!AF42 -> 0 | H24: =zápis!AL42 -> 0 | I24: =zápis!AR42 -> 0 | J24: =SUM(C24:I24) -> 846 | K24: =zápis!AT42 -> 5 | L24: =IF(K24=0,"",J24/K24) -> 169.2
A25: Kačerov | B25: Ondřich František | C25: =zápis!H44 -> 796 | D25: =zápis!N44 -> 815 | E25: =zápis!T44 -> 895 | F25: =zápis!Z44 -> 664 | G25: =zápis!AF44 -> 858 | H25: =zápis!AL44 -> 863 | I25: =zápis!AR44 -> 809 | J25: 5700 | K25: =zápis!AT44 -> 35 | L25: 162.8571429
A26: Kačerov | B26: Mašát Petr | C26: =zápis!H36 -> 895 | D26: =zápis!N36 -> 826 | E26: =zápis!T36 -> 859 | F26: =zápis!Z36 -> 854 | G26: =zápis!AF36 -> 0 | H26: =zápis!AL36 -> 657 | I26: =zápis!AR36 -> 669 | J26: 4760 | K26: =zápis!AT36 -> 30 | L26: 158.6666667
A27: Kačerov | B27: Carvan Pavel | C27: =zápis!H33 -> 752 | D27: =zápis!N33 -> 860 | E27: =zápis!T33 -> 705 | F27: =zápis!Z33 -> 842 | G27: =zápis!AF33 -> 683 | H27: =zápis!AL33 -> 762 | I27: =zápis!AR33 -> 810 | J27: 5414 | K27: =zápis!AT33 -> 35 | L27: 154.6857143
A28: Kačerov | B28: Tomášek Zdeněk | C28: =zápis!H35 -> 825 | D28: =zápis!N35 -> 728 | E28: =zápis!T35 -> 733 | F28: =zápis!Z35 -> 723 | G28: =zápis!AF35 -> 725 | H28: =zápis!AL35 -> 0 | I28: =zápis!AR35 -> 0 | J28: 3734 | K28: =zápis!AT35 -> 25 | L28: 149.36
A29: Kačerov | B29: Hübner Jiří | C29: =zápis!H37 -> 737 | D29: =zápis!N37 -> 0 | E29: =zápis!T37 -> 0 | F29: =zápis!Z37 -> 725 | G29: =zápis!AF37 -> 703 | H29: =zápis!AL37 -> 677 | I29: =zápis!AR37 -> 803 | J29: 3645 | K29: =zápis!AT37 -> 25 | L29: 145.8
A30: Kačerov | B30: Radová Petra | C30: =zápis!H45 -> 718 | D30: =zápis!N45 -> 686 | E30: =zápis!T45 -> 684 | F30: =zápis!Z45 -> 688 | G30: =zápis!AF45 -> 717 | H30: =zápis!AL45 -> 685 | I30: =zápis!AR45 -> 675 | J30: 4853 | K30: =zápis!AT45 -> 35 | L30: 138.6571429
A31: Kačerov | B31: Douša Adam | C31: =zápis!H38 -> 636 | D31: =zápis!N38 -> 766 | E31: =zápis!T38 -> 672 | F31: =zápis!Z38 -> 785 | G31: =zápis!AF38 -> 669 | H31: =zápis!AL38 -> 0 | I31: =zápis!AR38 -> 631 | J31: 4159 | K31: =zápis!AT38 -> 30 | L31: 138.6333333
A32: Kačerov | B32: Brož Stanislav | C32: =zápis!H34 -> 657 | D32: =zápis!N34 -> 693 | E32: =zápis!T34 -> 742 | F32: =zápis!Z34 -> 666 | G32: =zápis!AF34 -> 0 | H32: =zápis!AL34 -> 723 | I32: =zápis!AR34 -> 625 | J32: 4106 | K32: =zápis!AT34 -> 30 | L32: 136.8666667
A33: Kačerov | B33: Turek Stanislav | C33: =zápis!H39 -> 0 | D33: =zápis!N39 -> 0 | E33: =zápis!T39 -> 0 | F33: =zápis!Z39 -> 0 | G33: =zápis!AF39 -> 721 | H33: =zápis!AL39 -> 674 | I33: =zápis!AR39 -> 649 | J33: 2044 | K33: =zápis!AT39 -> 15 | L33: 136.2666667
A34: Kačerov | B34: Brejcha Jaroslav | C34: =zápis!H40 -> 614 | D34: =zápis!N40 -> 618 | E34: =zápis!T40 -> 683 | F34: =zápis!Z40 -> 753 | G34: =zápis!AF40 -> 718 | H34: =zápis!AL40 -> 691 | I34: =zápis!AR40 -> 681 | J34: 4758 | K34: =zápis!AT40 -> 35 | L34: 135.9428571
A35: Kačerov | B35: Žalud Miroslav | C35: =zápis!H41 -> 0 | D35: =zápis!N41 -> 625 | E35: =zápis!T41 -> 0 | F35: =zápis!Z41 -> 0 | G35: =zápis!AF41 -> 0 | H35: =zápis!AL41 -> 0 | I35: =zápis!AR41 -> 0 | J35: 625 | K35: =zápis!AT41 -> 5 | L35: 125
A36: Kačerov | B36: Kutina Pavel | C36: =zápis!H43 -> 473 | D36: =zápis!N43 -> 611 | E36: =zápis!T43 -> 599 | F36: =zápis!Z43 -> 682 | G36: =zápis!AF43 -> 676 | H36: =zápis!AL43 -> 627 | I36: =zápis!AR43 -> 615 | J36: 4283 | K36: =zápis!AT43 -> 35 | L36: 122.3714286
A37: Kačerov | B37: Katolický Zdeněk | G37: =zápis!AF46 -> 557 | H37: =zápis!AL46 -> 627 | I37: =zápis!AM46 -> 0 | J37: 1184 | K37: =zápis!AT46 -> 10 | L37: 118.4
A38: Klíčov | B38: Novotný Lukáš | C38: =zápis!H53 -> 860 | D38: =zápis!N53 -> 833 | E38: =zápis!T53 -> 793 | F38: =zápis!Z53 -> 0 | G38: =zápis!AF53 -> 0 | H38: =zápis!AL53 -> 814 | I38: =zápis!AR53 -> 888 | J38: 4188 | K38: =zápis!AT53 -> 25 | L38: 167.52
A39: Klíčov | B39: Pecka Jiří | C39: =zápis!H56 -> 814 | D39: =zápis!N56 -> 831 | E39: =zápis!T56 -> 831 | F39: =zápis!Z56 -> 0 | G39: =zápis!AF56 -> 751 | H39: =zápis!AL56 -> 854 | I39: =zápis!AR56 -> 790 | J39: 4871 | K39: =zápis!AT56 -> 30 | L39: 162.3666667
A40: Klíčov | B40: Kalfiřt Petr | C40: =zápis!H57 -> 680 | D40: =zápis!N57 -> 796 | E40: =zápis!T57 -> 768 | F40: =zápis!Z57 -> 807 | G40: =zápis!AF57 -> 822 | H40: =zápis!AL57 -> 894 | I40: =zápis!AR57 -> 761 | J40: 5528 | K40: =zápis!AT57 -> 35 | L40: 157.9428571
A41: Klíčov | B41: Křemenák Petr | C41: =zápis!H64 -> 707 | D41: =zápis!N64 -> 0 | E41: =zápis!T64 -> 703 | F41: =zápis!Z64 -> 638 | G41: =zápis!AF64 -> 801 | H41: =zápis!AL64 -> 0 | I41: =zápis!AR64 -> 687 | J41: 3536 | K41: =zápis!AT64 -> 25 | L41: 141.44
A42: Klíčov | B42: Troller Pavel | C42: =zápis!H50 -> 691 | D42: =zápis!N50 -> 638 | E42: =zápis!T50 -> 0 | F42: =zápis!Z50 -> 0 | G42: =zápis!AF50 -> 757 | H42: =zápis!AL50 -> 701 | I42: =zápis!AR50 -> 742 | J42: 3529 | K42: =zápis!AT50 -> 25 | L42: 141.16
A43: Klíčov | B43: Šafář Bohumil | C43: =zápis!H60 -> 0 | D43: =zápis!N60 -> 751 | E43: =zápis!T60 -> 660 | F43: =zápis!Z60 -> 0 | G43: =zápis!AF60 -> 0 | H43: =zápis!AL60 -> 0 | I43: =zápis!AR60 -> 0 | J43: 1411 | K43: =zápis!AT60 -> 10 | L43: 141.1
A44: Klíčov | B44: Štěpán Radek | C44: =zápis!H70 -> 0 | D44: =zápis!N70 -> 0 | E44: =zápis!T70 -> 0 | F44: =zápis!Z70 -> 779 | G44: =zápis!AF70 -> 667 | H44: =zápis!AL70 -> 716 | I44: =zápis!AR70 -> 642 | J44: 2804 | K44: =zápis!AT70 -> 20 | L44: 140.2
A45: Klíčov | B45: Táborský Lukáš | C45: =zápis!H54 -> 661 | D45: =zápis!N54 -> 0 | E45: =zápis!T54 -> 0 | F45: =zápis!Z54 -> 0 | G45: =zápis!AF54 -> 0 | H45: =zápis!AL54 -> 695 | I45: =zápis!AR54 -> 697 | J45: 2053 | K45: =zápis!AT54 -> 15 | L45: 136.8666667
A46: Klíčov | B46: Lokvenc Jiří | C46: =zápis!H62 -> 0 | D46: =zápis!N62 -> 686 | E46: =zápis!T62 -> 0 | F46: =zápis!Z62 -> 0 | G46: =zápis!AF62 -> 0 | H46: =zápis!AL62 -> 645 | I46: =zápis!AR62 -> 0 | J46: 1331 | K46: =zápis!AT62 -> 10 | L46: 133.1
A47: Klíčov | B47: Kolář Ladislav | C47: =zápis!H69 -> 0 | D47: =zápis!N69 -> 621 | E47: =zápis!T69 -> 0 | F47: =zápis!Z69 -> 0 | G47: =zápis!AF69 -> 0 | H47: =zápis!AL69 -> 650 | I47: =zápis!AR69 -> 0 | J47: 1271 | K47: =zápis!AT69 -> 10 | L47: 127.1
A48: Klíčov | B48: Krupka Jakub | C48: =zápis!H67 -> 627 | D48: =zápis!N67 -> 0 | E48: =zápis!T67 -> 0 | F48: =zápis!Z67 -> 0 | G48: =zápis!AF67 -> 0 | H48: =zápis!AL67 -> 0 | I48: =zápis!AR67 -> 0 | J48: 627 | K48: =zápis!AT67 -> 5 | L48: 125.4
A49: Klíčov | B49: Hájek Mojmír | C49: =zápis!H63 -> 0 | D49: =zápis!N63 -> 0 | E49: =zápis!T63 -> 699 | F49: =zápis!Z63 -> 549 | G49: =zápis!AF63 -> 0 | H49: =zápis!AL63 -> 0 | I49: =zápis!AR63 -> 0 | J49: 1248 | K49: =zápis!AT63 -> 10 | L49: 124.8
A50: Klíčov | B50: Novotná Petra | C50: =zápis!H52 -> 590 | D50: =zápis!N52 -> 636 | E50: =zápis!T52 -> 681 | F50: =zápis!Z52 -> 594 | G50: =zápis!AF52 -> 606 | H50: =zápis!AL52 -> 0 | I50: =zápis!AR52 -> 0 | J50: 3107 | K50: =zápis!AT52 -> 25 | L50: 124.28
A51: Klíčov | B51: Novotná Jana | C51: =zápis!H58 -> 0 | D51: =zápis!N58 -> 0 | E51: =zápis!T58 -> 581 | F51: =zápis!Z58 -> 0 | G51: =zápis!AF58 -> 585 | H51: =zápis!AL58 -> 0 | I51: =zápis!AR58 -> 0 | J51: 1166 | K51: =zápis!AT58 -> 10 | L51: 116.6
A52: Klíčov | B52: Pipek Pavel | C52: =zápis!H72 -> 0 | D52: =zápis!N72 -> 0 | E52: =zápis!T72 -> 0 | F52: =zápis!Z72 -> 577 | G52: =zápis!AF72 -> 0 | H52: =zápis!AL72 -> 538 | I52: =zápis!AR72 -> 632 | J52: 1747 | K52: =zápis!AT72 -> 15 | L52: 116.4666667
A53: Klíčov | B53: Řehák Jaroslav | C53: =zápis!H66 -> 553 | D53: =zápis!N66 -> 573 | E53: =zápis!T66 -> 567 | F53: =zápis!Z66 -> 560 | G53: =zápis!AF66 -> 649 | H53: =zápis!AL66 -> 0 | I53: =zápis!AR66 -> 0 | J53: 2902 | K53: =zápis!AT66 -> 25 | L53: 116.08
A54: Klíčov | B54: Pelikán Stanislav | C54: =zápis!H51 -> 0 | D54: =zápis!N51 -> 0 | E54: =zápis!T51 -> 0 | F54: =zápis!Z51 -> 0 | G54: =zápis!AF51 -> 0 | H54: =zápis!AL51 -> 0 | I54: =zápis!AR51 -> 578 | J54: 578 | K54: =zápis!AT51 -> 5 | L54: 115.6
A55: Klíčov | B55: Táborský František | C55: =zápis!H55 -> 530 | D55: =zápis!N55 -> 563 | E55: =zápis!T55 -> 0 | F55: =zápis!Z55 -> 535 | G55: =zápis!AF55 -> 0 | H55: =zápis!AL55 -> 615 | I55: =zápis!AR55 -> 544 | J55: 2787 | K55: =zápis!AT55 -> 25 | L55: 111.48
A56: Klíčov | B56: Neshyba Jaroslav | C56: =zápis!H68 -> 0 | D56: =zápis!N68 -> 0 | E56: =zápis!T68 -> 0 | F56: =zápis!Z68 -> 0 | G56: =zápis!AF68 -> 550 | H56: =zápis!AL68 -> 0 | I56: =zápis!AR68 -> 0 | J56: 550 | K56: =zápis!AT68 -> 5 | L56: 110
A57: Klíčov | B57: Vychnerová Michala | C57: =zápis!H65 -> 0 | D57: =zápis!N65 -> 0 | E57: =zápis!T65 -> 508 | F57: =zápis!Z65 -> 556 | G57: =zápis!AF65 -> 0 | H57: =zápis!AL65 -> 0 | I57: =zápis!AR65 -> 0 | J57: 1064 | K57: =zápis!AT65 -> 10 | L57: 106.4
A58: Klíčov | B58: Šafrová Martina | C58: =zápis!H61 -> 0 | D58: =zápis!N61 -> 0 | E58: =zápis!T61 -> 0 | F58: =zápis!Z61 -> 0 | G58: =zápis!AF61 -> 518 | H58: =zápis!AL61 -> 0 | I58: =zápis!AR61 -> 0 | J58: 518 | K58: =zápis!AT61 -> 5 | L58: 103.6
A59: Klíčov | B59: Štarková Tereza | C59: =zápis!H71 -> 0 | D59: =zápis!N71 -> 0 | E59: =zápis!T71 -> 0 | F59: =zápis!Z71 -> 487 | G59: =zápis!AF71 -> 0 | H59: =zápis!AL71 -> 0 | I59: =zápis!AR71 -> 0 | J59: 487 | K59: =zápis!AT71 -> 5 | L59: 97.4
A60: Klíčov | B60: Šafářová Veronika | C60: =zápis!H59 -> 0 | D60: =zápis!N59 -> 0 | E60: =zápis!T59 -> 0 | F60: =zápis!Z59 -> 0 | G60: =zápis!AF59 -> 0 | H60: =zápis!AL59 -> 0 | I60: =zápis!AR59 -> 0
A61: Řepy | B61: Kocúr Jaroslav | C61: =zápis!H77 -> 744 | D61: =zápis!N77 -> 915 | E61: =zápis!T77 -> 960 | F61: =zápis!Z77 -> 0 | G61: =zápis!AF77 -> 854 | H61: =zápis!AL77 -> 889 | I61: =zápis!AR77 -> 850 | J61: =SUM(C61:I61) -> 5212 | K61: =zápis!AT77 -> 30 | L61: =IF(K61=0,"",J61/K61) -> 173.7333333
A62: Řepy | B62: Pospíšil Václav | C62: =zápis!H76 -> 881 | D62: =zápis!N76 -> 876 | E62: =zápis!T76 -> 814 | F62: =zápis!Z76 -> 901 | G62: =zápis!AF76 -> 766 | H62: =zápis!AL76 -> 834 | I62: =zápis!AR76 -> 844 | J62: 5916 | K62: =zápis!AT76 -> 35 | L62: 169.0285714
A63: Řepy | B63: Froněk Martin | C63: =zápis!H88 -> 0 | D63: =zápis!N88 -> 0 | E63: =zápis!T88 -> 720 | F63: =zápis!Z88 -> 0 | G63: =zápis!AF88 -> 0 | H63: =zápis!AL88 -> 778 | I63: =zápis!AR88 -> 893 | J63: 2391 | K63: =zápis!AT88 -> 15 | L63: 159.4
A64: Řepy | B64: Kročil Tomáš | C64: =zápis!H83 -> 786 | D64: =zápis!N83 -> 806 | E64: =zápis!T83 -> 742 | F64: =zápis!Z83 -> 791 | G64: =zápis!AF83 -> 802 | H64: =zápis!AL83 -> 728 | I64: =zápis!AR83 -> 796 | J64: 5451 | K64: =zápis!AT83 -> 35 | L64: 155.7428571
A65: Řepy | B65: Alba Vladimír | C65: =zápis!H84 -> 777 | D65: =zápis!N84 -> 701 | E65: =zápis!T84 -> 770 | F65: =zápis!Z84 -> 738 | G65: =zápis!AF84 -> 776 | H65: =zápis!AL84 -> 814 | I65: =zápis!AR84 -> 722 | J65: 5298 | K65: =zápis!AT84 -> 35 | L65: 151.3714286
A66: Řepy | B66: Sladovník Miloš | C66: =zápis!H80 -> 720 | D66: =zápis!N80 -> 693 | E66: =zápis!T80 -> 727 | F66: =zápis!Z80 -> 842 | G66: =zápis!AF80 -> 668 | H66: =zápis!AL80 -> 0 | I66: =zápis!AR80 -> 755 | J66: 4405 | K66: =zápis!AT80 -> 30 | L66: 146.8333333
A67: Řepy | B67: Mottl Pavel | C67: =zápis!H81 -> 664 | D67: =zápis!N81 -> 596 | E67: =zápis!T81 -> 838 | F67: =zápis!Z81 -> 773 | G67: =zápis!AF81 -> 630 | H67: =zápis!AL81 -> 673 | I67: =zápis!AR81 -> 628 | J67: 4802 | K67: =zápis!AT81 -> 35 | L67: 137.2
A68: Řepy | B68: Číhal František | C68: =zápis!H82 -> 0 | D68: =zápis!N82 -> 0 | E68: =zápis!T82 -> 0 | F68: =zápis!Z82 -> 681 | G68: =zápis!AF82 -> 0 | H68: =zápis!AL82 -> 0 | I68: =zápis!AR82 -> 0 | J68: 681 | K68: =zápis!AT82 -> 5 | L68: 136.2
A69: Řepy | B69: Sehnal Ivan | C69: =zápis!H78 -> 631 | D69: =zápis!N78 -> 665 | E69: =zápis!T78 -> 680 | F69: =zápis!Z78 -> 761 | G69: =zápis!AF78 -> 722 | H69: =zápis!AL78 -> 612 | I69: =zápis!AR78 -> 658 | J69: 4729 | K69: =zápis!AT78 -> 35 | L69: 135.1142857
A70: Řepy | B70: Tichý Hugo | C70: =zápis!H85 -> 705 | D70: =zápis!N85 -> 636 | E70: =zápis!T85 -> 711 | F70: =zápis!Z85 -> 618 | G70: =zápis!AF85 -> 0 | H70: =zápis!AL85 -> 597 | I70: =zápis!AR85 -> 0 | J70: 3267 | K70: =zápis!AT85 -> 25 | L70: 130.68
A71: Řepy | B71: Křikavová Miroslava | C71: =zápis!H94 -> 0 | D71: =zápis!N94 -> 0 | E71: =zápis!T94 -> 0 | F71: =zápis!Z94 -> 0 | G71: =zápis!AF94 -> 640 | H71: =zápis!AL94 -> 0 | I71: =zápis!AR94 -> 0 | J71: 640 | K71: =zápis!AT94 -> 5 | L71: 128
A72: Řepy | B72: Plecháček Miroslav | C72: =zápis!H79 -> 653 | D72: =zápis!N79 -> 608 | E72: =zápis!T79 -> 0 | F72: =zápis!Z79 -> 0 | G72: =zápis!AF79 -> 0 | H72: =zápis!AL79 -> 0 | I72: =zápis!AR79 -> 0 | J72: 1261 | K72: =zápis!AT79 -> 10 | L72: 126.1
A73: Řepy | B73: Růžička Václav | C73: =zápis!H90 -> 0 | D73: =zápis!N90 -> 0 | E73: =zápis!T90 -> 0 | F73: =zápis!Z90 -> 619 | G73: =zápis!AF90 -> 0 | H73: =zápis!AL90 -> 598 | I73: =zápis!AR90 -> 586 | J73: 1803 | K73: =zápis!AT90 -> 15 | L73: 120.2
A74: Řepy | B74: Křikava Miroslav | C74: =zápis!H86 -> 572 | D74: =zápis!N86 -> 548 | E74: =zápis!T86 -> 536 | F74: =zápis!Z86 -> 651 | G74: =zápis!AF86 -> 619 | H74: =zápis!AL86 -> 626 | I74: =zápis!AR86 -> 644 | J74: 4196 | K74: =zápis!AT86 -> 35 | L74: 119.8857143
A75: Řepy | B75: Dvořák Petr | C75: =zápis!H87 -> 0 | D75: =zápis!N87 -> 0 | E75: =zápis!T87 -> 0 | F75: =zápis!Z87 -> 0 | G75: =zápis!AF87 -> 524 | H75: =zápis!AL87 -> 0 | I75: =zápis!AR87 -> 0 | J75: 524 | K75: =zápis!AT87 -> 5 | L75: 104.8
A76: Řepy | B76: Brejcha Jaroslav st. | C76: =zápis!H95 -> 0 | D76: =zápis!N95 -> 0 | E76: =zápis!T95 -> 0 | F76: =zápis!Z95 -> 0 | G76: =zápis!AF95 -> 0 | H76: =zápis!AL95 -> 0 | I76: =zápis!AR95 -> 0
A77: Řepy | B77: Fidler Slávek | C77: =zápis!H89 -> 0 | D77: =zápis!N89 -> 0 | E77: =zápis!T89 -> 0 | F77: =zápis!Z89 -> 0 | G77: =zápis!AF89 -> 0 | H77: =zápis!AL89 -> 0 | I77: =zápis!AR89 -> 0
A78: Řepy | B78: Orlík Rostislav | C78: =zápis!H93 -> 0 | D78: =zápis!N93 -> 0 | E78: =zápis!T93 -> 0 | F78: =zápis!Z93 -> 0 | G78: =zápis!AF93 -> 0 | H78: =zápis!AL93 -> 0 | I78: =zápis!AR93 -> 0
A79: Řepy | B79: Piešťanský Josef | C79: =zápis!H92 -> 0 | D79: =zápis!N92 -> 0 | E79: =zápis!T92 -> 0 | F79: =zápis!Z92 -> 0 | G79: =zápis!AF92 -> 0 | H79: =zápis!AL92 -> 0 | I79: =zápis!AR92 -> 0
A80: Řepy | B80: Šindelář Karel | C80: =zápis!H91 -> 0 | D80: =zápis!N91 -> 0 | E80: =zápis!T91 -> 0 | F80: =zápis!Z91 -> 0 | G80: =zápis!AF91 -> 0 | H80: =zápis!AL91 -> 0 | I80: =zápis!AR91 -> 0
A81: Vršovice | B81: Krupa Jozef | C81: =zápis!H99 -> 799 | D81: =zápis!N99 -> 891 | E81: =zápis!T99 -> 760 | F81: =zápis!Z99 -> 883 | G81: =zápis!AF99 -> 959 | H81: =zápis!AL99 -> 847 | I81: =zápis!AR99 -> 860 | J81: =SUM(C81:I81) -> 5999 | K81: =zápis!AT99 -> 35 | L81: =IF(K81=0,"",J81/K81) -> 171.4
A82: Vršovice | B82: Greman Milan | C82: =zápis!H118 -> 0 | D82: =zápis!N118 -> 0 | E82: =zápis!T118 -> 0 | F82: =zápis!Z118 -> 840 | G82: =zápis!AF118 -> 0 | H82: =zápis!AL118 -> 0 | I82: =zápis!AR118 -> 0 | J82: 840 | K82: =zápis!AT118 -> 5 | L82: 168
A83: Vršovice | B83: Podhola Martin | C83: =zápis!H110 -> 0 | D83: =zápis!N110 -> 896 | E83: =zápis!T110 -> 824 | F83: =zápis!Z110 -> 0 | G83: =zápis!AF110 -> 826 | H83: =zápis!AL110 -> 0 | I83: =zápis!AR110 -> 757 | J83: 3303 | K83: =zápis!AT110 -> 20 | L83: 165.15
A84: Vršovice | B84: Holkup Jan | C84: =zápis!H111 -> 755 | D84: =zápis!N111 -> 790 | E84: =zápis!T111 -> 0 | F84: =zápis!Z111 -> 0 | G84: =zápis!AF111 -> 912 | H84: =zápis!AL111 -> 823 | I84: =zápis!AR111 -> 802 | J84: 4082 | K84: =zápis!AT111 -> 25 | L84: 163.28
A85: Vršovice | B85: Věchtík Antonín | C85: =zápis!H109 -> 830 | D85: =zápis!N109 -> 0 | E85: =zápis!T109 -> 0 | F85: =zápis!Z109 -> 0 | G85: =zápis!AF109 -> 0 | H85: =zápis!AL109 -> 0 | I85: =zápis!AR109 -> 766 | J85: 1596 | K85: =zápis!AT109 -> 10 | L85: 159.6
A86: Vršovice | B86: Skružná Pavla | C86: =zápis!H103 -> 616 | D86: =zápis!N103 -> 738 | E86: =zápis!T103 -> 811 | F86: =zápis!Z103 -> 0 | G86: =zápis!AF103 -> 795 | H86: =zápis!AL103 -> 0 | I86: =zápis!AR103 -> 647 | J86: 3607 | K86: =zápis!AT103 -> 25 | L86: 144.28
A87: Vršovice | B87: Krupová Martina | C87: =zápis!H101 -> 0 | D87: =zápis!N101 -> 662 | E87: =zápis!T101 -> 0 | F87: =zápis!Z101 -> 725 | G87: =zápis!AF101 -> 0 | H87: =zápis!AL101 -> 755 | I87: =zápis!AR101 -> 0 | J87: 2142 | K87: =zápis!AT101 -> 15 | L87: 142.8
A88: Vršovice | B88: Bošek Jan | C88: =zápis!H116 -> 0 | D88: =zápis!N116 -> 710 | E88: =zápis!T116 -> 673 | F88: =zápis!Z116 -> 675 | G88: =zápis!AF116 -> 723 | H88: =zápis!AL116 -> 773 | I88: =zápis!AR116 -> 0 | J88: 3554 | K88: =zápis!AT116 -> 25 | L88: 142.16
A89: Vršovice | B89: Kučera Miroslav | C89: =zápis!H113 -> 0 | D89: =zápis!N113 -> 0 | E89: =zápis!T113 -> 665 | F89: =zápis!Z113 -> 724 | G89: =zápis!AF113 -> 0 | H89: =zápis!AL113 -> 0 | I89: =zápis!AR113 -> 0 | J89: 1389 | K89: =zápis!AT113 -> 10 | L89: 138.9
A90: Vršovice | B90: Kazda Jan | C90: =zápis!H105 -> 655 | D90: =zápis!N105 -> 656 | E90: =zápis!T105 -> 676 | F90: =zápis!Z105 -> 700 | G90: =zápis!AF105 -> 0 | H90: =zápis!AL105 -> 694 | I90: =zápis!AR105 -> 682 | J90: 4063 | K90: =zápis!AT105 -> 30 | L90: 135.4333333
A91: Vršovice | B91: Kovář Jaroslav | C91: =zápis!H114 -> 673 | D91: =zápis!N114 -> 0 | E91: =zápis!T114 -> 726 | F91: =zápis!Z114 -> 569 | G91: =zápis!AF114 -> 688 | H91: =zápis!AL114 -> 596 | I91: =zápis!AR114 -> 0 | J91: 3252 | K91: =zápis!AT114 -> 25 | L91: 130.08
A92: Vršovice | B92: Pospíšil Lukáš | C92: =zápis!H100 -> 611 | D92: =zápis!N100 -> 683 | E92: =zápis!T100 -> 573 | F92: =zápis!Z100 -> 583 | G92: =zápis!AF100 -> 697 | H92: =zápis!AL100 -> 0 | I92: =zápis!AR100 -> 575 | J92: 3722 | K92: =zápis!AT100 -> 30 | L92: 124.0666667
A93: Vršovice | B93: Aunický František | C93: =zápis!H104 -> 560 | D93: =zápis!N104 -> 604 | E93: =zápis!T104 -> 605 | F93: =zápis!Z104 -> 705 | G93: =zápis!AF104 -> 619 | H93: =zápis!AL104 -> 593 | I93: =zápis!AR104 -> 640 | J93: 4326 | K93: =zápis!AT104 -> 35 | L93: 123.6
A94: Vršovice | B94: Pavlíček Rudolf | C94: =zápis!H117 -> 0 | D94: =zápis!N117 -> 0 | E94: =zápis!T117 -> 0 | F94: =zápis!Z117 -> 0 | G94: =zápis!AF117 -> 564 | H94: =zápis!AL117 -> 623 | I94: =zápis!AR117 -> 619 | J94: 1806 | K94: =zápis!AT117 -> 15 | L94: 120.4
A95: Vršovice | B95: Veselý Vlastimil | C95: =zápis!H108 -> 589 | D95: =zápis!N108 -> 0 | E95: =zápis!T108 -> 0 | F95: =zápis!Z108 -> 0 | G95: =zápis!AF108 -> 0 | H95: =zápis!AL108 -> 0 | I95: =zápis!AR108 -> 0 | J95: 589 | K95: =zápis!AT108 -> 5 | L95: 117.8
A96: Vršovice | B96: Fay Vlastimil | C96: =zápis!H115 -> 571 | D96: =zápis!N115 -> 603 | E96: =zápis!T115 -> 611 | F96: =zápis!Z115 -> 601 | G96: =zápis!AF115 -> 539 | H96: =zápis!AL115 -> 598 | I96: =zápis!AR115 -> 0 | J96: 3523 | K96: =zápis!AT115 -> 30 | L96: 117.4333333
A97: Vršovice | B97: Hyková Lucie | C97: =zápis!H107 -> 0 | D97: =zápis!N107 -> 0 | E97: =zápis!T107 -> 0 | F97: =zápis!Z107 -> 0 | G97: =zápis!AF107 -> 0 | H97: =zápis!AL107 -> 333 | I97: =zápis!AR107 -> 400 | J97: 733 | K97: =zápis!AT107 -> 10 | L97: 73.3
A98: Vršovice | B98: Krupa Martin | C98: =zápis!H102 -> 0 | D98: =zápis!N102 -> 0 | E98: =zápis!T102 -> 0 | F98: =zápis!Z102 -> 0 | G98: =zápis!AF102 -> 0 | H98: =zápis!AL102 -> 0 | I98: =zápis!AR102 -> 0
A99: Vršovice | B99: Pokorný Josef | C99: =zápis!H112 -> 0 | D99: =zápis!N112 -> 0 | E99: =zápis!T112 -> 0 | F99: =zápis!Z112 -> 0 | G99: =zápis!AF112 -> 0 | H99: =zápis!AL112 -> 0 | I99: =zápis!AR112 -> 0
A100: Vršovice | B100: Tůma Antonín | C100: =zápis!H106 -> 0 | D100: =zápis!N106 -> 0 | E100: =zápis!T106 -> 0 | F100: =zápis!Z106 -> 0 | G100: =zápis!AF106 -> 0 | H100: =zápis!AL106 -> 0 | I100: =zápis!AR106 -> 0
A101: Vršovice | B101: Vrzal Pavel | C101: =zápis!H119 -> 0 | D101: =zápis!N119 -> 0 | E101: =zápis!T119 -> 0 | F101: =zápis!Z119 -> 0 | G101: =zápis!AF119 -> 0 | H101: =zápis!AL119 -> 0 | I101: =zápis!AR119 -> 0

Sheet stat. celkem
B1: ZE VŠECH TURNAJŮ 2013 jednotlivé turnaje | X1: ZPĚT | Y1: 2013-01-19 | AX1: ZPĚT | AY1: 9.2.2013 KLÍČOV | BX1: ZPĚT | BY1: 9.3.2013 ŘEPY | CX1: ZPĚT | CY1: 27.4.2013 HOSTIVAŘ | DX1: ZPĚT | DY1: 12.10.2013 KAČEROV | EX1: ZPĚT | EY1: 9.11.2013 VRŠOVICE | FX1: ZPĚT | FY1: 8.12.2013 POHÁR GENERÁLNÍHO ŘEDITELE - DP
B2: 25 nejvyšších náhozů | E2: 25 nejnižších náhozů | H2: 25 nejvyšších průměrů | J2: turnaje | K2: umístnění v jednotlivých turnajích | Y2: nejvyšší nához jednotlivce | AB2: nejnižší nához jednotlivce | AE2: 25 nejvyšších náhozů | AH2: 25 nejnižších náhozů | AK2: 25 nejvyšších náhozů na turnaj | AY2: nejvyšší nához jednotlivce | BB2: nejnižší nához jednotlivce | BE2: 25 nejvyšších náhozů | BH2: 25 nejnižších náhozů | BK2: 25 nejvyšších náhozů na turnaj | BY2: nejvyšší nához jednotlivce | CB2: nejnižší nához jednotlivce | CE2: 25 nejvyšších náhozů | CH2: 25 nejnižších náhozů | CK2: 25 nejvyšších náhozů na turnaj | CY2: nejvyšší nához jednotlivce | DB2: nejnižší nához jednotlivce | DE2: 25 nejvyšších náhozů | DH2: 25 nejnižších náhozů | DK2: 25 nejvyšších náhozů na turnaj | DY2: nejvyšší nához jednotlivce | EB2: nejnižší nához jednotlivce | EE2: 25 nejvyšších náhozů | EH2: 25 nejnižších náhozů | EK2: 25 nejvyšších náhozů na turnaj | EY2: nejvyšší nához jednotlivce | FB2: nejnižší nához jednotlivce | FE2: 25 nejvyšších náhozů | FH2: 25 nejnižších náhozů | FK2: 25 nejvyšších náhozů na turnaj | FY2: nejvyšší nához jednotlivce | GB2: nejnižší nához jednotlivce | GE2: 25 nejvyšších náhozů | GH2: 25 nejnižších náhozů | GK2: 25 nejvyšších náhozů na turnaj
J3: jednotlivci | K3: družstva | O3: jednotlivci
B4: Mašát Petr | C4: 243 | E4: Hyková Lucie | F4: 49 | H4: Šafařík Luděk | I4: 962 | K4: PV-OSZO DP-A 19.1.2013 | Q4: klikni | Y4: Šafařík Luděk | Z4: 231 | AB4: Kutina Pavel | AC4: 75 | AE4: Šafařík Luděk | AF4: 231 | AH4: Kutina Pavel | AI4: 75 | AK4: Šafařík Luděk | AL4: 928 | AY4: Lazur Vladimír | AZ4: 227 | BB4: Řehák Jaroslav | BC4: 81 | BE4: Lazur Vladimír | BF4: 227 | BH4: Řehák Jaroslav | BI4: 81 | BK4: Lazur Vladimír | BL4: 945 | BY4: Kocúr Jaroslav | BZ4: 232 | CB4: Svítil Pavel | CC4: 68 | CE4: Kocúr Jaroslav | CF4: 232 | CH4: Svítil Pavel | CI4: 68 | CK4: Kocúr Jaroslav | CL4: 960 | CY4: Mašát Petr | CZ4: 243 | DB4: Svítil Pavel | DC4: 66 | DE4: Mašát Petr | DF4: 243 | DH4: Svítil Pavel | DI4: 66 | DK4: Pospíšil Václav | DL4: 901 | DY4: Holkup Jan | DZ4: 235 | EB4: Čermák Tomáš | EC4: 78 | EE4: Holkup Jan | EF4: 235 | EH4: Čermák Tomáš | EI4: 78 | EK4: Krupa Jozef | EL4: 959 | EY4: Holkup Jan | EZ4: 228 | FB4: Hyková Lucie | FC4: 49 | FE4: Holkup Jan | FF4: 228 | FH4: Hyková Lucie | FI4: 49 | FK4: Šafařík Luděk | FL4: 962 | FY4: Lazur Vladimír | FZ4: 223 | GB4: Hyková Lucie | GC4: 60 | GE4: Lazur Vladimír | GF4: 223 | GH4: Hyková Lucie | GI4: 60 | GK4: Froněk Martin | GL4: 893
B5: Holkup Jan | C5: 235 | E5: Hyková Lucie | F5: 60 | H5: Kocúr Jaroslav | I5: 960 | K5: 1. místo | L5: Kačerov | M5: 4005 | O5: 1. místo | P5: Šafařík Luděk | Q5: 928 | Y5: Ondřich František | Z5: 217 | AB5: Kalošová Dagmar | AC5: 79 | AE5: Ondřich František | AF5: 217 | AH5: Kalošová Dagmar | AI5: 79 | AK5: Mašát Petr | AL5: 895 | AY5: Šafařík Luděk | AZ5: 223 | BB5: Křikava Miroslav | BC5: 84 | BE5: Lazur Vladimír | BF5: 223 | BH5: Křikava Miroslav | BI5: 84 | BK5: Kocůr Jaroslav | BL5: 915 | BY5: Stejskal Martin | BZ5: 228 | CB5: Vychnerová Michala | CC5: 84 | CE5: Stejskal Martin | CF5: 228 | CH5: Vychnerová Michala | CI5: 84 | CK5: Šafařík Luděk | CL5: 897 | CY5: German Milan | CZ5: 221 | DB5: Kalošová Dagmar | DC5: 69 | DE5: German Milan | DF5: 221 | DH5: Kalošová Dagmar | DI5: 69 | DK5: Šafařík Luděk | DL5: 883 | DY5: Křápek Roman | DZ5: 223 | EB5: Dvořák Petr | EC5: 79 | EE5: Křápek Roman | EF5: 223 | EH5: Dvořák Petr | EI5: 79 | EK5: Holkup Jan | EL5: 912 | EY5: Šafařík Luděk | EZ5: 213 | FB5: Aunický František | FC5: 76 | FE5: Šafařík Luděk | FF5: 213 | FH5: Hyková Lucie | FI5: 56 | FK5: Lazur Vladimír | FL5: 901 | FY5: Kocůr Jaroslav | FZ5: 210 | GB5: Pipek Pavel | GC5: 78 | GE5: Kocůr Jaroslav | GF5: 210 | GH5: Hyková Lucie | GI5: 74 | GK5: Novotný Lukáš | GL5: 888
B6: Kocúr Jaroslav | C6: 232 | E6: Svítil Pavel | F6: 66 | H6: Krupa Jozef | I6: 959 | K6: 2. místo | L6: Hostivař | M6: 3883 | O6: 2. místo | P6: Mašát Petr | Q6: 895 | Y6: Tomášek Zdeněk | Z6: 208 | AB6: Fay Vlastimil | AC6: 83 | AE6: Tomášek Zdeněk | AF6: 208 | AH6: Fay Vlastimil | AI6: 83 | AK6: Pospíšil Václav | AL6: 881 | AY6: Pospíšil Václav | AZ6: 218 | BB6: Bergerová Marcela | BC6: 85 | BE6: Šafařík Luděk | BF6: 223 | BH6: Bergerová Marcela | BI6: 85 | BK6: Šafařík Luděk | BL6: 905 | BY6: Mašát Petr | BZ6: 205 | CB6: Šafář Ladislav | CC6: 92 | CE6: Kocúr Jaroslav | CF6: 211 | CH6: Svítil Pavel | CI6: 85 | CK6: Ondřich František | CL6: 895 | CY6: Kročil Tomáš | CZ6: 218 | DB6: Hájek Mojmír | DC6: 75 | DE6: Kročil Tomáš | DF6: 218 | DH6: Hájek Mojmír | DI6: 75 | DK6: Krupa Jozef | DL6: 883 | DY6: Krupa Jozef | DZ6: 205 | EB6: Šafrová Martina | EC6: 81 | EE6: Krupa Jozef | EF6: 205 | EH6: Šafrová Martina | EI6: 81 | EK6: Ondřich František | EL6: 858 | EY6: Lazur Vladimír | EZ6: 212 | FB6: Katolický Zdeněk | FC6: 80 | FE6: Pecka Jiří | FF6: 212 | FH6: Hyková Lucie | FI6: 65 | FK6: Kalfiřt Petr | FL6: 894 | FY6: Hübner Jiří | FZ6: 208 | GB6: Aunický František | GC6: 83 | GE6: Hübner Jiří | GF6: 208 | GH6: Pipek Pavel | GI6: 78 | GK6: Lazur Vladimír | GL6: 863
B7: Šafařík Luděk | C7: 231 | E7: Svítil Pavel | F7: 68 | H7: Lazur Vladimír | I7: 945 | K7: 3. místo | L7: Řepy | M7: 3852 | O7: 3. místo | P7: Pospíšil Václav | Q7: 881 | Y7: Pospíšil Václav | Z7: 205 | AB7: Táborský František | AC7: 86 | AE7: Věchtík Antonín | AF7: 205 | AH7: Kalošová Dagmar | AI7: 85 | AK7: Novotný Lukáš | AL7: 860 | AY7: Kročil Tomáš | AZ7: 207 | BB7: Sehnal Ivan | BC7: 86 | BE7: Pospíšil Václav | BF7: 218 | BH7: Bergerová Marcela | BI7: 85 | BK7: Podhola Martin | BL7: 896 | BY7: Ondřich František | BZ7: 205 | CB7: Řehák Jaroslav | CC7: 93 | CE7: Mašát Petr | CF7: 205 | CH7: Šafář Ladislav | CI7: 92 | CK7: Mašát Petr | CL7: 859 | CY7: Berger Michal | CZ7: 212 | DB7: Růžička Václav | DC7: 75 | DE7: Berger Michal | DF7: 212 | DH7: Růžička Václav | DI7: 75 | DK7: Mašát Petr | DL7: 854 | DY7: Kocúr Jaroslav | DZ7: 204 | EB7: Kolár Pavel | EC7: 90 | EE7: Kocúr Jaroslav | EF7: 204 | EH7: Kolár Pavel | EI7: 90 | EK7: Kocúr Jaroslav | EL7: 854 | EY7: Pecka Jiří | EZ7: 212 | FB7: Pipek Pavel | FC7: 88 | FE7: Lazur Vladimír | FF7: 212 | FH7: Aunický František | FI7: 76 | FK7: Kocúr Jaroslav | FL7: 889 | FY7: Novotný Lukáš | FZ7: 203 | GB7: Lazurová Jiřina | GC7: 86 | GE7: Novotný Lukáš | GF7: 203 | GH7: Hyková Lucie | GI7: 82 | GK7: Krupa Jozef | GL7: 860
B8: Stejskal Martin | C8: 228 | E8: Svítil Pavel | F8: 68 | H8: Šafařík Luděk | I8: 928 | K8: KLÍČOV 9.2.2013 | Q8: klikni | Y8: Věchtík Antonín | Z8: 205 | AB8: Křikava Miroslav | AC8: 88 | AE8: Pospíšil Václav | AF8: 205 | AH8: Táborský František | AI8: 86 | AK8: Lazur Ladislav | AL8: 847 | AY8: Pecka Jiří | AZ8: 205 | BB8: Kalošová Dagmar | BC8: 89 | BE8: Kročil Tomáš | BF8: 207 | BH8: Sehnal Ivan | BI8: 86 | BK8: Krupa Josef | BL8: 891 | BY8: Šafařík Luděk | BZ8: 205 | CB8: Kutina Pavel | CC8: 97 | CE8: Šafařík Luděk | CF8: 205 | CH8: Řehák Jaroslav | CI8: 93 | CK8: Stejskal Martin | CL8: 846 | CY8: Šafařík Luděk | CZ8: 212 | DB8: Vychnerová Michaela | DC8: 79 | DE8: Šafařík Luděk | DF8: 212 | DH8: Vychnerová Michaela | DI8: 79 | DK8: Carvan Pavel | DL8: 842 | DY8: Ondřich František | DZ8: 194 | EB8: Novotná Petra | EC8: 91 | EE8: Krupa Jozef | EF8: 201 | EH8: Novotná Petra | EI8: 91 | EK8: Křápek Roman | EL8: 834 | EY8: Kalfiřt Petr | EZ8: 211 | FB8: Čermák Tomáš | FC8: 89 | FE8: Kalfiřt Petr | FF8: 211 | FH8: Katolický Zdeněk | FI8: 80 | FK8: Ondřich František | FL8: 863 | FY8: Ondřich František | FZ8: 200 | GB8: Kazda Jan | GC8: 86 | GE8: Ondřich František | GF8: 200 | GH8: Aunický František | GI8: 83 | GK8: Kocůr Jaroslav | GL8: 850
B9: Holkup Jan | C9: 228 | E9: Kalošová Dagmar | F9: 69 | H9: Kocůr Jaroslav | I9: 915 | K9: 1. místo | L9: Vršovice | M9: 3998 | O9: 1. místo | P9: Lazur Vladimír | Q9: 945 | Y9: Krupa Jozef | Z9: 201 | AB9: Čermák Tomáš | AC9: 89 | AE9: Krupa Jozef | AF9: 201 | AH9: Kutina Pavel | AI9: 86 | AK9: Věchtík Antonín | AL9: 830 | AY9: Douša Adam | AZ9: 197 | BB9: Mottl Pavel | BC9: 96 | BE9: Pecka Jiří | BF9: 205 | BH9: Křikava Miroslav | BI9: 88 | BK9: Pospíšil Václav | BL9: 876 | BY9: Alba Vladimír | BZ9: 202 | CB9: Kollár Pavel | CC9: 97 | CE9: Ondřich František | CF9: 205 | CH9: Kutina Pavel | CI9: 97 | CK9: Mottl Pavel | CL9: 838 | CY9: Carvan Pavel | CZ9: 200 | DB9: Bergerová Marcela | DC9: 82 | DE9: Carvan Pavel | DF9: 200 | DH9: Svítil Pavel | DI9: 82 | DK9: Sladovník Miloslav | DL9: 842 | DY9: Troller Pavel | DZ9: 192 | EB9: Neshyba Jaroslav | EC9: 92 | EE9: Krupa Jozef | EF9: 199 | EH9: Neshyba Jaroslav | EI9: 92 | EK9: Podhola Martin | EL9: 826 | EY9: Táborský Lukáš | EZ9: 210 | FB9: Kovář Jaroslav | FC9: 90 | FE9: Táborský Lukáš | FF9: 210 | FH9: Hyková Lucie | FI9: 81 | FK9: Pecka Jiří | FL9: 854 | FY9: Froněk Martin | FZ9: 199 | GB9: Růžička Václav | GC9: 87 | GE9: Froněk Martin | GF9: 199 | GH9: Lazurová Jiřina | GI9: 86 | GK9: Pospíšil Václav | GL9: 844
B10: Lazur Vladimír | C10: 227 | E10: Hyková Lucie | F10: 74 | H10: Holkup Jan | I10: 912 | K10: 2. místo | L10: Řepy | M10: 3991 | O10: 2. místo | P10: Kocúr Jaroslav | Q10: 915 | Y10: Mašát Petr | Z10: 192 | AB10: Kollár Pavel | AC10: 89 | AE10: Šafařík Luděk | AF10: 200 | AH10: Křikava Miroslav | AI10: 88 | AK10: Tomášek Zdeněk | AL10: 825 | AY10: Kocůr Jaroslav | AZ10: 196 | BB10: Lazurová Jiřina | BC10: 96 | BE10: Lazur Vladimír | BF10: 197 | BH10: Kalošová Dagmar | BI10: 89 | BK10: Carvan Pavel | BL10: 860 | BY10: Mottl Pavel | BZ10: 201 | CB10: Křikava Miroslav | CC10: 98 | CE10: Alba Vladimír | CF10: 202 | CH10: Kollár Pavel | CI10: 97 | CK10: Pecka Jiří | CL10: 831 | CY10: Kalfiřt Petr | CZ10: 194 | DB10: Pospíšil Lukáš | DC10: 87 | DE10: Kalfiřt Petr | DF10: 194 | DH10: Bergerová Marcela | DI10: 82 | DK10: German Milan | DL10: 840 | DY10: Kalfiřt Petr | DZ10: 192 | EB10: Pavlíček Rudolf | EC10: 97 | EE10: Ondřich František | EF10: 194 | EH10: Dvořák Petr | EI10: 93 | EK10: Kalfiřt Petr | EL10: 822 | EY10: Kocúr Jaroslav | EZ10: 203 | FB10: Táborský Lukáš | FC10: 92 | FE10: Kocúr Jaroslav | FF10: 203 | FH10: Hyková Lucie | FI10: 82 | FK10: Krupa Jozef | FL10: 847 | FY10: Šafařík Luděk | FZ10: 193 | GB10: Táborský František | GC10: 92 | GE10: Novotný Lukáš | GF10: 194 | GH10: Kazda Jan | GI10: 86 | GK10: Šafařík Luděk | GL10: 833
B11: Lazur Vladimír | C11: 223 | E11: Kutina Pavel | F11: 75 | H11: Šafařík Luděk | I11: 905 | K11: 3. místo | L11: Hostivař | M11: 3969 | O11: 3. místo | P11: Šafařík Luděk | Q11: 905 | Y11: Pecka Jiří | Z11: 192 | AB11: Řehák František | AC11: 89 | AE11: Krupa Jozef | AF11: 200 | AH11: Kollár Pavel | AI11: 89 | AK11: Pecka Jiří | AL11: 814 | AY11: Kalfiřt Petr | AZ11: 195 | BB11: Táborský František | BC11: 100 | BE11: Douša Adam | BF11: 197 | BH11: Mottl Pavel | BI11: 96 | BK11: Novotný Lukáš | BL11: 833 | BY11: Jelínek Jan | BZ11: 190 | CB11: Novotná Jana | CC11: 100 | CE11: Mottl Pavel | CF11: 201 | CH11: Křikava Miroslav | CI11: 98 | CK11: Lazur Ladislav | CL11: 831 | CY11: Mottl Pavel | CZ11: 193 | DB11: Kollár Pavel | DC11: 89 | DE11: Mottl Pavel | DF11: 193 | DH11: Pospíšil Lukáš | DI11: 87 | DK11: Kalfiřt Petr | DL11: 807 | DY11: Šafařík Luděk | DZ11: 191 | EB11: Novotná Jana | EC11: 97 | EE11: Troller Pavel | EF11: 192 | EH11: Pavlíček Rudolf | EI11: 97 | EK11: Šafařík Luděk | EL11: 805 | EY11: Jelínek Jan | EZ11: 201 | FB11: Tichý Hugo | FC11: 93 | FE11: Šafařík Luděk | FF11: 202 | FH11: Pipek Pavel | FI11: 88 | FK11: Pospíšil Václav | FL11: 834 | FY11: Krupa Jozef | FZ11: 190 | GB11: Pelikán Stanislav | GC11: 95 | GE11: Šafařík Luděk | GF11: 193 | GH11: Hyková Lucie | GI11: 87 | GK11: Jelínek Jan | GL11: 816
B12: Šafařík Luděk | C12: 223 | E12: Hájek Mojmír | F12: 75 | H12: Pospíšil Václav | I12: 901 | K12: ŘEPY 9.3.2013 | Q12: klikni | Y12: Novotný Lukáš | Z12: 189 | AB12: Pospíšil Lukáš | AC12: 91 | AE12: Věchtík Antonín | AF12: 193 | AH12: Řehák František | AI12: 89 | AK12: Krupa Jozef | AL12: 799 | AY12: Podhola Martin | AZ12: 194 | BB12: Troller Pavel | BC12: 105 | BE12: Kocůr Jaroslav | BF12: 196 | BH12: Lazurová Jiřina | BI12: 96 | BK12: Pecka Jiří | BL12: 831 | BY12: Hájek Mojmír | BZ12: 189 | CB12: Šafář Bohumil | CC12: 100 | CE12: Šafařík Luděk | CF12: 199 | CH12: Vychnerová Michala | CI12: 98 | CK12: Podhola Martin | CL12: 824 | CY12: Pospíšil Václav | CZ12: 192 | DB12: Novotná Petra | DC12: 91 | DE12: Pospíšil Václav | DF12: 192 | DH12: Kollár Pavel | DI12: 89 | DK12: Kročil Tomáš | DL12: 791 | DY12: Brejcha Jaroslav | DZ12: 187 | EB12: Tomášek Zdenek | EC12: 98 | EE12: Kalfiřt Petr | EF12: 192 | EH12: Neshyba Jaroslav | EI12: 97 | EK12: Kročil Tomáš | EL12: 802 | EY12: Alba Vladimír | EZ12: 195 | FB12: Pavlíček Rudolf | FC12: 94 | FE12: Jelínek Jan | FF12: 201 | FH12: Pipek Pavel | FI12: 88 | FK12: Holkup Jan | FL12: 823 | FY12: Carvan Pavel | FZ12: 185 | GB12: Skružná Pavla | GC12: 95 | GE12: Krupa Jozef | GF12: 190 | GH12: Růžička Václav | GI12: 87 | GK12: Carvan Pavel | GL12: 810
B13: Křápek Roman | C13: 223 | E13: Růžička Václav | F13: 75 | H13: Lazur Vladimír | I13: 901 | K13: 1. místo | L13: Řepy | M13: 4006 | O13: 1. místo | P13: Kocúr Jaroslav | Q13: 960 | Y13: Kročil Tomáš | Z13: 188 | AB13: Aunický František | AC13: 97 | AE13: Pospíšil Václav | AF13: 192 | AH13: Čermák Tomáš | AI13: 89 | AK13: Ondřich František | AL13: 796 | AY13: Krupa Josef | AZ13: 189 | BB13: Plecháček Miroslav | BC13: 107 | BE13: Kalfiřt Petr | BF13: 195 | BH13: Kalošová Dagmar | BI13: 98 | BK13: Mašát Petr | BL13: 826 | BY13: Sehnal Ivan | BZ13: 187 | CB13: Kučera Miroslav | CC13: 100 | CE13: Ondřich František | CF13: 197 | CH13: Křikava Miroslav | CI13: 98 | CK13: Pospíšil Václav | CL13: 814 | CY13: Krupa Jozef | CZ13: 190 | DB13: Štarková Tereza | DC13: 92 | DE13: Carvan Pavel | DF13: 191 | DH13: Novotná Petra | DI13: 91 | DK13: Douša Adam | DL13: 785 | DY13: Křemenák Petr | DZ13: 186 | EB13: Štěpán Radek | EC13: 98 | EE13: Šafařík Luděk | EF13: 191 | EH13: Novotná Jana | EI13: 97 | EK13: Křemenák Petr | EL13: 801 | EY13: Ondřich František | EZ13: 193 | FB13: Fay Vlastimil | FC13: 94 | FE13: Lazur Vladimír | FF13: 197 | FH13: Čermák Tomáš | FI13: 89 | FK13: Alba Vladimír | FL13: 814 | FY13: Pospíšil Václav | FZ13: 184 | GB13: Mottl Pavel | GC13: 99 | GE13: Lazur Vladimír | GF13: 185 | GH13: Táborský František | GI13: 92 | GK13: Ondřich František | GL13: 809
B14: Lazur Vladimír | C14: 223 | E14: Aunický František | F14: 76 | H14: Šafařík Luděk | I14: 897 | K14: 2. místo | L14: Kačerov | M14: 3876 | O14: 2. místo | P14: Šafařík Luděk | Q14: 897 | Y14: Lazur Ladislav | Z14: 187 | AB14: Šafář Vladimír | AC14: 98 | AE14: Mašát Petr | AF14: 192 | AH14: Pospíšil Lukáš | AI14: 91 | AK14: Kročil Tomáš | AL14: 786 | AY14: Sehnal Ivan | AZ14: 187 | BB14: Brejcha Jaroslav | BC14: 107 | BE14: Pospíšil Václav | BF14: 194 | BH14: Kalošová Dagmar | BI14: 99 | BK14: Ondřich František | BL14: 815 | BY14: Novotný Lukáš | BZ14: 185 | CB14: Sehnal Ivan | CC14: 103 | CE14: Mottl Pavel | CF14: 197 | CH14: Kollár Pavel | CI14: 99 | CK14: Skružná Pavla | CL14: 811 | CY14: Sehnal Ivan | CZ14: 186 | DB14: Pipek Pavel | DC14: 94 | DE14: Krupa Jozef | DF14: 190 | DH14: Hájek Mojmír | DI14: 91 | DK14: Štěpán Radek | DL14: 779 | DY14: Alba Vladimír | DZ14: 186 | EB14: Katolický Zdenek | EC14: 99 | EE14: Kocúr Jaroslav | EF14: 187 | EH14: Štěpán Radek | EI14: 98 | EK14: Skružná Pavla | EL14: 795 | EY14: Carvan Pavel | EZ14: 192 | FB14: Růžička Václav | FC14: 100 | FE14: Alba Vladimír | FF14: 195 | FH14: Kovář Jaroslav | FI14: 90 | FK14: Novotný Lukáš | FL14: 814 | FY14: Kročil Tomáš | FZ14: 183 | GB14: Kutina Pavel | GC14: 99 | GE14: Carvan Pavel | GF14: 185 | GH14: Táborský František | GI14: 94 | GK14: Hübner Jiří | GL14: 803
B15: German Milan | C15: 221 | E15: Čermák Tomáš | F15: 78 | H15: Podhola Martin | I15: 896 | K15: 3. místo | L15: Klíčov | M15: 3794 | O15: 3. místo | P15: Ondřich Fr. | Q15: 895 | Y15: Kocúr Jaroslav | Z15: 185 | AB15: Veselý Vlastimil | AC15: 99 | AE15: Pecka Jiří | AF15: 192 | AH15: Kutina Pavel | AI15: 92 | AK15: Alba Vladimír | AL15: 777 | AY15: Skružná Pavla | AZ15: 186 | BB15: Aunický František | BC15: 107 | BE15: Podhola Martin | BF15: 194 | BH15: Kalošová Dagmar | BI15: 99 | BK15: Kročil Tomáš | BL15: 806 | BY15: Podhola Martin | BZ15: 184 | CB15: Pospíšil Lukáš | CC15: 103 | CE15: Stejskal Martin | CF15: 196 | CH15: Kollár Pavel | CI15: 99 | CK15: Novotný Lukáš | CL15: 793 | CY15: Sladovník Miloslav | CZ15: 186 | DB15: Táborský František | DC15: 97 | DE15: Pospíšil Václav | DF15: 187 | DH15: Vychnerová Michaela | DI15: 92 | DK15: Mottl Pavel | DL15: 773 | DY15: Turek Stanislav | DZ15: 185 | EB15: Fay Vlastimil | EC15: 99 | EE15: Holkup Jan | EF15: 187 | EH15: Tomášek Zdenek | EI15: 98 | EK15: Lazur Vladimír | EL15: 794 | EY15: Novotný Lukáš | EZ15: 188 | FB15: Mysliveček Jaroslav | FC15: 102 | FE15: Ondřich František | FF15: 193 | FH15: Táborský Lukáš | FI15: 92 | FK15: Froněk Martin | FL15: 778 | FY15: Pecka Jiří | FZ15: 181 | GB15: Turek Stanislav | GC15: 100 | GE15: Pospíšil Václav | GF15: 184 | GH15: Skružná Pavla | GI15: 95 | GK15: Holkup Jan | GL15: 802
B16: Pospíšil Václav | C16: 218 | E16: Pipek Pavel | F16: 78 | H16: Mašát Petr | I16: 895 | K16: HOSTIVAŘ 27.4.2013 | Q16: klikni | Y16: Mysliveček Jaroslav | Z16: 176 | AB16: Brejcha Jaroslav | AC16: 102 | AE16: Novotný Lukáš | AF16: 189 | AH16: Aunický František | AI16: 97 | AK16: Holkup Jan | AL16: 755 | AY16: Šafář Ladislav | AZ16: 185 | BB16: Kolář Ladislav | BC16: 109 | BE16: Podhola Martin | BF16: 193 | BH16: Táborský František | BI16: 100 | BK16: Kalfiřt Petr | BL16: 796 | BY16: Kalfiřt Petr | BZ16: 183 | CB16: Hájek Mojmír | CC16: 104 | CE16: Jelínek Jan | CF16: 190 | CH16: Křikava Miroslav | CI16: 99 | CK16: Alba Vladimír | CL16: 770 | CY16: Štěpán Radek | CZ16: 184 | DB16: Řehák Jaroslav | DC16: 98 | DE16: Sehnal Ivan | DF16: 186 | DH16: Štarková Tereza | DI16: 92 | DK16: Sehnal Ivan | DL16: 761 | DY16: Podhola Martin | DZ16: 185 | EB16: Sladovník Miloslav | EC16: 102 | EE16: Brejcha Jaroslav | EF16: 187 | EH16: Katolický Zdenek | EI16: 99 | EK16: Jelínek Jan | EL16: 782 | EY16: Krupa Jozef | EZ16: 182 | FB16: Táborský František | FC16: 102 | FE16: Carvan Pavel | FF16: 192 | FH16: Tichý Hugo | FI16: 93 | FK16: Jelínek Jan | FL16: 775 | FY16: Troller Pavel | FZ16: 181 | GB16: Radová Petra | GC16: 101 | GE16: Kročil Tomáš | GF16: 183 | GH16: Pelikán Stanislav | GI16: 95 | GK16: Kročil Tomáš | GL16: 796
B17: Kročil Tomáš | C17: 218 | E17: Kalošová Dagmar | F17: 79 | H17: Ondřich František | I17: 895 | K17: 1. místo | L17: Řepy | M17: 4045 | O17: 1. místo | P17: Pospíšil Václav | Q17: 901 | Y17: Sladovník Miloš | Z17: 172 | AB17: Kalfiřt Petr | AC17: 102 | AE17: Šafařík Luděk | AF17: 188 | AH17: Táborský František | AI17: 98 | AK17: Carvan Pavel | AL17: 752 | AY17: Tomášek Zdeněk | AZ17: 184 | BB17: Šafář Ladislav | BC17: 109 | BE17: Krupa Josef | BF17: 189 | BH17: Řehák Jaroslav | BI17: 103 | BK17: Holkup Jan | BL17: 790 | BY17: Skružná Pavla | BZ17: 182 | CB17: Jelínek Jan | CC17: 104 | CE17: Hájek Mojmír | CF17: 189 | CH17: Šafář Bohumil | CI17: 100 | CK17: Jelínek Jan | CL17: 770 | CY17: Křikava Miroslav | CZ17: 182 | DB17: Berger Michal | DC17: 99 | DE17: Sladovník Miloslav | DF17: 186 | DH17: Štarková Tereza | DI17: 93 | DK17: Mysliveček Jaroslav | DL17: 754 | DY17: Štěpán Radek | DZ17: 183 | EB17: Křikavová Miroslava | EC17: 103 | EE17: Křemenák Petr | EF17: 186 | EH17: Novotná Jana | EI17: 99 | EK17: Alba Vladimír | EL17: 776 | EY17: Štěpán Radek | EZ17: 182 | FB17: Křápek Roman | FC17: 105 | FE17: Kocúr Jaroslav | FF17: 192 | FH17: Pavlíček Rudolf | FI17: 94 | FK17: Bošek Jan | FL17: 773 | FY17: Jelínek Jan | FZ17: 180 | GB17: Štěpán Radek | GC17: 103 | GE17: Troller Pavel | GF17: 181 | GH17: Hyková Lucie | GI17: 97 | GK17: Růžička Ladislav | GL17: 792
B18: Ondřich František | C18: 217 | E18: Vychnerová Michaela | F18: 79 | H18: Kalfiřt Petr | I18: 894 | K18: 2. místo | L18: Vršovice | M18: 3847 | O18: 2. místo | P18: Šafařík Luděk | Q18: 883 | Y18: Alba Vladimír | Z18: 171 | AB18: Plecháček Miroslav | AC18: 103 | AE18: Pospíšil Václav | AF18: 188 | AH18: Šafář Vladimír | AI18: 98 | AK18: Kocúr Jaroslav | AL18: 744 | AY18: Carvan Pavel | AZ18: 184 | BB18: Žalud Miroslav | BC18: 110 | BE18: Sehnal Ivan | BF18: 187 | BH18: Křikava Miroslav | BI18: 103 | BK18: Mysliveček Jaroslav | BL18: 768 | BY18: Pospíšil Václav | BZ18: 180 | CB18: Aunický František | CC18: 105 | CE18: Kocúr Jaroslav | CF18: 187 | CH18: Kučera Miroslav | CI18: 100 | CK18: Kalfiřt Petr | CL18: 768 | CY18: Kazda Jan | CZ18: 181 | DB18: Kovář Jaroslav | DC18: 100 | DE18: Štěpán Radek | DF18: 184 | DH18: Štarková Tereza | DI18: 93 | DK18: Brejcha Jaroslav | DL18: 753 | DY18: Kročil Tomáš | DZ18: 183 | EB18: Mysliveček Jaroslav | EC18: 105 | EE18: Alba Vladimír | EF18: 186 | EH18: Fay Vlastimil | EI18: 99 | EK18: Pospíšil Václav | EL18: 766 | EY18: Pospíšil Václav | EZ18: 181 | FB18: Mašát Petr | FC18: 106 | FE18: Lazur Vladimír | FF18: 191 | FH18: Fay Vlastimil | FI18: 94 | FK18: Carvan Pavel | FL18: 762 | FY18: Pipek Pavel | FZ18: 178 | GB18: Křápek Roman | GC18: 104 | GE18: Froněk Martin | GF18: 181 | GH18: Pelikán Stanislav | GI18: 98 | GK18: Pecka Jiří | GL18: 790
B19: Šafařík Luděk | C19: 213 | E19: Dvořák Petr | F19: 79 | H19: Froněk Martin | I19: 893 | K19: 3. místo | L19: Kačerov | M19: 3808 | O19: 3. místo | P19: Krupa Jozef | Q19: 883 | Y19: Carvan Pavel | Z19: 171 | AB19: Douša Adam | AC19: 103 | AE19: Kročil Tomáš | AF19: 188 | AH19: Veselý Vlastimil | AI19: 99 | AK19: Růžička Ladislav | AL19: 744 | AY19: Ondřich František | AZ19: 183 | BB19: Skružná Pavla | BC19: 110 | BE19: Skružná Pavla | BF19: 186 | BH19: Troller Pavel | BI19: 105 | BK19: Douša Adam | BL19: 766 | BY19: Tichý Hugo | BZ19: 180 | CB19: Fay Vlastimil | CC19: 105 | CE19: Sehnal Ivan | CF19: 187 | CH19: Novotná Jana | CI19: 100 | CK19: Berger Michal | CL19: 767 | CY19: Mysliveček Jaroslav | CZ19: 179 | DB19: Křikava Miroslav | DC19: 100 | DE19: Křikava Miroslav | DF19: 182 | DH19: Pipek Pavel | DI19: 94 | DK19: Alba Vladimír | DL19: 738 | DY19: Pospíšil Václav | DZ19: 183 | EB19: Šafář Ladislav | EC19: 105 | EE19: Turek Stanislav | EF19: 185 | EH19: Dvořák Petr | EI19: 100 | EK19: Troller Pavel | EL19: 757 | EY19: Brož Stanislav | EZ19: 181 | FB19: Kutina Pavel | FC19: 107 | FE19: Alba Vladimír | FF19: 188 | FH19: Pavlíček Rudolf | FI19: 94 | FK19: Krupová Martina | FL19: 755 | FY19: Táborský Lukáš | FZ19: 176 | GB19: Brož Stanislav | GC19: 105 | GE19: Pecka Jiří | GF19: 181 | GH19: Mottl Pavel | GI19: 99 | GK19: Věchtík Antoním | GL19: 766
B20: Berger Michal | C20: 212 | E20: Katolický Zdeněk | F20: 80 | H20: Krupa Josef | I20: 891 | K20: KAČEROV 12.10.2013 | Q20: klikni | Y20: Křemenák Petr | Z20: 171 | AB20: Skružná Pavla | AC20: 103 | AE20: Tomášek Zdeněk | AF20: 188 | AH20: Pospíšil Lukáš | AI20: 100 | AK20: Hübner Jiří | AL20: 737 | AY20: Holkup Jan | AZ20: 182 | BB20: Křápek Roman | BC20: 111 | BE20: Šafář Ladislav | BF20: 185 | BH20: Plecháček Miroslav | BI20: 107 | BK20: Šafář Bohumil | BL20: 751 | BY20: Pecka Jiří | BZ20: 179 | CB20: Čermák Tomáš | CC20: 106 | CE20: Mašát Petr | CF20: 186 | CH20: Kutina Pavel | CI20: 101 | CK20: Krupa Jozef | CL20: 760 | CY20: Hübner Jiří | CZ20: 179 | DB20: Šafář Ladislav | DC20: 102 | DE20: Kazda Jan | DF20: 181 | DH20: Svítil Pavel | DI20: 96 | DK20: Krupová Martina | DL20: 725 | DY20: Pospíšil Lukáš | DZ20: 182 | EB20: Křikava Miroslav | EC20: 106 | EE20: Podhola Martin | EF20: 185 | EH20: Fay Vlastimil | EI20: 102 | EK20: Pecka Jiří | EL20: 751 | EY20: Hübner Jiří | EZ20: 178 | FB20: Turek Stanislav | FC20: 108 | FE20: Novotný Lukáš | FF20: 188 | FH20: Růžička Václav | FI20: 100 | FK20: Berger Michal | FL20: 730 | FY20: Mysliveček Jaroslav | FZ20: 173 | GB20: Pavlíček Rudolf | GC20: 106 | GE20: Krupa Jozef | GF20: 180 | GH20: Kutina Pavel | GI20: 99 | GK20: Kalfiřt Petr | GL20: 761
B21: Šafařík Luděk | C21: 212 | E21: Řehák Jaroslav | F21: 81 | H21: Kocúr Jaroslav | I21: 889 | K21: 1. místo | L21: Vršovice | M21: 4180 | O21: 1. místo | P21: Krupa Jozef | Q21: 959 | Y21: Hübner Jiří | Z21: 170 | AB21: Krupka Jakub | AC21: 103 | AE21: Lazur Ladislav | AF21: 187 | AH21: Kalošová Dagmar | AI21: 100 | AK21: Jelínek Jan | AL21: 727 | AY21: Novotný Lukáš | AZ21: 180 | BB21: Fay Vlastimil | BC21: 111 | BE21: Kocůr Jaroslav | BF21: 185 | BH21: Brejcha Jaroslav | BI21: 107 | BK21: Skružná Pavla | BL21: 738 | BY21: Tomášek Zdeněk | BZ21: 179 | CB21: Brož Stanislav | CC21: 107 | CE21: Novotný Lukáš | CF21: 185 | CH21: Řehák Jaroslav | CI21: 103 | CK21: Kročil Tomáš | CL21: 742 | CY21: Kučera Miroslav | CZ21: 178 | DB21: Fay Vlastimil | DC21: 103 | DE21: Kalfiřt Petr | DF21: 181 | DH21: Táborský František | DI21: 97 | DK21: Hübner Jiří | DL21: 725 | DY21: Skružná Pavla | DZ21: 181 | EB21: Kovář Jaroslav | EC21: 107 | EE21: Kročil Tomáš | EF21: 183 | EH21: Sladovník Miloslav | EI21: 102 | EK21: Tomášek Zdenek | EL21: 725 | EY21: Aunický František | EZ21: 177 | FB21: Sehnal Ivan | FC21: 110 | FE21: Ondřich František | FF21: 187 | FH21: Aunický František | FI21: 101 | FK21: Kročil Tomáš | FL21: 728 | FY21: Holkup Jan | FZ21: 173 | GB21: Křikava Miroslav | GC21: 107 | GE21: Jelínek Jan | GF21: 180 | GH21: Turek Stanislav | GI21: 100 | GK21: Podhola Martin | GL21: 757
B22: Lazur Vladimír | C22: 212 | E22: Šafrová Martina | F22: 81 | H22: Novotný Lukáš | I22: 888 | K22: 2. místo | L22: Klíčov | M22: 3798 | O22: 2. místo | P22: Holkup Jan | Q22: 912 | Y22: Pospíšil Lukáš | Z22: 170 | AB22: Křápek Roman | AC22: 107 | AE22: Kocúr Jaroslav | AF22: 185 | AH22: Táborský František | AI22: 101 | AK22: Sladovník Miloš | AL22: 720 | AY22: Mašát Petr | AZ22: 178 | BB22: Sladovník Miloslav | BC22: 112 | BE22: Tomášek Zdeněk | BF22: 184 | BH22: Aunický František | BI22: 107 | BK22: Tomášek Zdeněk | BL22: 728 | BY22: Lazur Ladislav | BZ22: 178 | CB22: Mysliveček Jaroslav | CC22: 107 | CE22: Podhola Martin | CF22: 184 | CH22: Pospíšil Lukáš | CI22: 103 | CK22: Brož Stanislav | CL22: 742 | CY22: Krupová Martina | CZ22: 173 | DB22: Mysliveček Jaroslav | DC22: 105 | DE22: Sehnal Ivan | DF22: 181 | DH22: Pipek Pavel | DI22: 97 | DK22: Kučera Miroslav | DL22: 724 | DY22: Růžička Ladislav | DZ22: 178 | EB22: Alba Vladimír | EC22: 107 | EE22: Štěpán Radek | EF22: 183 | EH22: Křikavová Miroslava | EI22: 103 | EK22: Bošek Jan | EL22: 723 | EY22: Troller Pavel | EZ22: 177 | FB22: Křikava Miroslav | FC22: 111 | FE22: Šafařík Luděk | FF22: 186 | FH22: Mysliveček Jaroslav | FI22: 102 | FK22: Brož Stanislav | FL22: 723 | FY22: Radová Petra | FZ22: 172 | GB22: Táborský Lukáš | GC22: 108 | GE22: Krupa Jozef | GF22: 179 | GH22: Kutina Pavel | GI22: 100 | GK22: Sladovník Miloslav | GL22: 755
B23: Pecka Jiří | C23: 212 | E23: Svítil Pavel | F23: 82 | H23: Šafařík Luděk | I23: 883 | K23: 3. místo | L23: Hostivař | M23: 3713 | O23: 3. místo | P23: Ondřich Fr. | Q23: 858 | Y23: Douša Adam | Z23: 169 | AB23: Novotná Petra | AC23: 107 | AE23: Mašát Petr | AF23: 184 | AH23: Kollár Pavel | AI23: 101 | AK23: Radová Petra | AL23: 718 | AY23: Sladovník Miloslav | AZ23: 177 | BB23: Novotná Petra | BC23: 114 | BE23: Carvan Pavel | BF23: 184 | BH23: Bergerová Marcela | BI23: 107 | BK23: Jelínek Jan | BL23: 719 | BY23: Bošek Jan | BZ23: 177 | CB23: Kazda Jan | CC23: 111 | CE23: Kalfiřt Petr | CF23: 183 | CH23: Sehnal Ivan | CI23: 103 | CK23: Tomášek Zdeněk | CL23: 733 | CY23: Růžička Václav | CZ23: 173 | DB23: Hübner Jiří | DC23: 105 | DE23: Krupa Jozef | DF23: 180 | DH23: Bergerová Marcela | DI23: 98 | DK23: Tomášek Zdeněk | DL23: 723 | DY23: Pecka Jiří | DZ23: 178 | EB23: Aunický František | EC23: 108 | EE23: Pospíšil Václav | EF23: 183 | EH23: Šafář Ladislav | EI23: 105 | EK23: Sehnal Ivan | EL23: 722 | EY23: Turek Stanislav | EZ23: 170 | FB23: Hübner Jiří | FC23: 111 | FE23: Šafařík Luděk | FF23: 186 | FH23: Táborský František | FI23: 102 | FK23: Štěpán Radek | FL23: 716 | FY23: Berger Michal | FZ23: 172 | GB23: Pospíšil Lukáš | GC23: 109 | GE23: Šafařík Luděk | GF23: 179 | GH23: Radová Petra | GI23: 101 | GK23: Troller Pavel | GL23: 742
B24: Kocúr Jaroslav | C24: 211 | E24: Bergerová Marcela | F24: 82 | H24: Krupa Jozef | I24: 883 | K24: VRŠOVICE 9.11.2013 | Q24: klikni | Y24: Holkup Jan | Z24: 168 | AB24: Křemenák Petr | AC24: 109 | AE24: Mašát Petr | AF24: 184 | AH24: Brejcha Jaroslav | AI24: 102 | AK24: Křemenák Petr | AL24: 707 | AY24: Troller Pavel | AZ24: 175 | BB24: Tichý Hugo | BC24: 114 | BE24: Krupa Josef | BF24: 183 | BH24: Táborský František | BI24: 109 | BK24: Bošek Jan | BL24: 710 | BY24: Krupa Jozef | BZ24: 174 | CB24: Stejskal Martin | CC24: 112 | CE24: Skružná Pavla | CF24: 182 | CH24: Jelínek Jan | CI24: 104 | CK24: Sladovník Miloš | CL24: 727 | CY24: Douša Adam | CZ24: 170 | DB24: Jelínek Jan | DC24: 106 | DE24: German Milan | DF24: 180 | DH24: Řehák Jaroslav | DI24: 98 | DK24: Aunický František | DL24: 705 | DY24: Mysliveček Jaroslav | DZ24: 176 | EB24: Carvan Pavel | EC24: 110 | EE24: Krupa Jozef | EF24: 183 | EH24: Novotná Jana | EI24: 105 | EK24: Turek Stanislav | EL24: 721 | EY24: Kollár Pavel | EZ24: 170 | FB24: Kolár Vladimír | FC24: 112 | FE24: Kalfiřt Petr | FF24: 184 | FH24: Tichý Hugo | FI24: 103 | FK24: Troller Pavel | FL24: 701 | FY24: Kazda Jan | FZ24: 171 | GB24: Kollár Pavel | GC24: 113 | GE24: Lazur Vladimír | GF24: 179 | GH24: Lazurová Jiřina | GI24: 102 | GK24: Berger Michal | GL24: 729
B25: Kalfiřt Petr | C25: 211 | E25: Hyková Lucie | F25: 82 | H25: Pospíšil Václav | I25: 881 | K25: 1. místo | L25: Řepy | M25: 4043 | O25: 1. místo | P25: Šafařík Luděk | Q25: 962 | Y25: Růžička Ladislav | Z25: 166 | AB25: Mysliveček Jaroslav | AC25: 112 | AE25: Novotný Lukáš | AF25: 178 | AH25: Kalfiřt Petr | AI25: 102 | AK25: Tichý Hugo | AL25: 705 | AY25: Brož Stanislav | AZ25: 172 | BB25: Kročil Tomáš | BC25: 115 | BE25: Kocůr Jaroslav | BF25: 183 | BH25: Kolář Ladislav | BI25: 109 | BK25: Šafář Ladislav | BL25: 708 | BY25: Lazurová Jiřina | BZ25: 171 | CB25: Kovář Jaroslav | CC25: 113 | CE25: Podhola Martin | CF25: 180 | CH25: Hájek Mojmír | CI25: 104 | CK25: Kovář Jaroslav | CL25: 726 | CY25: Jelínek Jan | CZ25: 168 | DB25: Kučera Miroslav | DC25: 106 | DE25: Šafařík Luděk | DF25: 179 | DH25: Berger Michal | DI25: 99 | DK25: Berger Michal | DL25: 703 | DY25: Jelínek Jan | DZ25: 175 | EB25: Mottl Pavel | EC25: 110 | EE25: Pospíšil Lukáš | EF25: 182 | EH25: Fay Vlastimil | EI25: 105 | EK25: Brejcha Jaroslav | EL25: 718 | EY25: Pavlíček Rudolf | EZ25: 170 | FB25: Šafář Ladislav | FC25: 115 | FE25: Krupa Jozef | FF25: 182 | FH25: Růžička Václav | FI25: 103 | FK25: Kollár Pavel | FL25: 695 | FY25: Alba Vladimír | FZ25: 170 | GB25: Douša Adam | GC25: 115 | GE25: Novotný Lukáš | GF25: 178 | GH25: Aunický František | GI25: 102 | GK25: Alba Vladimír | GL25: 722
B26: Táborský Lukáš | C26: 210 | E26: Fay Vlastimil | F26: 83 | H26: Pospíšil Václav | I26: 876 | K26: 2. místo | L26: Klíčov | M26: 3979 | O26: 2. místo | P26: Lazur Vladimír | Q26: 901 | Y26: Kalfiřt Petr | Z26: 166 | AB26: Hübner Jiří | AC26: 113 | AE26: Mysliveček Jaroslav | AF26: 176 | AH26: Plecháček Miroslav | AI26: 103 | AK26: Mysliveček Jaroslav | AL26: 702 | AY26: Mysliveček Jaroslav | AZ26: 172 | BB26: Kutina Pavel | BC26: 116 | BE26: Ondřich František | BF26: 183 | BH26: Šafář Ladislav | BI26: 109 | BK26: Alba Vladimír | BL26: 701 | BY26: Carvan Pavel | BZ26: 170 | CB26: Alba Vladimír | CC26: 116 | CE26: Tichý Hugo | CF26: 180 | CH26: Vychnerová Michala | CI26: 104 | CK26: Froněk Martin | CL26: 720 | CY26: Brejcha Jaroslav | CZ26: 168 | DB26: Aunický František | DC26: 110 | DE26: Hübner Jiří | DF26: 179 | DH26: Táborský František | DI26: 99 | DK26: Kazda Jan | DL26: 700 | DY26: Carvan Pavel | DZ26: 172 | EB26: Douša Adam | EC26: 112 | EE26: Skružná Pavla | EF26: 181 | EH26: Mysliveček Jaroslav | EI26: 105 | EK26: Radová Petra | EL26: 717 | EY26: Bošek Jan | EZ26: 169 | FB26: Štěpán Radek | FC26: 119 | FE26: Štěpán Radek | FF26: 182 | FH26: Křápek Roman | FI26: 105 | FK26: Táborský Lukáš | FL26: 695 | FY26: Růžička Ladislav | FZ26: 170 | GB26: Mysliveček Jaroslav | GC26: 115 | GE26: Kročil Tomáš | GF26: 178 | GH26: Turek Stanislav | GI26: 103 | GK26: Mysliveček Jaroslav | GL26: 717
B27: Kocůr Jaroslav | C27: 210 | E27: Aunický František | F27: 83 | H27: Ondřich František | I27: 863 | K27: 3. místo | L27: Hostivař | M27: 3935 | O27: 3. místo | P27: Kalfiřt Petr | Q27: 894 | Y27: Jelínek Jan | Z27: 165 | AB27: Troller Pavel | AC27: 114 | AE27: Lazur Ladislav | AF27: 176 | AH27: Douša Adam | AI27: 103 | AK27: Troller Pavel | AL27: 691 | AY27: Bošek Jan | AZ27: 170 | BB27: Krupová Martina | BC27: 120 | BE27: Holkup Jan | BF27: 182 | BH27: Bergerová Marcela | BI27: 109 | BK27: Sladovník Miloslav | BL27: 693 | BY27: Berger Michal | BZ27: 170 | CB27: Lazurová Jiřina | CC27: 116 | CE27: Pospíšil Václav | CF27: 180 | CH27: Aunický František | CI27: 105 | CK27: Tichý Hugo | CL27: 711 | CY27: Tomášek Zdeněk | CZ27: 166 | DB27: Tichý Hugo | DC27: 110 | DE27: Mysliveček Jaroslav | DF27: 179 | DH27: Křikava Miroslav | DI27: 100 | DK27: Radová Petra | DL27: 688 | DY27: Hübner Jiří | DZ27: 171 | EB27: Sehnal Ivan | EC27: 113 | EE27: Lazur Vladimír | EF27: 181 | EH27: Šafrová Martina | EI27: 106 | EK27: Růžička Ladislav | EL27: 717 | EY27: Krupová Martina | EZ27: 167 | FB27: Mottl Pavel | FC27: 120 | FE27: Brož Stanislav | FF27: 181 | FH27: Mašát Petr | FI27: 106 | FK27: Kazda Jan | FL27: 694 | FY27: Aunický František | FZ27: 170 | GB27: Křemenák Petr | GC27: 116 | GE27: Pipek Pavel | GF27: 178 | GH27: Štěpán Radek | GI27: 103 | GK27: Táborský Lukáš | GL27: 697
B28: Tomášek Zdeněk | C28: 208 | E28: Křikava Miroslav | F28: 84 | H28: Lazur Vladimír | I28: 863 | K28: POHÁR GENERÁLNÍHO ŘEDITELE | Q28: klikni | Y28: Plecháček Miroslav | Z28: 160 | AB28: Táborský Lukáš | AC28: 115 | AE28: Novotný Lukáš | AF28: 175 | AH28: Skružná Pavla | AI28: 103 | AK28: Kalfiřt Petr | AL28: 680 | AY28: Pospíšil Lukáš | AZ28: 161 | BB28: Alba Vladimír | BC28: 121 | BE28: Šafařík Luděk | BF28: 181 | BH28: Skružná Pavla | BI28: 110 | BK28: Brož Stanislav | BL28: 693 | BY28: Kazda Jan | BZ28: 170 | CB28: Brejcha Jaroslav | CC28: 117 | CE28: Šafařík Luděk | CF28: 179 | CH28: Fay Vlastimil | CI28: 105 | CK28: Carvan Pavel | CL28: 705 | CY28: Brož Stanislav | CZ28: 165 | DB28: Sehnal Ivan | DC28: 111 | DE28: Pospíšil Václav | DF28: 179 | DH28: Kovář Jaroslav | DI28: 100 | DK28: Kutina Pavel | DL28: 682 | DY28: Tomášek Zdenek | DZ28: 171 | EB28: Řehák Jaroslav | EC28: 116 | EE28: Lazur Vladimír | EF28: 179 | EH28: Křikava Miroslav | EI28: 106 | EK28: Lazurová Jiřina | EL28: 704 | EY28: Berger Michal | EZ28: 164 | FB28: Brož Stanislav | FC28: 120 | FE28: Pospíšil Václav | FF28: 181 | FH28: Kutina Pavel | FI28: 107 | FK28: Brejcha Jaroslav | FL28: 691 | FY28: Turek Stanislav | FZ28: 168 | GB28: Alba Vladimír | GC28: 116 | GE28: Hübner Jiří | GF28: 177 | GH28: Pipek Pavel | GI28: 104 | GK28: Křemenák Petr | GL28: 687
B29: Hübner Jiří | C29: 208 | E29: Vychnerová Michala | F29: 84 | K29: 1. místo | L29: Řepy | M29: 4105 | O29: 1. místo | P29: Froněk Martin | Q29: 893 | Y29: Tichý Hugo | Z29: 157 | AB29: Sehnal Ivan | AC29: 116 | AH29: Krupka Jakub | AI29: 103 | AY29: Šafář Bohumil | AZ29: 159 | BB29: Radová Petra | BC29: 121 | BH29: Aunický František | BI29: 110 | BY29: Kročil Tomáš | BZ29: 169 | CB29: Radová Petra | CC29: 117 | CE29: Pecka Jiří | CF29: 179 | CY29: Aunický František | CZ29: 161 | DB29: Brož Stanislav | DC29: 111 | DH29: Štarková Tereza | DI29: 100 | DY29: Lazur Vladimír | DZ29: 171 | EB29: Hübner Jiří | EC29: 117 | EY29: Kročil Tomáš | EZ29: 163 | FB29: Troller Pavel | FC29: 120 | FY29: Podhola Martin | FZ29: 168 | GB29: Mašát Petr | GC29: 116 | GE29: Froněk Martin | GF29: 177
B30: Pecka Jiří | C30: 205 | K30: 2. místo | L30: Hostivař | M30: 3972 | O30: 2. místo | P30: Novotný Lukáš | Q30: 888 | Y30: Kazda Jan | Z30: 157 | AB30: Kazda Jan | AC30: 116 | AY30: Brejcha Jaroslav | AZ30: 158 | BB30: Brož Stanislav | BC30: 121 | BH30: Žalud Miroslav | BI30: 110 | BY30: Kovář Jaroslav | BZ30: 169 | CB30: Tomášek Zdeněk | CC30: 117 | CE30: Šafařík Luděk | CF30: 179 | CY30: Alba Vladimír | CZ30: 161 | DB30: Kutina Pavel | DC30: 112 | DY30: Sehnal Ivan | DZ30: 167 | EB30: Turek Stanislav | EC30: 118 | EY30: Mysliveček Jaroslav | EZ30: 162 | FB30: Radová Petra | FC30: 121 | FY30: Křemenák Petr | FZ30: 165 | GB30: Sehnal Ivan ing. | GC30: 120
B31: Mašát Petr | C31: 205 | K31: 3. místo | L31: Klíčov | M31: 3868 | O31: 3. místo | P31: Lazur Vladimír | Q31: 863 | Y31: Táborský Lukáš | Z31: 157 | AB31: Mottl Pavel | AC31: 117 | AY31: Jelínek Jan | AZ31: 158 | BB31: Pospíšil Lukáš | BC31: 121 | BH31: Plecháček Miroslav | BI31: 110 | BY31: Křemenák Petr | BZ31: 168 | CB31: Tichý Hugo | CC31: 118 | CE31: Tomášek Zdeněk | CF31: 179 | CY31: Pipek Pavel | CZ31: 160 | DB31: Křemenák Petr | DC31: 113 | DY31: Lazurová Jiřina | DZ31: 166 | EB31: Lazurová Jiřina | EC31: 119 | EY31: Froněk Martin | EZ31: 161 | FB31: Kazda Jan | FC31: 121 | FY31: Kalfiřt Petr | FZ31: 164 | GB31: Šafář Ladislav | GC31: 121
B32: Šafařík Luděk | C32: 205 | Y32: Troller Pavel | Z32: 156 | AB32: Kovář Jaroslav | AC32: 119 | AY32: Alba Vladimír | AZ32: 154 | BB32: Kazda Jan | BC32: 123 | BY32: Brož Stanislav | BZ32: 168 | CB32: Bošek Jan | CC32: 118 | CY32: Kutina Pavel | CZ32: 155 | DB32: Čermák Tomáš | DC32: 114 | DY32: Kovář Jaroslav | DZ32: 164 | EB32: Lazur Vladimír | EC32: 121 | EY32: Kazda Jan | EZ32: 159 | FB32: Kollár Pavel | FC32: 122 | FY32: Věchtík Antoním | FZ32: 164 | GB32: Hübner Jiří | GC32: 123
B33: Ondřich František | C33: 205 | Y33: Radová Petra | Z33: 155 | AB33: Krupa Jozef | AC33: 119 | AY33: Krupová Martina | AZ33: 153 | BB33: Bošek Jan | BC33: 123 | BY33: Radová Petra | BZ33: 167 | CB33: Mottl Pavel | CC33: 119 | CY33: Vychnerová Michaela | CZ33: 153 | DB33: Bošek Jan | DC33: 117 | DY33: Kolár Pavel | DZ33: 163 | EB33: Růžička Ladislav | EC33: 122 | EY33: Brejcha Jaroslav | EZ33: 155 | FB33: Růžička Ladislav | FC33: 123 | FY33: Pelikán Stanislav | FZ33: 163 | GB33: Podhola Martin | GC33: 124
B34: Krupa Jozef | C34: 205 | Y34: Křápek Roman | Z34: 155 | AB34: Brož Stanislav | AC34: 122 | AY34: Radová Petra | AZ34: 152 | BB34: Lokvenc Jiří | BC34: 126 | BY34: Šafář Bohumil | BZ34: 164 | CB34: Douša Adam | CC34: 119 | CY34: Radová Petra | CZ34: 152 | DB34: Kazda Jan | DC34: 118 | DY34: Radová Petra | DZ34: 161 | EB34: Křápek Roman | EC34: 123 | EY34: Radová Petra | EZ34: 155 | FB34: Lokvenc Jiří | FC34: 123 | FY34: Sladovník Miloslav | FZ34: 162 | GB34: Kročil Tomáš | GC34: 125
Y35: Brejcha Jaroslav | Z35: 153 | AB35: Věchtík Antonín | AC35: 123 | AY35: Lokvenc Jiří | AZ35: 150 | BB35: Douša Adam | BC35: 128 | BY35: Froněk Martin | BZ35: 162 | CB35: Novotná Petra | CC35: 123 | CY35: Hájek Mojmír | CZ35: 151 | DB35: Číhal František | DC35: 118 | DY35: Sladovník Miloslav | DZ35: 161 | EB35: Pospíšil Lukáš | EC35: 123 | EY35: Kutina Pavel | EZ35: 151 | FB35: Alba Vladimír | FC35: 127 | FY35: Křikava Miroslav | FZ35: 161 | GB35: Troller Pavel | GC35: 128
Y36: Kovář Jaroslav | Z36: 152 | AB36: Kročil Tomáš | AC36: 124 | AY36: Tichý Hugo | AZ36: 149 | BB36: Jelínek Jan | BC36: 128 | BY36: Sladovník Miloš | BZ36: 159 | CB36: Křemenák Petr | CC36: 124 | CY36: Číhal František | CZ36: 151 | DB36: Ondřich František | DC36: 118 | DY36: Douša Adam | DZ36: 160 | EB36: Kutina Pavel | EC36: 124 | EY36: Mašát Petr | EZ36: 149 | FB36: Carvan Pavel | FC36: 127 | FY36: Mottl Pavel | FZ36: 160 | GB36: Brejcha Jaroslav | GC36: 128
Y37: Šafář Vladimír | Z37: 146 | AB37: Alba Vladimír | AC37: 125 | AY37: Křikava Miroslav | AZ37: 145 | BB37: Berger Michal | BC37: 129 | BY37: Brejcha Jaroslav | BZ37: 158 | CB37: Sladovník Miloš | CC37: 126 | CY37: Ondřich František | CZ37: 147 | DB37: Brejcha Jaroslav | DC37: 123 | DY37: Řehák Jaroslav | DZ37: 158 | EB37: Brejcha Jaroslav | EC37: 126 | EY37: Katolický Zdeněk | EZ37: 149 | FB37: Brejcha Jaroslav | FC37: 127 | FY37: Křápek Roman | FZ37: 160 | GB37: Lazur Vladimír | GC37: 128
Y38: Brož Stanislav | Z38: 144 | AB38: Jelínek Jan | AC38: 126 | AY38: Křápek Roman | AZ38: 145 | BB38: Kalfiřt Petr | BC38: 131 | BY38: Kutina Pavel | BZ38: 154 | CB38: Carvan Pavel | CC38: 127 | CY38: Bošek Jan | CZ38: 146 | DB38: Krupová Martina | DC38: 124 | DY38: Bošek Jan | DZ38: 154 | EB38: Bošek Jan | EC38: 127 | EY38: Křikava Miroslav | EZ38: 148 | FB38: Kročil Tomáš | FC38: 132 | FY38: Skružná Pavla | FZ38: 158 | GB38: Berger Michal | GC38: 132
Y39: Mottl Pavel | Z39: 143 | AB39: Ondřich František | AC39: 127 | AY39: Berger Michal | AZ39: 144 | BB39: Tomášek Zdeněk | BC39: 132 | BY39: Douša Adam | BZ39: 153 | CB39: Kalfiřt Petr | CC39: 130 | CY39: Křemenák Petr | CZ39: 144 | DB39: Mottl Pavel | DC39: 124 | DY39: Novotná Jana | DZ39: 150 | EB39: Křemenák Petr | EC39: 127 | EY39: Táborský František | EZ39: 147 | FB39: Berger Michal | FC39: 132 | FY39: Mašát Petr | FZ39: 156 | GB39: Kalfiřt Petr | GC39: 134
Y40: Kollár Pavel | Z40: 141 | AB40: Tomášek Zdeněk | AC40: 128 | AY40: Novotná Petra | AZ40: 141 | BB40: Šafář Bohumil | BC40: 135 | BY40: Mysliveček Jaroslav | BZ40: 150 | CB40: Berger Michal | CC40: 131 | CY40: Tichý Hugo | CZ40: 144 | DB40: Douša Adam | DC40: 124 | DY40: Šafář Ladislav | DZ40: 149 | EB40: Radová Petra | EC40: 128 | EY40: Mottl Pavel | EZ40: 146 | FB40: Jelínek Jan | FC40: 134 | FY40: Sehnal Ivan ing. | FZ40: 154 | GB40: Pecka Jiří | GC40: 135
Y41: Skružná Pavla | Z41: 141 | AB41: Růžička Ladislav | AC41: 128 | AY41: Kutina Pavel | AZ41: 141 | BB41: Ondřich František | BC41: 138 | BY41: Kučera Miroslav | BZ41: 148 | CB41: Froněk Martin | CC41: 135 | CY41: Čermák Tomáš | CZ41: 143 | DB41: Radová Petra | DC41: 125 | DY41: Křikavová Miroslava | DZ41: 149 | EB41: Troller Pavel | EC41: 128 | EY41: Křápek Roman | EZ41: 145 | FB41: Krupová Martina | FC41: 134 | FY41: Štěpán Radek | FZ41: 150 | GB41: Ondřich František | GC41: 138
Y42: Novotná Petra | Z42: 140 | AB42: Holkup Jan | AC42: 128 | AY42: Aunický František | AZ42: 141 | BB42: Mysliveček Jaroslav | BC42: 139 | BY42: Novotná Jana | BZ42: 147 | CB42: Šafařík Luděk | CC42: 135 | CY42: Šafář Ladislav | CZ42: 140 | DB42: Kalfiřt Petr | DC42: 131 | DY42: Aunický František | DZ42: 146 | EB42: Pecka Jiří | EC42: 128 | EY42: Růžička Václav | EZ42: 144 | FB42: Holkup Jan | FC42: 135 | FY42: Brož Stanislav | FZ42: 150 | GB42: Růžička Ladislav | GC42: 141
Y43: Táborský František | Z43: 140 | AB43: Kocúr Jaroslav | AC43: 133 | AY43: Kolář Ladislav | AZ43: 139 | BB43: Holkup Jan | BC43: 139 | BY43: Novotná Petra | BZ43: 147 | CB43: Podhola Martin | CC43: 135 | CY43: Pospíšil Lukáš | CZ43: 135 | DB43: Alba Vladimír | DC43: 131 | DY43: Kutina Pavel | DZ43: 143 | EB43: Pospíšil Václav | EC43: 128 | EY43: Růžička Ladislav | EZ43: 142 | FB43: Novotný Lukáš | FC43: 138 | FY43: Kutina Pavel | FZ43: 148 | GB43: Sladovník Miloslav | GC43: 143
Y44: Krupka Jakub | Z44: 139 | AB44: Tichý Hugo | AC44: 133 | AY44: Žalud Miroslav | AZ44: 139 | BB44: Pecka Jiří | BC44: 144 | BY44: Řehák Jaroslav | BZ44: 135 | CB44: Krupa Jozef | CC44: 136 | CY44: Kollár Pavel | CZ44: 131 | DB44: Tomášek Zdeněk | DC44: 131 | DY44: Mottl Pavel | DZ44: 141 | EB44: Skružná Pavla | EC44: 142 | EY44: Kolár Vladimír | EZ44: 140 | FB44: Bošek Jan | FC44: 141 | FY44: Kollár Pavel | FZ44: 144 | GB44: Krupa Jozef | GC44: 144
Y45: Fay Vlastimil | Z45: 138 | AB45: Carvan Pavel | AC45: 133 | AY45: Kazda Jan | AZ45: 139 | BB45: Novotný Lukáš | BC45: 147 | BY45: Fay Vlastimil | BZ45: 134 | CB45: Kročil Tomáš | CC45: 139 | CY45: Kalošová Dagmar | CZ45: 131 | DB45: Štěpán Radek | DC45: 136 | DY45: Neshyba Jaroslav | DZ45: 140 | EB45: Kročil Tomáš | EC45: 143 | EY45: Sehnal Ivan | EZ45: 139 | FB45: Pecka Jiří | FC45: 141 | FY45: Brejcha Jaroslav | FZ45: 143 | GB45: Holkup Jan | GC45: 144
Y46: Sehnal Ivan | Z46: 137 | AB46: Sladovník Miloš | AC46: 134 | AY46: Plecháček Miroslav | AZ46: 136 | BB46: Lazur Vladimír | BC46: 147 | BY46: Šafář Ladislav | BZ46: 131 | CB46: Novotný Lukáš | CC46: 141 | CY46: Fay Vlastimil | CZ46: 131 | DB46: German Milan | DC46: 137 | DY46: Dvořák Petr | DZ46: 140 | EB46: Podhola Martin | EC46: 144 | EY46: Tichý Hugo | EZ46: 138 | FB46: Ondřich František | FC46: 145 | FY46: Douša Adam | FZ46: 137 | GB46: Věchtík Antoním | GC46: 145
Y47: Čermák Tomáš | Z47: 135 | AB47: Radová Petra | AC47: 139 | AY47: Lazurová Jiřina | AZ47: 136 | BB47: Pospíšil Václav | BC47: 150 | BY47: Křikava Miroslav | BZ47: 126 | CB47: Pospíšil Václav | CC47: 143 | CY47: Novotná Petra | CZ47: 130 | DB47: Carvan Pavel | DC47: 137 | DY47: Čermák Tomáš | DZ47: 139 | EB47: Šafařík Luděk | EC47: 145 | EY47: Šafář Ladislav | EZ47: 138 | FB47: Lazur Vladimír | FC47: 145 | FY47: Šafář Ladislav | FZ47: 137 | GB47: Kocůr Jaroslav | GC47: 147
Y48: Veselý Vlastimil | Z48: 134 | AB48: Pospíšil Václav | AC48: 140 | AY48: Řehák Jaroslav | AZ48: 135 | BB48: Mašát Petr | BC48: 151 | BY48: Aunický František | BZ48: 126 | CB48: Mašát Petr | CC48: 145 | CY48: Svítil Pavel | CZ48: 129 | DB48: Kročil Tomáš | DC48: 138 | DY48: Novotná Petra | DZ48: 139 | EB48: Jelínek Jan | EC48: 145 | EY48: Fay Vlastimil | EZ48: 134 | FB48: Pospíšil Václav | FC48: 146 | FY48: Pavlíček Rudolf | FZ48: 137 | GB48: Carvan Pavel | GC48: 147
Y49: Křikava Miroslav | Z49: 130 | AB49: Pecka Jiří | AC49: 144 | AY49: Mottl Pavel | AZ49: 134 | BB49: Carvan Pavel | BC49: 156 | BY49: Pospíšil Lukáš | BZ49: 122 | CB49: Skružná Pavla | CC49: 148 | CY49: Kovář Jaroslav | CZ49: 127 | DB49: Mašát Petr | DC49: 143 | DY49: Křikava Miroslav | DZ49: 136 | EB49: Holkup Jan | EC49: 146 | EY49: Čermák Tomáš | EZ49: 133 | FB49: Froněk Martin | FC49: 150 | FY49: Růžička Václav | FZ49: 134 | GB49: Pospíšil Václav | GC49: 148
Y50: Řehák František | Z50: 128 | AB50: Novotný Lukáš | AC50: 148 | AY50: Fay Vlastimil | AZ50: 131 | BB50: Šafařík Luděk | BC50: 156 | BY50: Čermák Tomáš | BZ50: 120 | CB50: Lazur Ladislav | CC50: 151 | CY50: Řehák Jaroslav | CZ50: 126 | DB50: Šafařík Luděk | DC50: 145 | DY50: Fay Vlastimil | DZ50: 124 | EB50: Kocúr Jaroslav | EC50: 148 | EY50: Kovář Jaroslav | EZ50: 133 | FB50: Kocúr Jaroslav | FC50: 160 | FY50: Lazurová Jiřina | FZ50: 132 | GB50: Jelínek Jan | GC50: 149
Y51: Kalošová Dagmar | Z51: 127 | AB51: Šafařík Luděk | AC51: 153 | AY51: Táborský František | AZ51: 123 | BB51: Podhola Martin | BC51: 161 | BY51: Kollár Pavel | BZ51: 119 | CB51: Kocúr Jaroslav | CC51: 154 | CY51: Táborský František | CZ51: 123 | DB51: Sladovník Miloslav | DC51: 159 | DY51: Pavlíček Rudolf | DZ51: 123 | EB51: Ondřich František | EC51: 154 | EY51: Lokvenc Jiří | EZ51: 133 | FB51: Krupa Jozef | FC51: 160 | FY51: Táborský František | FZ51: 128 | GB51: Šafařík Luděk | GC51: 149
Y52: Aunický František | Z52: 126 | AB52: Lazur Ladislav | AC52: 159 | AY52: Bergerová Marcela | AZ52: 118 | BB52: Krupa Josef | BC52: 170 | BY52: Vychnerová Michala | BZ52: 114 | CB52: Pecka Jiří | CC52: 156 | CY52: Bergerová Marcela | CZ52: 118 | DB52: Krupa Jozef | DC52: 166 | DY52: Katolický Zdenek | DZ52: 119 | EB52: Kalfiřt Petr | EC52: 156 | EY52: Pipek Pavel | EZ52: 128 | FB52: Kalfiřt Petr | FC52: 164 | FY52: Pospíšil Lukáš | FZ52: 119 | GB52: Novotný Lukáš | GC52: 154
Y53: Kutina Pavel | Z53: 115 | AB53: Mašát Petr | AC53: 165 | AY53: Kalošová Dagmar | AZ53: 113 | BB53: Kocůr Jaroslav | BC53: 172 | BY53: Svítil Pavel | BZ53: 113 | CB53: Ondřich František | CC53: 159 | CY53: Štarková Tereza | CZ53: 109 | DB53: Pospíšil Václav | DC53: 168 | DY53: Šafrová Martina | DZ53: 115 | EB53: Krupa Jozef | EC53: 171 | EY53: Hyková Lucie | EZ53: 82 | FB53: Šafařík Luděk | FC53: 175 | FY53: Hyková Lucie | FZ53: 97 | GB53: Froněk Martin | GC53: 163

Sheet turnaje
N1: ZPĚT | AJ1: ZPĚT | BF1: ZPĚT | CD1: ZPĚT | DB1: ZPĚT | DZ1: ZPĚT | EX1: ZPĚT | FV1: ZPĚT
B3: JEDNOTLIVÉ TURNAJE V ROCE 2013 | P3: SPORTOVNÍ TURNAJ V BOWLINGU O POHÁR PV-OSZO DP-A PRAHA - 19. LEDNA 2013 | AL3: Sportovní turnaj v Bowlingu o pohár ZV-OS Klíčov dne 9. 2. 2013 | BH3: Sportovní turnaj v Bowlingu o pohár ZV-OS Řepy dne 9. 3. 2013 | CF3: Sportovní turnaj v Bowlingu o pohár ZV-OS Hostivař dne 27. 4. 2013 | DD3: Sportovní turnaj v Bowlingu o pohár ZV-OS Kačerov dne 12.10. 2013 | EB3: Sportovní turnaj v Bowlingu o pohár ZV-OS Vršovice dne 9.11. 2013 | FX3: Sportovní turnaj v Bowlingu o pohár ___ dne _. _. 2013
P5: Garáž | R5: Jméno | S5: I. | T5: II. | U5: III. | V5: IV. | W5: V. | X5: Body | AA5: Jednotlivci. | AC5: Družstva. | AF5: pořadí jednotlivců | AL5: Garáž | AN5: Jméno | AO5: I. | AP5: II. | AQ5: III. | AR5: IV. | AS5: V. | AT5: Body | AW5: Jednotlivci. | AY5: Družstva. | BB5: pořadí jednotlivců | BH5: Garáž | BJ5: Jméno | BK5: I. | BL5: II. | BM5: III. | BN5: IV. | BO5: V. | BP5: Body | BS5: Jednotlivci. | BW5: Družstva. | BZ5: pořadí jednotlivců | CF5: Garáž | CH5: Jméno | CI5: I. | CJ5: II. | CK5: III. | CL5: IV. | CM5: V. | CN5: Body | CQ5: Jednotlivci. | CU5: Družstva. | CX5: pořadí jednotlivců | DD5: Garáž | DF5: Jméno | DG5: I. | DH5: II. | DI5: III. | DJ5: IV. | DK5: V. | DL5: Body | DO5: Jednotlivci. | DS5: Družstva. | DV5: pořadí jednotlivců | EB5: Garáž | ED5: Jméno | EE5: I. | EF5: II. | EG5: III. | EH5: IV. | EI5: V. | EJ5: Body | EM5: Jednotlivci. | EQ5: Družstva. | ET5: pořadí jednotlivců | EZ5: Garáž | FB5: Jméno | FC5: I. | FD5: II. | FE5: III. | FF5: IV. | FG5: V. | FH5: Body | FK5: Jednotlivci. | FO5: Družstva. | FR5: pořadí jednotlivců | FX5: Garáž | FZ5: Jméno | GA5: I. | GB5: II. | GC5: III. | GD5: IV. | GE5: V. | GF5: Body | GI5: Jednotlivci. | GM5: Družstva. | GP5: pořadí jednotlivců
O6: =IF(S6="","",AA6) -> 43 | P6: 1 | Q6: ŘEPY I. | R6: KŘIKAVA MIROSLAV | S6: 116 | T6: 130 | U6: 127 | V6: 88 | W6: 111 | X6: =SUM(S6:W6) -> 572 | Y6: =MAX(S6:W6) -> 130 | Z6: =SUM(X6*1000)+Y6+0.5 -> 572130.5 | AA6: =IF(S6="","",RANK(Z6,Z6:Z65,0)) -> 43 | AC6: =RANK(AB11,AB11:AB65,0) -> 6 | AE6: =COUNT(S6:S10,S12:S16,S18:S22,S24:S28,S30:S34,S36:S40,S42:S46,S48:S52,S54:S58,S60:S64) -> 50 | AF6: 1 | AG6: =IF(AE6<1,"",VLOOKUP(1,O6:AA65,4,FALSE)) -> ŠAFAŘÍK LUDĚK | AH6: =IF(AE6<1,"",VLOOKUP(1,O6:AA65,10,FALSE)) -> 928 | AK6: =IF(AO6="","",AW6) -> 38 | AL6: 1 | AM6: KLÍČOV I. | AN6: KOLÁŘ LADISLAV | AO6: 139 | AP6: 135 | AQ6: 109 | AR6: 119 | AS6: 119 | AT6: =SUM(AO6:AS6) -> 621 | AU6: =MAX(AO6:AS6) -> 139 | AV6: =SUM(AT6*1000)+AU6+0.5 -> 621139.5 | AW6: =IF(AO6="","",RANK(AV6,AV6:AV65,0)) -> 38 | AY6: =RANK(AX11,AX11:AX65,0) -> 5 | BA6: =COUNT(AO6:AO10,AO12:AO16,AO18:AO22,AO24:AO28,AO30:AO34,AO36:AO40,AO42:AO46,AO48:AO52,AO54:AO58,AO60:AO64) -> 50 | BB6: 1 | BC6: =IF(BA6<1,"",VLOOKUP(1,AK6:AW65,4,FALSE)) -> LAZUR VLADIMÍR | BD6: =IF(BA6<1,"",VLOOKUP(1,AK6:AW65,10,FALSE)) -> 945 | BG6: =IF(BK6="","",BS6) -> 17 | BH6: 1 | BI6: VRŠOVICE I. | BJ6: KRUPA JOZEF | BK6: 136 | BL6: 159 | BM6: 138 | BN6: 174 | BO6: 153 | BP6: =SUM(BK6:BO6) -> 760 | BQ6: =MAX(BK6:BO6) -> 174 | BR6: =SUM(BP6*1000)+BQ6+0.5 -> 760174.5 | BS6: =IF(BK6="","",RANK(BR6,BR6:BR65,0)) -> 17 | BW6: =IF(BK6="","",RANK(BV11,BV11:BV65,0)) -> 5 | BY6: =COUNT(BK6:BK10,BK12:BK16,BK18:BK22,BK24:BK28,BK30:BK34,BK36:BK40,BK42:BK46,BK48:BK52,BK54:BK58,BK60:BK64) -> 50 | BZ6: 1 | CA6: =IF(BY6<1,"",VLOOKUP(1,BG6:BS65,4,FALSE)) -> KOCŮR JAROSLAV | CB6: =IF(BY6<1,"",VLOOKUP(1,BG6:BS65,10,FALSE)) -> 960 | CE6: =IF(CI6="","",CQ6) -> 43 | CF6: 1 | CG6: HOSTIVAŘ I. | CH6: KOLLÁR PAVEL | CI6: 116 | CJ6: 89 | CK6: 107 | CL6: 115 | CM6: 131 | CN6: =SUM(CI6:CM6) -> 558 | CO6: =MAX(CI6:CM6) -> 131 | CP6: =SUM(CN6*1000)+CO6+0.5 -> 558131.5 | CQ6: =IF(CI6="","",RANK(CP6,CP6:CP65,0)) -> 43 | CU6: =IF(CI6="","",RANK(CT11,CT11:CT65,0)) -> 5 | CW6: =COUNT(CI6:CI10,CI12:CI16,CI18:CI22,CI24:CI28,CI30:CI34,CI36:CI40,CI42:CI46,CI48:CI52,CI54:CI58,CI60:CI64) -> 50 | CX6: 1 | CY6: =IF(CW6<1,"",VLOOKUP(1,CE6:CQ65,4,FALSE)) -> POSPÍŠIL VÁCLAV | CZ6: =IF(CW6<1,"",VLOOKUP(1,CE6:CQ65,10,FALSE)) -> 901 | DC6: =IF(DG6="","",DO6) -> 26 | DD6: 1 | DE6: KAČEROV I. | DF6: Hübner Jiří | DG6: 136 | DH6: 154 | DI6: 125 | DJ6: 117 | DK6: 171 | DL6: =SUM(DG6:DK6) -> 703 | DM6: =MAX(DG6:DK6) -> 171 | DN6: =SUM(DL6*1000)+DM6+0.5 -> 703171.5 | DO6: =IF(DG6="","",RANK(DN6,DN6:DN65,0)) -> 26 | DS6: =IF(DG6="","",RANK(DR11,DR11:DR65,0)) -> 4 | DU6: =COUNT(DG6:DG10,DG12:DG16,DG18:DG22,DG24:DG28,DG30:DG34,DG36:DG40,DG42:DG46,DG48:DG52,DG54:DG58,DG60:DG64) -> 50 | DV6: 1 | DW6: =IF(DU6<1,"",VLOOKUP(1,DC6:DO65,4,FALSE)) -> Krupa Jozef | DX6: =IF(DU6<1,"",VLOOKUP(1,DC6:DO65,10,FALSE)) -> 959 | EA6: =IF(EE6="","",EM6) -> 39 | EB6: 1 | EC6: ŘEPY I. | ED6: Křikava Miroslav | EE6: 116 | EF6: 111 | EG6: 131 | EH6: 120 | EI6: 148 | EJ6: =SUM(EE6:EI6) -> 626 | EK6: =MAX(EE6:EI6) -> 148 | EL6: =SUM(EJ6*1000)+EK6+0.5 -> 626148.5 | EM6: =IF(EE6="","",RANK(EL6,EL6:EL65,0)) -> 39 | EQ6: =IF(EE6="","",RANK(EP11,EP11:EP65,0)) -> 9 | ES6: =COUNT(EE6:EE10,EE12:EE16,EE18:EE22,EE24:EE28,EE30:EE34,EE36:EE40,EE42:EE46,EE48:EE52,EE54:EE58,EE60:EE64) -> 50 | ET6: 1 | EU6: =IF(ES6<1,"",VLOOKUP(1,EA6:EM65,4,FALSE)) -> Šafařík Luděk | EV6: =IF(ES6<1,"",VLOOKUP(1,EA6:EM65,10,FALSE)) -> 962 | EY6: =IF(FC6="","",FK6) -> 15 | EZ6: 1 | FA6: KLÍČOV I. | FB6: Pecka Jiří | FC6: 146 | FD6: 135 | FE6: 181 | FF6: 163 | FG6: 165 | FH6: =SUM(FC6:FG6) -> 790 | FI6: =MAX(FC6:FG6) -> 181 | FJ6: =SUM(FH6*1000)+FI6+0.5 -> 790181.5 | FK6: =IF(FC6="","",RANK(FJ6,FJ6:FJ65,0)) -> 15 | FO6: =IF(FC6="","",RANK(FN11,FN11:FN65,0)) -> 3 | FQ6: =COUNT(FC6:FC10,FC12:FC16,FC18:FC22,FC24:FC28,FC30:FC34,FC36:FC40,FC42:FC46,FC48:FC52,FC54:FC58,FC60:FC64) -> 50 | FR6: 1 | FS6: =IF(FQ6<1,"",VLOOKUP(1,EY6:FL65,4,FALSE)) -> Froněk Martin | FT6: =IF(FQ6<1,"",VLOOKUP(1,EY6:FL65,10,FALSE)) -> 893 | FW6: =IF(GA6="","",GI6) -> 3 | FX6: 1 | FY6: ŘEPY I. | GA6: 1 | GB6: 1 | GC6: 1 | GF6: =SUM(GA6:GE6) -> 3 | GG6: =MAX(GA6:GE6) -> 1 | GH6: =SUM(GF6*1000)+GG6+0.5 -> 3001.5 | GI6: =IF(GA6="","",RANK(GH6,GH6:GH70,0)) -> 3 | GM6: =IF(GA6="","",RANK(GL11,GL11:GL71,0)) -> 3 | GO6: =COUNT(GA6:GA10,GA12:GA16,GA18:GA22,GA24:GA28,GA30:GA34,GA36:GA40,GA42:GA46,GA48:GA52,GA54:GA58,GA60:GA64,GA66:GA70) -> 3 | GP6: 1 | GQ6: =IF(GO6<1,"",VLOOKUP(1,FW6:GI70,4,FALSE)) -> 0 | GR6: =IF(GO6<1,"",VLOOKUP(1,FW6:GI70,10,FALSE)) -> 3
B7: PV OSZO | D7: 19.1. | O7: =IF(S7="","",AA7) -> 34 | R7: SEHNAL IVAN | S7: 137 | T7: 116 | U7: 134 | V7: 122 | W7: 122 | X7: =SUM(S7:W7) -> 631 | Y7: 137 | Z7: =SUM(X7*1000)+Y7+0.49 -> 631137.49 | AA7: =IF(S7="","",RANK(Z7,Z6:Z65,0)) -> 34 | AF7: =SUM(AF6+1) -> 2 | AG7: =IF(AE6<2,"",VLOOKUP(2,O6:AA65,4,FALSE)) -> MAŠÁT PETR | AH7: =IF(AE6<2,"",VLOOKUP(2,O6:AA65,10,FALSE)) -> 895 | AK7: =IF(AO7="","",AW7) -> 9 | AN7: PECKA JIŘÍ | AO7: 166 | AP7: 144 | AQ7: 148 | AR7: 168 | AS7: 205 | AT7: =SUM(AO7:AS7) -> 831 | AU7: 205 | AV7: =SUM(AT7*1000)+AU7+0.49 -> 831205.49 | AW7: =IF(AO7="","",RANK(AV7,AV6:AV65,0)) -> 9 | BB7: =SUM(BB6+1) -> 2 | BC7: =IF(BA6<2,"",VLOOKUP(2,AK6:AW65,4,FALSE)) -> KOCŮR JAROSLAV | BD7: =IF(BA6<2,"",VLOOKUP(2,AK6:AW65,10,FALSE)) -> 915 | BG7: =IF(BK7="","",BS7) -> 9 | BJ7: PODHOLA MARTIN | BK7: 135 | BL7: 180 | BM7: 184 | BN7: 157 | BO7: 168 | BP7: =SUM(BK7:BO7) -> 824 | BQ7: 184 | BR7: =SUM(BP7*1000)+BQ7+0.49 -> 824184.49 | BS7: =IF(BK7="","",RANK(BR7,BR6:BR65,0)) -> 9 | BZ7: =SUM(BZ6+1) -> 2 | CA7: =IF(BY6<2,"",VLOOKUP(2,BG6:BS65,4,FALSE)) -> ŠAFAŘÍK LUDĚK | CB7: =IF(BY6<2,"",VLOOKUP(2,BG6:BS65,10,FALSE)) -> 897 | CE7: =IF(CI7="","",CQ7) -> 22 | CH7: BERGER MICHAL | CI7: 123 | CJ7: 129 | CK7: 140 | CL7: 212 | CM7: 99 | CN7: =SUM(CI7:CM7) -> 703 | CO7: 212 | CP7: =SUM(CN7*1000)+CO7+0.49 -> 703212.49 | CQ7: =IF(CI7="","",RANK(CP7,CP6:CP65,0)) -> 22 | CX7: =SUM(CX6+1) -> 2 | CY7: =IF(CW6<2,"",VLOOKUP(2,CE6:CQ65,4,FALSE)) -> ŠAFAŘÍK LUDĚK | CZ7: =IF(CW6<2,"",VLOOKUP(2,CE6:CQ65,10,FALSE)) -> 883 | DC7: =IF(DG7="","",DO7) -> 18 | DF7: Tomášek Zdenek | DG7: 128 | DH7: 169 | DI7: 171 | DJ7: 98 | DK7: 159 | DL7: =SUM(DG7:DK7) -> 725 | DM7: 171 | DN7: =SUM(DL7*1000)+DM7+0.49 -> 725171.49 | DO7: =IF(DG7="","",RANK(DN7,DN6:DN65,0)) -> 18 | DV7: =SUM(DV6+1) -> 2 | DW7: =IF(DU6<2,"",VLOOKUP(2,DC6:DO65,4,FALSE)) -> Holkup Jan | DX7: =IF(DU6<2,"",VLOOKUP(2,DC6:DO65,10,FALSE)) -> 912 | EA7: =IF(EE7="","",EM7) -> 29 | ED7: Mottl Pavel | EE7: 127 | EF7: 139 | EG7: 146 | EH7: 120 | EI7: 141 | EJ7: =SUM(EE7:EI7) -> 673 | EK7: 146 | EL7: =SUM(EJ7*1000)+EK7+0.49 -> 673146.49 | EM7: =IF(EE7="","",RANK(EL7,EL6:EL65,0)) -> 29 | ET7: =SUM(ET6+1) -> 2 | EU7: =IF(ES6<2,"",VLOOKUP(2,EA6:EM65,4,FALSE)) -> Lazur Vladimír | EV7: =IF(ES6<2,"",VLOOKUP(2,EA6:EM65,10,FALSE)) -> 901 | EY7: =IF(FC7="","",FK7) -> 25 | FB7: Křemenák Petr | FC7: 121 | FD7: 165 | FE7: 137 | FF7: 116 | FG7: 148 | FH7: =SUM(FC7:FG7) -> 687 | FI7: 165 | FJ7: =SUM(FH7*1000)+FI7+0.49 -> 687165.49 | FK7: =IF(FC7="","",RANK(FJ7,FJ6:FJ65,0)) -> 25 | FR7: =SUM(FR6+1) -> 2 | FS7: =IF(FQ6<2,"",VLOOKUP(2,EY6:FL65,4,FALSE)) -> Novotný Lukáš | FT7: =IF(FQ6<2,"",VLOOKUP(2,EY6:FL65,10,FALSE)) -> 888 | FW7: =IF(GA7="","",GI7) ->  | GF7: =SUM(GA7:GE7) -> 0 | GG7: 0 | GH7: =SUM(GF7*1000)+GG7+0.49 -> 0.49 | GI7: =IF(GA7="","",RANK(GH7,GH6:GH70,0)) ->  | GP7: =SUM(GP6+1) -> 2 | GQ7: =IF(GO6<2,"",VLOOKUP(2,FW6:GI70,4,FALSE)) -> 0 | GR7: =IF(GO6<2,"",VLOOKUP(2,FW6:GI70,10,FALSE)) -> 3
O8: =IF(S8="","",AA8) -> 19 | R8: SLADOVNÍK MILOSLAV | S8: 134 | T8: 135 | U8: 139 | V8: 172 | W8: 140 | X8: =SUM(S8:W8) -> 720 | Y8: 172 | Z8: =SUM(X8*1000)+Y8+0.48 -> 720172.48 | AA8: =IF(S8="","",RANK(Z8,Z6:Z65,0)) -> 19 | AF8: =SUM(AF7+1) -> 3 | AG8: =IF(AE6<3,"",VLOOKUP(3,O6:AA65,4,FALSE)) -> POSPÍŠIL VÁCLAV | AH8: =IF(AE6<3,"",VLOOKUP(3,O6:AA65,10,FALSE)) -> 881 | AK8: =IF(AO8="","",AW8) -> 8 | AN8: NOVOTNÝ LUKÁŠ | AO8: 164 | AP8: 179 | AQ8: 180 | AR8: 147 | AS8: 163 | AT8: =SUM(AO8:AS8) -> 833 | AU8: 180 | AV8: =SUM(AT8*1000)+AU8+0.48 -> 833180.48 | AW8: =IF(AO8="","",RANK(AV8,AV6:AV65,0)) -> 8 | BB8: =SUM(BB7+1) -> 3 | BC8: =IF(BA6<3,"",VLOOKUP(3,AK6:AW65,4,FALSE)) -> ŠAFAŘÍK LUDĚK | BD8: =IF(BA6<3,"",VLOOKUP(3,AK6:AW65,10,FALSE)) -> 905 | BG8: =IF(BK8="","",BS8) -> 36 | BJ8: KUČERA MIROSLAV | BK8: 100 | BL8: 138 | BM8: 148 | BN8: 145 | BO8: 134 | BP8: =SUM(BK8:BO8) -> 665 | BQ8: 148 | BR8: =SUM(BP8*1000)+BQ8+0.48 -> 665148.48 | BS8: =IF(BK8="","",RANK(BR8,BR6:BR65,0)) -> 36 | BZ8: =SUM(BZ7+1) -> 3 | CA8: =IF(BY6<3,"",VLOOKUP(3,BG6:BS65,4,FALSE)) -> ONDŘICH FRANTIŠEK | CB8: =IF(BY6<3,"",VLOOKUP(3,BG6:BS65,10,FALSE)) -> 895 | CE8: =IF(CI8="","",CQ8) -> 14 | CH8: MYSLIVEČEK JAROSLAV | CI8: 153 | CJ8: 151 | CK8: 105 | CL8: 179 | CM8: 166 | CN8: =SUM(CI8:CM8) -> 754 | CO8: 179 | CP8: =SUM(CN8*1000)+CO8+0.48 -> 754179.48 | CQ8: =IF(CI8="","",RANK(CP8,CP6:CP65,0)) -> 14 | CX8: =SUM(CX7+1) -> 3 | CY8: =IF(CW6<3,"",VLOOKUP(3,CE6:CQ65,4,FALSE)) -> KRUPA JOZEF | CZ8: =IF(CW6<3,"",VLOOKUP(3,CE6:CQ65,10,FALSE)) -> 883 | DC8: =IF(DG8="","",DO8) -> 21 | DF8: Turek Stanislav | DG8: 143 | DH8: 185 | DI8: 122 | DJ8: 118 | DK8: 153 | DL8: =SUM(DG8:DK8) -> 721 | DM8: 185 | DN8: =SUM(DL8*1000)+DM8+0.48 -> 721185.48 | DO8: =IF(DG8="","",RANK(DN8,DN6:DN65,0)) -> 21 | DV8: =SUM(DV7+1) -> 3 | DW8: =IF(DU6<3,"",VLOOKUP(3,DC6:DO65,4,FALSE)) -> Ondřich František | DX8: =IF(DU6<3,"",VLOOKUP(3,DC6:DO65,10,FALSE)) -> 858 | EA8: =IF(EE8="","",EM8) -> 43 | ED8: Růžička Václav | EE8: 144 | EF8: 112 | EG8: 139 | EH8: 100 | EI8: 103 | EJ8: =SUM(EE8:EI8) -> 598 | EK8: 144 | EL8: =SUM(EJ8*1000)+EK8+0.48 -> 598144.48 | EM8: =IF(EE8="","",RANK(EL8,EL6:EL65,0)) -> 43 | ET8: =SUM(ET7+1) -> 3 | EU8: =IF(ES6<3,"",VLOOKUP(3,EA6:EM65,4,FALSE)) -> Kalfiřt Petr | EV8: =IF(ES6<3,"",VLOOKUP(3,EA6:EM65,10,FALSE)) -> 894 | EY8: =IF(FC8="","",FK8) -> 2 | FB8: Novotný Lukáš | FC8: 194 | FD8: 154 | FE8: 178 | FF8: 159 | FG8: 203 | FH8: =SUM(FC8:FG8) -> 888 | FI8: 203 | FJ8: =SUM(FH8*1000)+FI8+0.48 -> 888203.48 | FK8: =IF(FC8="","",RANK(FJ8,FJ6:FJ65,0)) -> 2 | FR8: =SUM(FR7+1) -> 3 | FS8: =IF(FQ6<3,"",VLOOKUP(3,EY6:FL65,4,FALSE)) -> Lazur Vladimír | FT8: =IF(FQ6<3,"",VLOOKUP(3,EY6:FL65,10,FALSE)) -> 863 | FW8: =IF(GA8="","",GI8) ->  | GF8: =SUM(GA8:GE8) -> 0 | GG8: 0 | GH8: =SUM(GF8*1000)+GG8+0.48 -> 0.48 | GI8: =IF(GA8="","",RANK(GH8,GH6:GH71,0)) ->  | GP8: =SUM(GP7+1) -> 3 | GQ8: =IF(GO6<3,"",VLOOKUP(3,FW6:GI70,4,FALSE)) -> 0 | GR8: =IF(GO6<3,"",VLOOKUP(3,FW6:GI70,10,FALSE)) -> 3
B9: KLÍČOV | D9: 9.2. | O9: =IF(S9="","",AA9) -> 22 | R9: TICHÝ HUGO | S9: 134 | T9: 157 | U9: 147 | V9: 133 | W9: 134 | X9: =SUM(S9:W9) -> 705 | Y9: 157 | Z9: =SUM(X9*1000)+Y9+0.47 -> 705157.47 | AA9: =IF(S9="","",RANK(Z9,Z6:Z65,0)) -> 22 | AF9: 4 | AG9: =IF(AE6<4,"",VLOOKUP(4,O6:AA65,4,FALSE)) -> NOVOTNÝ LUKÁŠ | AH9: =IF(AE6<4,"",VLOOKUP(4,O6:AA65,10,FALSE)) -> 860 | AK9: =IF(AO9="","",AW9) -> 13 | AN9: KALFIŘT PETR | AO9: 170 | AP9: 137 | AQ9: 195 | AR9: 163 | AS9: 131 | AT9: =SUM(AO9:AS9) -> 796 | AU9: 195 | AV9: =SUM(AT9*1000)+AU9+0.47 -> 796195.47 | AW9: =IF(AO9="","",RANK(AV9,AV6:AV65,0)) -> 13 | BB9: 4 | BC9: =IF(BA6<4,"",VLOOKUP(4,AK6:AW65,4,FALSE)) -> PODHOLA MARTIN | BD9: =IF(BA6<4,"",VLOOKUP(4,AK6:AW65,10,FALSE)) -> 896 | BG9: =IF(BK9="","",BS9) -> 11 | BJ9: SKRUŽNÁ PAVLA | BK9: 153 | BL9: 182 | BM9: 168 | BN9: 148 | BO9: 160 | BP9: =SUM(BK9:BO9) -> 811 | BQ9: 182 | BR9: =SUM(BP9*1000)+BQ9+0.47 -> 811182.47 | BS9: =IF(BK9="","",RANK(BR9,BR6:BR65,0)) -> 11 | BZ9: 4 | CA9: =IF(BY6<4,"",VLOOKUP(4,BG6:BS65,4,FALSE)) -> MAŠÁT PETR | CB9: =IF(BY6<4,"",VLOOKUP(4,BG6:BS65,10,FALSE)) -> 859 | CE9: =IF(CI9="","",CQ9) -> 28 | CH9: JELÍNEK JAN | CI9: 114 | CJ9: 144 | CK9: 168 | CL9: 134 | CM9: 106 | CN9: =SUM(CI9:CM9) -> 666 | CO9: 168 | CP9: =SUM(CN9*1000)+CO9+0.47 -> 666168.47 | CQ9: =IF(CI9="","",RANK(CP9,CP6:CP65,0)) -> 28 | CX9: 4 | CY9: =IF(CW6<4,"",VLOOKUP(4,CE6:CQ65,4,FALSE)) -> MAŠÁT PETR | CZ9: =IF(CW6<4,"",VLOOKUP(4,CE6:CQ65,10,FALSE)) -> 854 | DC9: =IF(DG9="","",DO9) -> 3 | DF9: Ondřich František | DG9: 166 | DH9: 154 | DI9: 194 | DJ9: 176 | DK9: 168 | DL9: =SUM(DG9:DK9) -> 858 | DM9: 194 | DN9: =SUM(DL9*1000)+DM9+0.47 -> 858194.47 | DO9: =IF(DG9="","",RANK(DN9,DN6:DN65,0)) -> 3 | DV9: 4 | DW9: =IF(DU6<4,"",VLOOKUP(4,DC6:DO65,4,FALSE)) -> Kocúr Jaroslav | DX9: =IF(DU6<4,"",VLOOKUP(4,DC6:DO65,10,FALSE)) -> 854 | EA9: =IF(EE9="","",EM9) -> 42 | ED9: Sehnal Ivan | EE9: 129 | EF9: 113 | EG9: 121 | EH9: 139 | EI9: 110 | EJ9: =SUM(EE9:EI9) -> 612 | EK9: 139 | EL9: =SUM(EJ9*1000)+EK9+0.47 -> 612139.47 | EM9: =IF(EE9="","",RANK(EL9,EL6:EL65,0)) -> 42 | ET9: 4 | EU9: =IF(ES6<4,"",VLOOKUP(4,EA6:EM65,4,FALSE)) -> Kocúr Jaroslav | EV9: =IF(ES6<4,"",VLOOKUP(4,EA6:EM65,10,FALSE)) -> 889 | EY9: =IF(FC9="","",FK9) -> 17 | FB9: Kalfiřt Petr | FC9: 164 | FD9: 164 | FE9: 163 | FF9: 136 | FG9: 134 | FH9: =SUM(FC9:FG9) -> 761 | FI9: 164 | FJ9: =SUM(FH9*1000)+FI9+0.47 -> 761164.47 | FK9: =IF(FC9="","",RANK(FJ9,FJ6:FJ65,0)) -> 17 | FR9: 4 | FS9: =IF(FQ6<4,"",VLOOKUP(4,EY6:FL65,4,FALSE)) -> Krupa Jozef | FT9: =IF(FQ6<4,"",VLOOKUP(4,EY6:FL65,10,FALSE)) -> 860 | FW9: =IF(GA9="","",GI9) ->  | GF9: =SUM(GA9:GE9) -> 0 | GG9: 0 | GH9: =SUM(GF9*1000)+GG9+0.47 -> 0.47 | GI9: =IF(GA9="","",RANK(GH9,GH6:GH70,0)) ->  | GP9: 4 | GQ9: =IF(GO6<4,"",VLOOKUP(4,FW6:GI70,4,FALSE)) ->  | GR9: =IF(GO6<4,"",VLOOKUP(4,FW6:GI70,10,FALSE)) -> 
O10: =IF(S10="","",AA10) -> 31 | R10: PLECHÁČEK MIROSLAV | S10: 103 | T10: 134 | U10: 160 | V10: 121 | W10: 135 | X10: =SUM(S10:W10) -> 653 | Y10: 160 | Z10: =SUM(X10*1000)+Y10+0.46 -> 653160.46 | AA10: =IF(S10="","",RANK(Z10,Z6:Z65,0)) -> 31 | AF10: 5 | AG10: =IF(AE6<5,"",VLOOKUP(5,O6:AA65,4,FALSE)) -> LAZUR VLADIMÍR | AH10: =IF(AE6<5,"",VLOOKUP(5,O6:AA65,10,FALSE)) -> 847 | AK10: =IF(AO10="","",AW10) -> 33 | AN10: TROLLER PAVEL | AO10: 122 | AP10: 105 | AQ10: 175 | AR10: 111 | AS10: 125 | AT10: =SUM(AO10:AS10) -> 638 | AU10: 175 | AV10: =SUM(AT10*1000)+AU10+0.46 -> 638175.46 | AW10: =IF(AO10="","",RANK(AV10,AV6:AV65,0)) -> 33 | BB10: 5 | BC10: =IF(BA6<5,"",VLOOKUP(5,AK6:AW65,4,FALSE)) -> KRUPA JOSEF | BD10: =IF(BA6<5,"",VLOOKUP(5,AK6:AW65,10,FALSE)) -> 891 | BG10: =IF(BK10="","",BS10) -> 44 | BJ10: POSPÍŠIL LUKÁŠ | BK10: 103 | BL10: 122 | BM10: 113 | BN10: 122 | BO10: 113 | BP10: =SUM(BK10:BO10) -> 573 | BQ10: 122 | BR10: =SUM(BP10*1000)+BQ10+0.46 -> 573122.46 | BS10: =IF(BK10="","",RANK(BR10,BR6:BR65,0)) -> 44 | BZ10: 5 | CA10: =IF(BY6<5,"",VLOOKUP(5,BG6:BS65,4,FALSE)) -> STEJSKAL MARTIN | CB10: =IF(BY6<5,"",VLOOKUP(5,BG6:BS65,10,FALSE)) -> 846 | CE10: =IF(CI10="","",CQ10) -> 2 | CH10: ŠAFAŘÍK LUDĚK | CI10: 145 | CJ10: 170 | CK10: 179 | CL10: 212 | CM10: 177 | CN10: =SUM(CI10:CM10) -> 883 | CO10: 212 | CP10: =SUM(CN10*1000)+CO10+0.46 -> 883212.46 | CQ10: =IF(CI10="","",RANK(CP10,CP6:CP65,0)) -> 2 | CX10: 5 | CY10: =IF(CW6<5,"",VLOOKUP(5,CE6:CQ65,4,FALSE)) -> CARVAN PAVEL | CZ10: =IF(CW6<5,"",VLOOKUP(5,CE6:CQ65,10,FALSE)) -> 842 | DC10: =IF(DG10="","",DO10) -> 30 | DF10: Carvan Pavel | DG10: 114 | DH10: 110 | DI10: 156 | DJ10: 172 | DK10: 131 | DL10: =SUM(DG10:DK10) -> 683 | DM10: 172 | DN10: =SUM(DL10*1000)+DM10+0.46 -> 683172.46 | DO10: =IF(DG10="","",RANK(DN10,DN6:DN65,0)) -> 30 | DV10: 5 | DW10: =IF(DU6<5,"",VLOOKUP(5,DC6:DO65,4,FALSE)) -> Křápek Roman | DX10: =IF(DU6<5,"",VLOOKUP(5,DC6:DO65,10,FALSE)) -> 834 | EA10: =IF(EE10="","",EM10) -> 45 | ED10: Tichý Hugo | EE10: 131 | EF10: 103 | EG10: 138 | EH10: 93 | EI10: 132 | EJ10: =SUM(EE10:EI10) -> 597 | EK10: 138 | EL10: =SUM(EJ10*1000)+EK10+0.46 -> 597138.46 | EM10: =IF(EE10="","",RANK(EL10,EL6:EL65,0)) -> 45 | ET10: 5 | EU10: =IF(ES6<5,"",VLOOKUP(5,EA6:EM65,4,FALSE)) -> Ondřich František | EV10: =IF(ES6<5,"",VLOOKUP(5,EA6:EM65,10,FALSE)) -> 863 | EY10: =IF(FC10="","",FK10) -> 20 | FB10: Troller Pavel | FC10: 181 | FD10: 128 | FE10: 139 | FF10: 158 | FG10: 136 | FH10: =SUM(FC10:FG10) -> 742 | FI10: 181 | FJ10: =SUM(FH10*1000)+FI10+0.46 -> 742181.46 | FK10: =IF(FC10="","",RANK(FJ10,FJ6:FJ65,0)) -> 20 | FR10: 5 | FS10: =IF(FQ6<5,"",VLOOKUP(5,EY6:FL65,4,FALSE)) -> Kocůr Jaroslav | FT10: =IF(FQ6<5,"",VLOOKUP(5,EY6:FL65,10,FALSE)) -> 850 | FW10: =IF(GA10="","",GI10) ->  | GF10: =SUM(GA10:GE10) -> 0 | GG10: 0 | GH10: =SUM(GF10*1000)+GG10+0.46 -> 0.46 | GI10: =IF(GA10="","",RANK(GH10,GH6:GH70,0)) ->  | GP10: 5 | GQ10: =IF(GO6<5,"",VLOOKUP(5,FW6:GI70,4,FALSE)) ->  | GR10: =IF(GO6<5,"",VLOOKUP(5,FW6:GI70,10,FALSE)) -> 
B11: ŘEPY | D11: 9.3. | S11: =SUM(S6:S10) -> 624 | T11: =SUM(T6:T10) -> 672 | U11: =SUM(U6:U10) -> 707 | V11: =SUM(V6:V10) -> 636 | W11: =SUM(W6:W10) -> 642 | Y11: 707 | AB11: =SUM(S11:W11) -> 3281 | AF11: 6 | AG11: =IF(AE6<6,"",VLOOKUP(6,O6:AA65,4,FALSE)) -> VĚCHTÍK ANTONÍN | AH11: =IF(AE6<6,"",VLOOKUP(6,O6:AA65,10,FALSE)) -> 830 | AO11: =SUM(AO6:AO10) -> 761 | AP11: =SUM(AP6:AP10) -> 700 | AQ11: =SUM(AQ6:AQ10) -> 807 | AR11: =SUM(AR6:AR10) -> 708 | AS11: =SUM(AS6:AS10) -> 743 | AU11: 807 | AX11: =SUM(AO11:AS11) -> 3719 | BB11: 6 | BC11: =IF(BA6<6,"",VLOOKUP(6,AK6:AW65,4,FALSE)) -> POSPÍŠIL VÁCLAV | BD11: =IF(BA6<6,"",VLOOKUP(6,AK6:AW65,10,FALSE)) -> 876 | BK11: =SUM(BK6:BK10) -> 627 | BL11: =SUM(BL6:BL10) -> 781 | BM11: =SUM(BM6:BM10) -> 751 | BN11: =SUM(BN6:BN10) -> 746 | BO11: =SUM(BO6:BO10) -> 728 | BQ11: 781 | BT11: =SUM(BK11:BO11) -> 3633 | BU11: =MAX(BK11:BO11) -> 781 | BV11: =IF(BK6="","",SUM(BT11*10000)+BU11) -> 36330781 | BZ11: 6 | CA11: =IF(BY6<6,"",VLOOKUP(6,BG6:BS65,4,FALSE)) -> MOTTL PAVEL | CB11: =IF(BY6<6,"",VLOOKUP(6,BG6:BS65,10,FALSE)) -> 838 | CI11: =SUM(CI6:CI10) -> 651 | CJ11: =SUM(CJ6:CJ10) -> 683 | CK11: =SUM(CK6:CK10) -> 699 | CL11: =SUM(CL6:CL10) -> 852 | CM11: =SUM(CM6:CM10) -> 679 | CO11: 852 | CR11: =SUM(CI11:CM11) -> 3564 | CS11: =MAX(CI11:CM11) -> 852 | CT11: =IF(CI6="","",SUM(CR11*1000)+CS11) -> 3564852 | CX11: 6 | CY11: =IF(CW6<6,"",VLOOKUP(6,CE6:CQ65,4,FALSE)) -> SLADOVNÍK MILOSLAV | CZ11: =IF(CW6<6,"",VLOOKUP(6,CE6:CQ65,10,FALSE)) -> 842 | DG11: =SUM(DG6:DG10) -> 687 | DH11: =SUM(DH6:DH10) -> 772 | DI11: =SUM(DI6:DI10) -> 768 | DJ11: =SUM(DJ6:DJ10) -> 681 | DK11: =SUM(DK6:DK10) -> 782 | DM11: 782 | DP11: =SUM(DG11:DK11) -> 3690 | DQ11: =MAX(DG11:DK11) -> 782 | DR11: =IF(DG6="","",SUM(DP11*1000)+DQ11) -> 3690782 | DV11: 6 | DW11: =IF(DU6<6,"",VLOOKUP(6,DC6:DO65,4,FALSE)) -> Podhola Martin | DX11: =IF(DU6<6,"",VLOOKUP(6,DC6:DO65,10,FALSE)) -> 826 | EE11: =SUM(EE6:EE10) -> 647 | EF11: =SUM(EF6:EF10) -> 578 | EG11: =SUM(EG6:EG10) -> 675 | EH11: =SUM(EH6:EH10) -> 572 | EI11: =SUM(EI6:EI10) -> 634 | EK11: 675 | EN11: =SUM(EE11:EI11) -> 3106 | EO11: =MAX(EE11:EI11) -> 675 | EP11: =IF(EE6="","",SUM(EN11*1000)+EO11) -> 3106675 | ET11: 6 | EU11: =IF(ES6<6,"",VLOOKUP(6,EA6:EM65,4,FALSE)) -> Pecka Jiří | EV11: =IF(ES6<6,"",VLOOKUP(6,EA6:EM65,10,FALSE)) -> 854 | FC11: =SUM(FC6:FC10) -> 806 | FD11: =SUM(FD6:FD10) -> 746 | FE11: =SUM(FE6:FE10) -> 798 | FF11: =SUM(FF6:FF10) -> 732 | FG11: =SUM(FG6:FG10) -> 786 | FI11: 806 | FL11: =SUM(FC11:FG11) -> 3868 | FM11: =MAX(FC11:FG11) -> 806 | FN11: =IF(FC6="","",SUM(FL11*1000)+FM11) -> 3868806 | FR11: 6 | FS11: =IF(FQ6<6,"",VLOOKUP(6,EY6:FL65,4,FALSE)) -> Pospíšil Václav | FT11: =IF(FQ6<6,"",VLOOKUP(6,EY6:FL65,10,FALSE)) -> 844 | GA11: =SUM(GA6:GA10) -> 1 | GB11: =SUM(GB6:GB10) -> 1 | GC11: =SUM(GC6:GC10) -> 1 | GD11: =SUM(GD6:GD10) -> 0 | GE11: =SUM(GE6:GE10) -> 0 | GG11: 1 | GJ11: =SUM(GA11:GE11) -> 3 | GK11: =MAX(GA11:GE11) -> 1 | GL11: =IF(GA6="","",SUM(GJ11*1000)+GK11) -> 3001 | GP11: 6 | GQ11: =IF(GO6<6,"",VLOOKUP(6,FW6:GI70,4,FALSE)) ->  | GR11: =IF(GO6<6,"",VLOOKUP(6,FW6:GI70,10,FALSE)) -> 
O12: =IF(S12="","",AA12) -> 15 | P12: 2 | Q12: ŘEPY II. | R12: KOCŮR JAROSLAV | S12: 146 | T12: 137 | U12: 143 | V12: 185 | W12: 133 | X12: =SUM(S12:W12) -> 744 | Y12: 185 | Z12: =SUM(X12*1000)+Y12+0.45 -> 744185.45 | AA12: =IF(S12="","",RANK(Z12,Z6:Z65,0)) -> 15 | AC12: =RANK(AB17,AB11:AB65,0) -> 3 | AF12: 7 | AG12: =IF(AE6<7,"",VLOOKUP(7,O6:AA65,4,FALSE)) -> TOMÁŠEK ZDENĚK | AH12: =IF(AE6<7,"",VLOOKUP(7,O6:AA65,10,FALSE)) -> 825 | AK12: =IF(AO12="","",AW12) -> 47 | AL12: 2 | AM12: KLÍČOV II. | AN12: TÁBORSKÝ FRANTIŠEK | AO12: 109 | AP12: 119 | AQ12: 123 | AR12: 112 | AS12: 100 | AT12: =SUM(AO12:AS12) -> 563 | AU12: 123 | AV12: =SUM(AT12*1000)+AU12+0.45 -> 563123.45 | AW12: =IF(AO12="","",RANK(AV12,AV6:AV65,0)) -> 47 | AY12: =RANK(AX17,AX11:AX65,0) -> 8 | BB12: 7 | BC12: =IF(BA6<7,"",VLOOKUP(7,AK6:AW65,4,FALSE)) -> CARVAN PAVEL | BD12: =IF(BA6<7,"",VLOOKUP(7,AK6:AW65,10,FALSE)) -> 860 | BG12: =IF(BK12="","",BS12) -> 40 | BH12: 2 | BI12: VRŠOVICEII. | BJ12: AUNICKÝ FRANTIŠEK | BK12: 125 | BL12: 126 | BM12: 123 | BN12: 126 | BO12: 105 | BP12: =SUM(BK12:BO12) -> 605 | BQ12: 126 | BR12: =SUM(BP12*1000)+BQ12+0.45 -> 605126.45 | BS12: =IF(BK12="","",RANK(BR12,BR6:BR65,0)) -> 40 | BW12: =IF(BK12="","",RANK(BV17,BV11:BV65,0)) -> 8 | BZ12: 7 | CA12: =IF(BY6<7,"",VLOOKUP(7,BG6:BS65,4,FALSE)) -> PECKA JIŘÍ | CB12: =IF(BY6<7,"",VLOOKUP(7,BG6:BS65,10,FALSE)) -> 831 | CE12: =IF(CI12="","",CQ12) -> 47 | CF12: 2 | CG12: HOSTIVAŘ II. | CH12: KALOŠOVÁ DAGMAR | CI12: 102 | CJ12: 69 | CK12: 105 | CL12: 126 | CM12: 131 | CN12: =SUM(CI12:CM12) -> 533 | CO12: 131 | CP12: =SUM(CN12*1000)+CO12+0.45 -> 533131.45 | CQ12: =IF(CI12="","",RANK(CP12,CP6:CP65,0)) -> 47 | CU12: =IF(CI12="","",RANK(CT17,CT11:CT65,0)) -> 9 | CX12: 7 | CY12: =IF(CW6<7,"",VLOOKUP(7,CE6:CQ65,4,FALSE)) -> GERMAN MILAN | CZ12: =IF(CW6<7,"",VLOOKUP(7,CE6:CQ65,10,FALSE)) -> 840 | DC12: =IF(DG12="","",DO12) -> 34 | DD12: 2 | DE12: KAČEROV II. | DF12: Douša Adam | DG12: 149 | DH12: 112 | DI12: 113 | DJ12: 135 | DK12: 160 | DL12: =SUM(DG12:DK12) -> 669 | DM12: 160 | DN12: =SUM(DL12*1000)+DM12+0.45 -> 669160.45 | DO12: =IF(DG12="","",RANK(DN12,DN6:DN65,0)) -> 34 | DS12: =IF(DG12="","",RANK(DR17,DR11:DR65,0)) -> 8 | DV12: 7 | DW12: =IF(DU6<7,"",VLOOKUP(7,DC6:DO65,4,FALSE)) -> Kalfiřt Petr | DX12: =IF(DU6<7,"",VLOOKUP(7,DC6:DO65,10,FALSE)) -> 822 | EA12: =IF(EE12="","",EM12) -> 4 | EB12: 2 | EC12: ŘEPY II. | ED12: Kocúr Jaroslav | EE12: 167 | EF12: 160 | EG12: 167 | EH12: 203 | EI12: 192 | EJ12: =SUM(EE12:EI12) -> 889 | EK12: 203 | EL12: =SUM(EJ12*1000)+EK12+0.45 -> 889203.45 | EM12: =IF(EE12="","",RANK(EL12,EL6:EL65,0)) -> 4 | EQ12: =IF(EE12="","",RANK(EP17,EP11:EP65,0)) -> 1 | ET12: 7 | EU12: =IF(ES6<7,"",VLOOKUP(7,EA6:EM65,4,FALSE)) -> Krupa Jozef | EV12: =IF(ES6<7,"",VLOOKUP(7,EA6:EM65,10,FALSE)) -> 847 | EY12: =IF(FC12="","",FK12) -> 37 | EZ12: 2 | FA12: KLÍČOV II. | FB12: Štěpán Radek | FC12: 123 | FD12: 132 | FE12: 103 | FF12: 134 | FG12: 150 | FH12: =SUM(FC12:FG12) -> 642 | FI12: 150 | FJ12: =SUM(FH12*1000)+FI12+0.45 -> 642150.45 | FK12: =IF(FC12="","",RANK(FJ12,FJ6:FJ65,0)) -> 37 | FO12: =IF(FC12="","",RANK(FN17,FN11:FN65,0)) -> 9 | FR12: 7 | FS12: =IF(FQ6<7,"",VLOOKUP(7,EY6:FL65,4,FALSE)) -> Šafařík Luděk | FT12: =IF(FQ6<7,"",VLOOKUP(7,EY6:FL65,10,FALSE)) -> 833 | FW12: =IF(GA12="","",GI12) -> 2 | FX12: 2 | FY12: ŘEPY II. | GA12: 2 | GB12: 1 | GF12: =SUM(GA12:GE12) -> 3 | GG12: 2 | GH12: =SUM(GF12*1000)+GG12+0.45 -> 3002.45 | GI12: =IF(GA12="","",RANK(GH12,GH6:GH70,0)) -> 2 | GM12: =IF(GA12="","",RANK(GL17,GL11:GL71,0)) -> 2 | GP12: 7 | GQ12: =IF(GO6<7,"",VLOOKUP(7,FW6:GI70,4,FALSE)) ->  | GR12: =IF(GO6<7,"",VLOOKUP(7,FW6:GI70,10,FALSE)) -> 
B13: HOSTIVAŘ | D13: 27.4. | O13: =IF(S13="","",AA13) -> 27 | R13: MOTTL PAVEL | S13: 143 | T13: 117 | U13: 137 | V13: 138 | W13: 129 | X13: =SUM(S13:W13) -> 664 | Y13: 143 | Z13: =SUM(X13*1000)+Y13+0.44 -> 664143.44 | AA13: =IF(S13="","",RANK(Z13,Z6:Z65,0)) -> 27 | AF13: 8 | AG13: =IF(AE6<8,"",VLOOKUP(8,O6:AA65,4,FALSE)) -> PECKA JIŘÍ | AH13: =IF(AE6<8,"",VLOOKUP(8,O6:AA65,10,FALSE)) -> 814 | AK13: =IF(AO13="","",AW13) -> 35 | AN13: NOVOTNÁ PETRA | AO13: 123 | AP13: 123 | AQ13: 135 | AR13: 141 | AS13: 114 | AT13: =SUM(AO13:AS13) -> 636 | AU13: 141 | AV13: =SUM(AT13*1000)+AU13+0.44 -> 636141.44 | AW13: =IF(AO13="","",RANK(AV13,AV6:AV65,0)) -> 35 | BB13: 8 | BC13: =IF(BA6<8,"",VLOOKUP(8,AK6:AW65,4,FALSE)) -> NOVOTNÝ LUKÁŠ | BD13: =IF(BA6<8,"",VLOOKUP(8,AK6:AW65,10,FALSE)) -> 833 | BG13: =IF(BK13="","",BS13) -> 32 | BJ13: KAZDA JAN | BK13: 170 | BL13: 136 | BM13: 138 | BN13: 121 | BO13: 111 | BP13: =SUM(BK13:BO13) -> 676 | BQ13: 170 | BR13: =SUM(BP13*1000)+BQ13+0.44 -> 676170.44 | BS13: =IF(BK13="","",RANK(BR13,BR6:BR65,0)) -> 32 | BZ13: 8 | CA13: =IF(BY6<8,"",VLOOKUP(8,BG6:BS65,4,FALSE)) -> LAZUR VLADIMÍR | CB13: =IF(BY6<8,"",VLOOKUP(8,BG6:BS65,10,FALSE)) -> 831 | CE13: =IF(CI13="","",CQ13) -> 48 | CH13: BERGEROVÁ MARCELA | CI13: 98 | CJ13: 106 | CK13: 118 | CL13: 82 | CM13: 107 | CN13: =SUM(CI13:CM13) -> 511 | CO13: 118 | CP13: =SUM(CN13*1000)+CO13+0.44 -> 511118.44 | CQ13: =IF(CI13="","",RANK(CP13,CP6:CP65,0)) -> 48 | CX13: 8 | CY13: =IF(CW6<8,"",VLOOKUP(8,CE6:CQ65,4,FALSE)) -> KALFIŘT PETR | CZ13: =IF(CW6<8,"",VLOOKUP(8,CE6:CQ65,10,FALSE)) -> 807 | DC13: =IF(DG13="","",DO13) -> 46 | DF13: Katolický Zdenek | DG13: 99 | DH13: 119 | DI13: 109 | DJ13: 116 | DK13: 114 | DL13: =SUM(DG13:DK13) -> 557 | DM13: 119 | DN13: =SUM(DL13*1000)+DM13+0.44 -> 557119.44 | DO13: =IF(DG13="","",RANK(DN13,DN6:DN65,0)) -> 46 | DV13: 8 | DW13: =IF(DU6<8,"",VLOOKUP(8,DC6:DO65,4,FALSE)) -> Šafařík Luděk | DX13: =IF(DU6<8,"",VLOOKUP(8,DC6:DO65,10,FALSE)) -> 805 | EA13: =IF(EE13="","",EM13) -> 10 | ED13: Alba Vladimír | EE13: 188 | EF13: 162 | EG13: 127 | EH13: 195 | EI13: 142 | EJ13: =SUM(EE13:EI13) -> 814 | EK13: 195 | EL13: =SUM(EJ13*1000)+EK13+0.44 -> 814195.44 | EM13: =IF(EE13="","",RANK(EL13,EL6:EL65,0)) -> 10 | ET13: 8 | EU13: =IF(ES6<8,"",VLOOKUP(8,EA6:EM65,4,FALSE)) -> Pospíšil Václav | EV13: =IF(ES6<8,"",VLOOKUP(8,EA6:EM65,10,FALSE)) -> 834 | EY13: =IF(FC13="","",FK13) -> 49 | FB13: Táborský František | FC13: 119 | FD13: 128 | FE13: 111 | FF13: 92 | FG13: 94 | FH13: =SUM(FC13:FG13) -> 544 | FI13: 128 | FJ13: =SUM(FH13*1000)+FI13+0.44 -> 544128.44 | FK13: =IF(FC13="","",RANK(FJ13,FJ6:FJ65,0)) -> 49 | FR13: 8 | FS13: =IF(FQ6<8,"",VLOOKUP(8,EY6:FL65,4,FALSE)) -> Jelínek Jan | FT13: =IF(FQ6<8,"",VLOOKUP(8,EY6:FL65,10,FALSE)) -> 816 | FW13: =IF(GA13="","",GI13) ->  | GF13: =SUM(GA13:GE13) -> 0 | GG13: 0 | GH13: =SUM(GF13*1000)+GG13+0.44 -> 0.44 | GI13: =IF(GA13="","",RANK(GH13,GH6:GH70,0)) ->  | GP13: 8 | GQ13: =IF(GO6<8,"",VLOOKUP(8,FW6:GI70,4,FALSE)) ->  | GR13: =IF(GO6<8,"",VLOOKUP(8,FW6:GI70,10,FALSE)) -> 
O14: =IF(S14="","",AA14) -> 12 | R14: ALBA VLADIMÍR | S14: 171 | T14: 125 | U14: 154 | V14: 156 | W14: 171 | X14: =SUM(S14:W14) -> 777 | Y14: 171 | Z14: =SUM(X14*1000)+Y14+0.43 -> 777171.43 | AA14: =IF(S14="","",RANK(Z14,Z6:Z65,0)) -> 12 | AF14: 9 | AG14: =IF(AE6<9,"",VLOOKUP(9,O6:AA65,4,FALSE)) -> KRUPA JOZEF | AH14: =IF(AE6<9,"",VLOOKUP(9,O6:AA65,10,FALSE)) -> 799 | AK14: =IF(AO14="","",AW14) -> 28 | AN14: LOKVENC JIŘÍ | AO14: 133 | AP14: 138 | AQ14: 139 | AR14: 150 | AS14: 126 | AT14: =SUM(AO14:AS14) -> 686 | AU14: 150 | AV14: =SUM(AT14*1000)+AU14+0.43 -> 686150.43 | AW14: =IF(AO14="","",RANK(AV14,AV6:AV65,0)) -> 28 | BB14: 9 | BC14: =IF(BA6<9,"",VLOOKUP(9,AK6:AW65,4,FALSE)) -> PECKA JIŘÍ | BD14: =IF(BA6<9,"",VLOOKUP(9,AK6:AW65,10,FALSE)) -> 831 | BG14: =IF(BK14="","",BS14) -> 33 | BJ14: BOŠEK JAN | BK14: 118 | BL14: 130 | BM14: 124 | BN14: 177 | BO14: 124 | BP14: =SUM(BK14:BO14) -> 673 | BQ14: 177 | BR14: =SUM(BP14*1000)+BQ14+0.43 -> 673177.43 | BS14: =IF(BK14="","",RANK(BR14,BR6:BR65,0)) -> 33 | BZ14: 9 | CA14: =IF(BY6<9,"",VLOOKUP(9,BG6:BS65,4,FALSE)) -> PODHOLA MARTIN | CB14: =IF(BY6<9,"",VLOOKUP(9,BG6:BS65,10,FALSE)) -> 824 | CE14: =IF(CI14="","",CQ14) -> 34 | CH14: ČERMÁK TOMÁŠ | CI14: 117 | CJ14: 125 | CK14: 132 | CL14: 143 | CM14: 114 | CN14: =SUM(CI14:CM14) -> 631 | CO14: 143 | CP14: =SUM(CN14*1000)+CO14+0.43 -> 631143.43 | CQ14: =IF(CI14="","",RANK(CP14,CP6:CP65,0)) -> 34 | CX14: 9 | CY14: =IF(CW6<9,"",VLOOKUP(9,CE6:CQ65,4,FALSE)) -> KROČIL TOMÁŠ | CZ14: =IF(CW6<9,"",VLOOKUP(9,CE6:CQ65,10,FALSE)) -> 791 | DC14: =IF(DG14="","",DO14) -> 22 | DF14: Brejcha Jaroslav | DG14: 126 | DH14: 130 | DI14: 135 | DJ14: 140 | DK14: 187 | DL14: =SUM(DG14:DK14) -> 718 | DM14: 187 | DN14: =SUM(DL14*1000)+DM14+0.43 -> 718187.43 | DO14: =IF(DG14="","",RANK(DN14,DN6:DN65,0)) -> 22 | DV14: 9 | DW14: =IF(DU6<9,"",VLOOKUP(9,DC6:DO65,4,FALSE)) -> Kročil Tomáš | DX14: =IF(DU6<9,"",VLOOKUP(9,DC6:DO65,10,FALSE)) -> 802 | EA14: =IF(EE14="","",EM14) -> 12 | ED14: Froněk Martin | EE14: 161 | EF14: 160 | EG14: 150 | EH14: 151 | EI14: 156 | EJ14: =SUM(EE14:EI14) -> 778 | EK14: 161 | EL14: =SUM(EJ14*1000)+EK14+0.43 -> 778161.43 | EM14: =IF(EE14="","",RANK(EL14,EL6:EL65,0)) -> 12 | ET14: 9 | EU14: =IF(ES6<9,"",VLOOKUP(9,EA6:EM65,4,FALSE)) -> Holkup Jan | EV14: =IF(ES6<9,"",VLOOKUP(9,EA6:EM65,10,FALSE)) -> 823 | EY14: =IF(FC14="","",FK14) -> 24 | FB14: Táborský Lukáš | FC14: 137 | FD14: 108 | FE14: 176 | FF14: 147 | FG14: 129 | FH14: =SUM(FC14:FG14) -> 697 | FI14: 176 | FJ14: =SUM(FH14*1000)+FI14+0.43 -> 697176.43 | FK14: =IF(FC14="","",RANK(FJ14,FJ6:FJ65,0)) -> 24 | FR14: 9 | FS14: =IF(FQ6<9,"",VLOOKUP(9,EY6:FL65,4,FALSE)) -> Carvan Pavel | FT14: =IF(FQ6<9,"",VLOOKUP(9,EY6:FL65,10,FALSE)) -> 810 | FW14: =IF(GA14="","",GI14) ->  | GF14: =SUM(GA14:GE14) -> 0 | GG14: 0 | GH14: =SUM(GF14*1000)+GG14+0.43 -> 0.43 | GI14: =IF(GA14="","",RANK(GH14,GH6:GH70,0)) ->  | GP14: 9 | GQ14: =IF(GO6<9,"",VLOOKUP(9,FW6:GI70,4,FALSE)) ->  | GR14: =IF(GO6<9,"",VLOOKUP(9,FW6:GI70,10,FALSE)) -> 
B15: KAČEROV | D15: 12.10. | O15: =IF(S15="","",AA15) -> 11 | R15: KROČIL TOMÁŠ | S15: 144 | T15: 169 | U15: 188 | V15: 124 | W15: 161 | X15: =SUM(S15:W15) -> 786 | Y15: 188 | Z15: =SUM(X15*1000)+Y15+0.42 -> 786188.42 | AA15: =IF(S15="","",RANK(Z15,Z6:Z65,0)) -> 11 | AF15: 10 | AG15: =IF(AE6<10,"",VLOOKUP(10,O6:AA65,4,FALSE)) -> ONDŘICH FRANTIŠEK | AH15: =IF(AE6<10,"",VLOOKUP(10,O6:AA65,10,FALSE)) -> 796 | AK15: =IF(AO15="","",AW15) -> 46 | AN15: ŘEHÁK JAROSLAV | AO15: 135 | AP15: 121 | AQ15: 81 | AR15: 133 | AS15: 103 | AT15: =SUM(AO15:AS15) -> 573 | AU15: 135 | AV15: =SUM(AT15*1000)+AU15+0.42 -> 573135.42 | AW15: =IF(AO15="","",RANK(AV15,AV6:AV65,0)) -> 46 | BB15: 10 | BC15: =IF(BA6<10,"",VLOOKUP(10,AK6:AW65,4,FALSE)) -> MAŠÁT PETR | BD15: =IF(BA6<10,"",VLOOKUP(10,AK6:AW65,10,FALSE)) -> 826 | BG15: =IF(BK15="","",BS15) -> 39 | BJ15: FAY VLASTIMIL | BK15: 121 | BL15: 130 | BM15: 134 | BN15: 121 | BO15: 105 | BP15: =SUM(BK15:BO15) -> 611 | BQ15: 134 | BR15: =SUM(BP15*1000)+BQ15+0.42 -> 611134.42 | BS15: =IF(BK15="","",RANK(BR15,BR6:BR65,0)) -> 39 | BZ15: 10 | CA15: =IF(BY6<10,"",VLOOKUP(10,BG6:BS65,4,FALSE)) -> POSPÍŠIL VÁCLAV | CB15: =IF(BY6<10,"",VLOOKUP(10,BG6:BS65,10,FALSE)) -> 814 | CE15: =IF(CI15="","",CQ15) -> 33 | CH15: ŠAFÁŘ LADISLAV | CI15: 124 | CJ15: 127 | CK15: 139 | CL15: 140 | CM15: 102 | CN15: =SUM(CI15:CM15) -> 632 | CO15: 140 | CP15: =SUM(CN15*1000)+CO15+0.42 -> 632140.42 | CQ15: =IF(CI15="","",RANK(CP15,CP6:CP65,0)) -> 33 | CX15: 10 | CY15: =IF(CW6<10,"",VLOOKUP(10,CE6:CQ65,4,FALSE)) -> DOUŠA ADAM | CZ15: =IF(CW6<10,"",VLOOKUP(10,CE6:CQ65,10,FALSE)) -> 785 | DC15: =IF(DG15="","",DO15) -> 33 | DF15: Kutina Pavel | DG15: 138 | DH15: 124 | DI15: 143 | DJ15: 135 | DK15: 136 | DL15: =SUM(DG15:DK15) -> 676 | DM15: 143 | DN15: =SUM(DL15*1000)+DM15+0.42 -> 676143.42 | DO15: =IF(DG15="","",RANK(DN15,DN6:DN65,0)) -> 33 | DV15: 10 | DW15: =IF(DU6<10,"",VLOOKUP(10,DC6:DO65,4,FALSE)) -> Křemenák Petr | DX15: =IF(DU6<10,"",VLOOKUP(10,DC6:DO65,10,FALSE)) -> 801 | EA15: =IF(EE15="","",EM15) -> 18 | ED15: Kročil Tomáš | EE15: 132 | EF15: 147 | EG15: 147 | EH15: 163 | EI15: 139 | EJ15: =SUM(EE15:EI15) -> 728 | EK15: 163 | EL15: =SUM(EJ15*1000)+EK15+0.42 -> 728163.42 | EM15: =IF(EE15="","",RANK(EL15,EL6:EL65,0)) -> 18 | ET15: 10 | EU15: =IF(ES6<10,"",VLOOKUP(10,EA6:EM65,4,FALSE)) -> Alba Vladimír | EV15: =IF(ES6<10,"",VLOOKUP(10,EA6:EM65,10,FALSE)) -> 814 | EY15: =IF(FC15="","",FK15) -> 39 | FB15: Pipek Pavel | FC15: 104 | FD15: 117 | FE15: 155 | FF15: 178 | FG15: 78 | FH15: =SUM(FC15:FG15) -> 632 | FI15: 178 | FJ15: =SUM(FH15*1000)+FI15+0.42 -> 632178.42 | FK15: =IF(FC15="","",RANK(FJ15,FJ6:FJ694,0)) -> 39 | FR15: 10 | FS15: =IF(FQ6<10,"",VLOOKUP(10,EY6:FL65,4,FALSE)) -> Ondřich František | FT15: =IF(FQ6<10,"",VLOOKUP(10,EY6:FL65,10,FALSE)) -> 809 | FW15: =IF(GA15="","",GI15) ->  | GF15: =SUM(GA15:GE15) -> 0 | GG15: 0 | GH15: =SUM(GF15*1000)+GG15+0.42 -> 0.42 | GI15: =IF(GA15="","",RANK(GH15,GH6:GH700,0)) ->  | GP15: 10 | GQ15: =IF(GO6<10,"",VLOOKUP(10,FW6:GI70,4,FALSE)) ->  | GR15: =IF(GO6<10,"",VLOOKUP(10,FW6:GI70,10,FALSE)) -> 
J16: jednotlivci | O16: =IF(S16="","",AA16) -> 3 | R16: POSPÍŠIL VÁCLAV | S16: 192 | T16: 188 | U16: 205 | V16: 140 | W16: 156 | X16: =SUM(S16:W16) -> 881 | Y16: 205 | Z16: =SUM(X16*1000)+Y16+0.41 -> 881205.41 | AA16: =IF(S16="","",RANK(Z16,Z6:Z65,0)) -> 3 | AF16: 11 | AG16: =IF(AE6<11,"",VLOOKUP(11,O6:AA65,4,FALSE)) -> KROČIL TOMÁŠ | AH16: =IF(AE6<11,"",VLOOKUP(11,O6:AA65,10,FALSE)) -> 786 | AK16: =IF(AO16="","",AW16) -> 17 | AN16: ŠAFÁŘ BOHUMIL | AO16: 154 | AP16: 154 | AQ16: 135 | AR16: 149 | AS16: 159 | AT16: =SUM(AO16:AS16) -> 751 | AU16: 159 | AV16: =SUM(AT16*1000)+AU16+0.41 -> 751159.41 | AW16: =IF(AO16="","",RANK(AV16,AV6:AV65,0)) -> 17 | BB16: 11 | BC16: =IF(BA6<11,"",VLOOKUP(11,AK6:AW65,4,FALSE)) -> ONDŘICH FRANTIŠEK | BD16: =IF(BA6<11,"",VLOOKUP(11,AK6:AW65,10,FALSE)) -> 815 | BG16: =IF(BK16="","",BS16) -> 22 | BJ16: KOVÁŘ JAROSLAV | BK16: 158 | BL16: 153 | BM16: 113 | BN16: 133 | BO16: 169 | BP16: =SUM(BK16:BO16) -> 726 | BQ16: 169 | BR16: =SUM(BP16*1000)+BQ16+0.41 -> 726169.41 | BS16: =IF(BK16="","",RANK(BR16,BR6:BR65,0)) -> 22 | BZ16: 11 | CA16: =IF(BY6<11,"",VLOOKUP(11,BG6:BS65,4,FALSE)) -> SKRUŽNÁ PAVLA | CB16: =IF(BY6<11,"",VLOOKUP(11,BG6:BS65,10,FALSE)) -> 811 | CE16: =IF(CI16="","",CQ16) -> 49 | CH16: SVÍTIL PAVEL | CI16: 82 | CJ16: 117 | CK16: 66 | CL16: 129 | CM16: 96 | CN16: =SUM(CI16:CM16) -> 490 | CO16: 129 | CP16: =SUM(CN16*1000)+CO16+0.41 -> 490129.41 | CQ16: =IF(CI16="","",RANK(CP16,CP6:CP65,0)) -> 49 | CX16: 11 | CY16: =IF(CW6<11,"",VLOOKUP(11,CE6:CQ65,4,FALSE)) -> ŠTĚPÁN RADEK | CZ16: =IF(CW6<11,"",VLOOKUP(11,CE6:CQ65,10,FALSE)) -> 779 | DC16: =IF(DG16="","",DO16) -> 24 | DF16: Radová Petra | DG16: 150 | DH16: 128 | DI16: 135 | DJ16: 161 | DK16: 143 | DL16: =SUM(DG16:DK16) -> 717 | DM16: 161 | DN16: =SUM(DL16*1000)+DM16+0.41 -> 717161.41 | DO16: =IF(DG16="","",RANK(DN16,DN6:DN65,0)) -> 24 | DV16: 11 | DW16: =IF(DU6<11,"",VLOOKUP(11,DC6:DO65,4,FALSE)) -> Skružná Pavla | DX16: =IF(DU6<11,"",VLOOKUP(11,DC6:DO65,10,FALSE)) -> 795 | EA16: =IF(EE16="","",EM16) -> 8 | ED16: Pospíšil Václav | EE16: 180 | EF16: 146 | EG16: 177 | EH16: 181 | EI16: 150 | EJ16: =SUM(EE16:EI16) -> 834 | EK16: 181 | EL16: =SUM(EJ16*1000)+EK16+0.41 -> 834181.41 | EM16: =IF(EE16="","",RANK(EL16,EL6:EL65,0)) -> 8 | ET16: 11 | EU16: =IF(ES6<11,"",VLOOKUP(11,EA6:EM65,4,FALSE)) -> Novotný Lukáš | EV16: =IF(ES6<11,"",VLOOKUP(11,EA6:EM65,10,FALSE)) -> 814 | EY16: =IF(FC16="","",FK16) -> 46 | FB16: Pelikán Stanislav | FC16: 113 | FD16: 109 | FE16: 163 | FF16: 98 | FG16: 95 | FH16: =SUM(FC16:FG16) -> 578 | FI16: 163 | FJ16: =SUM(FH16*1000)+FI16+0.41 -> 578163.41 | FK16: =IF(FC16="","",RANK(FJ16,FJ6:FJ65,0)) -> 46 | FR16: 11 | FS16: =IF(FQ6<11,"",VLOOKUP(11,EY6:FL65,4,FALSE)) -> Hübner Jiří | FT16: =IF(FQ6<11,"",VLOOKUP(11,EY6:FL65,10,FALSE)) -> 803 | FW16: =IF(GA16="","",GI16) ->  | GF16: =SUM(GA16:GE16) -> 0 | GG16: 0 | GH16: =SUM(GF16*1000)+GG16+0.41 -> 0.41 | GI16: =IF(GA16="","",RANK(GH16,GH6:GH70,0)) ->  | GP16: 11 | GQ16: =IF(GO6<11,"",VLOOKUP(11,FW6:GI70,4,FALSE)) ->  | GR16: =IF(GO6<11,"",VLOOKUP(11,FW6:GI70,10,FALSE)) -> 
B17: VRŠOVICE | D17: 9.11. | S17: =SUM(S12:S16) -> 796 | T17: =SUM(T12:T16) -> 736 | U17: =SUM(U12:U16) -> 827 | V17: =SUM(V12:V16) -> 743 | W17: =SUM(W12:W16) -> 750 | AB17: =SUM(S17:W17) -> 3852 | AF17: 12 | AG17: =IF(AE6<12,"",VLOOKUP(12,O6:AA65,4,FALSE)) -> ALBA VLADIMÍR | AH17: =IF(AE6<12,"",VLOOKUP(12,O6:AA65,10,FALSE)) -> 777 | AO17: =SUM(AO12:AO16) -> 654 | AP17: =SUM(AP12:AP16) -> 655 | AQ17: =SUM(AQ12:AQ16) -> 613 | AR17: =SUM(AR12:AR16) -> 685 | AS17: =SUM(AS12:AS16) -> 602 | AX17: =SUM(AO17:AS17) -> 3209 | BB17: 12 | BC17: =IF(BA6<12,"",VLOOKUP(12,AK6:AW65,4,FALSE)) -> KROČIL TOMÁŠ | BD17: =IF(BA6<12,"",VLOOKUP(12,AK6:AW65,10,FALSE)) -> 806 | BK17: =SUM(BK12:BK16) -> 692 | BL17: =SUM(BL12:BL16) -> 675 | BM17: =SUM(BM12:BM16) -> 632 | BN17: =SUM(BN12:BN16) -> 678 | BO17: =SUM(BO12:BO16) -> 614 | BT17: =SUM(BK17:BO17) -> 3291 | BU17: =MAX(BK17:BO17) -> 692 | BV17: =IF(BK12="","",SUM(BT17*10000)+BU17) -> 32910692 | BZ17: 12 | CA17: =IF(BY6<12,"",VLOOKUP(12,BG6:BS65,4,FALSE)) -> NOVOTNÝ LUKÁŠ | CB17: =IF(BY6<12,"",VLOOKUP(12,BG6:BS65,10,FALSE)) -> 793 | CI17: =SUM(CI12:CI16) -> 523 | CJ17: =SUM(CJ12:CJ16) -> 544 | CK17: =SUM(CK12:CK16) -> 560 | CL17: =SUM(CL12:CL16) -> 620 | CM17: =SUM(CM12:CM16) -> 550 | CR17: =SUM(CI17:CM17) -> 2797 | CS17: =MAX(CI17:CM17) -> 620 | CT17: =IF(CI12="","",SUM(CR17*1000)+CS17) -> 2797620 | CX17: 12 | CY17: =IF(CW6<12,"",VLOOKUP(12,CE6:CQ65,4,FALSE)) -> MOTTL PAVEL | CZ17: =IF(CW6<12,"",VLOOKUP(12,CE6:CQ65,10,FALSE)) -> 773 | DG17: =SUM(DG12:DG16) -> 662 | DH17: =SUM(DH12:DH16) -> 613 | DI17: =SUM(DI12:DI16) -> 635 | DJ17: =SUM(DJ12:DJ16) -> 687 | DK17: =SUM(DK12:DK16) -> 740 | DP17: =SUM(DG17:DK17) -> 3337 | DQ17: =MAX(DG17:DK17) -> 740 | DR17: =IF(DG12="","",SUM(DP17*1000)+DQ17) -> 3337740 | DV17: 12 | DW17: =IF(DU6<12,"",VLOOKUP(12,DC6:DO65,4,FALSE)) -> Lazur Vladimír | DX17: =IF(DU6<12,"",VLOOKUP(12,DC6:DO65,10,FALSE)) -> 794 | EE17: =SUM(EE12:EE16) -> 828 | EF17: =SUM(EF12:EF16) -> 775 | EG17: =SUM(EG12:EG16) -> 768 | EH17: =SUM(EH12:EH16) -> 893 | EI17: =SUM(EI12:EI16) -> 779 | EN17: =SUM(EE17:EI17) -> 4043 | EO17: =MAX(EE17:EI17) -> 893 | EP17: =IF(EE12="","",SUM(EN17*1000)+EO17) -> 4043893 | ET17: 12 | EU17: =IF(ES6<12,"",VLOOKUP(12,EA6:EM65,4,FALSE)) -> Froněk Martin | EV17: =IF(ES6<12,"",VLOOKUP(12,EA6:EM65,10,FALSE)) -> 778 | FC17: =SUM(FC12:FC16) -> 596 | FD17: =SUM(FD12:FD16) -> 594 | FE17: =SUM(FE12:FE16) -> 708 | FF17: =SUM(FF12:FF16) -> 649 | FG17: =SUM(FG12:FG16) -> 546 | FL17: =SUM(FC17:FG17) -> 3093 | FM17: =MAX(FC17:FG17) -> 708 | FN17: =IF(FC12="","",SUM(FL17*1000)+FM17) -> 3093708 | FR17: 12 | FS17: =IF(FQ6<12,"",VLOOKUP(12,EY6:FL65,4,FALSE)) -> Holkup Jan | FT17: =IF(FQ6<12,"",VLOOKUP(12,EY6:FL65,10,FALSE)) -> 802 | GA17: =SUM(GA12:GA16) -> 2 | GB17: =SUM(GB12:GB16) -> 1 | GC17: =SUM(GC12:GC16) -> 0 | GD17: =SUM(GD12:GD16) -> 0 | GE17: =SUM(GE12:GE16) -> 0 | GJ17: =SUM(GA17:GE17) -> 3 | GK17: =MAX(GA17:GE17) -> 2 | GL17: =IF(GA12="","",SUM(GJ17*1000)+GK17) -> 3002 | GP17: 12 | GQ17: =IF(GO6<12,"",VLOOKUP(12,FW6:GI70,4,FALSE)) ->  | GR17: =IF(GO6<12,"",VLOOKUP(12,FW6:GI70,10,FALSE)) -> 
O18: =IF(S18="","",AA18) -> 17 | P18: 3 | Q18: KAČEROV I. | R18: HÜBNER JIŘÍ | S18: 113 | T18: 170 | U18: 137 | V18: 158 | W18: 159 | X18: =SUM(S18:W18) -> 737 | Y18: =MAX(S18:W18) -> 170 | Z18: =SUM(X18*1000)+Y18+0.4 -> 737170.4 | AA18: =IF(S18="","",RANK(Z18,Z6:Z65,0)) -> 17 | AC18: =RANK(AB23,AB11:AB65,0) -> 1 | AF18: 13 | AG18: =IF(AE6<13,"",VLOOKUP(13,O6:AA65,4,FALSE)) -> HOLKUP JAN | AH18: =IF(AE6<13,"",VLOOKUP(13,O6:AA65,10,FALSE)) -> 755 | AK18: =IF(AO18="","",AW18) -> 34 | AL18: 3 | AM18: ŘEPY I. | AN18: TICHÝ HUGO | AO18: 121 | AP18: 129 | AQ18: 114 | AR18: 123 | AS18: 149 | AT18: =SUM(AO18:AS18) -> 636 | AU18: =MAX(AO18:AS18) -> 149 | AV18: =SUM(AT18*1000)+AU18+0.4 -> 636149.4 | AW18: =IF(AO18="","",RANK(AV18,AV6:AV65,0)) -> 34 | AY18: =RANK(AX23,AX11:AX65,0) -> 9 | BB18: 13 | BC18: =IF(BA6<13,"",VLOOKUP(13,AK6:AW65,4,FALSE)) -> KALFIŘT PETR | BD18: =IF(BA6<13,"",VLOOKUP(13,AK6:AW65,10,FALSE)) -> 796 | BG18: =IF(BK18="","",BS18) -> 7 | BH18: 3 | BI18: KLÍČOV I. | BJ18: PECKA JIŘÍ | BK18: 157 | BL18: 169 | BM18: 179 | BN18: 156 | BO18: 170 | BP18: =SUM(BK18:BO18) -> 831 | BQ18: =MAX(BK18:BO18) -> 179 | BR18: =SUM(BP18*1000)+BQ18+0.4 -> 831179.4 | BS18: =IF(BK18="","",RANK(BR18,BR6:BR65,0)) -> 7 | BW18: =IF(BK18="","",RANK(BV23,BV11:BV65,0)) -> 3 | BZ18: 13 | CA18: =IF(BY6<13,"",VLOOKUP(13,BG6:BS65,4,FALSE)) -> ALBA VLADIMÍR | CB18: =IF(BY6<13,"",VLOOKUP(13,BG6:BS65,10,FALSE)) -> 770 | CE18: =IF(CI18="","",CQ18) -> 3 | CF18: 3 | CG18: VRŠOVICE I. | CH18: KRUPA JOZEF | CI18: 190 | CJ18: 180 | CK18: 169 | CL18: 178 | CM18: 166 | CN18: =SUM(CI18:CM18) -> 883 | CO18: =MAX(CI18:CM18) -> 190 | CP18: =SUM(CN18*1000)+CO18+0.4 -> 883190.4 | CQ18: =IF(CI18="","",RANK(CP18,CP6:CP65,0)) -> 3 | CU18: =IF(CI18="","",RANK(CT23,CT11:CT65,0)) -> 2 | CX18: 13 | CY18: =IF(CW6<13,"",VLOOKUP(13,CE6:CQ65,4,FALSE)) -> SEHNAL IVAN | CZ18: =IF(CW6<13,"",VLOOKUP(13,CE6:CQ65,10,FALSE)) -> 761 | DC18: =IF(DG18="","",DO18) -> 23 | DD18: 3 | DE18: HOSTIVAŘ I. | DF18: Růžička Ladislav | DG18: 122 | DH18: 136 | DI18: 151 | DJ18: 130 | DK18: 178 | DL18: =SUM(DG18:DK18) -> 717 | DM18: =MAX(DG18:DK18) -> 178 | DN18: =SUM(DL18*1000)+DM18+0.4 -> 717178.4 | DO18: =IF(DG18="","",RANK(DN18,DN6:DN65,0)) -> 23 | DS18: =IF(DG18="","",RANK(DR23,DR11:DR65,0)) -> 3 | DV18: 13 | DW18: =IF(DU6<13,"",VLOOKUP(13,DC6:DO65,4,FALSE)) -> Jelínek Jan | DX18: =IF(DU6<13,"",VLOOKUP(13,DC6:DO65,10,FALSE)) -> 782 | EA18: =IF(EE18="","",EM18) -> 27 | EB18: 3 | EC18: KAČEROV I. | ED18: Hübner Jiří | EE18: 135 | EF18: 128 | EG18: 111 | EH18: 125 | EI18: 178 | EJ18: =SUM(EE18:EI18) -> 677 | EK18: =MAX(EE18:EI18) -> 178 | EL18: =SUM(EJ18*1000)+EK18+0.4 -> 677178.4 | EM18: =IF(EE18="","",RANK(EL18,EL6:EL65,0)) -> 27 | EQ18: =IF(EE18="","",RANK(EP23,EP11:EP65,0)) -> 5 | ET18: 13 | EU18: =IF(ES6<13,"",VLOOKUP(13,EA6:EM65,4,FALSE)) -> Jelínek Jan | EV18: =IF(ES6<13,"",VLOOKUP(13,EA6:EM65,10,FALSE)) -> 775 | EY18: =IF(FC18="","",FK18) -> 41 | EZ18: 3 | FA18: ŘEPY I. | FB18: Mottl Pavel | FC18: 99 | FD18: 160 | FE18: 127 | FF18: 124 | FG18: 118 | FH18: =SUM(FC18:FG18) -> 628 | FI18: =MAX(FC18:FG18) -> 160 | FJ18: =SUM(FH18*1000)+FI18+0.4 -> 628160.4 | FK18: =IF(FC18="","",RANK(FJ18,FJ6:FJ65,0)) -> 41 | FO18: =IF(FC18="","",RANK(FN23,FN11:FN65,0)) -> 7 | FR18: 13 | FS18: =IF(FQ6<13,"",VLOOKUP(13,EY6:FL65,4,FALSE)) -> Kročil Tomáš | FT18: =IF(FQ6<13,"",VLOOKUP(13,EY6:FL65,10,FALSE)) -> 796 | FW18: =IF(GA18="","",GI18) -> 1 | FX18: 3 | FY18: KAČEROV I. | GA18: 3 | GF18: =SUM(GA18:GE18) -> 3 | GG18: =MAX(GA18:GE18) -> 3 | GH18: =SUM(GF18*1000)+GG18+0.4 -> 3003.4 | GI18: =IF(GA18="","",RANK(GH18,GH6:GH70,0)) -> 1 | GM18: =IF(GA18="","",RANK(GL23,GL11:GL71,0)) -> 1 | GP18: 13 | GQ18: =IF(GO6<13,"",VLOOKUP(13,FW6:GI70,4,FALSE)) ->  | GR18: =IF(GO6<13,"",VLOOKUP(13,FW6:GI70,10,FALSE)) -> 
B19: POHÁR GŘ | D19: 8.12. | J19: statistika celkem | O19: =IF(S19="","",AA19) -> 7 | R19: TOMÁŠEK ZDENĚK | S19: 169 | T19: 128 | U19: 132 | V19: 208 | W19: 188 | X19: =SUM(S19:W19) -> 825 | Y19: =MAX(S19:W19) -> 208 | Z19: =SUM(X19*1000)+Y19+0.39 -> 825208.39 | AA19: =IF(S19="","",RANK(Z19,Z6:Z65,0)) -> 7 | AF19: 14 | AG19: =IF(AE6<14,"",VLOOKUP(14,O6:AA65,4,FALSE)) -> CARVAN PAVEL | AH19: =IF(AE6<14,"",VLOOKUP(14,O6:AA65,10,FALSE)) -> 752 | AK19: =IF(AO19="","",AW19) -> 30 | AN19: SEHNAL IVAN | AO19: 187 | AP19: 86 | AQ19: 115 | AR19: 147 | AS19: 130 | AT19: =SUM(AO19:AS19) -> 665 | AU19: =MAX(AO19:AS19) -> 187 | AV19: =SUM(AT19*1000)+AU19+0.39 -> 665187.39 | AW19: =IF(AO19="","",RANK(AV19,AV6:AV65,0)) -> 30 | BB19: 14 | BC19: =IF(BA6<14,"",VLOOKUP(14,AK6:AW65,4,FALSE)) -> HOLKUP JAN | BD19: =IF(BA6<14,"",VLOOKUP(14,AK6:AW65,10,FALSE)) -> 790 | BG19: =IF(BK19="","",BS19) -> 12 | BJ19: NOVOTNÝ LUKÁŠ | BK19: 144 | BL19: 141 | BM19: 178 | BN19: 185 | BO19: 145 | BP19: =SUM(BK19:BO19) -> 793 | BQ19: =MAX(BK19:BO19) -> 185 | BR19: =SUM(BP19*1000)+BQ19+0.39 -> 793185.39 | BS19: =IF(BK19="","",RANK(BR19,BR6:BR65,0)) -> 12 | BZ19: 14 | CA19: =IF(BY6<14,"",VLOOKUP(14,BG6:BS65,4,FALSE)) -> JELÍNEK JAN | CB19: =IF(BY6<14,"",VLOOKUP(14,BG6:BS65,10,FALSE)) -> 770 | CE19: =IF(CI19="","",CQ19) -> 7 | CH19: GERMAN MILAN | CI19: 221 | CJ19: 163 | CK19: 180 | CL19: 137 | CM19: 139 | CN19: =SUM(CI19:CM19) -> 840 | CO19: =MAX(CI19:CM19) -> 221 | CP19: =SUM(CN19*1000)+CO19+0.39 -> 840221.39 | CQ19: =IF(CI19="","",RANK(CP19,CP6:CP65,0)) -> 7 | CX19: 14 | CY19: =IF(CW6<14,"",VLOOKUP(14,CE6:CQ65,4,FALSE)) -> MYSLIVEČEK JAROSLAV | CZ19: =IF(CW6<14,"",VLOOKUP(14,CE6:CQ65,10,FALSE)) -> 754 | DC19: =IF(DG19="","",DO19) -> 32 | DF19: Kolár Pavel | DG19: 163 | DH19: 90 | DI19: 162 | DJ19: 144 | DK19: 122 | DL19: =SUM(DG19:DK19) -> 681 | DM19: =MAX(DG19:DK19) -> 163 | DN19: =SUM(DL19*1000)+DM19+0.39 -> 681163.39 | DO19: =IF(DG19="","",RANK(DN19,DN6:DN65,0)) -> 32 | DV19: 14 | DW19: =IF(DU6<14,"",VLOOKUP(14,DC6:DO65,4,FALSE)) -> Alba Vladimír | DX19: =IF(DU6<14,"",VLOOKUP(14,DC6:DO65,10,FALSE)) -> 776 | EA19: =IF(EE19="","",EM19) -> 28 | ED19: Turek Stanislav | EE19: 125 | EF19: 170 | EG19: 108 | EH19: 129 | EI19: 142 | EJ19: =SUM(EE19:EI19) -> 674 | EK19: =MAX(EE19:EI19) -> 170 | EL19: =SUM(EJ19*1000)+EK19+0.39 -> 674170.39 | EM19: =IF(EE19="","",RANK(EL19,EL6:EL65,0)) -> 28 | ET19: 14 | EU19: =IF(ES6<14,"",VLOOKUP(14,EA6:EM65,4,FALSE)) -> Bošek Jan | EV19: =IF(ES6<14,"",VLOOKUP(14,EA6:EM65,10,FALSE)) -> 773 | EY19: =IF(FC19="","",FK19) -> 36 | FB19: Křikava Miroslav | FC19: 161 | FD19: 107 | FE19: 114 | FF19: 132 | FG19: 130 | FH19: =SUM(FC19:FG19) -> 644 | FI19: =MAX(FC19:FG19) -> 161 | FJ19: =SUM(FH19*1000)+FI19+0.39 -> 644161.39 | FK19: =IF(FC19="","",RANK(FJ19,FJ6:FJ65,0)) -> 36 | FR19: 14 | FS19: =IF(FQ6<14,"",VLOOKUP(14,EY6:FL65,4,FALSE)) -> Růžička Ladislav | FT19: =IF(FQ6<14,"",VLOOKUP(14,EY6:FL65,10,FALSE)) -> 792 | FW19: =IF(GA19="","",GI19) ->  | GF19: =SUM(GA19:GE19) -> 0 | GG19: =MAX(GA19:GE19) -> 0 | GH19: =SUM(GF19*1000)+GG19+0.39 -> 0.39 | GI19: =IF(GA19="","",RANK(GH19,GH6:GH70,0)) ->  | GP19: 14 | GQ19: =IF(GO6<14,"",VLOOKUP(14,FW6:GI70,4,FALSE)) ->  | GR19: =IF(GO6<14,"",VLOOKUP(14,FW6:GI70,10,FALSE)) -> 
O20: =IF(S20="","",AA20) -> 10 | R20: ONDŘICH FRANTIŠEK | S20: 127 | T20: 158 | U20: 144 | V20: 217 | W20: 150 | X20: =SUM(S20:W20) -> 796 | Y20: =MAX(S20:W20) -> 217 | Z20: =SUM(X20*1000)+Y20+0.38 -> 796217.38 | AA20: =IF(S20="","",RANK(Z20,Z6:Z65,0)) -> 10 | AF20: 15 | AG20: =IF(AE6<15,"",VLOOKUP(15,O6:AA65,4,FALSE)) -> KOCŮR JAROSLAV | AH20: =IF(AE6<15,"",VLOOKUP(15,O6:AA65,10,FALSE)) -> 744 | AK20: =IF(AO20="","",AW20) -> 41 | AN20: PLECHÁČEK MIROSLAV | AO20: 107 | AP20: 124 | AQ20: 136 | AR20: 110 | AS20: 131 | AT20: =SUM(AO20:AS20) -> 608 | AU20: =MAX(AO20:AS20) -> 136 | AV20: =SUM(AT20*1000)+AU20+0.38 -> 608136.38 | AW20: =IF(AO20="","",RANK(AV20,AV6:AV65,0)) -> 41 | BB20: 15 | BC20: =IF(BA6<15,"",VLOOKUP(15,AK6:AW65,4,FALSE)) -> MYSLIVEČEK JAROSLAV | BD20: =IF(BA6<15,"",VLOOKUP(15,AK6:AW65,10,FALSE)) -> 768 | BG20: =IF(BK20="","",BS20) -> 15 | BJ20: KALFIŘT PETR | BK20: 130 | BL20: 146 | BM20: 183 | BN20: 167 | BO20: 142 | BP20: =SUM(BK20:BO20) -> 768 | BQ20: =MAX(BK20:BO20) -> 183 | BR20: =SUM(BP20*1000)+BQ20+0.38 -> 768183.38 | BS20: =IF(BK20="","",RANK(BR20,BR6:BR65,0)) -> 15 | BZ20: 15 | CA20: =IF(BY6<15,"",VLOOKUP(15,BG6:BS65,4,FALSE)) -> KALFIŘT PETR | CB20: =IF(BY6<15,"",VLOOKUP(15,BG6:BS65,10,FALSE)) -> 768 | CE20: =IF(CI20="","",CQ20) -> 27 | CH20: BOŠEK JAN | CI20: 144 | CJ20: 125 | CK20: 143 | CL20: 146 | CM20: 117 | CN20: =SUM(CI20:CM20) -> 675 | CO20: =MAX(CI20:CM20) -> 146 | CP20: =SUM(CN20*1000)+CO20+0.38 -> 675146.38 | CQ20: =IF(CI20="","",RANK(CP20,CP6:CP65,0)) -> 27 | CX20: 15 | CY20: =IF(CW6<15,"",VLOOKUP(15,CE6:CQ65,4,FALSE)) -> BREJCHA JAROSLAV | CZ20: =IF(CW6<15,"",VLOOKUP(15,CE6:CQ65,10,FALSE)) -> 753 | DC20: =IF(DG20="","",DO20) -> 13 | DF20: Jelínek Jan | DG20: 161 | DH20: 153 | DI20: 148 | DJ20: 145 | DK20: 175 | DL20: =SUM(DG20:DK20) -> 782 | DM20: =MAX(DG20:DK20) -> 175 | DN20: =SUM(DL20*1000)+DM20+0.38 -> 782175.38 | DO20: =IF(DG20="","",RANK(DN20,DN6:DN65,0)) -> 13 | DV20: 15 | DW20: =IF(DU6<15,"",VLOOKUP(15,DC6:DO65,4,FALSE)) -> Pospíšil Václav | DX20: =IF(DU6<15,"",VLOOKUP(15,DC6:DO65,10,FALSE)) -> 766 | EA20: =IF(EE20="","",EM20) -> 5 | ED20: Ondřich František | EE20: 187 | EF20: 163 | EG20: 145 | EH20: 175 | EI20: 193 | EJ20: =SUM(EE20:EI20) -> 863 | EK20: =MAX(EE20:EI20) -> 193 | EL20: =SUM(EJ20*1000)+EK20+0.38 -> 863193.38 | EM20: =IF(EE20="","",RANK(EL20,EL6:EL65,0)) -> 5 | ET20: 15 | EU20: =IF(ES6<15,"",VLOOKUP(15,EA6:EM65,4,FALSE)) -> Carvan Pavel | EV20: =IF(ES6<15,"",VLOOKUP(15,EA6:EM65,10,FALSE)) -> 762 | EY20: =IF(FC20="","",FK20) -> 45 | FB20: Růžička Václav | FC20: 121 | FD20: 130 | FE20: 134 | FF20: 87 | FG20: 114 | FH20: =SUM(FC20:FG20) -> 586 | FI20: =MAX(FC20:FG20) -> 134 | FJ20: =SUM(FH20*1000)+FI20+0.38 -> 586134.38 | FK20: =IF(FC20="","",RANK(FJ20,FJ6:FJ65,0)) -> 45 | FR20: 15 | FS20: =IF(FQ6<15,"",VLOOKUP(15,EY6:FL65,4,FALSE)) -> Pecka Jiří | FT20: =IF(FQ6<15,"",VLOOKUP(15,EY6:FL65,10,FALSE)) -> 790 | FW20: =IF(GA20="","",GI20) ->  | GF20: =SUM(GA20:GE20) -> 0 | GG20: =MAX(GA20:GE20) -> 0 | GH20: =SUM(GF20*1000)+GG20+0.38 -> 0.38 | GI20: =IF(GA20="","",RANK(GH20,GH6:GH70,0)) ->  | GP20: 15 | GQ20: =IF(GO6<15,"",VLOOKUP(15,FW6:GI70,4,FALSE)) ->  | GR20: =IF(GO6<15,"",VLOOKUP(15,FW6:GI70,10,FALSE)) -> 
O21: =IF(S21="","",AA21) -> 2 | R21: MAŠÁT PETR | S21: 184 | T21: 165 | U21: 192 | V21: 170 | W21: 184 | X21: =SUM(S21:W21) -> 895 | Y21: =MAX(S21:W21) -> 192 | Z21: =SUM(X21*1000)+Y21+0.37 -> 895192.37 | AA21: =IF(S21="","",RANK(Z21,Z6:Z65,0)) -> 2 | AF21: 16 | AG21: =IF(AE6<16,"",VLOOKUP(16,O6:AA65,4,FALSE)) -> RŮŽIČKA LADISLAV | AH21: =IF(AE6<16,"",VLOOKUP(16,O6:AA65,10,FALSE)) -> 744 | AK21: =IF(AO21="","",AW21) -> 48 | AN21: KŘIKAVA MIROSLAV | AO21: 128 | AP21: 88 | AQ21: 84 | AR21: 145 | AS21: 103 | AT21: =SUM(AO21:AS21) -> 548 | AU21: =MAX(AO21:AS21) -> 145 | AV21: =SUM(AT21*1000)+AU21+0.37 -> 548145.37 | AW21: =IF(AO21="","",RANK(AV21,AV6:AV65,0)) -> 48 | BB21: 16 | BC21: =IF(BA6<16,"",VLOOKUP(16,AK6:AW65,4,FALSE)) -> DOUŠA ADAM | BD21: =IF(BA6<16,"",VLOOKUP(16,AK6:AW65,10,FALSE)) -> 766 | BG21: =IF(BK21="","",BS21) -> 26 | BJ21: KŘEMENÁK PETR | BK21: 129 | BL21: 144 | BM21: 124 | BN21: 138 | BO21: 168 | BP21: =SUM(BK21:BO21) -> 703 | BQ21: =MAX(BK21:BO21) -> 168 | BR21: =SUM(BP21*1000)+BQ21+0.37 -> 703168.37 | BS21: =IF(BK21="","",RANK(BR21,BR6:BR65,0)) -> 26 | BZ21: 16 | CA21: =IF(BY6<16,"",VLOOKUP(16,BG6:BS65,4,FALSE)) -> BERGER MICHAL | CB21: =IF(BY6<16,"",VLOOKUP(16,BG6:BS65,10,FALSE)) -> 767 | CE21: =IF(CI21="","",CQ21) -> 19 | CH21: KUČERA MIROSLAV | CI21: 178 | CJ21: 158 | CK21: 152 | CL21: 130 | CM21: 106 | CN21: =SUM(CI21:CM21) -> 724 | CO21: =MAX(CI21:CM21) -> 178 | CP21: =SUM(CN21*1000)+CO21+0.37 -> 724178.37 | CQ21: =IF(CI21="","",RANK(CP21,CP6:CP65,0)) -> 19 | CX21: 16 | CY21: =IF(CW6<16,"",VLOOKUP(16,CE6:CQ65,4,FALSE)) -> ALBA VLADIMÍR | CZ21: =IF(CW6<16,"",VLOOKUP(16,CE6:CQ65,10,FALSE)) -> 738 | DC21: =IF(DG21="","",DO21) -> 8 | DF21: Šafařík Luděk | DG21: 145 | DH21: 191 | DI21: 153 | DJ21: 146 | DK21: 170 | DL21: =SUM(DG21:DK21) -> 805 | DM21: =MAX(DG21:DK21) -> 191 | DN21: =SUM(DL21*1000)+DM21+0.37 -> 805191.37 | DO21: =IF(DG21="","",RANK(DN21,DN6:DN65,0)) -> 8 | DV21: 16 | DW21: =IF(DU6<16,"",VLOOKUP(16,DC6:DO65,4,FALSE)) -> Troller Pavel | DX21: =IF(DU6<16,"",VLOOKUP(16,DC6:DO65,10,FALSE)) -> 757 | EA21: =IF(EE21="","",EM21) -> 31 | ED21: Mašát Petr | EE21: 106 | EF21: 134 | EG21: 143 | EH21: 149 | EI21: 125 | EJ21: =SUM(EE21:EI21) -> 657 | EK21: =MAX(EE21:EI21) -> 149 | EL21: =SUM(EJ21*1000)+EK21+0.37 -> 657149.37 | EM21: =IF(EE21="","",RANK(EL21,EL6:EL65,0)) -> 31 | ET21: 16 | EU21: =IF(ES6<16,"",VLOOKUP(16,EA6:EM65,4,FALSE)) -> Krupová Martina | EV21: =IF(ES6<16,"",VLOOKUP(16,EA6:EM65,10,FALSE)) -> 755 | EY21: =IF(FC21="","",FK21) -> 32 | FB21: Sehnal Ivan ing. | FC21: 120 | FD21: 154 | FE21: 132 | FF21: 130 | FG21: 122 | FH21: =SUM(FC21:FG21) -> 658 | FI21: =MAX(FC21:FG21) -> 154 | FJ21: =SUM(FH21*1000)+FI21+0.37 -> 658154.37 | FK21: =IF(FC21="","",RANK(FJ21,FJ6:FJ65,0)) -> 32 | FR21: 16 | FS21: =IF(FQ6<16,"",VLOOKUP(16,EY6:FL65,4,FALSE)) -> Věchtík Antoním | FT21: =IF(FQ6<16,"",VLOOKUP(16,EY6:FL65,10,FALSE)) -> 766 | FW21: =IF(GA21="","",GI21) ->  | GF21: =SUM(GA21:GE21) -> 0 | GG21: =MAX(GA21:GE21) -> 0 | GH21: =SUM(GF21*1000)+GG21+0.37 -> 0.37 | GI21: =IF(GA21="","",RANK(GH21,GH6:GH70,0)) ->  | GP21: 16 | GQ21: =IF(GO6<16,"",VLOOKUP(16,FW6:GI70,4,FALSE)) ->  | GR21: =IF(GO6<16,"",VLOOKUP(16,FW6:GI70,10,FALSE)) -> 
J22: garáže | O22: =IF(S22="","",AA22) -> 14 | R22: CARVAN PAVEL | S22: 136 | T22: 133 | U22: 171 | V22: 159 | W22: 153 | X22: =SUM(S22:W22) -> 752 | Y22: =MAX(S22:W22) -> 171 | Z22: =SUM(X22*1000)+Y22+0.36 -> 752171.36 | AA22: =IF(S22="","",RANK(Z22,Z6:Z65,0)) -> 14 | AF22: 17 | AG22: =IF(AE6<17,"",VLOOKUP(17,O6:AA65,4,FALSE)) -> HÜBNER JIŘÍ | AH22: =IF(AE6<17,"",VLOOKUP(17,O6:AA65,10,FALSE)) -> 737 | AK22: =IF(AO22="","",AW22) -> 45 | AN22: MOTTL PAVEL | AO22: 115 | AP22: 96 | AQ22: 134 | AR22: 120 | AS22: 131 | AT22: =SUM(AO22:AS22) -> 596 | AU22: =MAX(AO22:AS22) -> 134 | AV22: =SUM(AT22*1000)+AU22+0.36 -> 596134.36 | AW22: =IF(AO22="","",RANK(AV22,AV6:AV65,0)) -> 45 | BB22: 17 | BC22: =IF(BA6<17,"",VLOOKUP(17,AK6:AW65,4,FALSE)) -> ŠAFÁŘ BOHUMIL | BD22: =IF(BA6<17,"",VLOOKUP(17,AK6:AW65,10,FALSE)) -> 751 | BG22: =IF(BK22="","",BS22) -> 27 | BJ22: HÁJEK MOJMÍR | BK22: 125 | BL22: 136 | BM22: 104 | BN22: 145 | BO22: 189 | BP22: =SUM(BK22:BO22) -> 699 | BQ22: =MAX(BK22:BO22) -> 189 | BR22: =SUM(BP22*1000)+BQ22+0.36 -> 699189.36 | BS22: =IF(BK22="","",RANK(BR22,BR6:BR65,0)) -> 27 | BZ22: 17 | CA22: =IF(BY6<17,"",VLOOKUP(17,BG6:BS65,4,FALSE)) -> KRUPA JOZEF | CB22: =IF(BY6<17,"",VLOOKUP(17,BG6:BS65,10,FALSE)) -> 760 | CE22: =IF(CI22="","",CQ22) -> 18 | CH22: KRUPOVÁ MARTINA | CI22: 124 | CJ22: 137 | CK22: 146 | CL22: 173 | CM22: 145 | CN22: =SUM(CI22:CM22) -> 725 | CO22: =MAX(CI22:CM22) -> 173 | CP22: =SUM(CN22*1000)+CO22+0.36 -> 725173.36 | CQ22: =IF(CI22="","",RANK(CP22,CP6:CP65,0)) -> 18 | CX22: 17 | CY22: =IF(CW6<17,"",VLOOKUP(17,CE6:CQ65,4,FALSE)) -> HÜBNER JIŘÍ | CZ22: =IF(CW6<17,"",VLOOKUP(17,CE6:CQ65,10,FALSE)) -> 725 | DC22: =IF(DG22="","",DO22) -> 12 | DF22: Lazur Vladimír | DG22: 121 | DH22: 154 | DI22: 159 | DJ22: 181 | DK22: 179 | DL22: =SUM(DG22:DK22) -> 794 | DM22: =MAX(DG22:DK22) -> 181 | DN22: =SUM(DL22*1000)+DM22+0.36 -> 794181.36 | DO22: =IF(DG22="","",RANK(DN22,DN6:DN65,0)) -> 12 | DV22: 17 | DW22: =IF(DU6<17,"",VLOOKUP(17,DC6:DO65,4,FALSE)) -> Pecka Jiří | DX22: =IF(DU6<17,"",VLOOKUP(17,DC6:DO65,10,FALSE)) -> 751 | EA22: =IF(EE22="","",EM22) -> 15 | ED22: Carvan Pavel | EE22: 146 | EF22: 192 | EG22: 147 | EH22: 127 | EI22: 150 | EJ22: =SUM(EE22:EI22) -> 762 | EK22: =MAX(EE22:EI22) -> 192 | EL22: =SUM(EJ22*1000)+EK22+0.36 -> 762192.36 | EM22: =IF(EE22="","",RANK(EL22,EL6:EL65,0)) -> 15 | ET22: 17 | EU22: =IF(ES6<17,"",VLOOKUP(17,EA6:EM65,4,FALSE)) -> Berger Michal | EV22: =IF(ES6<17,"",VLOOKUP(17,EA6:EM65,10,FALSE)) -> 730 | EY22: =IF(FC22="","",FK22) -> 19 | FB22: Sladovník Miloslav | FC22: 162 | FD22: 146 | FE22: 143 | FF22: 148 | FG22: 156 | FH22: =SUM(FC22:FG22) -> 755 | FI22: =MAX(FC22:FG22) -> 162 | FJ22: =SUM(FH22*1000)+FI22+0.36 -> 755162.36 | FK22: =IF(FC22="","",RANK(FJ22,FJ6:FJ65,0)) -> 19 | FR22: 17 | FS22: =IF(FQ6<17,"",VLOOKUP(17,EY6:FL65,4,FALSE)) -> Kalfiřt Petr | FT22: =IF(FQ6<17,"",VLOOKUP(17,EY6:FL65,10,FALSE)) -> 761 | FW22: =IF(GA22="","",GI22) ->  | GF22: =SUM(GA22:GE22) -> 0 | GG22: =MAX(GA22:GE22) -> 0 | GH22: =SUM(GF22*1000)+GG22+0.36 -> 0.36 | GI22: =IF(GA22="","",RANK(GH22,GH6:GH70,0)) ->  | GP22: 17 | GQ22: =IF(GO6<17,"",VLOOKUP(17,FW6:GI70,4,FALSE)) ->  | GR22: =IF(GO6<17,"",VLOOKUP(17,FW6:GI70,10,FALSE)) -> 
B23: PRO PŘÍPAD 11 DRUŽSTEV | S23: =SUM(S18:S22) -> 729 | T23: =SUM(T18:T22) -> 754 | U23: =SUM(U18:U22) -> 776 | V23: =SUM(V18:V22) -> 912 | W23: =SUM(W18:W22) -> 834 | AB23: =SUM(S23:W23) -> 4005 | AF23: 18 | AG23: =IF(AE6<18,"",VLOOKUP(18,O6:AA65,4,FALSE)) -> JELÍNEK JAN | AH23: =IF(AE6<18,"",VLOOKUP(18,O6:AA65,10,FALSE)) -> 727 | AO23: =SUM(AO18:AO22) -> 658 | AP23: =SUM(AP18:AP22) -> 523 | AQ23: =SUM(AQ18:AQ22) -> 583 | AR23: =SUM(AR18:AR22) -> 645 | AS23: =SUM(AS18:AS22) -> 644 | AX23: =SUM(AO23:AS23) -> 3053 | BB23: 18 | BC23: =IF(BA6<18,"",VLOOKUP(18,AK6:AW65,4,FALSE)) -> SKRUŽNÁ PAVLA | BD23: =IF(BA6<18,"",VLOOKUP(18,AK6:AW65,10,FALSE)) -> 738 | BK23: =SUM(BK18:BK22) -> 685 | BL23: =SUM(BL18:BL22) -> 736 | BM23: =SUM(BM18:BM22) -> 768 | BN23: =SUM(BN18:BN22) -> 791 | BO23: =SUM(BO18:BO22) -> 814 | BT23: =SUM(BK23:BO23) -> 3794 | BU23: =MAX(BK23:BO23) -> 814 | BV23: =IF(BK18="","",SUM(BT23*10000)+BU23) -> 37940814 | BZ23: 18 | CA23: =IF(BY6<18,"",VLOOKUP(18,BG6:BS65,4,FALSE)) -> KROČIL TOMÁŠ | CB23: =IF(BY6<18,"",VLOOKUP(18,BG6:BS65,10,FALSE)) -> 742 | CI23: =SUM(CI18:CI22) -> 857 | CJ23: =SUM(CJ18:CJ22) -> 763 | CK23: =SUM(CK18:CK22) -> 790 | CL23: =SUM(CL18:CL22) -> 764 | CM23: =SUM(CM18:CM22) -> 673 | CR23: =SUM(CI23:CM23) -> 3847 | CS23: =MAX(CI23:CM23) -> 857 | CT23: =IF(CI18="","",SUM(CR23*1000)+CS23) -> 3847857 | CX23: 18 | CY23: =IF(CW6<18,"",VLOOKUP(18,CE6:CQ65,4,FALSE)) -> KRUPOVÁ MARTINA | CZ23: =IF(CW6<18,"",VLOOKUP(18,CE6:CQ65,10,FALSE)) -> 725 | DG23: =SUM(DG18:DG22) -> 712 | DH23: =SUM(DH18:DH22) -> 724 | DI23: =SUM(DI18:DI22) -> 773 | DJ23: =SUM(DJ18:DJ22) -> 746 | DK23: =SUM(DK18:DK22) -> 824 | DP23: =SUM(DG23:DK23) -> 3779 | DQ23: =MAX(DG23:DK23) -> 824 | DR23: =IF(DG18="","",SUM(DP23*1000)+DQ23) -> 3779824 | DV23: 18 | DW23: =IF(DU6<18,"",VLOOKUP(18,DC6:DO65,4,FALSE)) -> Tomášek Zdenek | DX23: =IF(DU6<18,"",VLOOKUP(18,DC6:DO65,10,FALSE)) -> 725 | EE23: =SUM(EE18:EE22) -> 699 | EF23: =SUM(EF18:EF22) -> 787 | EG23: =SUM(EG18:EG22) -> 654 | EH23: =SUM(EH18:EH22) -> 705 | EI23: =SUM(EI18:EI22) -> 788 | EN23: =SUM(EE23:EI23) -> 3633 | EO23: =MAX(EE23:EI23) -> 788 | EP23: =IF(EE18="","",SUM(EN23*1000)+EO23) -> 3633788 | ET23: 18 | EU23: =IF(ES6<18,"",VLOOKUP(18,EA6:EM65,4,FALSE)) -> Kročil Tomáš | EV23: =IF(ES6<18,"",VLOOKUP(18,EA6:EM65,10,FALSE)) -> 728 | FC23: =SUM(FC18:FC22) -> 663 | FD23: =SUM(FD18:FD22) -> 697 | FE23: =SUM(FE18:FE22) -> 650 | FF23: =SUM(FF18:FF22) -> 621 | FG23: =SUM(FG18:FG22) -> 640 | FL23: =SUM(FC23:FG23) -> 3271 | FM23: =MAX(FC23:FG23) -> 697 | FN23: =IF(FC18="","",SUM(FL23*1000)+FM23) -> 3271697 | FR23: 18 | FS23: =IF(FQ6<18,"",VLOOKUP(18,EY6:FL65,4,FALSE)) -> Podhola Martin | FT23: =IF(FQ6<18,"",VLOOKUP(18,EY6:FL65,10,FALSE)) -> 757 | GA23: =SUM(GA18:GA22) -> 3 | GB23: =SUM(GB18:GB22) -> 0 | GC23: =SUM(GC18:GC22) -> 0 | GD23: =SUM(GD18:GD22) -> 0 | GE23: =SUM(GE18:GE22) -> 0 | GJ23: =SUM(GA23:GE23) -> 3 | GK23: =MAX(GA23:GE23) -> 3 | GL23: =IF(GA18="","",SUM(GJ23*1000)+GK23) -> 3003 | GP23: 18 | GQ23: =IF(GO6<18,"",VLOOKUP(18,FW6:GI70,4,FALSE)) ->  | GR23: =IF(GO6<18,"",VLOOKUP(18,FW6:GI70,10,FALSE)) -> 
O24: =IF(S24="","",AA24) -> 33 | P24: 4 | Q24: KAČEROV II. | R24: DOUŠA ADAM | S24: 103 | T24: 134 | U24: 169 | V24: 115 | W24: 115 | X24: =SUM(S24:W24) -> 636 | Y24: =MAX(S24:W24) -> 169 | Z24: =SUM(X24*1000)+Y24+0.35 -> 636169.35 | AA24: =IF(S24="","",RANK(Z24,Z6:Z65,0)) -> 33 | AC24: =RANK(AB29,AB11:AB65,0) -> 7 | AF24: 19 | AG24: =IF(AE6<19,"",VLOOKUP(19,O6:AA65,4,FALSE)) -> SLADOVNÍK MILOSLAV | AH24: =IF(AE6<19,"",VLOOKUP(19,O6:AA65,10,FALSE)) -> 720 | AK24: =IF(AO24="","",AW24) -> 23 | AL24: 4 | AM24: ŘEPY II. | AN24: ALBA VLADIMÍR | AO24: 154 | AP24: 149 | AQ24: 143 | AR24: 134 | AS24: 121 | AT24: =SUM(AO24:AS24) -> 701 | AU24: =MAX(AO24:AS24) -> 154 | AV24: =SUM(AT24*1000)+AU24+0.35 -> 701154.35 | AW24: =IF(AO24="","",RANK(AV24,AV6:AV65,0)) -> 23 | AY24: =RANK(AX29,AX11:AX65,0) -> 2 | BB24: 19 | BC24: =IF(BA6<19,"",VLOOKUP(19,AK6:AW65,4,FALSE)) -> TOMÁŠEK ZDENĚK | BD24: =IF(BA6<19,"",VLOOKUP(19,AK6:AW65,10,FALSE)) -> 728 | BG24: =IF(BK24="","",BS24) -> 30 | BH24: 4 | BI24: KLÍČOV II. | BJ24: NOVOTNÁ PETRA | BK24: 136 | BL24: 140 | BM24: 123 | BN24: 135 | BO24: 147 | BP24: =SUM(BK24:BO24) -> 681 | BQ24: =MAX(BK24:BO24) -> 147 | BR24: =SUM(BP24*1000)+BQ24+0.35 -> 681147.35 | BS24: =IF(BK24="","",RANK(BR24,BR6:BR65,0)) -> 30 | BW24: =IF(BK24="","",RANK(BV29,BV11:BV65,0)) -> 10 | BZ24: 19 | CA24: =IF(BY6<19,"",VLOOKUP(19,BG6:BS65,4,FALSE)) -> BROŽ STANISLAV | CB24: =IF(BY6<19,"",VLOOKUP(19,BG6:BS65,10,FALSE)) -> 742 | CE24: =IF(CI24="","",CQ24) -> 21 | CF24: 4 | CG24: VRŠOVICE II. | CH24: AUNICKÝ FRANTIŠEK | CI24: 161 | CJ24: 137 | CK24: 110 | CL24: 161 | CM24: 136 | CN24: =SUM(CI24:CM24) -> 705 | CO24: =MAX(CI24:CM24) -> 161 | CP24: =SUM(CN24*1000)+CO24+0.35 -> 705161.35 | CQ24: =IF(CI24="","",RANK(CP24,CP6:CP65,0)) -> 21 | CU24: =IF(CI24="","",RANK(CT29,CT11:CT65,0)) -> 8 | CX24: 19 | CY24: =IF(CW6<19,"",VLOOKUP(19,CE6:CQ65,4,FALSE)) -> KUČERA MIROSLAV | CZ24: =IF(CW6<19,"",VLOOKUP(19,CE6:CQ65,10,FALSE)) -> 724 | DC24: =IF(DG24="","",DO24) -> 27 | DD24: 4 | DE24: HOSTIVAŘ II. | DF24: Mysliveček Jaroslav | DG24: 176 | DH24: 136 | DI24: 115 | DJ24: 169 | DK24: 105 | DL24: =SUM(DG24:DK24) -> 701 | DM24: =MAX(DG24:DK24) -> 176 | DN24: =SUM(DL24*1000)+DM24+0.35 -> 701176.35 | DO24: =IF(DG24="","",RANK(DN24,DN6:DN65,0)) -> 27 | DS24: =IF(DG24="","",RANK(DR29,DR11:DR65,0)) -> 6 | DV24: 19 | DW24: =IF(DU6<19,"",VLOOKUP(19,DC6:DO65,4,FALSE)) -> Bošek Jan | DX24: =IF(DU6<19,"",VLOOKUP(19,DC6:DO65,10,FALSE)) -> 723 | EA24: =IF(EE24="","",EM24) -> 38 | EB24: 4 | EC24: KAČEROV II. | ED24: Katolický Zdeněk | EE24: 149 | EF24: 126 | EG24: 131 | EH24: 80 | EI24: 141 | EJ24: =SUM(EE24:EI24) -> 627 | EK24: =MAX(EE24:EI24) -> 149 | EL24: =SUM(EJ24*1000)+EK24+0.35 -> 627149.35 | EM24: =IF(EE24="","",RANK(EL24,EL6:EL65,0)) -> 38 | EQ24: =IF(EE24="","",RANK(EP29,EP11:EP65,0)) -> 6 | ET24: 19 | EU24: =IF(ES6<19,"",VLOOKUP(19,EA6:EM65,4,FALSE)) -> Brož Stanislav | EV24: =IF(ES6<19,"",VLOOKUP(19,EA6:EM65,10,FALSE)) -> 723 | EY24: =IF(FC24="","",FK24) -> 5 | EZ24: 4 | FA24: ŘEPY II. | FB24: Kocůr Jaroslav | FC24: 161 | FD24: 210 | FE24: 158 | FF24: 174 | FG24: 147 | FH24: =SUM(FC24:FG24) -> 850 | FI24: =MAX(FC24:FG24) -> 210 | FJ24: =SUM(FH24*1000)+FI24+0.35 -> 850210.35 | FK24: =IF(FC24="","",RANK(FJ24,FJ6:FJ65,0)) -> 5 | FO24: =IF(FC24="","",RANK(FN29,FN11:FN65,0)) -> 1 | FR24: 19 | FS24: =IF(FQ6<19,"",VLOOKUP(19,EY6:FL65,4,FALSE)) -> Sladovník Miloslav | FT24: =IF(FQ6<19,"",VLOOKUP(19,EY6:FL65,10,FALSE)) -> 755 | FW24: =IF(GA24="","",GI24) ->  | FX24: 4 | FY24: KAČEROV II. | GF24: =SUM(GA24:GE24) -> 0 | GG24: =MAX(GA24:GE24) -> 0 | GH24: =SUM(GF24*1000)+GG24+0.35 -> 0.35 | GI24: =IF(GA24="","",RANK(GH24,GH6:GH70,0)) ->  | GM24: =IF(GA24="","",RANK(GL29,GL11:GL71,0)) ->  | GP24: 19 | GQ24: =IF(GO6<19,"",VLOOKUP(19,FW6:GI70,4,FALSE)) ->  | GR24: =IF(GO6<19,"",VLOOKUP(19,FW6:GI70,10,FALSE)) -> 
O25: =IF(S25="","",AA25) -> 50 | R25: KUTINA PAVEL | S25: 115 | T25: 75 | U25: 105 | V25: 92 | W25: 86 | X25: =SUM(S25:W25) -> 473 | Y25: =MAX(S25:W25) -> 115 | Z25: =SUM(X25*1000)+Y25+0.34 -> 473115.34 | AA25: =IF(S25="","",RANK(Z25,Z6:Z65,0)) -> 50 | AF25: 20 | AG25: =IF(AE6<20,"",VLOOKUP(20,O6:AA65,4,FALSE)) -> RADOVÁ PETRA | AH25: =IF(AE6<20,"",VLOOKUP(20,O6:AA65,10,FALSE)) -> 718 | AK25: =IF(AO25="","",AW25) -> 24 | AN25: SLADOVNÍK MILOSLAV | AO25: 147 | AP25: 177 | AQ25: 112 | AR25: 127 | AS25: 130 | AT25: =SUM(AO25:AS25) -> 693 | AU25: =MAX(AO25:AS25) -> 177 | AV25: =SUM(AT25*1000)+AU25+0.34 -> 693177.34 | AW25: =IF(AO25="","",RANK(AV25,AV6:AV65,0)) -> 24 | BB25: 20 | BC25: =IF(BA6<20,"",VLOOKUP(20,AK6:AW65,4,FALSE)) -> JELÍNEK JAN | BD25: =IF(BA6<20,"",VLOOKUP(20,AK6:AW65,10,FALSE)) -> 719 | BG25: =IF(BK25="","",BS25) -> 43 | BJ25: NOVOTNÁ JANA | BK25: 108 | BL25: 111 | BM25: 147 | BN25: 115 | BO25: 100 | BP25: =SUM(BK25:BO25) -> 581 | BQ25: =MAX(BK25:BO25) -> 147 | BR25: =SUM(BP25*1000)+BQ25+0.34 -> 581147.34 | BS25: =IF(BK25="","",RANK(BR25,BR6:BR65,0)) -> 43 | BZ25: 20 | CA25: =IF(BY6<20,"",VLOOKUP(20,BG6:BS65,4,FALSE)) -> TOMÁŠEK ZDENĚK | CB25: =IF(BY6<20,"",VLOOKUP(20,BG6:BS65,10,FALSE)) -> 733 | CE25: =IF(CI25="","",CQ25) -> 23 | CH25: KAZDA JAN | CI25: 181 | CJ25: 133 | CK25: 141 | CL25: 118 | CM25: 127 | CN25: =SUM(CI25:CM25) -> 700 | CO25: =MAX(CI25:CM25) -> 181 | CP25: =SUM(CN25*1000)+CO25+0.34 -> 700181.34 | CQ25: =IF(CI25="","",RANK(CP25,CP6:CP65,0)) -> 23 | CX25: 20 | CY25: =IF(CW6<20,"",VLOOKUP(20,CE6:CQ65,4,FALSE)) -> TOMÁŠEK ZDENĚK | CZ25: =IF(CW6<20,"",VLOOKUP(20,CE6:CQ65,10,FALSE)) -> 723 | DC25: =IF(DG25="","",DO25) -> 31 | DF25: Šafář Ladislav | DG25: 105 | DH25: 147 | DI25: 143 | DJ25: 149 | DK25: 139 | DL25: =SUM(DG25:DK25) -> 683 | DM25: =MAX(DG25:DK25) -> 149 | DN25: =SUM(DL25*1000)+DM25+0.34 -> 683149.34 | DO25: =IF(DG25="","",RANK(DN25,DN6:DN65,0)) -> 31 | DV25: 20 | DW25: =IF(DU6<20,"",VLOOKUP(20,DC6:DO65,4,FALSE)) -> Sehnal Ivan | DX25: =IF(DU6<20,"",VLOOKUP(20,DC6:DO65,10,FALSE)) -> 722 | EA25: =IF(EE25="","",EM25) -> 25 | ED25: Brejcha Jaroslav | EE25: 142 | EF25: 130 | EG25: 155 | EH25: 137 | EI25: 127 | EJ25: =SUM(EE25:EI25) -> 691 | EK25: =MAX(EE25:EI25) -> 155 | EL25: =SUM(EJ25*1000)+EK25+0.34 -> 691155.34 | EM25: =IF(EE25="","",RANK(EL25,EL6:EL65,0)) -> 25 | ET25: 20 | EU25: =IF(ES6<20,"",VLOOKUP(20,EA6:EM65,4,FALSE)) -> Štěpán Radek | EV25: =IF(ES6<20,"",VLOOKUP(20,EA6:EM65,10,FALSE)) -> 716 | EY25: =IF(FC25="","",FK25) -> 22 | FB25: Alba Vladimír | FC25: 116 | FD25: 156 | FE25: 132 | FF25: 170 | FG25: 148 | FH25: =SUM(FC25:FG25) -> 722 | FI25: =MAX(FC25:FG25) -> 170 | FJ25: =SUM(FH25*1000)+FI25+0.34 -> 722170.34 | FK25: =IF(FC25="","",RANK(FJ25,FJ6:FJ65,0)) -> 22 | FR25: 20 | FS25: =IF(FQ6<20,"",VLOOKUP(20,EY6:FL65,4,FALSE)) -> Troller Pavel | FT25: =IF(FQ6<20,"",VLOOKUP(20,EY6:FL65,10,FALSE)) -> 742 | FW25: =IF(GA25="","",GI25) ->  | GF25: =SUM(GA25:GE25) -> 0 | GG25: =MAX(GA25:GE25) -> 0 | GH25: =SUM(GF25*1000)+GG25+0.34 -> 0.34 | GI25: =IF(GA25="","",RANK(GH25,GH6:GH70,0)) ->  | GP25: 20 | GQ25: =IF(GO6<20,"",VLOOKUP(20,FW6:GI70,4,FALSE)) ->  | GR25: =IF(GO6<20,"",VLOOKUP(20,FW6:GI70,10,FALSE)) -> 
O26: =IF(S26="","",AA26) -> 38 | R26: BREJCHA JAROSLAV | S26: 102 | T26: 153 | U26: 110 | V26: 145 | W26: 104 | X26: =SUM(S26:W26) -> 614 | Y26: =MAX(S26:W26) -> 153 | Z26: =SUM(X26*1000)+Y26+0.33 -> 614153.33 | AA26: =IF(S26="","",RANK(Z26,Z6:Z65,0)) -> 38 | AF26: 21 | AG26: =IF(AE6<21,"",VLOOKUP(21,O6:AA65,4,FALSE)) -> KŘEMENÁK PETR | AH26: =IF(AE6<21,"",VLOOKUP(21,O6:AA65,10,FALSE)) -> 707 | AK26: =IF(AO26="","",AW26) -> 12 | AN26: KROČIL TOMÁŠ | AO26: 207 | AP26: 115 | AQ26: 170 | AR26: 136 | AS26: 178 | AT26: =SUM(AO26:AS26) -> 806 | AU26: =MAX(AO26:AS26) -> 207 | AV26: =SUM(AT26*1000)+AU26+0.33 -> 806207.33 | AW26: =IF(AO26="","",RANK(AV26,AV6:AV65,0)) -> 12 | BB26: 21 | BC26: =IF(BA6<21,"",VLOOKUP(21,AK6:AW65,4,FALSE)) -> BOŠEK JAN | BD26: =IF(BA6<21,"",VLOOKUP(21,AK6:AW65,10,FALSE)) -> 710 | BG26: =IF(BK26="","",BS26) -> 37 | BJ26: ŠAFÁŘ BOHUMIL | BK26: 100 | BL26: 124 | BM26: 164 | BN26: 155 | BO26: 117 | BP26: =SUM(BK26:BO26) -> 660 | BQ26: =MAX(BK26:BO26) -> 164 | BR26: =SUM(BP26*1000)+BQ26+0.33 -> 660164.33 | BS26: =IF(BK26="","",RANK(BR26,BR6:BR65,0)) -> 37 | BZ26: 21 | CA26: =IF(BY6<21,"",VLOOKUP(21,BG6:BS65,4,FALSE)) -> SLADOVNÍK MILOSLAV | CB26: =IF(BY6<21,"",VLOOKUP(21,BG6:BS65,10,FALSE)) -> 727 | CE26: =IF(CI26="","",CQ26) -> 41 | CH26: KOVÁŘ JAROSLAV | CI26: 113 | CJ26: 100 | CK26: 111 | CL26: 118 | CM26: 127 | CN26: =SUM(CI26:CM26) -> 569 | CO26: =MAX(CI26:CM26) -> 127 | CP26: =SUM(CN26*1000)+CO26+0.33 -> 569127.33 | CQ26: =IF(CI26="","",RANK(CP26,CP6:CP65,0)) -> 41 | CX26: 21 | CY26: =IF(CW6<21,"",VLOOKUP(21,CE6:CQ65,4,FALSE)) -> AUNICKÝ FRANTIŠEK | CZ26: =IF(CW6<21,"",VLOOKUP(21,CE6:CQ65,10,FALSE)) -> 705 | DC26: =IF(DG26="","",DO26) -> 45 | DF26: Čermák Tomáš | DG26: 139 | DH26: 112 | DI26: 78 | DJ26: 113 | DK26: 119 | DL26: =SUM(DG26:DK26) -> 561 | DM26: =MAX(DG26:DK26) -> 139 | DN26: =SUM(DL26*1000)+DM26+0.33 -> 561139.33 | DO26: =IF(DG26="","",RANK(DN26,DN6:DN65,0)) -> 45 | DV26: 21 | DW26: =IF(DU6<21,"",VLOOKUP(21,DC6:DO65,4,FALSE)) -> Turek Stanislav | DX26: =IF(DU6<21,"",VLOOKUP(21,DC6:DO65,10,FALSE)) -> 721 | EA26: =IF(EE26="","",EM26) -> 37 | ED26: Kutina Pavel | EE26: 151 | EF26: 128 | EG26: 126 | EH26: 107 | EI26: 115 | EJ26: =SUM(EE26:EI26) -> 627 | EK26: =MAX(EE26:EI26) -> 151 | EL26: =SUM(EJ26*1000)+EK26+0.33 -> 627151.33 | EM26: =IF(EE26="","",RANK(EL26,EL6:EL65,0)) -> 37 | ET26: 21 | EU26: =IF(ES6<21,"",VLOOKUP(21,EA6:EM65,4,FALSE)) -> Troller Pavel | EV26: =IF(ES6<21,"",VLOOKUP(21,EA6:EM65,10,FALSE)) -> 701 | EY26: =IF(FC26="","",FK26) -> 1 | FB26: Froněk Martin | FC26: 163 | FD26: 181 | FE26: 199 | FF26: 173 | FG26: 177 | FH26: =SUM(FC26:FG26) -> 893 | FI26: =MAX(FC26:FG26) -> 199 | FJ26: =SUM(FH26*1000)+FI26+0.33 -> 893199.33 | FK26: =IF(FC26="","",RANK(FJ26,FJ6:FJ65,0)) -> 1 | FR26: 21 | FS26: =IF(FQ6<21,"",VLOOKUP(21,EY6:FL65,4,FALSE)) -> Berger Michal | FT26: =IF(FQ6<21,"",VLOOKUP(21,EY6:FL65,10,FALSE)) -> 729 | FW26: =IF(GA26="","",GI26) ->  | GF26: =SUM(GA26:GE26) -> 0 | GG26: =MAX(GA26:GE26) -> 0 | GH26: =SUM(GF26*1000)+GG26+0.33 -> 0.33 | GI26: =IF(GA26="","",RANK(GH26,GH6:GH70,0)) ->  | GP26: 21 | GQ26: =IF(GO6<21,"",VLOOKUP(21,FW6:GI70,4,FALSE)) ->  | GR26: =IF(GO6<21,"",VLOOKUP(21,FW6:GI70,10,FALSE)) -> 
O27: =IF(S27="","",AA27) -> 29 | R27: BROŽ STANISLAV | S27: 122 | T27: 122 | U27: 144 | V27: 127 | W27: 142 | X27: =SUM(S27:W27) -> 657 | Y27: =MAX(S27:W27) -> 144 | Z27: =SUM(X27*1000)+Y27+0.32 -> 657144.32 | AA27: =IF(S27="","",RANK(Z27,Z6:Z65,0)) -> 29 | AF27: 22 | AG27: =IF(AE6<22,"",VLOOKUP(22,O6:AA65,4,FALSE)) -> TICHÝ HUGO | AH27: =IF(AE6<22,"",VLOOKUP(22,O6:AA65,10,FALSE)) -> 705 | AK27: =IF(AO27="","",AW27) -> 2 | AN27: KOCŮR JAROSLAV | AO27: 172 | AP27: 179 | AQ27: 183 | AR27: 185 | AS27: 196 | AT27: =SUM(AO27:AS27) -> 915 | AU27: =MAX(AO27:AS27) -> 196 | AV27: =SUM(AT27*1000)+AU27+0.32 -> 915196.32 | AW27: =IF(AO27="","",RANK(AV27,AV6:AV65,0)) -> 2 | BB27: 22 | BC27: =IF(BA6<22,"",VLOOKUP(22,AK6:AW65,4,FALSE)) -> ŠAFÁŘ LADISLAV | BD27: =IF(BA6<22,"",VLOOKUP(22,AK6:AW65,10,FALSE)) -> 708 | BG27: =IF(BK27="","",BS27) -> 49 | BJ27: VYCHNEROVÁ MICHALA | BK27: 84 | BL27: 114 | BM27: 108 | BN27: 98 | BO27: 104 | BP27: =SUM(BK27:BO27) -> 508 | BQ27: =MAX(BK27:BO27) -> 114 | BR27: =SUM(BP27*1000)+BQ27+0.32 -> 508114.32 | BS27: =IF(BK27="","",RANK(BR27,BR6:BR65,0)) -> 49 | BZ27: 22 | CA27: =IF(BY6<22,"",VLOOKUP(22,BG6:BS65,4,FALSE)) -> KOVÁŘ JAROSLAV | CB27: =IF(BY6<22,"",VLOOKUP(22,BG6:BS65,10,FALSE)) -> 726 | CE27: =IF(CI27="","",CQ27) -> 37 | CH27: FAY VLASTIMIL | CI27: 130 | CJ27: 103 | CK27: 108 | CL27: 129 | CM27: 131 | CN27: =SUM(CI27:CM27) -> 601 | CO27: =MAX(CI27:CM27) -> 131 | CP27: =SUM(CN27*1000)+CO27+0.32 -> 601131.32 | CQ27: =IF(CI27="","",RANK(CP27,CP6:CP65,0)) -> 37 | CX27: 22 | CY27: =IF(CW6<22,"",VLOOKUP(22,CE6:CQ65,4,FALSE)) -> BERGER MICHAL | CZ27: =IF(CW6<22,"",VLOOKUP(22,CE6:CQ65,10,FALSE)) -> 703 | DC27: =IF(DG27="","",DO27) -> 5 | DF27: Křápek Roman | DG27: 123 | DH27: 223 | DI27: 152 | DJ27: 158 | DK27: 178 | DL27: =SUM(DG27:DK27) -> 834 | DM27: =MAX(DG27:DK27) -> 223 | DN27: =SUM(DL27*1000)+DM27+0.32 -> 834223.32 | DO27: =IF(DG27="","",RANK(DN27,DN6:DN65,0)) -> 5 | DV27: 22 | DW27: =IF(DU6<22,"",VLOOKUP(22,DC6:DO65,4,FALSE)) -> Brejcha Jaroslav | DX27: =IF(DU6<22,"",VLOOKUP(22,DC6:DO65,10,FALSE)) -> 718 | EA27: =IF(EE27="","",EM27) -> 19 | ED27: Brož Stanislav | EE27: 140 | EF27: 181 | EG27: 127 | EH27: 155 | EI27: 120 | EJ27: =SUM(EE27:EI27) -> 723 | EK27: =MAX(EE27:EI27) -> 181 | EL27: =SUM(EJ27*1000)+EK27+0.32 -> 723181.32 | EM27: =IF(EE27="","",RANK(EL27,EL6:EL65,0)) -> 19 | ET27: 22 | EU27: =IF(ES6<22,"",VLOOKUP(22,EA6:EM65,4,FALSE)) -> Táborský Lukáš | EV27: =IF(ES6<22,"",VLOOKUP(22,EA6:EM65,10,FALSE)) -> 695 | EY27: =IF(FC27="","",FK27) -> 13 | FB27: Kročil Tomáš | FC27: 183 | FD27: 168 | FE27: 178 | FF27: 142 | FG27: 125 | FH27: =SUM(FC27:FG27) -> 796 | FI27: =MAX(FC27:FG27) -> 183 | FJ27: =SUM(FH27*1000)+FI27+0.32 -> 796183.32 | FK27: =IF(FC27="","",RANK(FJ27,FJ6:FJ65,0)) -> 13 | FR27: 22 | FS27: =IF(FQ6<22,"",VLOOKUP(22,EY6:FL65,4,FALSE)) -> Alba Vladimír | FT27: =IF(FQ6<22,"",VLOOKUP(22,EY6:FL65,10,FALSE)) -> 722 | FW27: =IF(GA27="","",GI27) ->  | GF27: =SUM(GA27:GE27) -> 0 | GG27: =MAX(GA27:GE27) -> 0 | GH27: =SUM(GF27*1000)+GG27+0.32 -> 0.32 | GI27: =IF(GA27="","",RANK(GH27,GH6:GH70,0)) ->  | GP27: 22 | GQ27: =IF(GO6<22,"",VLOOKUP(22,FW6:GI70,4,FALSE)) ->  | GR27: =IF(GO6<22,"",VLOOKUP(22,FW6:GI70,10,FALSE)) -> 
O28: =IF(S28="","",AA28) -> 20 | R28: RADOVÁ PETRA | S28: 141 | T28: 155 | U28: 140 | V28: 139 | W28: 143 | X28: =SUM(S28:W28) -> 718 | Y28: =MAX(S28:W28) -> 155 | Z28: =SUM(X28*1000)+Y28+0.31 -> 718155.31 | AA28: =IF(S28="","",RANK(Z28,Z6:Z65,0)) -> 20 | AF28: 23 | AG28: =IF(AE6<23,"",VLOOKUP(23,O6:AA65,4,FALSE)) -> MYSLIVEČEK JAROSLAV | AH28: =IF(AE6<23,"",VLOOKUP(23,O6:AA65,10,FALSE)) -> 702 | AK28: =IF(AO28="","",AW28) -> 6 | AN28: POSPÍŠIL VÁCLAV | AO28: 194 | AP28: 218 | AQ28: 150 | AR28: 158 | AS28: 156 | AT28: =SUM(AO28:AS28) -> 876 | AU28: =MAX(AO28:AS28) -> 218 | AV28: =SUM(AT28*1000)+AU28+0.31 -> 876218.31 | AW28: =IF(AO28="","",RANK(AV28,AV6:AV65,0)) -> 6 | BB28: 23 | BC28: =IF(BA6<23,"",VLOOKUP(23,AK6:AW65,4,FALSE)) -> ALBA VLADIMÍR | BD28: =IF(BA6<23,"",VLOOKUP(23,AK6:AW65,10,FALSE)) -> 701 | BG28: =IF(BK28="","",BS28) -> 45 | BJ28: ŘEHÁK JAROSLAV | BK28: 103 | BL28: 108 | BM28: 128 | BN28: 135 | BO28: 93 | BP28: =SUM(BK28:BO28) -> 567 | BQ28: =MAX(BK28:BO28) -> 135 | BR28: =SUM(BP28*1000)+BQ28+0.31 -> 567135.31 | BS28: =IF(BK28="","",RANK(BR28,BR6:BR65,0)) -> 45 | BZ28: 23 | CA28: =IF(BY6<23,"",VLOOKUP(23,BG6:BS65,4,FALSE)) -> FRONĚK MARTIN | CB28: =IF(BY6<23,"",VLOOKUP(23,BG6:BS65,10,FALSE)) -> 720 | CE28: =IF(CI28="","",CQ28) -> 39 | CH28: POSPÍŠIL LUKÁŠ | CI28: 104 | CJ28: 124 | CK28: 87 | CL28: 133 | CM28: 135 | CN28: =SUM(CI28:CM28) -> 583 | CO28: =MAX(CI28:CM28) -> 135 | CP28: =SUM(CN28*1000)+CO28+0.31 -> 583135.31 | CQ28: =IF(CI28="","",RANK(CP28,CP6:CP65,0)) -> 39 | CX28: 23 | CY28: =IF(CW6<23,"",VLOOKUP(23,CE6:CQ65,4,FALSE)) -> KAZDA JAN | CZ28: =IF(CW6<23,"",VLOOKUP(23,CE6:CQ65,10,FALSE)) -> 700 | DC28: =IF(DG28="","",DO28) -> 25 | DF28: Lazurová Jiřina | DG28: 145 | DH28: 119 | DI28: 166 | DJ28: 141 | DK28: 133 | DL28: =SUM(DG28:DK28) -> 704 | DM28: =MAX(DG28:DK28) -> 166 | DN28: =SUM(DL28*1000)+DM28+0.31 -> 704166.31 | DO28: =IF(DG28="","",RANK(DN28,DN6:DN65,0)) -> 25 | DV28: 23 | DW28: =IF(DU6<23,"",VLOOKUP(23,DC6:DO65,4,FALSE)) -> Růžička Ladislav | DX28: =IF(DU6<23,"",VLOOKUP(23,DC6:DO65,10,FALSE)) -> 717 | EA28: =IF(EE28="","",EM28) -> 26 | ED28: Radová Petra | EE28: 121 | EF28: 127 | EG28: 138 | EH28: 155 | EI28: 144 | EJ28: =SUM(EE28:EI28) -> 685 | EK28: =MAX(EE28:EI28) -> 155 | EL28: =SUM(EJ28*1000)+EK28+0.31 -> 685155.31 | EM28: =IF(EE28="","",RANK(EL28,EL6:EL65,0)) -> 26 | ET28: 23 | EU28: =IF(ES6<23,"",VLOOKUP(23,EA6:EM65,4,FALSE)) -> Kollár Pavel | EV28: =IF(ES6<23,"",VLOOKUP(23,EA6:EM65,10,FALSE)) -> 695 | EY28: =IF(FC28="","",FK28) -> 6 | FB28: Pospíšil Václav | FC28: 174 | FD28: 148 | FE28: 167 | FF28: 171 | FG28: 184 | FH28: =SUM(FC28:FG28) -> 844 | FI28: =MAX(FC28:FG28) -> 184 | FJ28: =SUM(FH28*1000)+FI28+0.31 -> 844184.31 | FK28: =IF(FC28="","",RANK(FJ28,FJ6:FJ65,0)) -> 6 | FR28: 23 | FS28: =IF(FQ6<23,"",VLOOKUP(23,EY6:FL65,4,FALSE)) -> Mysliveček Jaroslav | FT28: =IF(FQ6<23,"",VLOOKUP(23,EY6:FL65,10,FALSE)) -> 717 | FW28: =IF(GA28="","",GI28) ->  | GF28: =SUM(GA28:GE28) -> 0 | GG28: =MAX(GA28:GE28) -> 0 | GH28: =SUM(GF28*1000)+GG28+0.31 -> 0.31 | GI28: =IF(GA28="","",RANK(GH28,GH6:GH70,0)) ->  | GP28: 23 | GQ28: =IF(GO6<23,"",VLOOKUP(23,FW6:GI70,4,FALSE)) ->  | GR28: =IF(GO6<23,"",VLOOKUP(23,FW6:GI70,10,FALSE)) -> 
S29: =SUM(S24:S28) -> 583 | T29: =SUM(T24:T28) -> 639 | U29: =SUM(U24:U28) -> 668 | V29: =SUM(V24:V28) -> 618 | W29: =SUM(W24:W28) -> 590 | AB29: =SUM(S29:W29) -> 3098 | AF29: 24 | AG29: =IF(AE6<24,"",VLOOKUP(24,O6:AA65,4,FALSE)) -> TROLLER PAVEL | AH29: =IF(AE6<24,"",VLOOKUP(24,O6:AA65,10,FALSE)) -> 691 | AO29: =SUM(AO24:AO28) -> 874 | AP29: =SUM(AP24:AP28) -> 838 | AQ29: =SUM(AQ24:AQ28) -> 758 | AR29: =SUM(AR24:AR28) -> 740 | AS29: =SUM(AS24:AS28) -> 781 | AX29: =SUM(AO29:AS29) -> 3991 | BB29: 24 | BC29: =IF(BA6<24,"",VLOOKUP(24,AK6:AW65,4,FALSE)) -> SLADOVNÍK MILOSLAV | BD29: =IF(BA6<24,"",VLOOKUP(24,AK6:AW65,10,FALSE)) -> 693 | BK29: =SUM(BK24:BK28) -> 531 | BL29: =SUM(BL24:BL28) -> 597 | BM29: =SUM(BM24:BM28) -> 670 | BN29: =SUM(BN24:BN28) -> 638 | BO29: =SUM(BO24:BO28) -> 561 | BT29: =SUM(BK29:BO29) -> 2997 | BU29: =MAX(BK29:BO29) -> 670 | BV29: =IF(BK24="","",SUM(BT29*10000)+BU29) -> 29970670 | BZ29: 24 | CA29: =IF(BY6<24,"",VLOOKUP(24,BG6:BS65,4,FALSE)) -> TICHÝ HUGO | CB29: =IF(BY6<24,"",VLOOKUP(24,BG6:BS65,10,FALSE)) -> 711 | CI29: =SUM(CI24:CI28) -> 689 | CJ29: =SUM(CJ24:CJ28) -> 597 | CK29: =SUM(CK24:CK28) -> 557 | CL29: =SUM(CL24:CL28) -> 659 | CM29: =SUM(CM24:CM28) -> 656 | CR29: =SUM(CI29:CM29) -> 3158 | CS29: =MAX(CI29:CM29) -> 689 | CT29: =IF(CI24="","",SUM(CR29*1000)+CS29) -> 3158689 | CX29: 24 | CY29: =IF(CW6<24,"",VLOOKUP(24,CE6:CQ65,4,FALSE)) -> RADOVÁ PETRA | CZ29: =IF(CW6<24,"",VLOOKUP(24,CE6:CQ65,10,FALSE)) -> 688 | DG29: =SUM(DG24:DG28) -> 688 | DH29: =SUM(DH24:DH28) -> 737 | DI29: =SUM(DI24:DI28) -> 654 | DJ29: =SUM(DJ24:DJ28) -> 730 | DK29: =SUM(DK24:DK28) -> 674 | DP29: =SUM(DG29:DK29) -> 3483 | DQ29: =MAX(DG29:DK29) -> 737 | DR29: =IF(DG24="","",SUM(DP29*1000)+DQ29) -> 3483737 | DV29: 24 | DW29: =IF(DU6<24,"",VLOOKUP(24,DC6:DO65,4,FALSE)) -> Radová Petra | DX29: =IF(DU6<24,"",VLOOKUP(24,DC6:DO65,10,FALSE)) -> 717 | EE29: =SUM(EE24:EE28) -> 703 | EF29: =SUM(EF24:EF28) -> 692 | EG29: =SUM(EG24:EG28) -> 677 | EH29: =SUM(EH24:EH28) -> 634 | EI29: =SUM(EI24:EI28) -> 647 | EN29: =SUM(EE29:EI29) -> 3353 | EO29: =MAX(EE29:EI29) -> 703 | EP29: =IF(EE24="","",SUM(EN29*1000)+EO29) -> 3353703 | ET29: 24 | EU29: =IF(ES6<24,"",VLOOKUP(24,EA6:EM65,4,FALSE)) -> Kazda Jan | EV29: =IF(ES6<24,"",VLOOKUP(24,EA6:EM65,10,FALSE)) -> 694 | FC29: =SUM(FC24:FC28) -> 797 | FD29: =SUM(FD24:FD28) -> 863 | FE29: =SUM(FE24:FE28) -> 834 | FF29: =SUM(FF24:FF28) -> 830 | FG29: =SUM(FG24:FG28) -> 781 | FL29: =SUM(FC29:FG29) -> 4105 | FM29: =MAX(FC29:FG29) -> 863 | FN29: =IF(FC24="","",SUM(FL29*1000)+FM29) -> 4105863 | FR29: 24 | FS29: =IF(FQ6<24,"",VLOOKUP(24,EY6:FL65,4,FALSE)) -> Táborský Lukáš | FT29: =IF(FQ6<24,"",VLOOKUP(24,EY6:FL65,10,FALSE)) -> 697 | GA29: =SUM(GA24:GA28) -> 0 | GB29: =SUM(GB24:GB28) -> 0 | GC29: =SUM(GC24:GC28) -> 0 | GD29: =SUM(GD24:GD28) -> 0 | GE29: =SUM(GE24:GE28) -> 0 | GJ29: =SUM(GA29:GE29) -> 0 | GK29: =MAX(GA29:GE29) -> 0 | GL29: =IF(GA24="","",SUM(GJ29*1000)+GK29) ->  | GP29: 24 | GQ29: =IF(GO6<24,"",VLOOKUP(24,FW6:GI70,4,FALSE)) ->  | GR29: =IF(GO6<24,"",VLOOKUP(24,FW6:GI70,10,FALSE)) -> 
O30: =IF(S30="","",AA30) -> 32 | P30: 5 | Q30: HOSTIVAŘ I. | R30: KŘÁPEK ROMAN | S30: 115 | T30: 155 | U30: 107 | V30: 145 | W30: 115 | X30: =SUM(S30:W30) -> 637 | Y30: =MAX(S30:W30) -> 155 | Z30: =SUM(X30*1000)+Y30+0.3 -> 637155.3 | AA30: =IF(S30="","",RANK(Z30,Z6:Z65,0)) -> 32 | AC30: =RANK(AB35,AB11:AB65,0) -> 2 | AF30: 25 | AG30: =IF(AE6<25,"",VLOOKUP(25,O6:AA65,4,FALSE)) -> KALFIŘT PETR | AH30: =IF(AE6<25,"",VLOOKUP(25,O6:AA65,10,FALSE)) -> 680 | AK30: =IF(AO30="","",AW30) -> 19 | AL30: 5 | AM30: KAČEROV I. | AN30: TOMÁŠEK ZDENĚK | AO30: 135 | AP30: 143 | AQ30: 134 | AR30: 184 | AS30: 132 | AT30: =SUM(AO30:AS30) -> 728 | AU30: =MAX(AO30:AS30) -> 184 | AV30: =SUM(AT30*1000)+AU30+0.3 -> 728184.3 | AW30: =IF(AO30="","",RANK(AV30,AV6:AV65,0)) -> 19 | AY30: =RANK(AX35,AX11:AX65,0) -> 4 | BB30: 25 | BC30: =IF(BA6<25,"",VLOOKUP(25,AK6:AW65,4,FALSE)) -> BROŽ STANISLAV | BD30: =IF(BA6<25,"",VLOOKUP(25,AK6:AW65,10,FALSE)) -> 693 | BG30: =IF(BK30="","",BS30) -> 31 | BH30: 5 | BI30: ŘEPY I. | BJ30: SEHNAL IVAN | BK30: 141 | BL30: 139 | BM30: 187 | BN30: 103 | BO30: 110 | BP30: =SUM(BK30:BO30) -> 680 | BQ30: =MAX(BK30:BO30) -> 187 | BR30: =SUM(BP30*1000)+BQ30+0.3 -> 680187.3 | BS30: =IF(BK30="","",RANK(BR30,BR6:BR65,0)) -> 31 | BW30: =IF(BK30="","",RANK(BV35,BV11:BV65,0)) -> 7 | BZ30: 25 | CA30: =IF(BY6<25,"",VLOOKUP(25,BG6:BS65,4,FALSE)) -> CARVAN PAVEL | CB30: =IF(BY6<25,"",VLOOKUP(25,BG6:BS65,10,FALSE)) -> 705 | CE30: =IF(CI30="","",CQ30) -> 45 | CF30: 5 | CG30: KLÍČOV I. | CH30: HÁJEK MOJMÍR | CI30: 116 | CJ30: 151 | CK30: 75 | CL30: 91 | CM30: 116 | CN30: =SUM(CI30:CM30) -> 549 | CO30: =MAX(CI30:CM30) -> 151 | CP30: =SUM(CN30*1000)+CO30+0.3 -> 549151.3 | CQ30: =IF(CI30="","",RANK(CP30,CP6:CP65,0)) -> 45 | CU30: =IF(CI30="","",RANK(CT35,CT11:CT65,0)) -> 6 | CX30: 25 | CY30: =IF(CW6<25,"",VLOOKUP(25,CE6:CQ65,4,FALSE)) -> KUTINA PAVEL | CZ30: =IF(CW6<25,"",VLOOKUP(25,CE6:CQ65,10,FALSE)) -> 682 | DC30: =IF(DG30="","",DO30) -> 1 | DD30: 5 | DE30: VRŠOVICE I. | DF30: Krupa Jozef | DG30: 201 | DH30: 205 | DI30: 199 | DJ30: 171 | DK30: 183 | DL30: =SUM(DG30:DK30) -> 959 | DM30: =MAX(DG30:DK30) -> 205 | DN30: =SUM(DL30*1000)+DM30+0.3 -> 959205.3 | DO30: =IF(DG30="","",RANK(DN30,DN6:DN65,0)) -> 1 | DS30: =IF(DG30="","",RANK(DR35,DR11:DR65,0)) -> 1 | DV30: 25 | DW30: =IF(DU6<25,"",VLOOKUP(25,DC6:DO65,4,FALSE)) -> Lazurová Jiřina | DX30: =IF(DU6<25,"",VLOOKUP(25,DC6:DO65,10,FALSE)) -> 704 | EA30: =IF(EE30="","",EM30) -> 35 | EB30: 5 | EC30: HOSTIVAŘ I. | ED30: Křápek Roman | EE30: 111 | EF30: 105 | EG30: 133 | EH30: 139 | EI30: 145 | EJ30: =SUM(EE30:EI30) -> 633 | EK30: =MAX(EE30:EI30) -> 145 | EL30: =SUM(EJ30*1000)+EK30+0.3 -> 633145.3 | EM30: =IF(EE30="","",RANK(EL30,EL6:EL65,0)) -> 35 | EQ30: =IF(EE30="","",RANK(EP35,EP11:EP65,0)) -> 3 | ET30: 25 | EU30: =IF(ES6<25,"",VLOOKUP(25,EA6:EM65,4,FALSE)) -> Brejcha Jaroslav | EV30: =IF(ES6<25,"",VLOOKUP(25,EA6:EM65,10,FALSE)) -> 691 | EY30: =IF(FC30="","",FK30) -> 11 | EZ30: 5 | FA30: KAČEROV I. | FB30: Hübner Jiří | FC30: 157 | FD30: 208 | FE30: 177 | FF30: 123 | FG30: 138 | FH30: =SUM(FC30:FG30) -> 803 | FI30: =MAX(FC30:FG30) -> 208 | FJ30: =SUM(FH30*1000)+FI30+0.3 -> 803208.3 | FK30: =IF(FC30="","",RANK(FJ30,FJ6:FJ65,0)) -> 11 | FO30: =IF(FC30="","",RANK(FN35,FN11:FN65,0)) -> 5 | FR30: 25 | FS30: =IF(FQ6<25,"",VLOOKUP(25,EY6:FL65,4,FALSE)) -> Křemenák Petr | FT30: =IF(FQ6<25,"",VLOOKUP(25,EY6:FL65,10,FALSE)) -> 687 | FW30: =IF(GA30="","",GI30) ->  | FX30: 5 | FY30: HOSTIVAŘ I. | GF30: =SUM(GA30:GE30) -> 0 | GG30: =MAX(GA30:GE30) -> 0 | GH30: =SUM(GF30*1000)+GG30+0.3 -> 0.3 | GI30: =IF(GA30="","",RANK(GH30,GH6:GH70,0)) ->  | GM30: =IF(GA30="","",RANK(GL35,GL11:GL71,0)) ->  | GP30: 25 | GQ30: =IF(GO6<25,"",VLOOKUP(25,FW6:GI70,4,FALSE)) ->  | GR30: =IF(GO6<25,"",VLOOKUP(25,FW6:GI70,10,FALSE)) -> 
O31: =IF(S31="","",AA31) -> 18 | R31: JELÍNEK JAN | S31: 143 | T31: 158 | U31: 165 | V31: 135 | W31: 126 | X31: =SUM(S31:W31) -> 727 | Y31: =MAX(S31:W31) -> 165 | Z31: =SUM(X31*1000)+Y31+0.29 -> 727165.29 | AA31: =IF(S31="","",RANK(Z31,Z6:Z65,0)) -> 18 | AF31: 26 | AG31: =IF(AE6<26,"",VLOOKUP(26,O6:AA65,4,FALSE)) -> KOVÁŘ JAROSLAV | AH31: =IF(AE6<26,"",VLOOKUP(26,O6:AA65,10,FALSE)) -> 673 | AK31: =IF(AO31="","",AW31) -> 27 | AN31: RADOVÁ PETRA | AO31: 121 | AP31: 152 | AQ31: 148 | AR31: 121 | AS31: 144 | AT31: =SUM(AO31:AS31) -> 686 | AU31: =MAX(AO31:AS31) -> 152 | AV31: =SUM(AT31*1000)+AU31+0.29 -> 686152.29 | AW31: =IF(AO31="","",RANK(AV31,AV6:AV65,0)) -> 27 | BB31: 26 | BC31: =IF(BA6<26,"",VLOOKUP(26,AK6:AW65,4,FALSE)) -> BERGER MICHAL | BD31: =IF(BA6<26,"",VLOOKUP(26,AK6:AW65,10,FALSE)) -> 689 | BG31: =IF(BK31="","",BS31) -> 24 | BJ31: TICHÝ HUGO | BK31: 118 | BL31: 123 | BM31: 124 | BN31: 180 | BO31: 166 | BP31: =SUM(BK31:BO31) -> 711 | BQ31: =MAX(BK31:BO31) -> 180 | BR31: =SUM(BP31*1000)+BQ31+0.29 -> 711180.29 | BS31: =IF(BK31="","",RANK(BR31,BR6:BR65,0)) -> 24 | BZ31: 26 | CA31: =IF(BY6<26,"",VLOOKUP(26,BG6:BS65,4,FALSE)) -> KŘEMENÁK PETR | CB31: =IF(BY6<26,"",VLOOKUP(26,BG6:BS65,10,FALSE)) -> 703 | CE31: =IF(CI31="","",CQ31) -> 8 | CH31: KALFIŘT PETR | CI31: 131 | CJ31: 181 | CK31: 138 | CL31: 163 | CM31: 194 | CN31: =SUM(CI31:CM31) -> 807 | CO31: =MAX(CI31:CM31) -> 194 | CP31: =SUM(CN31*1000)+CO31+0.29 -> 807194.29 | CQ31: =IF(CI31="","",RANK(CP31,CP6:CP65,0)) -> 8 | CX31: 26 | CY31: =IF(CW6<26,"",VLOOKUP(26,CE6:CQ65,4,FALSE)) -> ČÍHAL FRANTIŠEK | CZ31: =IF(CW6<26,"",VLOOKUP(26,CE6:CQ65,10,FALSE)) -> 681 | DC31: =IF(DG31="","",DO31) -> 6 | DF31: Podhola Martin | DG31: 172 | DH31: 144 | DI31: 173 | DJ31: 185 | DK31: 152 | DL31: =SUM(DG31:DK31) -> 826 | DM31: =MAX(DG31:DK31) -> 185 | DN31: =SUM(DL31*1000)+DM31+0.29 -> 826185.29 | DO31: =IF(DG31="","",RANK(DN31,DN6:DN65,0)) -> 6 | DV31: 26 | DW31: =IF(DU6<26,"",VLOOKUP(26,DC6:DO65,4,FALSE)) -> Hübner Jiří | DX31: =IF(DU6<26,"",VLOOKUP(26,DC6:DO65,10,FALSE)) -> 703 | EA31: =IF(EE31="","",EM31) -> 30 | ED31: Růžička Ladislav | EE31: 123 | EF31: 137 | EG31: 137 | EH31: 142 | EI31: 125 | EJ31: =SUM(EE31:EI31) -> 664 | EK31: =MAX(EE31:EI31) -> 142 | EL31: =SUM(EJ31*1000)+EK31+0.29 -> 664142.29 | EM31: =IF(EE31="","",RANK(EL31,EL6:EL65,0)) -> 30 | ET31: 26 | EU31: =IF(ES6<26,"",VLOOKUP(26,EA6:EM65,4,FALSE)) -> Radová Petra | EV31: =IF(ES6<26,"",VLOOKUP(26,EA6:EM65,10,FALSE)) -> 685 | EY31: =IF(FC31="","",FK31) -> 34 | FB31: Turek Stanislav | FC31: 100 | FD31: 103 | FE31: 168 | FF31: 141 | FG31: 137 | FH31: =SUM(FC31:FG31) -> 649 | FI31: =MAX(FC31:FG31) -> 168 | FJ31: =SUM(FH31*1000)+FI31+0.29 -> 649168.29 | FK31: =IF(FC31="","",RANK(FJ31,FJ6:FJ65,0)) -> 34 | FR31: 26 | FS31: =IF(FQ6<26,"",VLOOKUP(26,EY6:FL65,4,FALSE)) -> Kazda Jan | FT31: =IF(FQ6<26,"",VLOOKUP(26,EY6:FL65,10,FALSE)) -> 682 | FW31: =IF(GA31="","",GI31) ->  | GF31: =SUM(GA31:GE31) -> 0 | GG31: =MAX(GA31:GE31) -> 0 | GH31: =SUM(GF31*1000)+GG31+0.29 -> 0.29 | GI31: =IF(GA31="","",RANK(GH31,GH6:GH70,0)) ->  | GP31: 26 | GQ31: =IF(GO6<26,"",VLOOKUP(26,FW6:GI70,4,FALSE)) ->  | GR31: =IF(GO6<26,"",VLOOKUP(26,FW6:GI70,10,FALSE)) -> 
O32: =IF(S32="","",AA32) -> 16 | R32: RŮŽIČKA LADISLAV | S32: 133 | T32: 162 | U32: 155 | V32: 128 | W32: 166 | X32: =SUM(S32:W32) -> 744 | Y32: =MAX(S32:W32) -> 166 | Z32: =SUM(X32*1000)+Y32+0.28 -> 744166.28 | AA32: =IF(S32="","",RANK(Z32,Z6:Z65,0)) -> 16 | AF32: 27 | AG32: =IF(AE6<27,"",VLOOKUP(27,O6:AA65,4,FALSE)) -> MOTTL PAVEL | AH32: =IF(AE6<27,"",VLOOKUP(27,O6:AA65,10,FALSE)) -> 664 | AK32: =IF(AO32="","",AW32) -> 11 | AN32: ONDŘICH FRANTIŠEK | AO32: 145 | AP32: 176 | AQ32: 138 | AR32: 173 | AS32: 183 | AT32: =SUM(AO32:AS32) -> 815 | AU32: =MAX(AO32:AS32) -> 183 | AV32: =SUM(AT32*1000)+AU32+0.28 -> 815183.28 | AW32: =IF(AO32="","",RANK(AV32,AV6:AV65,0)) -> 11 | BB32: 27 | BC32: =IF(BA6<27,"",VLOOKUP(27,AK6:AW65,4,FALSE)) -> RADOVÁ PETRA | BD32: =IF(BA6<27,"",VLOOKUP(27,AK6:AW65,10,FALSE)) -> 686 | BG32: =IF(BK32="","",BS32) -> 47 | BJ32: KŘIKAVA MIROSLAV | BK32: 115 | BL32: 126 | BM32: 98 | BN32: 99 | BO32: 98 | BP32: =SUM(BK32:BO32) -> 536 | BQ32: =MAX(BK32:BO32) -> 126 | BR32: =SUM(BP32*1000)+BQ32+0.28 -> 536126.28 | BS32: =IF(BK32="","",RANK(BR32,BR6:BR65,0)) -> 47 | BZ32: 27 | CA32: =IF(BY6<27,"",VLOOKUP(27,BG6:BS65,4,FALSE)) -> HÁJEK MOJMÍR | CB32: =IF(BY6<27,"",VLOOKUP(27,BG6:BS65,10,FALSE)) -> 699 | CE32: =IF(CI32="","",CQ32) -> 32 | CH32: KŘEMENÁK PETR | CI32: 124 | CJ32: 144 | CK32: 114 | CL32: 113 | CM32: 143 | CN32: =SUM(CI32:CM32) -> 638 | CO32: =MAX(CI32:CM32) -> 144 | CP32: =SUM(CN32*1000)+CO32+0.28 -> 638144.28 | CQ32: =IF(CI32="","",RANK(CP32,CP6:CP65,0)) -> 32 | CX32: 27 | CY32: =IF(CW6<27,"",VLOOKUP(27,CE6:CQ65,4,FALSE)) -> BOŠEK JAN | CZ32: =IF(CW6<27,"",VLOOKUP(27,CE6:CQ65,10,FALSE)) -> 675 | DC32: =IF(DG32="","",DO32) -> 2 | DF32: Holkup Jan | DG32: 235 | DH32: 146 | DI32: 166 | DJ32: 187 | DK32: 178 | DL32: =SUM(DG32:DK32) -> 912 | DM32: =MAX(DG32:DK32) -> 235 | DN32: =SUM(DL32*1000)+DM32+0.28 -> 912235.28 | DO32: =IF(DG32="","",RANK(DN32,DN6:DN65,0)) -> 2 | DV32: 27 | DW32: =IF(DU6<27,"",VLOOKUP(27,DC6:DO65,4,FALSE)) -> Mysliveček Jaroslav | DX32: =IF(DU6<27,"",VLOOKUP(27,DC6:DO65,10,FALSE)) -> 701 | EA32: =IF(EE32="","",EM32) -> 13 | ED32: Jelínek Jan | EE32: 134 | EF32: 142 | EG32: 134 | EH32: 164 | EI32: 201 | EJ32: =SUM(EE32:EI32) -> 775 | EK32: =MAX(EE32:EI32) -> 201 | EL32: =SUM(EJ32*1000)+EK32+0.28 -> 775201.28 | EM32: =IF(EE32="","",RANK(EL32,EL6:EL65,0)) -> 13 | ET32: 27 | EU32: =IF(ES6<27,"",VLOOKUP(27,EA6:EM65,4,FALSE)) -> Hübner Jiří | EV32: =IF(ES6<27,"",VLOOKUP(27,EA6:EM65,10,FALSE)) -> 677 | EY32: =IF(FC32="","",FK32) -> 10 | FB32: Ondřich František | FC32: 200 | FD32: 138 | FE32: 144 | FF32: 163 | FG32: 164 | FH32: =SUM(FC32:FG32) -> 809 | FI32: =MAX(FC32:FG32) -> 200 | FJ32: =SUM(FH32*1000)+FI32+0.28 -> 809200.28 | FK32: =IF(FC32="","",RANK(FJ32,FJ6:FJ65,0)) -> 10 | FR32: 27 | FS32: =IF(FQ6<27,"",VLOOKUP(27,EY6:FL65,4,FALSE)) -> Brejcha Jaroslav | FT32: =IF(FQ6<27,"",VLOOKUP(27,EY6:FL65,10,FALSE)) -> 681 | FW32: =IF(GA32="","",GI32) ->  | GF32: =SUM(GA32:GE32) -> 0 | GG32: =MAX(GA32:GE32) -> 0 | GH32: =SUM(GF32*1000)+GG32+0.28 -> 0.28 | GI32: =IF(GA32="","",RANK(GH32,GH6:GH70,0)) ->  | GP32: 27 | GQ32: =IF(GO6<27,"",VLOOKUP(27,FW6:GI70,4,FALSE)) ->  | GR32: =IF(GO6<27,"",VLOOKUP(27,FW6:GI70,10,FALSE)) -> 
O33: =IF(S33="","",AA33) -> 1 | R33: ŠAFAŘÍK LUDĚK | S33: 188 | T33: 156 | U33: 153 | V33: 231 | W33: 200 | X33: =SUM(S33:W33) -> 928 | Y33: =MAX(S33:W33) -> 231 | Z33: =SUM(X33*1000)+Y33+0.27 -> 928231.27 | AA33: =IF(S33="","",RANK(Z33,Z6:Z65,0)) -> 1 | AF33: 28 | AG33: =IF(AE6<28,"",VLOOKUP(28,O6:AA65,4,FALSE)) -> TÁBORSKÝ LUKÁŠ | AH33: =IF(AE6<28,"",VLOOKUP(28,O6:AA65,10,FALSE)) -> 661 | AK33: =IF(AO33="","",AW33) -> 10 | AN33: MAŠÁT PETR | AO33: 167 | AP33: 172 | AQ33: 158 | AR33: 151 | AS33: 178 | AT33: =SUM(AO33:AS33) -> 826 | AU33: =MAX(AO33:AS33) -> 178 | AV33: =SUM(AT33*1000)+AU33+0.27 -> 826178.27 | AW33: =IF(AO33="","",RANK(AV33,AV6:AV65,0)) -> 10 | BB33: 28 | BC33: =IF(BA6<28,"",VLOOKUP(28,AK6:AW65,4,FALSE)) -> LOKVENC JIŘÍ | BD33: =IF(BA6<28,"",VLOOKUP(28,AK6:AW65,10,FALSE)) -> 686 | BG33: =IF(BK33="","",BS33) -> 6 | BJ33: MOTTL PAVEL | BK33: 201 | BL33: 153 | BM33: 168 | BN33: 197 | BO33: 119 | BP33: =SUM(BK33:BO33) -> 838 | BQ33: =MAX(BK33:BO33) -> 201 | BR33: =SUM(BP33*1000)+BQ33+0.27 -> 838201.27 | BS33: =IF(BK33="","",RANK(BR33,BR6:BR65,0)) -> 6 | BZ33: 28 | CA33: =IF(BY6<28,"",VLOOKUP(28,BG6:BS65,4,FALSE)) -> RADOVÁ PETRA | CB33: =IF(BY6<28,"",VLOOKUP(28,BG6:BS65,10,FALSE)) -> 684 | CE33: =IF(CI33="","",CQ33) -> 38 | CH33: NOVOTNÁ PETRA | CI33: 91 | CJ33: 121 | CK33: 130 | CL33: 129 | CM33: 123 | CN33: =SUM(CI33:CM33) -> 594 | CO33: =MAX(CI33:CM33) -> 130 | CP33: =SUM(CN33*1000)+CO33+0.27 -> 594130.27 | CQ33: =IF(CI33="","",RANK(CP33,CP6:CP65,0)) -> 38 | CX33: 28 | CY33: =IF(CW6<28,"",VLOOKUP(28,CE6:CQ65,4,FALSE)) -> JELÍNEK JAN | CZ33: =IF(CW6<28,"",VLOOKUP(28,CE6:CQ65,10,FALSE)) -> 666 | DC33: =IF(DG33="","",DO33) -> 29 | DF33: Kovář Jaroslav | DG33: 152 | DH33: 107 | DI33: 148 | DJ33: 164 | DK33: 117 | DL33: =SUM(DG33:DK33) -> 688 | DM33: =MAX(DG33:DK33) -> 164 | DN33: =SUM(DL33*1000)+DM33+0.27 -> 688164.27 | DO33: =IF(DG33="","",RANK(DN33,DN6:DN65,0)) -> 29 | DV33: 28 | DW33: =IF(DU6<28,"",VLOOKUP(28,DC6:DO65,4,FALSE)) -> Pospíšil Lukáš | DX33: =IF(DU6<28,"",VLOOKUP(28,DC6:DO65,10,FALSE)) -> 697 | EA33: =IF(EE33="","",EM33) -> 2 | ED33: Lazur Vladimír | EE33: 191 | EF33: 145 | EG33: 197 | EH33: 156 | EI33: 212 | EJ33: =SUM(EE33:EI33) -> 901 | EK33: =MAX(EE33:EI33) -> 212 | EL33: =SUM(EJ33*1000)+EK33+0.27 -> 901212.27 | EM33: =IF(EE33="","",RANK(EL33,EL6:EL65,0)) -> 2 | ET33: 28 | EU33: =IF(ES6<28,"",VLOOKUP(28,EA6:EM65,4,FALSE)) -> Turek Stanislav | EV33: =IF(ES6<28,"",VLOOKUP(28,EA6:EM65,10,FALSE)) -> 674 | EY33: =IF(FC33="","",FK33) -> 30 | FB33: Mašát Petr | FC33: 120 | FD33: 141 | FE33: 116 | FF33: 136 | FG33: 156 | FH33: =SUM(FC33:FG33) -> 669 | FI33: =MAX(FC33:FG33) -> 156 | FJ33: =SUM(FH33*1000)+FI33+0.27 -> 669156.27 | FK33: =IF(FC33="","",RANK(FJ33,FJ6:FJ65,0)) -> 30 | FR33: 28 | FS33: =IF(FQ6<28,"",VLOOKUP(28,EY6:FL65,4,FALSE)) -> Radová Petra | FT33: =IF(FQ6<28,"",VLOOKUP(28,EY6:FL65,10,FALSE)) -> 675 | FW33: =IF(GA33="","",GI33) ->  | GF33: =SUM(GA33:GE33) -> 0 | GG33: =MAX(GA33:GE33) -> 0 | GH33: =SUM(GF33*1000)+GG33+0.27 -> 0.27 | GI33: =IF(GA33="","",RANK(GH33,GH6:GH70,0)) ->  | GP33: 28 | GQ33: =IF(GO6<28,"",VLOOKUP(28,FW6:GI70,4,FALSE)) ->  | GR33: =IF(GO6<28,"",VLOOKUP(28,FW6:GI70,10,FALSE)) -> 
O34: =IF(S34="","",AA34) -> 5 | R34: LAZUR VLADIMÍR | S34: 159 | T34: 160 | U34: 165 | V34: 176 | W34: 187 | X34: =SUM(S34:W34) -> 847 | Y34: =MAX(S34:W34) -> 187 | Z34: =SUM(X34*1000)+Y34+0.26 -> 847187.26 | AA34: =IF(S34="","",RANK(Z34,Z6:Z65,0)) -> 5 | AF34: 29 | AG34: =IF(AE6<29,"",VLOOKUP(29,O6:AA65,4,FALSE)) -> BROŽ STANISLAV | AH34: =IF(AE6<29,"",VLOOKUP(29,O6:AA65,10,FALSE)) -> 657 | AK34: =IF(AO34="","",AW34) -> 7 | AN34: CARVAN PAVEL | AO34: 156 | AP34: 180 | AQ34: 178 | AR34: 184 | AS34: 162 | AT34: =SUM(AO34:AS34) -> 860 | AU34: =MAX(AO34:AS34) -> 184 | AV34: =SUM(AT34*1000)+AU34+0.26 -> 860184.26 | AW34: =IF(AO34="","",RANK(AV34,AV6:AV65,0)) -> 7 | BB34: 29 | BC34: =IF(BA6<29,"",VLOOKUP(29,AK6:AW65,4,FALSE)) -> POSPÍŠIL LUKÁŠ | BD34: =IF(BA6<29,"",VLOOKUP(29,AK6:AW65,10,FALSE)) -> 683 | BG34: =IF(BK34="","",BS34) -> 21 | BJ34: SLADOVNÍK MILOSLAV | BK34: 126 | BL34: 152 | BM34: 146 | BN34: 159 | BO34: 144 | BP34: =SUM(BK34:BO34) -> 727 | BQ34: =MAX(BK34:BO34) -> 159 | BR34: =SUM(BP34*1000)+BQ34+0.26 -> 727159.26 | BS34: =IF(BK34="","",RANK(BR34,BR6:BR65,0)) -> 21 | BZ34: 29 | CA34: =IF(BY6<29,"",VLOOKUP(29,BG6:BS65,4,FALSE)) -> BREJCHA JAROSLAV | CB34: =IF(BY6<29,"",VLOOKUP(29,BG6:BS65,10,FALSE)) -> 683 | CE34: =IF(CI34="","",CQ34) -> 11 | CH34: ŠTĚPÁN RADEK | CI34: 153 | CJ34: 136 | CK34: 184 | CL34: 167 | CM34: 139 | CN34: =SUM(CI34:CM34) -> 779 | CO34: =MAX(CI34:CM34) -> 184 | CP34: =SUM(CN34*1000)+CO34+0.26 -> 779184.26 | CQ34: =IF(CI34="","",RANK(CP34,CP6:CP65,0)) -> 11 | CX34: 29 | CY34: =IF(CW6<29,"",VLOOKUP(29,CE6:CQ65,4,FALSE)) -> BROŽ STANISLAV | CZ34: =IF(CW6<29,"",VLOOKUP(29,CE6:CQ65,10,FALSE)) -> 666 | DC34: =IF(DG34="","",DO34) -> 11 | DF34: Skružná Pavla | DG34: 150 | DH34: 162 | DI34: 181 | DJ34: 142 | DK34: 160 | DL34: =SUM(DG34:DK34) -> 795 | DM34: =MAX(DG34:DK34) -> 181 | DN34: =SUM(DL34*1000)+DM34+0.26 -> 795181.26 | DO34: =IF(DG34="","",RANK(DN34,DN6:DN65,0)) -> 11 | DV34: 29 | DW34: =IF(DU6<29,"",VLOOKUP(29,DC6:DO65,4,FALSE)) -> Kovář Jaroslav | DX34: =IF(DU6<29,"",VLOOKUP(29,DC6:DO65,10,FALSE)) -> 688 | EA34: =IF(EE34="","",EM34) -> 1 | ED34: Šafařík Luděk | EE34: 213 | EF34: 186 | EG34: 202 | EH34: 186 | EI34: 175 | EJ34: =SUM(EE34:EI34) -> 962 | EK34: =MAX(EE34:EI34) -> 213 | EL34: =SUM(EJ34*1000)+EK34+0.26 -> 962213.26 | EM34: =IF(EE34="","",RANK(EL34,EL6:EL65,0)) -> 1 | ET34: 29 | EU34: =IF(ES6<29,"",VLOOKUP(29,EA6:EM65,4,FALSE)) -> Mottl Pavel | EV34: =IF(ES6<29,"",VLOOKUP(29,EA6:EM65,10,FALSE)) -> 673 | EY34: =IF(FC34="","",FK34) -> 9 | FB34: Carvan Pavel | FC34: 160 | FD34: 147 | FE34: 150 | FF34: 185 | FG34: 168 | FH34: =SUM(FC34:FG34) -> 810 | FI34: =MAX(FC34:FG34) -> 185 | FJ34: =SUM(FH34*1000)+FI34+0.26 -> 810185.26 | FK34: =IF(FC34="","",RANK(FJ34,FJ6:FJ65,0)) -> 9 | FR34: 29 | FS34: =IF(FQ6<29,"",VLOOKUP(29,EY6:FL65,4,FALSE)) -> Kollár Pavel | FT34: =IF(FQ6<29,"",VLOOKUP(29,EY6:FL65,10,FALSE)) -> 672 | FW34: =IF(GA34="","",GI34) ->  | GF34: =SUM(GA34:GE34) -> 0 | GG34: =MAX(GA34:GE34) -> 0 | GH34: =SUM(GF34*1000)+GG34+0.26 -> 0.26 | GI34: =IF(GA34="","",RANK(GH34,GH6:GH70,0)) ->  | GP34: 29 | GQ34: =IF(GO6<29,"",VLOOKUP(29,FW6:GI70,4,FALSE)) ->  | GR34: =IF(GO6<29,"",VLOOKUP(29,FW6:GI70,10,FALSE)) -> 
S35: =SUM(S30:S34) -> 738 | T35: =SUM(T30:T34) -> 791 | U35: =SUM(U30:U34) -> 745 | V35: =SUM(V30:V34) -> 815 | W35: =SUM(W30:W34) -> 794 | AB35: =SUM(S35:W35) -> 3883 | AF35: 30 | AG35: =IF(AE6<30,"",VLOOKUP(30,O6:AA65,4,FALSE)) -> KAZDA JAN | AH35: =IF(AE6<30,"",VLOOKUP(30,O6:AA65,10,FALSE)) -> 655 | AO35: =SUM(AO30:AO34) -> 724 | AP35: =SUM(AP30:AP34) -> 823 | AQ35: =SUM(AQ30:AQ34) -> 756 | AR35: =SUM(AR30:AR34) -> 813 | AS35: =SUM(AS30:AS34) -> 799 | AX35: =SUM(AO35:AS35) -> 3915 | BB35: 30 | BC35: =IF(BA6<30,"",VLOOKUP(30,AK6:AW65,4,FALSE)) -> SEHNAL IVAN | BD35: =IF(BA6<30,"",VLOOKUP(30,AK6:AW65,10,FALSE)) -> 665 | BK35: =SUM(BK30:BK34) -> 701 | BL35: =SUM(BL30:BL34) -> 693 | BM35: =SUM(BM30:BM34) -> 723 | BN35: =SUM(BN30:BN34) -> 738 | BO35: =SUM(BO30:BO34) -> 637 | BT35: =SUM(BK35:BO35) -> 3492 | BU35: =MAX(BK35:BO35) -> 738 | BV35: =IF(BK30="","",SUM(BT35*10000)+BU35) -> 34920738 | BZ35: 30 | CA35: =IF(BY6<30,"",VLOOKUP(30,BG6:BS65,4,FALSE)) -> NOVOTNÁ PETRA | CB35: =IF(BY6<30,"",VLOOKUP(30,BG6:BS65,10,FALSE)) -> 681 | CI35: =SUM(CI30:CI34) -> 615 | CJ35: =SUM(CJ30:CJ34) -> 733 | CK35: =SUM(CK30:CK34) -> 641 | CL35: =SUM(CL30:CL34) -> 663 | CM35: =SUM(CM30:CM34) -> 715 | CR35: =SUM(CI35:CM35) -> 3367 | CS35: =MAX(CI35:CM35) -> 733 | CT35: =IF(CI30="","",SUM(CR35*1000)+CS35) -> 3367733 | CX35: 30 | CY35: =IF(CW6<30,"",VLOOKUP(30,CE6:CQ65,4,FALSE)) -> ONDŘICH FRANTIŠEK | CZ35: =IF(CW6<30,"",VLOOKUP(30,CE6:CQ65,10,FALSE)) -> 664 | DG35: =SUM(DG30:DG34) -> 910 | DH35: =SUM(DH30:DH34) -> 764 | DI35: =SUM(DI30:DI34) -> 867 | DJ35: =SUM(DJ30:DJ34) -> 849 | DK35: =SUM(DK30:DK34) -> 790 | DP35: =SUM(DG35:DK35) -> 4180 | DQ35: =MAX(DG35:DK35) -> 910 | DR35: =IF(DG30="","",SUM(DP35*1000)+DQ35) -> 4180910 | DV35: 30 | DW35: =IF(DU6<30,"",VLOOKUP(30,DC6:DO65,4,FALSE)) -> Carvan Pavel | DX35: =IF(DU6<30,"",VLOOKUP(30,DC6:DO65,10,FALSE)) -> 683 | EE35: =SUM(EE30:EE34) -> 772 | EF35: =SUM(EF30:EF34) -> 715 | EG35: =SUM(EG30:EG34) -> 803 | EH35: =SUM(EH30:EH34) -> 787 | EI35: =SUM(EI30:EI34) -> 858 | EN35: =SUM(EE35:EI35) -> 3935 | EO35: =MAX(EE35:EI35) -> 858 | EP35: =IF(EE30="","",SUM(EN35*1000)+EO35) -> 3935858 | ET35: 30 | EU35: =IF(ES6<30,"",VLOOKUP(30,EA6:EM65,4,FALSE)) -> Růžička Ladislav | EV35: =IF(ES6<30,"",VLOOKUP(30,EA6:EM65,10,FALSE)) -> 664 | FC35: =SUM(FC30:FC34) -> 737 | FD35: =SUM(FD30:FD34) -> 737 | FE35: =SUM(FE30:FE34) -> 755 | FF35: =SUM(FF30:FF34) -> 748 | FG35: =SUM(FG30:FG34) -> 763 | FL35: =SUM(FC35:FG35) -> 3740 | FM35: =MAX(FC35:FG35) -> 763 | FN35: =IF(FC30="","",SUM(FL35*1000)+FM35) -> 3740763 | FR35: 30 | FS35: =IF(FQ6<30,"",VLOOKUP(30,EY6:FL65,4,FALSE)) -> Mašát Petr | FT35: =IF(FQ6<30,"",VLOOKUP(30,EY6:FL65,10,FALSE)) -> 669 | GA35: =SUM(GA30:GA34) -> 0 | GB35: =SUM(GB30:GB34) -> 0 | GC35: =SUM(GC30:GC34) -> 0 | GD35: =SUM(GD30:GD34) -> 0 | GE35: =SUM(GE30:GE34) -> 0 | GJ35: =SUM(GA35:GE35) -> 0 | GK35: =MAX(GA35:GE35) -> 0 | GL35: =IF(GA30="","",SUM(GJ35*1000)+GK35) ->  | GP35: 30 | GQ35: =IF(GO6<30,"",VLOOKUP(30,FW6:GI70,4,FALSE)) ->  | GR35: =IF(GO6<30,"",VLOOKUP(30,FW6:GI70,10,FALSE)) -> 
O36: =IF(S36="","",AA36) -> 42 | P36: 6 | Q36: HOSTIVAŘ II. | R36: ČERMÁK TOMÁŠ | S36: 126 | T36: 104 | U36: 135 | V36: 123 | W36: 89 | X36: =SUM(S36:W36) -> 577 | Y36: =MAX(S36:W36) -> 135 | Z36: =SUM(X36*1000)+Y36+0.25 -> 577135.25 | AA36: =IF(S36="","",RANK(Z36,Z6:Z65,0)) -> 42 | AC36: =RANK(AB41,AB11:AB65,0) -> 9 | AF36: 31 | AG36: =IF(AE6<31,"",VLOOKUP(31,O6:AA65,4,FALSE)) -> PLECHÁČEK MIROSLAV | AH36: =IF(AE6<31,"",VLOOKUP(31,O6:AA65,10,FALSE)) -> 653 | AK36: =IF(AO36="","",AW36) -> 16 | AL36: 6 | AM36: KAČEROV II. | AN36: DOUŠA ADAM | AO36: 165 | AP36: 128 | AQ36: 197 | AR36: 141 | AS36: 135 | AT36: =SUM(AO36:AS36) -> 766 | AU36: =MAX(AO36:AS36) -> 197 | AV36: =SUM(AT36*1000)+AU36+0.25 -> 766197.25 | AW36: =IF(AO36="","",RANK(AV36,AV6:AV65,0)) -> 16 | AY36: =RANK(AX41,AX11:AX65,0) -> 6 | BB36: 31 | BC36: =IF(BA6<31,"",VLOOKUP(31,AK6:AW65,4,FALSE)) -> KRUPOVÁ MARTINA | BD36: =IF(BA6<31,"",VLOOKUP(31,AK6:AW65,10,FALSE)) -> 662 | BG36: =IF(BK36="","",BS36) -> 1 | BH36: 6 | BI36: ŘEPY II. | BJ36: KOCŮR JAROSLAV | BK36: 176 | BL36: 154 | BM36: 187 | BN36: 232 | BO36: 211 | BP36: =SUM(BK36:BO36) -> 960 | BQ36: =MAX(BK36:BO36) -> 232 | BR36: =SUM(BP36*1000)+BQ36+0.25 -> 960232.25 | BS36: =IF(BK36="","",RANK(BR36,BR6:BR65,0)) -> 1 | BW36: =IF(BK36="","",RANK(BV41,BV11:BV65,0)) -> 1 | BZ36: 31 | CA36: =IF(BY6<31,"",VLOOKUP(31,BG6:BS65,4,FALSE)) -> SEHNAL IVAN | CB36: =IF(BY6<31,"",VLOOKUP(31,BG6:BS65,10,FALSE)) -> 680 | CE36: =IF(CI36="","",CQ36) -> 42 | CF36: 6 | CG36: KLÍČOV II. | CH36: ŘEHÁK JAROSLAV | CI36: 117 | CJ36: 110 | CK36: 98 | CL36: 109 | CM36: 126 | CN36: =SUM(CI36:CM36) -> 560 | CO36: =MAX(CI36:CM36) -> 126 | CP36: =SUM(CN36*1000)+CO36+0.25 -> 560126.25 | CQ36: =IF(CI36="","",RANK(CP36,CP6:CP65,0)) -> 42 | CU36: =IF(CI36="","",RANK(CT41,CT11:CT65,0)) -> 10 | CX36: 31 | CY36: =IF(CW6<31,"",VLOOKUP(31,CE6:CQ65,4,FALSE)) -> KŘIKAVA MIROSLAV | CZ36: =IF(CW6<31,"",VLOOKUP(31,CE6:CQ65,10,FALSE)) -> 651 | DC36: =IF(DG36="","",DO36) -> 40 | DD36: 6 | DE36: VRŠOVICE II. | DF36: Aunický František | DG36: 120 | DH36: 118 | DI36: 127 | DJ36: 108 | DK36: 146 | DL36: =SUM(DG36:DK36) -> 619 | DM36: =MAX(DG36:DK36) -> 146 | DN36: =SUM(DL36*1000)+DM36+0.25 -> 619146.25 | DO36: =IF(DG36="","",RANK(DN36,DN6:DN65,0)) -> 40 | DS36: =IF(DG36="","",RANK(DR41,DR11:DR65,0)) -> 9 | DV36: 31 | DW36: =IF(DU6<31,"",VLOOKUP(31,DC6:DO65,4,FALSE)) -> Šafář Ladislav | DX36: =IF(DU6<31,"",VLOOKUP(31,DC6:DO65,10,FALSE)) -> 683 | EA36: =IF(EE36="","",EM36) -> 34 | EB36: 6 | EC36: HOSTIVAŘ II. | ED36: Mysliveček Jaroslav | EE36: 120 | EF36: 128 | EG36: 130 | EH36: 162 | EI36: 102 | EJ36: =SUM(EE36:EI36) -> 642 | EK36: =MAX(EE36:EI36) -> 162 | EL36: =SUM(EJ36*1000)+EK36+0.25 -> 642162.25 | EM36: =IF(EE36="","",RANK(EL36,EL6:EL65,0)) -> 34 | EQ36: =IF(EE36="","",RANK(EP41,EP11:EP65,0)) -> 7 | ET36: 31 | EU36: =IF(ES6<31,"",VLOOKUP(31,EA6:EM65,4,FALSE)) -> Mašát Petr | EV36: =IF(ES6<31,"",VLOOKUP(31,EA6:EM65,10,FALSE)) -> 657 | EY36: =IF(FC36="","",FK36) -> 40 | EZ36: 6 | FA36: KAČEROV II. | FB36: Douša Adam | FC36: 118 | FD36: 115 | FE36: 135 | FF36: 137 | FG36: 126 | FH36: =SUM(FC36:FG36) -> 631 | FI36: =MAX(FC36:FG36) -> 137 | FJ36: =SUM(FH36*1000)+FI36+0.25 -> 631137.25 | FK36: =IF(FC36="","",RANK(FJ36,FJ6:FJ65,0)) -> 40 | FO36: =IF(FC36="","",RANK(FN41,FN11:FN65,0)) -> 8 | FR36: 31 | FS36: =IF(FQ6<31,"",VLOOKUP(31,EY6:FL65,4,FALSE)) -> Křápek Roman | FT36: =IF(FQ6<31,"",VLOOKUP(31,EY6:FL65,10,FALSE)) -> 668 | FW36: =IF(GA36="","",GI36) ->  | FX36: 6 | FY36: HOSTIVAŘ II. | GF36: =SUM(GA36:GE36) -> 0 | GG36: =MAX(GA36:GE36) -> 0 | GH36: =SUM(GF36*1000)+GG36+0.25 -> 0.25 | GI36: =IF(GA36="","",RANK(GH36,GH6:GH70,0)) ->  | GM36: =IF(GA36="","",RANK(GL41,GL11:GL71,0)) ->  | GP36: 31 | GQ36: =IF(GO6<31,"",VLOOKUP(31,FW6:GI70,4,FALSE)) ->  | GR36: =IF(GO6<31,"",VLOOKUP(31,FW6:GI70,10,FALSE)) -> 
O37: =IF(S37="","",AA37) -> 49 | R37: KALOŠOVÁ DAGMAR | S37: 105 | T37: 85 | U37: 127 | V37: 79 | W37: 100 | X37: =SUM(S37:W37) -> 496 | Y37: =MAX(S37:W37) -> 127 | Z37: =SUM(X37*1000)+Y37+0.24 -> 496127.24 | AA37: =IF(S37="","",RANK(Z37,Z6:Z65,0)) -> 49 | AF37: 32 | AG37: =IF(AE6<32,"",VLOOKUP(32,O6:AA65,4,FALSE)) -> KŘÁPEK ROMAN | AH37: =IF(AE6<32,"",VLOOKUP(32,O6:AA65,10,FALSE)) -> 637 | AK37: =IF(AO37="","",AW37) -> 25 | AN37: BROŽ STANISLAV | AO37: 121 | AP37: 134 | AQ37: 132 | AR37: 134 | AS37: 172 | AT37: =SUM(AO37:AS37) -> 693 | AU37: =MAX(AO37:AS37) -> 172 | AV37: =SUM(AT37*1000)+AU37+0.24 -> 693172.24 | AW37: =IF(AO37="","",RANK(AV37,AV6:AV65,0)) -> 25 | BB37: 32 | BC37: =IF(BA6<32,"",VLOOKUP(32,AK6:AW65,4,FALSE)) -> KAZDA JAN | BD37: =IF(BA6<32,"",VLOOKUP(32,AK6:AW65,10,FALSE)) -> 656 | BG37: =IF(BK37="","",BS37) -> 13 | BJ37: ALBA VLADIMÍR | BK37: 116 | BL37: 202 | BM37: 152 | BN37: 133 | BO37: 167 | BP37: =SUM(BK37:BO37) -> 770 | BQ37: =MAX(BK37:BO37) -> 202 | BR37: =SUM(BP37*1000)+BQ37+0.24 -> 770202.24 | BS37: =IF(BK37="","",RANK(BR37,BR6:BR65,0)) -> 13 | BZ37: 32 | CA37: =IF(BY6<32,"",VLOOKUP(32,BG6:BS65,4,FALSE)) -> KAZDA JAN | CB37: =IF(BY6<32,"",VLOOKUP(32,BG6:BS65,10,FALSE)) -> 676 | CE37: =IF(CI37="","",CQ37) -> 50 | CH37: ŠTARKOVÁ TEREZA | CI37: 109 | CJ37: 93 | CK37: 93 | CL37: 100 | CM37: 92 | CN37: =SUM(CI37:CM37) -> 487 | CO37: =MAX(CI37:CM37) -> 109 | CP37: =SUM(CN37*1000)+CO37+0.24 -> 487109.24 | CQ37: =IF(CI37="","",RANK(CP37,CP6:CP65,0)) -> 50 | CX37: 32 | CY37: =IF(CW6<32,"",VLOOKUP(32,CE6:CQ65,4,FALSE)) -> KŘEMENÁK PETR | CZ37: =IF(CW6<32,"",VLOOKUP(32,CE6:CQ65,10,FALSE)) -> 638 | DC37: =IF(DG37="","",DO37) -> 44 | DF37: Pavlíček Rudolf | DG37: 119 | DH37: 97 | DI37: 123 | DJ37: 112 | DK37: 113 | DL37: =SUM(DG37:DK37) -> 564 | DM37: =MAX(DG37:DK37) -> 123 | DN37: =SUM(DL37*1000)+DM37+0.24 -> 564123.24 | DO37: =IF(DG37="","",RANK(DN37,DN6:DN65,0)) -> 44 | DV37: 32 | DW37: =IF(DU6<32,"",VLOOKUP(32,DC6:DO65,4,FALSE)) -> Kolár Pavel | DX37: =IF(DU6<32,"",VLOOKUP(32,DC6:DO65,10,FALSE)) -> 681 | EA37: =IF(EE37="","",EM37) -> 36 | ED37: Šafář Ladislav | EE37: 129 | EF37: 138 | EG37: 133 | EH37: 115 | EI37: 116 | EJ37: =SUM(EE37:EI37) -> 631 | EK37: =MAX(EE37:EI37) -> 138 | EL37: =SUM(EJ37*1000)+EK37+0.24 -> 631138.24 | EM37: =IF(EE37="","",RANK(EL37,EL6:EL65,0)) -> 36 | ET37: 32 | EU37: =IF(ES6<32,"",VLOOKUP(32,EA6:EM65,4,FALSE)) -> Kolár Vladimír | EV37: =IF(ES6<32,"",VLOOKUP(32,EA6:EM65,10,FALSE)) -> 650 | EY37: =IF(FC37="","",FK37) -> 44 | FB37: Kutina Pavel | FC37: 133 | FD37: 100 | FE37: 99 | FF37: 135 | FG37: 148 | FH37: =SUM(FC37:FG37) -> 615 | FI37: =MAX(FC37:FG37) -> 148 | FJ37: =SUM(FH37*1000)+FI37+0.24 -> 615148.24 | FK37: =IF(FC37="","",RANK(FJ37,FJ6:FJ65,0)) -> 44 | FR37: 32 | FS37: =IF(FQ6<32,"",VLOOKUP(32,EY6:FL65,4,FALSE)) -> Sehnal Ivan ing. | FT37: =IF(FQ6<32,"",VLOOKUP(32,EY7:FL66,10,FALSE)) -> 658 | FW37: =IF(GA37="","",GI37) ->  | GF37: =SUM(GA37:GE37) -> 0 | GG37: =MAX(GA37:GE37) -> 0 | GH37: =SUM(GF37*1000)+GG37+0.24 -> 0.24 | GI37: =IF(GA37="","",RANK(GH37,GH6:GH70,0)) ->  | GP37: 32 | GQ37: =IF(GO6<32,"",VLOOKUP(32,FW6:GI70,4,FALSE)) ->  | GR37: =IF(GO6<32,"",VLOOKUP(32,FW6:GI70,10,FALSE)) -> 
O38: =IF(S38="","",AA38) -> 23 | R38: MYSLIVEČEK JAROSLAV | S38: 124 | T38: 176 | U38: 143 | V38: 147 | W38: 112 | X38: =SUM(S38:W38) -> 702 | Y38: =MAX(S38:W38) -> 176 | Z38: =SUM(X38*1000)+Y38+0.23 -> 702176.23 | AA38: =IF(S38="","",RANK(Z38,Z6:Z65,0)) -> 23 | AF38: 33 | AG38: =IF(AE6<33,"",VLOOKUP(33,O6:AA65,4,FALSE)) -> DOUŠA ADAM | AH38: =IF(AE6<33,"",VLOOKUP(33,O6:AA65,10,FALSE)) -> 636 | AK38: =IF(AO38="","",AW38) -> 37 | AN38: ŽALUD MIROSLAV | AO38: 134 | AP38: 130 | AQ38: 110 | AR38: 112 | AS38: 139 | AT38: =SUM(AO38:AS38) -> 625 | AU38: =MAX(AO38:AS38) -> 139 | AV38: =SUM(AT38*1000)+AU38+0.23 -> 625139.23 | AW38: =IF(AO38="","",RANK(AV38,AV6:AV65,0)) -> 37 | BB38: 33 | BC38: =IF(BA6<33,"",VLOOKUP(33,AK6:AW65,4,FALSE)) -> TROLLER PAVEL | BD38: =IF(BA6<33,"",VLOOKUP(33,AK6:AW65,10,FALSE)) -> 638 | BG38: =IF(BK38="","",BS38) -> 23 | BJ38: FRONĚK MARTIN | BK38: 138 | BL38: 145 | BM38: 162 | BN38: 140 | BO38: 135 | BP38: =SUM(BK38:BO38) -> 720 | BQ38: =MAX(BK38:BO38) -> 162 | BR38: =SUM(BP38*1000)+BQ38+0.23 -> 720162.23 | BS38: =IF(BK38="","",RANK(BR38,BR6:BR65,0)) -> 23 | BZ38: 33 | CA38: =IF(BY6<33,"",VLOOKUP(33,BG6:BS65,4,FALSE)) -> BOŠEK JAN | CB38: =IF(BY6<33,"",VLOOKUP(33,BG6:BS65,10,FALSE)) -> 673 | CE38: =IF(CI38="","",CQ38) -> 44 | CH38: VYCHNEROVÁ MICHAELA | CI38: 92 | CJ38: 79 | CK38: 153 | CL38: 116 | CM38: 116 | CN38: =SUM(CI38:CM38) -> 556 | CO38: =MAX(CI38:CM38) -> 153 | CP38: =SUM(CN38*1000)+CO38+0.23 -> 556153.23 | CQ38: =IF(CI38="","",RANK(CP38,CP6:CP65,0)) -> 44 | CX38: 33 | CY38: =IF(CW6<33,"",VLOOKUP(33,CE6:CQ65,4,FALSE)) -> ŠAFÁŘ LADISLAV | CZ38: =IF(CW6<33,"",VLOOKUP(33,CE6:CQ65,10,FALSE)) -> 632 | DC38: =IF(DG38="","",DO38) -> 48 | DF38: Fay Vlastimil | DG38: 109 | DH38: 102 | DI38: 99 | DJ38: 105 | DK38: 124 | DL38: =SUM(DG38:DK38) -> 539 | DM38: =MAX(DG38:DK38) -> 124 | DN38: =SUM(DL38*1000)+DM38+0.23 -> 539124.23 | DO38: =IF(DG38="","",RANK(DN38,DN6:DN65,0)) -> 48 | DV38: 33 | DW38: =IF(DU6<33,"",VLOOKUP(33,DC6:DO65,4,FALSE)) -> Kutina Pavel | DX38: =IF(DU6<33,"",VLOOKUP(33,DC6:DO65,10,FALSE)) -> 676 | EA38: =IF(EE38="","",EM38) -> 48 | ED38: Čermák Tomáš | EE38: 89 | EF38: 128 | EG38: 121 | EH38: 133 | EI38: 114 | EJ38: =SUM(EE38:EI38) -> 585 | EK38: =MAX(EE38:EI38) -> 133 | EL38: =SUM(EJ38*1000)+EK38+0.23 -> 585133.23 | EM38: =IF(EE38="","",RANK(EL38,EL6:EL65,0)) -> 48 | ET38: 33 | EU38: =IF(ES6<33,"",VLOOKUP(33,EA6:EM65,4,FALSE)) -> Lokvenc Jiří | EV38: =IF(ES6<33,"",VLOOKUP(33,EA6:EM65,10,FALSE)) -> 645 | EY38: =IF(FC38="","",FK38) -> 27 | FB38: Brejcha Jaroslav | FC38: 143 | FD38: 132 | FE38: 141 | FF38: 137 | FG38: 128 | FH38: =SUM(FC38:FG38) -> 681 | FI38: =MAX(FC38:FG38) -> 143 | FJ38: =SUM(FH38*1000)+FI38+0.23 -> 681143.23 | FK38: =IF(FC38="","",RANK(FJ38,FJ6:FJ65,0)) -> 27 | FR38: 33 | FS38: =IF(FQ6<33,"",VLOOKUP(33,EY6:FL65,4,FALSE)) -> Šafář Ladislav | FT38: =IF(FQ6<33,"",VLOOKUP(33,EY6:FL65,10,FALSE)) -> 652 | FW38: =IF(GA38="","",GI38) ->  | GF38: =SUM(GA38:GE38) -> 0 | GG38: =MAX(GA38:GE38) -> 0 | GH38: =SUM(GF38*1000)+GG38+0.23 -> 0.23 | GI38: =IF(GA38="","",RANK(GH38,GH6:GH70,0)) ->  | GP38: 33 | GQ38: =IF(GO6<33,"",VLOOKUP(33,FW6:GI70,4,FALSE)) ->  | GR38: =IF(GO6<33,"",VLOOKUP(33,FW6:GI70,10,FALSE)) -> 
O39: =IF(S39="","",AA39) -> 36 | R39: ŠAFÁŘ VLADIMÍR | S39: 144 | T39: 108 | U39: 98 | V39: 146 | W39: 120 | X39: =SUM(S39:W39) -> 616 | Y39: =MAX(S39:W39) -> 146 | Z39: =SUM(X39*1000)+Y39+0.21 -> 616146.21 | AA39: =IF(S39="","",RANK(Z39,Z6:Z65,0)) -> 36 | AF39: 34 | AG39: =IF(AE6<34,"",VLOOKUP(34,O6:AA65,4,FALSE)) -> SEHNAL IVAN | AH39: =IF(AE6<34,"",VLOOKUP(34,O6:AA65,10,FALSE)) -> 631 | AK39: =IF(AO39="","",AW39) -> 39 | AN39: BREJCHA JAROSLAV | AO39: 107 | AP39: 116 | AQ39: 158 | AR39: 112 | AS39: 125 | AT39: =SUM(AO39:AS39) -> 618 | AU39: =MAX(AO39:AS39) -> 158 | AV39: =SUM(AT39*1000)+AU39+0.21 -> 618158.21 | AW39: =IF(AO39="","",RANK(AV39,AV6:AV65,0)) -> 39 | BB39: 34 | BC39: =IF(BA6<34,"",VLOOKUP(34,AK6:AW65,4,FALSE)) -> TICHÝ HUGO | BD39: =IF(BA6<34,"",VLOOKUP(34,AK6:AW65,10,FALSE)) -> 636 | BG39: =IF(BK39="","",BS39) -> 18 | BJ39: KROČIL TOMÁŠ | BK39: 142 | BL39: 141 | BM39: 139 | BN39: 151 | BO39: 169 | BP39: =SUM(BK39:BO39) -> 742 | BQ39: =MAX(BK39:BO39) -> 169 | BR39: =SUM(BP39*1000)+BQ39+0.21 -> 742169.21 | BS39: =IF(BK39="","",RANK(BR39,BR6:BR65,0)) -> 18 | BZ39: 34 | CA39: =IF(BY6<34,"",VLOOKUP(34,BG6:BS65,4,FALSE)) -> DOUŠA ADAM | CB39: =IF(BY6<34,"",VLOOKUP(34,BG6:BS65,10,FALSE)) -> 672 | CE39: =IF(CI39="","",CQ39) -> 40 | CH39: PIPEK PAVEL | CI39: 160 | CJ39: 109 | CK39: 94 | CL39: 117 | CM39: 97 | CN39: =SUM(CI39:CM39) -> 577 | CO39: =MAX(CI39:CM39) -> 160 | CP39: =SUM(CN39*1000)+CO39+0.21 -> 577160.21 | CQ39: =IF(CI39="","",RANK(CP39,CP6:CP65,0)) -> 40 | CX39: 34 | CY39: =IF(CW6<34,"",VLOOKUP(34,CE6:CQ65,4,FALSE)) -> ČERMÁK TOMÁŠ | CZ39: =IF(CW6<34,"",VLOOKUP(34,CE6:CQ65,10,FALSE)) -> 631 | DC39: =IF(DG39="","",DO39) -> 28 | DF39: Pospíšil Lukáš | DG39: 139 | DH39: 130 | DI39: 123 | DJ39: 182 | DK39: 123 | DL39: =SUM(DG39:DK39) -> 697 | DM39: =MAX(DG39:DK39) -> 182 | DN39: =SUM(DL39*1000)+DM39+0.21 -> 697182.21 | DO39: =IF(DG39="","",RANK(DN39,DN6:DN65,0)) -> 28 | DV39: 34 | DW39: =IF(DU6<34,"",VLOOKUP(34,DC6:DO65,4,FALSE)) -> Douša Adam | DX39: =IF(DU6<34,"",VLOOKUP(34,DC6:DO65,10,FALSE)) -> 669 | EA39: =IF(EE39="","",EM39) -> 17 | ED39: Berger Michal | EE39: 132 | EF39: 164 | EG39: 147 | EH39: 153 | EI39: 134 | EJ39: =SUM(EE39:EI39) -> 730 | EK39: =MAX(EE39:EI39) -> 164 | EL39: =SUM(EJ39*1000)+EK39+0.21 -> 730164.21 | EM39: =IF(EE39="","",RANK(EL39,EL6:EL65,0)) -> 17 | ET39: 34 | EU39: =IF(ES6<34,"",VLOOKUP(34,EA6:EM65,4,FALSE)) -> Mysliveček Jaroslav | EV39: =IF(ES6<34,"",VLOOKUP(34,EA6:EM65,10,FALSE)) -> 642 | EY39: =IF(FC39="","",FK39) -> 42 | FB39: Brož Stanislav | FC39: 124 | FD39: 135 | FE39: 111 | FF39: 105 | FG39: 150 | FH39: =SUM(FC39:FG39) -> 625 | FI39: =MAX(FC39:FG39) -> 150 | FJ39: =SUM(FH39*1000)+FI39+0.21 -> 625150.21 | FK39: =IF(FC39="","",RANK(FJ39,FJ6:FJ65,0)) -> 42 | FR39: 34 | FS39: =IF(FQ6<34,"",VLOOKUP(34,EY6:FL65,4,FALSE)) -> Turek Stanislav | FT39: =IF(FQ6<34,"",VLOOKUP(34,EY6:FL65,10,FALSE)) -> 649 | FW39: =IF(GA39="","",GI39) ->  | GF39: =SUM(GA39:GE39) -> 0 | GG39: =MAX(GA39:GE39) -> 0 | GH39: =SUM(GF39*1000)+GG39+0.21 -> 0.21 | GI39: =IF(GA39="","",RANK(GH39,GH6:GH70,0)) ->  | GP39: 34 | GQ39: =IF(GO6<34,"",VLOOKUP(34,FW6:GI70,4,FALSE)) ->  | GR39: =IF(GO6<34,"",VLOOKUP(34,FW6:GI70,10,FALSE)) -> 
O40: =IF(S40="","",AA40) -> 44 | R40: KOLLÁR PAVEL | S40: 115 | T40: 141 | U40: 89 | V40: 101 | W40: 125 | X40: =SUM(S40:W40) -> 571 | Y40: =MAX(S40:W40) -> 141 | Z40: =SUM(X40*1000)+Y40+0.2 -> 571141.2 | AA40: =IF(S40="","",RANK(Z40,Z6:Z65,0)) -> 44 | AF40: 35 | AG40: =IF(AE6<35,"",VLOOKUP(35,O6:AA65,4,FALSE)) -> KRUPKA JAKUB | AH40: =IF(AE6<35,"",VLOOKUP(35,O6:AA65,10,FALSE)) -> 627 | AK40: =IF(AO40="","",AW40) -> 40 | AN40: KUTINA PAVEL | AO40: 118 | AP40: 116 | AQ40: 116 | AR40: 141 | AS40: 120 | AT40: =SUM(AO40:AS40) -> 611 | AU40: =MAX(AO40:AS40) -> 141 | AV40: =SUM(AT40*1000)+AU40+0.2 -> 611141.2 | AW40: =IF(AO40="","",RANK(AV40,AV6:AV65,0)) -> 40 | BB40: 35 | BC40: =IF(BA6<35,"",VLOOKUP(35,AK6:AW65,4,FALSE)) -> NOVOTNÁ PETRA | BD40: =IF(BA6<35,"",VLOOKUP(35,AK6:AW65,10,FALSE)) -> 636 | BG40: =IF(BK40="","",BS40) -> 10 | BJ40: POSPÍŠIL VÁCLAV | BK40: 167 | BL40: 153 | BM40: 171 | BN40: 143 | BO40: 180 | BP40: =SUM(BK40:BO40) -> 814 | BQ40: =MAX(BK40:BO40) -> 180 | BR40: =SUM(BP40*1000)+BQ40+0.2 -> 814180.2 | BS40: =IF(BK40="","",RANK(BR40,BR6:BR65,0)) -> 10 | BZ40: 35 | CA40: =IF(BY6<35,"",VLOOKUP(35,BG6:BS65,4,FALSE)) -> LAZUROVÁ JIŘINA | CB40: =IF(BY6<35,"",VLOOKUP(35,BG6:BS65,10,FALSE)) -> 669 | CE40: =IF(CI40="","",CQ40) -> 46 | CH40: TÁBORSKÝ FRANTIŠEK | CI40: 97 | CJ40: 102 | CK40: 123 | CL40: 114 | CM40: 99 | CN40: =SUM(CI40:CM40) -> 535 | CO40: =MAX(CI40:CM40) -> 123 | CP40: =SUM(CN40*1000)+CO40+0.2 -> 535123.2 | CQ40: =IF(CI40="","",RANK(CP40,CP6:CP65,0)) -> 46 | CX40: 35 | CY40: =IF(CW6<35,"",VLOOKUP(35,CE6:CQ65,4,FALSE)) -> RŮŽIČKA VÁCLAV | CZ40: =IF(CW6<35,"",VLOOKUP(35,CE6:CQ65,10,FALSE)) -> 619 | DC40: =IF(DG40="","",DO40) -> 19 | DF40: Bošek Jan | DG40: 154 | DH40: 146 | DI40: 127 | DJ40: 144 | DK40: 152 | DL40: =SUM(DG40:DK40) -> 723 | DM40: =MAX(DG40:DK40) -> 154 | DN40: =SUM(DL40*1000)+DM40+0.2 -> 723154.2 | DO40: =IF(DG40="","",RANK(DN40,DN6:DN65,0)) -> 19 | DV40: 35 | DW40: =IF(DU6<35,"",VLOOKUP(35,DC6:DO65,4,FALSE)) -> Sladovník Miloslav | DX40: =IF(DU6<35,"",VLOOKUP(35,DC6:DO65,10,FALSE)) -> 668 | EA40: =IF(EE40="","",EM40) -> 23 | ED40: Kollár Pavel | EE40: 122 | EF40: 170 | EG40: 131 | EH40: 130 | EI40: 142 | EJ40: =SUM(EE40:EI40) -> 695 | EK40: =MAX(EE40:EI40) -> 170 | EL40: =SUM(EJ40*1000)+EK40+0.2 -> 695170.2 | EM40: =IF(EE40="","",RANK(EL40,EL6:EL65,0)) -> 23 | ET40: 35 | EU40: =IF(ES6<35,"",VLOOKUP(35,EA6:EM65,4,FALSE)) -> Křápek Roman | EV40: =IF(ES6<35,"",VLOOKUP(35,EA6:EM65,10,FALSE)) -> 633 | EY40: =IF(FC40="","",FK40) -> 28 | FB40: Radová Petra | FC40: 124 | FD40: 101 | FE40: 172 | FF40: 164 | FG40: 114 | FH40: =SUM(FC40:FG40) -> 675 | FI40: =MAX(FC40:FG40) -> 172 | FJ40: =SUM(FH40*1000)+FI40+0.2 -> 675172.2 | FK40: =IF(FC40="","",RANK(FJ40,FJ6:FJ65,0)) -> 28 | FR40: 35 | FS40: =IF(FQ6<35,"",VLOOKUP(35,EY6:FL65,4,FALSE)) -> Skružná Pavla | FT40: =IF(FQ6<35,"",VLOOKUP(35,EY6:FL65,10,FALSE)) -> 647 | FW40: =IF(GA40="","",GI40) ->  | GF40: =SUM(GA40:GE40) -> 0 | GG40: =MAX(GA40:GE40) -> 0 | GH40: =SUM(GF40*1000)+GG40+0.2 -> 0.2 | GI40: =IF(GA40="","",RANK(GH40,GH6:GH70,0)) ->  | GP40: 35 | GQ40: =IF(GO6<35,"",VLOOKUP(35,FW6:GI70,4,FALSE)) ->  | GR40: =IF(GO6<35,"",VLOOKUP(35,FW6:GI70,10,FALSE)) -> 
S41: =SUM(S36:S40) -> 614 | T41: =SUM(T36:T40) -> 614 | U41: =SUM(U36:U40) -> 592 | V41: =SUM(V36:V40) -> 596 | W41: =SUM(W36:W40) -> 546 | AB41: =SUM(S41:W41) -> 2962 | AF41: 36 | AG41: =IF(AE6<36,"",VLOOKUP(36,O6:AA65,4,FALSE)) -> ŠAFÁŘ VLADIMÍR | AH41: =IF(AE6<36,"",VLOOKUP(36,O6:AA65,10,FALSE)) -> 616 | AO41: =SUM(AO36:AO40) -> 645 | AP41: =SUM(AP36:AP40) -> 624 | AQ41: =SUM(AQ36:AQ40) -> 713 | AR41: =SUM(AR36:AR40) -> 640 | AS41: =SUM(AS36:AS40) -> 691 | AX41: =SUM(AO41:AS41) -> 3313 | BB41: 36 | BC41: =IF(BA6<36,"",VLOOKUP(36,AK6:AW65,4,FALSE)) -> KŘÁPEK ROMAN | BD41: =IF(BA6<36,"",VLOOKUP(36,AK6:AW65,10,FALSE)) -> 632 | BK41: =SUM(BK36:BK40) -> 739 | BL41: =SUM(BL36:BL40) -> 795 | BM41: =SUM(BM36:BM40) -> 811 | BN41: =SUM(BN36:BN40) -> 799 | BO41: =SUM(BO36:BO40) -> 862 | BT41: =SUM(BK41:BO41) -> 4006 | BU41: =MAX(BK41:BO41) -> 862 | BV41: =IF(BK36="","",SUM(BT41*10000)+BU41) -> 40060862 | BZ41: 36 | CA41: =IF(BY6<36,"",VLOOKUP(36,BG6:BS65,4,FALSE)) -> KUČERA MIROSLAV | CB41: =IF(BY6<36,"",VLOOKUP(36,BG6:BS65,10,FALSE)) -> 665 | CI41: =SUM(CI36:CI40) -> 575 | CJ41: =SUM(CJ36:CJ40) -> 493 | CK41: =SUM(CK36:CK40) -> 561 | CL41: =SUM(CL36:CL40) -> 556 | CM41: =SUM(CM36:CM40) -> 530 | CR41: =SUM(CI41:CM41) -> 2715 | CS41: =MAX(CI41:CM41) -> 575 | CT41: =IF(CI36="","",SUM(CR41*1000)+CS41) -> 2715575 | CX41: 36 | CY41: =IF(CW6<36,"",VLOOKUP(36,CE6:CQ65,4,FALSE)) -> TICHÝ HUGO | CZ41: =IF(CW6<36,"",VLOOKUP(36,CE6:CQ65,10,FALSE)) -> 618 | DG41: =SUM(DG36:DG40) -> 641 | DH41: =SUM(DH36:DH40) -> 593 | DI41: =SUM(DI36:DI40) -> 599 | DJ41: =SUM(DJ36:DJ40) -> 651 | DK41: =SUM(DK36:DK40) -> 658 | DP41: =SUM(DG41:DK41) -> 3142 | DQ41: =MAX(DG41:DK41) -> 658 | DR41: =IF(DG36="","",SUM(DP41*1000)+DQ41) -> 3142658 | DV41: 36 | DW41: =IF(DU6<36,"",VLOOKUP(36,DC6:DO65,4,FALSE)) -> Štěpán Radek | DX41: =IF(DU6<36,"",VLOOKUP(36,DC6:DO65,10,FALSE)) -> 667 | EE41: =SUM(EE36:EE40) -> 592 | EF41: =SUM(EF36:EF40) -> 728 | EG41: =SUM(EG36:EG40) -> 662 | EH41: =SUM(EH36:EH40) -> 693 | EI41: =SUM(EI36:EI40) -> 608 | EN41: =SUM(EE41:EI41) -> 3283 | EO41: =MAX(EE41:EI41) -> 728 | EP41: =IF(EE36="","",SUM(EN41*1000)+EO41) -> 3283728 | ET41: 36 | EU41: =IF(ES6<36,"",VLOOKUP(36,EA6:EM65,4,FALSE)) -> Šafář Ladislav | EV41: =IF(ES6<36,"",VLOOKUP(36,EA6:EM65,10,FALSE)) -> 631 | FC41: =SUM(FC36:FC40) -> 642 | FD41: =SUM(FD36:FD40) -> 583 | FE41: =SUM(FE36:FE40) -> 658 | FF41: =SUM(FF36:FF40) -> 678 | FG41: =SUM(FG36:FG40) -> 666 | FL41: =SUM(FC41:FG41) -> 3227 | FM41: =MAX(FC41:FG41) -> 678 | FN41: =IF(FC36="","",SUM(FL41*1000)+FM41) -> 3227678 | FR41: 36 | FS41: =IF(FQ6<36,"",VLOOKUP(36,EY6:FL65,4,FALSE)) -> Křikava Miroslav | FT41: =IF(FQ6<36,"",VLOOKUP(36,EY6:FL65,10,FALSE)) -> 644 | GA41: =SUM(GA36:GA40) -> 0 | GB41: =SUM(GB36:GB40) -> 0 | GC41: =SUM(GC36:GC40) -> 0 | GD41: =SUM(GD36:GD40) -> 0 | GE41: =SUM(GE36:GE40) -> 0 | GJ41: =SUM(GA41:GE41) -> 0 | GK41: =MAX(GA41:GE41) -> 0 | GL41: =IF(GA36="","",SUM(GJ41*1000)+GK41) ->  | GP41: 36 | GQ41: =IF(GO6<36,"",VLOOKUP(36,FW6:GI70,4,FALSE)) ->  | GR41: =IF(GO6<36,"",VLOOKUP(36,FW6:GI70,10,FALSE)) -> 
O42: =IF(S42="","",AA42) -> 9 | P42: 7 | Q42: VRŠOVICE I. | R42: KRUPA JOZEF | S42: 143 | T42: 119 | U42: 136 | V42: 201 | W42: 200 | X42: =SUM(S42:W42) -> 799 | Y42: =MAX(S42:W42) -> 201 | Z42: =SUM(X42*1000)+Y42+0.19 -> 799201.19 | AA42: =IF(S42="","",RANK(Z42,Z6:Z65,0)) -> 9 | AC42: =RANK(AB47,AB11:AB65,0) -> 5 | AF42: 37 | AG42: =IF(AE6<37,"",VLOOKUP(37,O6:AA65,4,FALSE)) -> SKRUŽNÁ PAVLA | AH42: =IF(AE6<37,"",VLOOKUP(37,O6:AA65,10,FALSE)) -> 616 | AK42: =IF(AO42="","",AW42) -> 15 | AL42: 7 | AM42: HOSTIVAŘ I. | AN42: MYSLIVEČEK JAROSLAV | AO42: 172 | AP42: 139 | AQ42: 146 | AR42: 167 | AS42: 144 | AT42: =SUM(AO42:AS42) -> 768 | AU42: =MAX(AO42:AS42) -> 172 | AV42: =SUM(AT42*1000)+AU42+0.19 -> 768172.19 | AW42: =IF(AO42="","",RANK(AV42,AV6:AV65,0)) -> 15 | AY42: =RANK(AX47,AX11:AX65,0) -> 3 | BB42: 37 | BC42: =IF(BA6<37,"",VLOOKUP(37,AK6:AW65,4,FALSE)) -> ŽALUD MIROSLAV | BD42: =IF(BA6<37,"",VLOOKUP(37,AK6:AW65,10,FALSE)) -> 625 | BG42: =IF(BK42="","",BS42) -> 20 | BH42: 7 | BI42: KAČEROV I. | BJ42: TOMÁŠEK ZDENĚK | BK42: 161 | BL42: 145 | BM42: 117 | BN42: 179 | BO42: 131 | BP42: =SUM(BK42:BO42) -> 733 | BQ42: =MAX(BK42:BO42) -> 179 | BR42: =SUM(BP42*1000)+BQ42+0.19 -> 733179.19 | BS42: =IF(BK42="","",RANK(BR42,BR6:BR65,0)) -> 20 | BW42: =IF(BK42="","",RANK(BV47,BV11:BV65,0)) -> 2 | BZ42: 37 | CA42: =IF(BY6<37,"",VLOOKUP(37,BG6:BS65,4,FALSE)) -> ŠAFÁŘ BOHUMIL | CB42: =IF(BY6<37,"",VLOOKUP(37,BG6:BS65,10,FALSE)) -> 660 | CE42: =IF(CI42="","",CQ42) -> 13 | CF42: 7 | CG42: ŘEPY I. | CH42: SEHNAL IVAN | CI42: 111 | CJ42: 137 | CK42: 181 | CL42: 186 | CM42: 146 | CN42: =SUM(CI42:CM42) -> 761 | CO42: =MAX(CI42:CM42) -> 186 | CP42: =SUM(CN42*1000)+CO42+0.19 -> 761186.19 | CQ42: =IF(CI42="","",RANK(CP42,CP6:CP65,0)) -> 13 | CU42: =IF(CI42="","",RANK(CT47,CT11:CT65,0)) -> 7 | CX42: 37 | CY42: =IF(CW6<37,"",VLOOKUP(37,CE6:CQ65,4,FALSE)) -> FAY VLASTIMIL | CZ42: =IF(CW6<37,"",VLOOKUP(37,CE6:CQ65,10,FALSE)) -> 601 | DC42: =IF(DG42="","",DO42) -> 16 | DD42: 7 | DE42: KLÍČOV I. | DF42: Troller Pavel | DG42: 152 | DH42: 132 | DI42: 192 | DJ42: 153 | DK42: 128 | DL42: =SUM(DG42:DK42) -> 757 | DM42: =MAX(DG42:DK42) -> 192 | DN42: =SUM(DL42*1000)+DM42+0.19 -> 757192.19 | DO42: =IF(DG42="","",RANK(DN42,DN6:DN65,0)) -> 16 | DS42: =IF(DG42="","",RANK(DR47,DR11:DR65,0)) -> 2 | DV42: 37 | DW42: =IF(DU6<37,"",VLOOKUP(37,DC6:DO65,4,FALSE)) -> Řehák Jaroslav | DX42: =IF(DU6<37,"",VLOOKUP(37,DC6:DO65,10,FALSE)) -> 649 | EA42: =IF(EE42="","",EM42) -> 7 | EB42: 7 | EC42: VRŠOVICE I. | ED42: Krupa Jozef | EE42: 160 | EF42: 169 | EG42: 176 | EH42: 182 | EI42: 160 | EJ42: =SUM(EE42:EI42) -> 847 | EK42: =MAX(EE42:EI42) -> 182 | EL42: =SUM(EJ42*1000)+EK42+0.19 -> 847182.19 | EM42: =IF(EE42="","",RANK(EL42,EL6:EL65,0)) -> 7 | EQ42: =IF(EE42="","",RANK(EP47,EP11:EP65,0)) -> 4 | ET42: 37 | EU42: =IF(ES6<37,"",VLOOKUP(37,EA6:EM65,4,FALSE)) -> Kutina Pavel | EV42: =IF(ES6<37,"",VLOOKUP(37,EA6:EM65,10,FALSE)) -> 627 | EY42: =IF(FC42="","",FK42) -> 31 | EZ42: 7 | FA42: HOSTIVAŘ I. | FB42: Křápek Roman | FC42: 104 | FD42: 125 | FE42: 160 | FF42: 130 | FG42: 149 | FH42: =SUM(FC42:FG42) -> 668 | FI42: =MAX(FC42:FG42) -> 160 | FJ42: =SUM(FH42*1000)+FI42+0.19 -> 668160.19 | FK42: =IF(FC42="","",RANK(FJ42,FJ6:FJ65,0)) -> 31 | FO42: =IF(FC42="","",RANK(FN47,FN11:FN65,0)) -> 2 | FR42: 37 | FS42: =IF(FQ6<37,"",VLOOKUP(37,EY6:FL65,4,FALSE)) -> Štěpán Radek | FT42: =IF(FQ6<37,"",VLOOKUP(37,EY7:FL66,10,FALSE)) -> 642 | FW42: =IF(GA42="","",GI42) ->  | FX42: 7 | FY42: VRŠOVICE I. | GF42: =SUM(GA42:GE42) -> 0 | GG42: =MAX(GA42:GE42) -> 0 | GH42: =SUM(GF42*1000)+GG42+0.19 -> 0.19 | GI42: =IF(GA42="","",RANK(GH42,GH6:GH70,0)) ->  | GM42: =IF(GA42="","",RANK(GL47,GL11:GL71,0)) ->  | GP42: 37 | GQ42: =IF(GO6<37,"",VLOOKUP(37,FW6:GI70,4,FALSE)) ->  | GR42: =IF(GO6<37,"",VLOOKUP(37,FW6:GI70,10,FALSE)) -> 
O43: =IF(S43="","",AA43) -> 6 | R43: VĚCHTÍK ANTONÍN | S43: 123 | T43: 205 | U43: 193 | V43: 151 | W43: 158 | X43: =SUM(S43:W43) -> 830 | Y43: =MAX(S43:W43) -> 205 | Z43: =SUM(X43*1000)+Y43+0.18 -> 830205.18 | AA43: =IF(S43="","",RANK(Z43,Z6:Z65,0)) -> 6 | AF43: 38 | AG43: =IF(AE6<38,"",VLOOKUP(38,O6:AA65,4,FALSE)) -> BREJCHA JAROSLAV | AH43: =IF(AE6<38,"",VLOOKUP(38,O6:AA65,10,FALSE)) -> 614 | AK43: =IF(AO43="","",AW43) -> 36 | AN43: KŘÁPEK ROMAN | AO43: 135 | AP43: 145 | AQ43: 127 | AR43: 111 | AS43: 114 | AT43: =SUM(AO43:AS43) -> 632 | AU43: =MAX(AO43:AS43) -> 145 | AV43: =SUM(AT43*1000)+AU43+0.18 -> 632145.18 | AW43: =IF(AO43="","",RANK(AV43,AV6:AV65,0)) -> 36 | BB43: 38 | BC43: =IF(BA6<38,"",VLOOKUP(38,AK6:AW65,4,FALSE)) -> KOLÁŘ LADISLAV | BD43: =IF(BA6<38,"",VLOOKUP(38,AK6:AW65,10,FALSE)) -> 621 | BG43: =IF(BK43="","",BS43) -> 28 | BJ43: RADOVÁ PETRA | BK43: 121 | BL43: 167 | BM43: 117 | BN43: 149 | BO43: 130 | BP43: =SUM(BK43:BO43) -> 684 | BQ43: =MAX(BK43:BO43) -> 167 | BR43: =SUM(BP43*1000)+BQ43+0.18 -> 684167.18 | BS43: =IF(BK43="","",RANK(BR43,BR6:BR65,0)) -> 28 | BZ43: 38 | CA43: =IF(BY6<38,"",VLOOKUP(38,BG6:BS65,4,FALSE)) -> MYSLIVEČEK JAROSLAV | CB43: =IF(BY6<38,"",VLOOKUP(38,BG6:BS65,10,FALSE)) -> 631 | CE43: =IF(CI43="","",CQ43) -> 26 | CH43: ČÍHAL FRANTIŠEK | CI43: 136 | CJ43: 140 | CK43: 136 | CL43: 118 | CM43: 151 | CN43: =SUM(CI43:CM43) -> 681 | CO43: =MAX(CI43:CM43) -> 151 | CP43: =SUM(CN43*1000)+CO43+0.18 -> 681151.18 | CQ43: =IF(CI43="","",RANK(CP43,CP6:CP65,0)) -> 26 | CX43: 38 | CY43: =IF(CW6<38,"",VLOOKUP(38,CE6:CQ65,4,FALSE)) -> NOVOTNÁ PETRA | CZ43: =IF(CW6<38,"",VLOOKUP(38,CE6:CQ65,10,FALSE)) -> 594 | DC43: =IF(DG43="","",DO43) -> 7 | DF43: Kalfiřt Petr | DG43: 156 | DH43: 158 | DI43: 159 | DJ43: 192 | DK43: 157 | DL43: =SUM(DG43:DK43) -> 822 | DM43: =MAX(DG43:DK43) -> 192 | DN43: =SUM(DL43*1000)+DM43+0.18 -> 822192.18 | DO43: =IF(DG43="","",RANK(DN43,DN6:DN65,0)) -> 7 | DV43: 38 | DW43: =IF(DU6<38,"",VLOOKUP(38,DC6:DO65,4,FALSE)) -> Křikavová Miroslava | DX43: =IF(DU6<38,"",VLOOKUP(38,DC6:DO65,10,FALSE)) -> 640 | EA43: =IF(EE43="","",EM43) -> 16 | ED43: Krupová Martina | EE43: 156 | EF43: 134 | EG43: 162 | EH43: 167 | EI43: 136 | EJ43: =SUM(EE43:EI43) -> 755 | EK43: =MAX(EE43:EI43) -> 167 | EL43: =SUM(EJ43*1000)+EK43+0.18 -> 755167.18 | EM43: =IF(EE43="","",RANK(EL43,EL6:EL65,0)) -> 16 | ET43: 38 | EU43: =IF(ES6<38,"",VLOOKUP(38,EA6:EM65,4,FALSE)) -> Katolický Zdeněk | EV43: =IF(ES6<38,"",VLOOKUP(38,EA6:EM65,10,FALSE)) -> 627 | EY43: =IF(FC43="","",FK43) -> 14 | FB43: Růžička Ladislav | FC43: 170 | FD43: 163 | FE43: 155 | FF43: 163 | FG43: 141 | FH43: =SUM(FC43:FG43) -> 792 | FI43: =MAX(FC43:FG43) -> 170 | FJ43: =SUM(FH43*1000)+FI43+0.18 -> 792170.18 | FK43: =IF(FC43="","",RANK(FJ43,FJ6:FJ65,0)) -> 14 | FR43: 38 | FS43: =IF(FQ6<38,"",VLOOKUP(38,EY6:FL65,4,FALSE)) -> Aunický František | FT43: =IF(FQ6<38,"",VLOOKUP(38,EY7:FL66,10,FALSE)) -> 640 | FW43: =IF(GA43="","",GI43) ->  | GF43: =SUM(GA43:GE43) -> 0 | GG43: =MAX(GA43:GE43) -> 0 | GH43: =SUM(GF43*1000)+GG43+0.18 -> 0.18 | GI43: =IF(GA43="","",RANK(GH43,GH6:GH70,0)) ->  | GP43: 38 | GQ43: =IF(GO6<38,"",VLOOKUP(38,FW6:GI70,4,FALSE)) ->  | GR43: =IF(GO6<38,"",VLOOKUP(38,FW6:GI70,10,FALSE)) -> 
O44: =IF(S44="","",AA44) -> 13 | R44: HOLKUP JAN | S44: 128 | T44: 149 | U44: 155 | V44: 168 | W44: 155 | X44: =SUM(S44:W44) -> 755 | Y44: =MAX(S44:W44) -> 168 | Z44: =SUM(X44*1000)+Y44+0.17 -> 755168.17 | AA44: =IF(S44="","",RANK(Z44,Z6:Z65,0)) -> 13 | AF44: 39 | AG44: =IF(AE6<39,"",VLOOKUP(39,O6:AA65,4,FALSE)) -> POSPÍŠIL LUKÁŠ | AH44: =IF(AE6<39,"",VLOOKUP(39,O6:AA65,10,FALSE)) -> 611 | AK44: =IF(AO44="","",AW44) -> 20 | AN44: JELÍNEK JAN | AO44: 158 | AP44: 152 | AQ44: 128 | AR44: 140 | AS44: 141 | AT44: =SUM(AO44:AS44) -> 719 | AU44: =MAX(AO44:AS44) -> 158 | AV44: =SUM(AT44*1000)+AU44+0.17 -> 719158.17 | AW44: =IF(AO44="","",RANK(AV44,AV6:AV65,0)) -> 20 | BB44: 39 | BC44: =IF(BA6<39,"",VLOOKUP(39,AK6:AW65,4,FALSE)) -> BREJCHA JAROSLAV | BD44: =IF(BA6<39,"",VLOOKUP(39,AK6:AW65,10,FALSE)) -> 618 | BG44: =IF(BK44="","",BS44) -> 3 | BJ44: ONDŘICH FRANTIŠEK | BK44: 166 | BL44: 197 | BM44: 159 | BN44: 168 | BO44: 205 | BP44: =SUM(BK44:BO44) -> 895 | BQ44: =MAX(BK44:BO44) -> 205 | BR44: =SUM(BP44*1000)+BQ44+0.17 -> 895205.17 | BS44: =IF(BK44="","",RANK(BR44,BR6:BR65,0)) -> 3 | BZ44: 39 | CA44: =IF(BY6<39,"",VLOOKUP(39,BG6:BS65,4,FALSE)) -> FAY VLASTIMIL | CB44: =IF(BY6<39,"",VLOOKUP(39,BG6:BS65,10,FALSE)) -> 611 | CE44: =IF(CI44="","",CQ44) -> 31 | CH44: KŘIKAVA MIROSLAV | CI44: 100 | CJ44: 125 | CK44: 122 | CL44: 182 | CM44: 122 | CN44: =SUM(CI44:CM44) -> 651 | CO44: =MAX(CI44:CM44) -> 182 | CP44: =SUM(CN44*1000)+CO44+0.17 -> 651182.17 | CQ44: =IF(CI44="","",RANK(CP44,CP6:CP65,0)) -> 31 | CX44: 39 | CY44: =IF(CW6<39,"",VLOOKUP(39,CE6:CQ65,4,FALSE)) -> POSPÍŠIL LUKÁŠ | CZ44: =IF(CW6<39,"",VLOOKUP(39,CE6:CQ65,10,FALSE)) -> 583 | DC44: =IF(DG44="","",DO44) -> 36 | DF44: Štěpán Radek | DG44: 125 | DH44: 98 | DI44: 183 | DJ44: 131 | DK44: 130 | DL44: =SUM(DG44:DK44) -> 667 | DM44: =MAX(DG44:DK44) -> 183 | DN44: =SUM(DL44*1000)+DM44+0.17 -> 667183.17 | DO44: =IF(DG44="","",RANK(DN44,DN6:DN65,0)) -> 36 | DV44: 39 | DW44: =IF(DU6<39,"",VLOOKUP(39,DC6:DO65,4,FALSE)) -> Mottl Pavel | DX44: =IF(DU6<39,"",VLOOKUP(39,DC6:DO65,10,FALSE)) -> 630 | EA44: =IF(EE44="","",EM44) -> 9 | ED44: Holkup Jan | EE44: 160 | EF44: 228 | EG44: 135 | EH44: 165 | EI44: 135 | EJ44: =SUM(EE44:EI44) -> 823 | EK44: =MAX(EE44:EI44) -> 228 | EL44: =SUM(EJ44*1000)+EK44+0.17 -> 823228.17 | EM44: =IF(EE44="","",RANK(EL44,EL6:EL65,0)) -> 9 | ET44: 39 | EU44: =IF(ES6<39,"",VLOOKUP(39,EA6:EM65,4,FALSE)) -> Křikava Miroslav | EV44: =IF(ES6<39,"",VLOOKUP(39,EA6:EM65,10,FALSE)) -> 626 | EY44: =IF(FC44="","",FK44) -> 8 | FB44: Jelínek Jan | FC44: 162 | FD44: 149 | FE44: 156 | FF44: 169 | FG44: 180 | FH44: =SUM(FC44:FG44) -> 816 | FI44: =MAX(FC44:FG44) -> 180 | FJ44: =SUM(FH44*1000)+FI44+0.17 -> 816180.17 | FK44: =IF(FC44="","",RANK(FJ44,FJ6:FJ65,0)) -> 8 | FR44: 39 | FS44: =IF(FQ6<39,"",VLOOKUP(39,EY6:FL65,4,FALSE)) -> Pipek Pavel | FT44: =IF(FQ6<39,"",VLOOKUP(39,EY6:FL65,10,FALSE)) -> 632 | FW44: =IF(GA44="","",GI44) ->  | GF44: =SUM(GA44:GE44) -> 0 | GG44: =MAX(GA44:GE44) -> 0 | GH44: =SUM(GF44*1000)+GG44+0.17 -> 0.17 | GI44: =IF(GA44="","",RANK(GH44,GH6:GH70,0)) ->  | GP44: 39 | GQ44: =IF(GO6<39,"",VLOOKUP(39,FW6:GI70,4,FALSE)) ->  | GR44: =IF(GO6<39,"",VLOOKUP(39,FW6:GI70,10,FALSE)) -> 
O45: =IF(S45="","",AA45) -> 37 | R45: SKRUŽNÁ PAVLA | S45: 117 | T45: 141 | U45: 103 | V45: 115 | W45: 140 | X45: =SUM(S45:W45) -> 616 | Y45: =MAX(S45:W45) -> 141 | Z45: =SUM(X45*1000)+Y45+0.16 -> 616141.16 | AA45: =IF(S45="","",RANK(Z45,Z6:Z65,0)) -> 37 | AF45: 40 | AG45: =IF(AE6<40,"",VLOOKUP(40,O6:AA65,4,FALSE)) -> NOVOTNÁ PETRA | AH45: =IF(AE6<40,"",VLOOKUP(40,O6:AA65,10,FALSE)) -> 590 | AK45: =IF(AO45="","",AW45) -> 1 | AN45: LAZUR VLADIMÍR | AO45: 223 | AP45: 197 | AQ45: 227 | AR45: 147 | AS45: 151 | AT45: =SUM(AO45:AS45) -> 945 | AU45: =MAX(AO45:AS45) -> 227 | AV45: =SUM(AT45*1000)+AU45+0.16 -> 945227.16 | AW45: =IF(AO45="","",RANK(AV45,AV6:AV65,0)) -> 1 | BB45: 40 | BC45: =IF(BA6<40,"",VLOOKUP(40,AK6:AW65,4,FALSE)) -> KUTINA PAVEL | BD45: =IF(BA6<40,"",VLOOKUP(40,AK6:AW65,10,FALSE)) -> 611 | BG45: =IF(BK45="","",BS45) -> 4 | BJ45: MAŠÁT PETR | BK45: 150 | BL45: 205 | BM45: 186 | BN45: 145 | BO45: 173 | BP45: =SUM(BK45:BO45) -> 859 | BQ45: =MAX(BK45:BO45) -> 205 | BR45: =SUM(BP45*1000)+BQ45+0.16 -> 859205.16 | BS45: =IF(BK45="","",RANK(BR45,BR6:BR65,0)) -> 4 | BZ45: 40 | CA45: =IF(BY6<40,"",VLOOKUP(40,BG6:BS65,4,FALSE)) -> AUNICKÝ FRANTIŠEK | CB45: =IF(BY6<40,"",VLOOKUP(40,BG6:BS65,10,FALSE)) -> 605 | CE45: =IF(CI45="","",CQ45) -> 35 | CH45: RŮŽIČKA VÁCLAV | CI45: 143 | CJ45: 173 | CK45: 117 | CL45: 75 | CM45: 111 | CN45: =SUM(CI45:CM45) -> 619 | CO45: =MAX(CI45:CM45) -> 173 | CP45: =SUM(CN45*1000)+CO45+0.16 -> 619173.16 | CQ45: =IF(CI45="","",RANK(CP45,CP6:CP65,0)) -> 35 | CX45: 40 | CY45: =IF(CW6<40,"",VLOOKUP(40,CE6:CQ65,4,FALSE)) -> PIPEK PAVEL | CZ45: =IF(CW6<40,"",VLOOKUP(40,CE6:CQ65,10,FALSE)) -> 577 | DC45: =IF(DG45="","",DO45) -> 17 | DF45: Pecka Jiří | DG45: 153 | DH45: 148 | DI45: 144 | DJ45: 128 | DK45: 178 | DL45: =SUM(DG45:DK45) -> 751 | DM45: =MAX(DG45:DK45) -> 178 | DN45: =SUM(DL45*1000)+DM45+0.16 -> 751178.16 | DO45: =IF(DG45="","",RANK(DN45,DN6:DN65,0)) -> 17 | DV45: 40 | DW45: =IF(DU6<40,"",VLOOKUP(40,DC6:DO65,4,FALSE)) -> Aunický František | DX45: =IF(DU6<40,"",VLOOKUP(40,DC6:DO65,10,FALSE)) -> 619 | EA45: =IF(EE45="","",EM45) -> 24 | ED45: Kazda Jan | EE45: 149 | EF45: 138 | EG45: 159 | EH45: 127 | EI45: 121 | EJ45: =SUM(EE45:EI45) -> 694 | EK45: =MAX(EE45:EI45) -> 159 | EL45: =SUM(EJ45*1000)+EK45+0.16 -> 694159.16 | EM45: =IF(EE45="","",RANK(EL45,EL6:EL65,0)) -> 24 | ET45: 40 | EU45: =IF(ES6<40,"",VLOOKUP(40,EA6:EM65,4,FALSE)) -> Pavlíček Rudolf | EV45: =IF(ES6<40,"",VLOOKUP(40,EA6:EM65,10,FALSE)) -> 623 | EY45: =IF(FC45="","",FK45) -> 7 | FB45: Šafařík Luděk | FC45: 155 | FD45: 193 | FE45: 179 | FF45: 157 | FG45: 149 | FH45: =SUM(FC45:FG45) -> 833 | FI45: =MAX(FC45:FG45) -> 193 | FJ45: =SUM(FH45*1000)+FI45+0.16 -> 833193.16 | FK45: =IF(FC45="","",RANK(FJ45,FJ6:FJ65,0)) -> 7 | FR45: 40 | FS45: =IF(FQ6<40,"",VLOOKUP(40,EY6:FL65,4,FALSE)) -> Douša Adam | FT45: =IF(FQ6<40,"",VLOOKUP(40,EY6:FL65,10,FALSE)) -> 631 | FW45: =IF(GA45="","",GI45) ->  | GF45: =SUM(GA45:GE45) -> 0 | GG45: =MAX(GA45:GE45) -> 0 | GH45: =SUM(GF45*1000)+GG45+0.16 -> 0.16 | GI45: =IF(GA45="","",RANK(GH45,GH6:GH70,0)) ->  | GP45: 40 | GQ45: =IF(GO6<40,"",VLOOKUP(40,FW6:GI70,4,FALSE)) ->  | GR45: =IF(GO6<40,"",VLOOKUP(40,FW6:GI70,10,FALSE)) -> 
O46: =IF(S46="","",AA46) -> 26 | R46: KOVÁŘ JAROSLAV | S46: 121 | T46: 151 | U46: 119 | V46: 152 | W46: 130 | X46: =SUM(S46:W46) -> 673 | Y46: =MAX(S46:W46) -> 152 | Z46: =SUM(X46*1000)+Y46+0.15 -> 673152.15 | AA46: =IF(S46="","",RANK(Z46,Z6:Z65,0)) -> 26 | AF46: 41 | AG46: =IF(AE6<41,"",VLOOKUP(41,O6:AA65,4,FALSE)) -> VESELÝ VLASTIMIL | AH46: =IF(AE6<41,"",VLOOKUP(41,O6:AA65,10,FALSE)) -> 589 | AK46: =IF(AO46="","",AW46) -> 3 | AN46: ŠAFAŘÍK LUDĚK | AO46: 168 | AP46: 181 | AQ46: 156 | AR46: 223 | AS46: 177 | AT46: =SUM(AO46:AS46) -> 905 | AU46: =MAX(AO46:AS46) -> 223 | AV46: =SUM(AT46*1000)+AU46+0.15 -> 905223.15 | AW46: =IF(AO46="","",RANK(AV46,AV6:AV65,0)) -> 3 | BB46: 41 | BC46: =IF(BA6<41,"",VLOOKUP(41,AK6:AW65,4,FALSE)) -> PLECHÁČEK MIROSLAV | BD46: =IF(BA6<41,"",VLOOKUP(41,AK6:AW65,10,FALSE)) -> 608 | BG46: =IF(BK46="","",BS46) -> 25 | BJ46: CARVAN PAVEL | BK46: 170 | BL46: 127 | BM46: 138 | BN46: 133 | BO46: 137 | BP46: =SUM(BK46:BO46) -> 705 | BQ46: =MAX(BK46:BO46) -> 170 | BR46: =SUM(BP46*1000)+BQ46+0.15 -> 705170.15 | BS46: =IF(BK46="","",RANK(BR46,BR6:BR65,0)) -> 25 | BZ46: 41 | CA46: =IF(BY6<41,"",VLOOKUP(41,BG6:BS65,4,FALSE)) -> KUTINA PAVEL | CB46: =IF(BY6<41,"",VLOOKUP(41,BG6:BS65,10,FALSE)) -> 599 | CE46: =IF(CI46="","",CQ46) -> 36 | CH46: TICHÝ HUGO | CI46: 119 | CJ46: 110 | CK46: 122 | CL46: 144 | CM46: 123 | CN46: =SUM(CI46:CM46) -> 618 | CO46: =MAX(CI46:CM46) -> 144 | CP46: =SUM(CN46*1000)+CO46+0.15 -> 618144.15 | CQ46: =IF(CI46="","",RANK(CP46,CP6:CP65,0)) -> 36 | CX46: 41 | CY46: =IF(CW6<41,"",VLOOKUP(41,CE6:CQ65,4,FALSE)) -> KOVÁŘ JAROSLAV | CZ46: =IF(CW6<41,"",VLOOKUP(41,CE6:CQ65,10,FALSE)) -> 569 | DC46: =IF(DG46="","",DO46) -> 10 | DF46: Křemenák Petr | DG46: 174 | DH46: 127 | DI46: 186 | DJ46: 145 | DK46: 169 | DL46: =SUM(DG46:DK46) -> 801 | DM46: =MAX(DG46:DK46) -> 186 | DN46: =SUM(DL46*1000)+DM46+0.15 -> 801186.15 | DO46: =IF(DG46="","",RANK(DN46,DN6:DN65,0)) -> 10 | DV46: 41 | DW46: =IF(DU6<41,"",VLOOKUP(41,DC6:DO65,4,FALSE)) -> Křikava Miroslav | DX46: =IF(DU6<41,"",VLOOKUP(41,DC6:DO65,10,FALSE)) -> 619 | EA46: =IF(EE46="","",EM46) -> 46 | ED46: Kovář Jaroslav | EE46: 124 | EF46: 133 | EG46: 90 | EH46: 128 | EI46: 121 | EJ46: =SUM(EE46:EI46) -> 596 | EK46: =MAX(EE46:EI46) -> 133 | EL46: =SUM(EJ46*1000)+EK46+0.15 -> 596133.15 | EM46: =IF(EE46="","",RANK(EL46,EL6:EL65,0)) -> 46 | ET46: 41 | EU46: =IF(ES6<41,"",VLOOKUP(41,EA6:EM65,4,FALSE)) -> Táborský František | EV46: =IF(ES6<41,"",VLOOKUP(41,EA6:EM65,10,FALSE)) -> 615 | EY46: =IF(FC46="","",FK46) -> 3 | FB46: Lazur Vladimír | FC46: 185 | FD46: 148 | FE46: 223 | FF46: 128 | FG46: 179 | FH46: =SUM(FC46:FG46) -> 863 | FI46: =MAX(FC46:FG46) -> 223 | FJ46: =SUM(FH46*1000)+FI46+0.15 -> 863223.15 | FK46: =IF(FC46="","",RANK(FJ46,FJ6:FJ65,0)) -> 3 | FR46: 41 | FS46: =IF(FQ6<41,"",VLOOKUP(41,EY6:FL65,4,FALSE)) -> Mottl Pavel | FT46: =IF(FQ6<41,"",VLOOKUP(41,EY6:FL65,10,FALSE)) -> 628 | FW46: =IF(GA46="","",GI46) ->  | GF46: =SUM(GA46:GE46) -> 0 | GG46: =MAX(GA46:GE46) -> 0 | GH46: =SUM(GF46*1000)+GG46+0.15 -> 0.15 | GI46: =IF(GA46="","",RANK(GH46,GH6:GH70,0)) ->  | GP46: 41 | GQ46: =IF(GO6<41,"",VLOOKUP(41,FW6:GI70,4,FALSE)) ->  | GR46: =IF(GO6<41,"",VLOOKUP(41,FW6:GI70,10,FALSE)) -> 
S47: =SUM(S42:S46) -> 632 | T47: =SUM(T42:T46) -> 765 | U47: =SUM(U42:U46) -> 706 | V47: =SUM(V42:V46) -> 787 | W47: =SUM(W42:W46) -> 783 | AB47: =SUM(S47:W47) -> 3673 | AF47: 42 | AG47: =IF(AE6<42,"",VLOOKUP(42,O6:AA65,4,FALSE)) -> ČERMÁK TOMÁŠ | AH47: =IF(AE6<42,"",VLOOKUP(42,O6:AA65,10,FALSE)) -> 577 | AO47: =SUM(AO42:AO46) -> 856 | AP47: =SUM(AP42:AP46) -> 814 | AQ47: =SUM(AQ42:AQ46) -> 784 | AR47: =SUM(AR42:AR46) -> 788 | AS47: =SUM(AS42:AS46) -> 727 | AX47: =SUM(AO47:AS47) -> 3969 | BB47: 42 | BC47: =IF(BA6<42,"",VLOOKUP(42,AK6:AW65,4,FALSE)) -> AUNICKÝ FRANTIŠEK | BD47: =IF(BA6<42,"",VLOOKUP(42,AK6:AW65,10,FALSE)) -> 604 | BK47: =SUM(BK42:BK46) -> 768 | BL47: =SUM(BL42:BL46) -> 841 | BM47: =SUM(BM42:BM46) -> 717 | BN47: =SUM(BN42:BN46) -> 774 | BO47: =SUM(BO42:BO46) -> 776 | BT47: =SUM(BK47:BO47) -> 3876 | BU47: =MAX(BK47:BO47) -> 841 | BV47: =IF(BK42="","",SUM(BT47*10000)+BU47) -> 38760841 | BZ47: 42 | CA47: =IF(BY6<42,"",VLOOKUP(42,BG6:BS65,4,FALSE)) -> ŠAFÁŘ LADISLAV | CB47: =IF(BY6<42,"",VLOOKUP(42,BG6:BS65,10,FALSE)) -> 593 | CI47: =SUM(CI42:CI46) -> 609 | CJ47: =SUM(CJ42:CJ46) -> 685 | CK47: =SUM(CK42:CK46) -> 678 | CL47: =SUM(CL42:CL46) -> 705 | CM47: =SUM(CM42:CM46) -> 653 | CR47: =SUM(CI47:CM47) -> 3330 | CS47: =MAX(CI47:CM47) -> 705 | CT47: =IF(CI42="","",SUM(CR47*1000)+CS47) -> 3330705 | CX47: 42 | CY47: =IF(CW6<42,"",VLOOKUP(42,CE6:CQ65,4,FALSE)) -> ŘEHÁK JAROSLAV | CZ47: =IF(CW6<42,"",VLOOKUP(42,CE6:CQ65,10,FALSE)) -> 560 | DG47: =SUM(DG42:DG46) -> 760 | DH47: =SUM(DH42:DH46) -> 663 | DI47: =SUM(DI42:DI46) -> 864 | DJ47: =SUM(DJ42:DJ46) -> 749 | DK47: =SUM(DK42:DK46) -> 762 | DP47: =SUM(DG47:DK47) -> 3798 | DQ47: =MAX(DG47:DK47) -> 864 | DR47: =IF(DG42="","",SUM(DP47*1000)+DQ47) -> 3798864 | DV47: 42 | DW47: =IF(DU6<42,"",VLOOKUP(42,DC6:DO65,4,FALSE)) -> Novotná Petra | DX47: =IF(DU6<42,"",VLOOKUP(42,DC6:DO65,10,FALSE)) -> 606 | EE47: =SUM(EE42:EE46) -> 749 | EF47: =SUM(EF42:EF46) -> 802 | EG47: =SUM(EG42:EG46) -> 722 | EH47: =SUM(EH42:EH46) -> 769 | EI47: =SUM(EI42:EI46) -> 673 | EN47: =SUM(EE47:EI47) -> 3715 | EO47: =MAX(EE47:EI47) -> 802 | EP47: =IF(EE42="","",SUM(EN47*1000)+EO47) -> 3715802 | ET47: 42 | EU47: =IF(ES6<42,"",VLOOKUP(42,EA6:EM65,4,FALSE)) -> Sehnal Ivan | EV47: =IF(ES6<42,"",VLOOKUP(42,EA6:EM65,10,FALSE)) -> 612 | FC47: =SUM(FC42:FC46) -> 776 | FD47: =SUM(FD42:FD46) -> 778 | FE47: =SUM(FE42:FE46) -> 873 | FF47: =SUM(FF42:FF46) -> 747 | FG47: =SUM(FG42:FG46) -> 798 | FL47: =SUM(FC47:FG47) -> 3972 | FM47: =MAX(FC47:FG47) -> 873 | FN47: =IF(FC42="","",SUM(FL47*1000)+FM47) -> 3972873 | FR47: 42 | FS47: =IF(FQ6<42,"",VLOOKUP(42,EY6:FL65,4,FALSE)) -> Brož Stanislav | FT47: =IF(FQ6<42,"",VLOOKUP(42,EY6:FL65,10,FALSE)) -> 625 | GA47: =SUM(GA42:GA46) -> 0 | GB47: =SUM(GB42:GB46) -> 0 | GC47: =SUM(GC42:GC46) -> 0 | GD47: =SUM(GD42:GD46) -> 0 | GE47: =SUM(GE42:GE46) -> 0 | GJ47: =SUM(GA47:GE47) -> 0 | GK47: =MAX(GA47:GE47) -> 0 | GL47: =IF(GA42="","",SUM(GJ47*1000)+GK47) ->  | GP47: 42 | GQ47: =IF(GO6<42,"",VLOOKUP(42,FW6:GI70,4,FALSE)) ->  | GR47: =IF(GO6<42,"",VLOOKUP(42,FW6:GI70,10,FALSE)) -> 
O48: =IF(S48="","",AA48) -> 46 | P48: 8 | Q48: VRŠOVICE II. | R48: AUNICKÝ FRANTIŠEK | S48: 126 | T48: 114 | U48: 104 | V48: 119 | W48: 97 | X48: =SUM(S48:W48) -> 560 | Y48: =MAX(S48:W48) -> 126 | Z48: =SUM(X48*1000)+Y48+0.14 -> 560126.14 | AA48: =IF(S48="","",RANK(Z48,Z6:Z65,0)) -> 46 | AC48: =RANK(AB53,AB11:AB65,0) -> 8 | AF48: 43 | AG48: =IF(AE6<43,"",VLOOKUP(43,O6:AA65,4,FALSE)) -> KŘIKAVA MIROSLAV | AH48: =IF(AE6<43,"",VLOOKUP(43,O6:AA65,10,FALSE)) -> 572 | AK48: =IF(AO48="","",AW48) -> 22 | AL48: 8 | AM48: HOSTIVAŘ II. | AN48: ŠAFÁŘ LADISLAV | AO48: 159 | AP48: 185 | AQ48: 109 | AR48: 115 | AS48: 140 | AT48: =SUM(AO48:AS48) -> 708 | AU48: =MAX(AO48:AS48) -> 185 | AV48: =SUM(AT48*1000)+AU48+0.14 -> 708185.14 | AW48: =IF(AO48="","",RANK(AV48,AV6:AV65,0)) -> 22 | AY48: =RANK(AX53,AX11:AX65,0) -> 10 | BB48: 43 | BC48: =IF(BA6<43,"",VLOOKUP(43,AK6:AW65,4,FALSE)) -> FAY VLASTIMIL | BD48: =IF(BA6<43,"",VLOOKUP(43,AK6:AW65,10,FALSE)) -> 603 | BG48: =IF(BK48="","",BS48) -> 34 | BH48: 8 | BI48: KAČEROV II. | BJ48: DOUŠA ADAM | BK48: 148 | BL48: 153 | BM48: 119 | BN48: 123 | BO48: 129 | BP48: =SUM(BK48:BO48) -> 672 | BQ48: =MAX(BK48:BO48) -> 153 | BR48: =SUM(BP48*1000)+BQ48+0.14 -> 672153.14 | BS48: =IF(BK48="","",RANK(BR48,BR6:BR65,0)) -> 34 | BW48: =IF(BK48="","",RANK(BV53,BV11:BV65,0)) -> 6 | BZ48: 43 | CA48: =IF(BY6<43,"",VLOOKUP(43,BG6:BS65,4,FALSE)) -> NOVOTNÁ JANA | CB48: =IF(BY6<43,"",VLOOKUP(43,BG6:BS65,10,FALSE)) -> 581 | CE48: =IF(CI48="","",CQ48) -> 6 | CF48: 8 | CG48: ŘEPY II. | CH48: SLADOVNÍK MILOSLAV | CI48: 166 | CJ48: 170 | CK48: 161 | CL48: 186 | CM48: 159 | CN48: =SUM(CI48:CM48) -> 842 | CO48: =MAX(CI48:CM48) -> 186 | CP48: =SUM(CN48*1000)+CO48+0.14 -> 842186.14 | CQ48: =IF(CI48="","",RANK(CP48,CP6:CP65,0)) -> 6 | CU48: =IF(CI48="","",RANK(CT53,CT11:CT65,0)) -> 1 | CX48: 43 | CY48: =IF(CW6<43,"",VLOOKUP(43,CE6:CQ65,4,FALSE)) -> KOLLÁR PAVEL | CZ48: =IF(CW6<43,"",VLOOKUP(43,CE6:CQ65,10,FALSE)) -> 558 | DC48: =IF(DG48="","",DO48) -> 37 | DD48: 8 | DE48: KLÍČOV II. | DF48: Řehák Jaroslav | DG48: 121 | DH48: 125 | DI48: 158 | DJ48: 116 | DK48: 129 | DL48: =SUM(DG48:DK48) -> 649 | DM48: =MAX(DG48:DK48) -> 158 | DN48: =SUM(DL48*1000)+DM48+0.14 -> 649158.14 | DO48: =IF(DG48="","",RANK(DN48,DN6:DN65,0)) -> 37 | DS48: =IF(DG48="","",RANK(DR53,DR11:DR65,0)) -> 10 | DV48: 43 | DW48: =IF(DU6<43,"",VLOOKUP(43,DC6:DO65,4,FALSE)) -> Novotná Jana | DX48: =IF(DU6<43,"",VLOOKUP(43,DC6:DO65,10,FALSE)) -> 585 | EA48: =IF(EE48="","",EM48) -> 47 | EB48: 8 | EC48: VRŠOVICE II. | ED48: Aunický František | EE48: 112 | EF48: 76 | EG48: 127 | EH48: 177 | EI48: 101 | EJ48: =SUM(EE48:EI48) -> 593 | EK48: =MAX(EE48:EI48) -> 177 | EL48: =SUM(EJ48*1000)+EK48+0.14 -> 593177.14 | EM48: =IF(EE48="","",RANK(EL48,EL6:EL65,0)) -> 47 | EQ48: =IF(EE48="","",RANK(EP53,EP11:EP65,0)) -> 10 | ET48: 43 | EU48: =IF(ES6<43,"",VLOOKUP(43,EA6:EM65,4,FALSE)) -> Růžička Václav | EV48: =IF(ES6<43,"",VLOOKUP(43,EA6:EM65,10,FALSE)) -> 598 | EY48: =IF(FC48="","",FK48) -> 33 | EZ48: 8 | FA48: HOSTIVAŘ II. | FB48: Šafář Ladislav | FC48: 135 | FD48: 124 | FE48: 135 | FF48: 121 | FG48: 137 | FH48: =SUM(FC48:FG48) -> 652 | FI48: =MAX(FC48:FG48) -> 137 | FJ48: =SUM(FH48*1000)+FI48+0.14 -> 652137.14 | FK48: =IF(FC48="","",RANK(FJ48,FJ6:FJ65,0)) -> 33 | FO48: =IF(FC48="","",RANK(FN53,FN11:FN65,0)) -> 6 | FR48: 43 | FS48: =IF(FQ6<43,"",VLOOKUP(43,EY6:FL65,4,FALSE)) -> Pavlíček Rudolf | FT48: =IF(FQ6<43,"",VLOOKUP(43,EY7:FL66,10,FALSE)) -> 619 | FW48: =IF(GA48="","",GI48) ->  | FX48: 8 | FY48: VRŠOVICE II. | GF48: =SUM(GA48:GE48) -> 0 | GG48: =MAX(GA48:GE48) -> 0 | GH48: =SUM(GF48*1000)+GG48+0.14 -> 0.14 | GI48: =IF(GA48="","",RANK(GH48,GH6:GH70,0)) ->  | GM48: =IF(GA48="","",RANK(GL53,GL11:GL71,0)) ->  | GP48: 43 | GQ48: =IF(GO6<43,"",VLOOKUP(43,FW6:GI70,4,FALSE)) ->  | GR48: =IF(GO6<43,"",VLOOKUP(43,FW6:GI70,10,FALSE)) -> 
O49: =IF(S49="","",AA49) -> 30 | R49: KAZDA JAN | S49: 124 | T49: 116 | U49: 157 | V49: 134 | W49: 124 | X49: =SUM(S49:W49) -> 655 | Y49: =MAX(S49:W49) -> 157 | Z49: =SUM(X49*1000)+Y49+0.13 -> 655157.13 | AA49: =IF(S49="","",RANK(Z49,Z6:Z65,0)) -> 30 | AF49: 44 | AG49: =IF(AE6<44,"",VLOOKUP(44,O6:AA65,4,FALSE)) -> KOLLÁR PAVEL | AH49: =IF(AE6<44,"",VLOOKUP(44,O6:AA65,10,FALSE)) -> 571 | AK49: =IF(AO49="","",AW49) -> 26 | AN49: BERGER MICHAL | AO49: 140 | AP49: 144 | AQ49: 144 | AR49: 129 | AS49: 132 | AT49: =SUM(AO49:AS49) -> 689 | AU49: =MAX(AO49:AS49) -> 144 | AV49: =SUM(AT49*1000)+AU49+0.13 -> 689144.13 | AW49: =IF(AO49="","",RANK(AV49,AV6:AV65,0)) -> 26 | BB49: 44 | BC49: =IF(BA6<44,"",VLOOKUP(44,AK6:AW65,4,FALSE)) -> LAZUROVÁ JIŘINA | BD49: =IF(BA6<44,"",VLOOKUP(44,AK6:AW65,10,FALSE)) -> 598 | BG49: =IF(BK49="","",BS49) -> 19 | BJ49: BROŽ STANISLAV | BK49: 156 | BL49: 167 | BM49: 144 | BN49: 107 | BO49: 168 | BP49: =SUM(BK49:BO49) -> 742 | BQ49: =MAX(BK49:BO49) -> 168 | BR49: =SUM(BP49*1000)+BQ49+0.13 -> 742168.13 | BS49: =IF(BK49="","",RANK(BR49,BR6:BR65,0)) -> 19 | BZ49: 44 | CA49: =IF(BY6<44,"",VLOOKUP(44,BG6:BS65,4,FALSE)) -> POSPÍŠIL LUKÁŠ | CB49: =IF(BY6<44,"",VLOOKUP(44,BG6:BS65,10,FALSE)) -> 573 | CE49: =IF(CI49="","",CQ49) -> 16 | CH49: ALBA VLADIMÍR | CI49: 161 | CJ49: 148 | CK49: 131 | CL49: 148 | CM49: 150 | CN49: =SUM(CI49:CM49) -> 738 | CO49: =MAX(CI49:CM49) -> 161 | CP49: =SUM(CN49*1000)+CO49+0.13 -> 738161.13 | CQ49: =IF(CI49="","",RANK(CP49,CP6:CP65,0)) -> 16 | CX49: 44 | CY49: =IF(CW6<44,"",VLOOKUP(44,CE6:CQ65,4,FALSE)) -> VYCHNEROVÁ MICHAELA | CZ49: =IF(CW6<44,"",VLOOKUP(44,CE6:CQ65,10,FALSE)) -> 556 | DC49: =IF(DG49="","",DO49) -> 50 | DF49: Šafrová Martina | DG49: 108 | DH49: 81 | DI49: 106 | DJ49: 115 | DK49: 108 | DL49: =SUM(DG49:DK49) -> 518 | DM49: =MAX(DG49:DK49) -> 115 | DN49: =SUM(DL49*1000)+DM49+0.13 -> 518115.13 | DO49: =IF(DG49="","",RANK(DN49,DN6:DN65,0)) -> 50 | DV49: 44 | DW49: =IF(DU6<44,"",VLOOKUP(44,DC6:DO65,4,FALSE)) -> Pavlíček Rudolf | DX49: =IF(DU6<44,"",VLOOKUP(44,DC6:DO65,10,FALSE)) -> 564 | EA49: =IF(EE49="","",EM49) -> 40 | ED49: Pavlíček Rudolf | EE49: 94 | EF49: 120 | EG49: 94 | EH49: 170 | EI49: 145 | EJ49: =SUM(EE49:EI49) -> 623 | EK49: =MAX(EE49:EI49) -> 170 | EL49: =SUM(EJ49*1000)+EK49+0.13 -> 623170.13 | EM49: =IF(EE49="","",RANK(EL49,EL6:EL65,0)) -> 40 | ET49: 44 | EU49: =IF(ES6<44,"",VLOOKUP(44,EA6:EM65,4,FALSE)) -> Fay Vlastimil | EV49: =IF(ES6<44,"",VLOOKUP(44,EA6:EM65,10,FALSE)) -> 598 | EY49: =IF(FC49="","",FK49) -> 21 | FB49: Berger Michal | FC49: 133 | FD49: 137 | FE49: 172 | FF49: 132 | FG49: 155 | FH49: =SUM(FC49:FG49) -> 729 | FI49: =MAX(FC49:FG49) -> 172 | FJ49: =SUM(FH49*1000)+FI49+0.13 -> 729172.13 | FK49: =IF(FC49="","",RANK(FJ49,FJ6:FJ65,0)) -> 21 | FR49: 44 | FS49: =IF(FQ6<44,"",VLOOKUP(44,EY7:FL66,4,FALSE)) -> Kutina Pavel | FT49: =IF(FQ6<44,"",VLOOKUP(44,EY6:FL65,10,FALSE)) -> 615 | FW49: =IF(GA49="","",GI49) ->  | GF49: =SUM(GA49:GE49) -> 0 | GG49: =MAX(GA49:GE49) -> 0 | GH49: =SUM(GF49*1000)+GG49+0.13 -> 0.13 | GI49: =IF(GA49="","",RANK(GH49,GH6:GH70,0)) ->  | GP49: 44 | GQ49: =IF(GO6<44,"",VLOOKUP(44,FW6:GI70,4,FALSE)) ->  | GR49: =IF(GO6<44,"",VLOOKUP(44,FW6:GI70,10,FALSE)) -> 
O50: =IF(S50="","",AA50) -> 41 | R50: VESELÝ VLASTIMIL | S50: 127 | T50: 124 | U50: 99 | V50: 134 | W50: 105 | X50: =SUM(S50:W50) -> 589 | Y50: =MAX(S50:W50) -> 134 | Z50: =SUM(X50*1000)+Y50+0.12 -> 589134.12 | AA50: =IF(S50="","",RANK(Z50,Z6:Z65,0)) -> 41 | AF50: 45 | AG50: =IF(AE6<45,"",VLOOKUP(45,O6:AA65,4,FALSE)) -> FAY VLASTIMIL | AH50: =IF(AE6<45,"",VLOOKUP(45,O6:AA65,10,FALSE)) -> 571 | AK50: =IF(AO50="","",AW50) -> 49 | AN50: BERGEROVÁ MARCELA | AO50: 85 | AP50: 85 | AQ50: 109 | AR50: 107 | AS50: 118 | AT50: =SUM(AO50:AS50) -> 504 | AU50: =MAX(AO50:AS50) -> 118 | AV50: =SUM(AT50*1000)+AU50+0.12 -> 504118.12 | AW50: =IF(AO50="","",RANK(AV50,AV6:AV65,0)) -> 49 | BB50: 45 | BC50: =IF(BA6<45,"",VLOOKUP(45,AK6:AW65,4,FALSE)) -> MOTTL PAVEL | BD50: =IF(BA6<45,"",VLOOKUP(45,AK6:AW65,10,FALSE)) -> 596 | BG50: =IF(BK50="","",BS50) -> 5 | BJ50: STEJSKAL MARTIN | BK50: 152 | BL50: 228 | BM50: 196 | BN50: 158 | BO50: 112 | BP50: =SUM(BK50:BO50) -> 846 | BQ50: =MAX(BK50:BO50) -> 228 | BR50: =SUM(BP50*1000)+BQ50+0.12 -> 846228.12 | BS50: =IF(BK50="","",RANK(BR50,BR6:BR65,0)) -> 5 | BZ50: 45 | CA50: =IF(BY6<45,"",VLOOKUP(45,BG6:BS65,4,FALSE)) -> ŘEHÁK JAROSLAV | CB50: =IF(BY6<45,"",VLOOKUP(45,BG6:BS65,10,FALSE)) -> 567 | CE50: =IF(CI50="","",CQ50) -> 12 | CH50: MOTTL PAVEL | CI50: 124 | CJ50: 169 | CK50: 137 | CL50: 193 | CM50: 150 | CN50: =SUM(CI50:CM50) -> 773 | CO50: =MAX(CI50:CM50) -> 193 | CP50: =SUM(CN50*1000)+CO50+0.12 -> 773193.12 | CQ50: =IF(CI50="","",RANK(CP50,CP6:CP65,0)) -> 12 | CX50: 45 | CY50: =IF(CW6<45,"",VLOOKUP(45,CE6:CQ65,4,FALSE)) -> HÁJEK MOJMÍR | CZ50: =IF(CW6<45,"",VLOOKUP(45,CE6:CQ65,10,FALSE)) -> 549 | DC50: =IF(DG50="","",DO50) -> 42 | DF50: Novotná Petra | DG50: 91 | DH50: 129 | DI50: 139 | DJ50: 126 | DK50: 121 | DL50: =SUM(DG50:DK50) -> 606 | DM50: =MAX(DG50:DK50) -> 139 | DN50: =SUM(DL50*1000)+DM50+0.12 -> 606139.12 | DO50: =IF(DG50="","",RANK(DN50,DN6:DN65,0)) -> 42 | DV50: 45 | DW50: =IF(DU6<45,"",VLOOKUP(45,DC6:DO65,4,FALSE)) -> Čermák Tomáš | DX50: =IF(DU6<45,"",VLOOKUP(45,DC6:DO65,10,FALSE)) -> 561 | EA50: =IF(EE50="","",EM50) -> 44 | ED50: Fay Vlastimil | EE50: 94 | EF50: 134 | EG50: 122 | EH50: 119 | EI50: 129 | EJ50: =SUM(EE50:EI50) -> 598 | EK50: =MAX(EE50:EI50) -> 134 | EL50: =SUM(EJ50*1000)+EK50+0.12 -> 598134.12 | EM50: =IF(EE50="","",RANK(EL50,EL6:EL65,0)) -> 44 | ET50: 45 | EU50: =IF(ES6<45,"",VLOOKUP(45,EA6:EM65,4,FALSE)) -> Tichý Hugo | EV50: =IF(ES6<45,"",VLOOKUP(45,EA6:EM65,10,FALSE)) -> 597 | EY50: =IF(FC50="","",FK50) -> 48 | FB50: Lazurová Jiřina | FC50: 102 | FD50: 116 | FE50: 115 | FF50: 132 | FG50: 86 | FH50: =SUM(FC50:FG50) -> 551 | FI50: =MAX(FC50:FG50) -> 132 | FJ50: =SUM(FH50*1000)+FI50+0.12 -> 551132.12 | FK50: =IF(FC50="","",RANK(FJ50,FJ6:FJ65,0)) -> 48 | FR50: 45 | FS50: =IF(FQ6<45,"",VLOOKUP(45,EY6:FL65,4,FALSE)) -> Růžička Václav | FT50: =IF(FQ6<45,"",VLOOKUP(45,EY6:FL65,10,FALSE)) -> 586 | FW50: =IF(GA50="","",GI50) ->  | GF50: =SUM(GA50:GE50) -> 0 | GG50: =MAX(GA50:GE50) -> 0 | GH50: =SUM(GF50*1000)+GG50+0.12 -> 0.12 | GI50: =IF(GA50="","",RANK(GH50,GH6:GH70,0)) ->  | GP50: 45 | GQ50: =IF(GO6<45,"",VLOOKUP(45,FW6:GI70,4,FALSE)) ->  | GR50: =IF(GO6<45,"",VLOOKUP(45,FW6:GI70,10,FALSE)) -> 
O51: =IF(S51="","",AA51) -> 45 | R51: FAY VLASTIMIL | S51: 138 | T51: 83 | U51: 110 | V51: 134 | W51: 106 | X51: =SUM(S51:W51) -> 571 | Y51: =MAX(S51:W51) -> 138 | Z51: =SUM(X51*1000)+Y51+0.11 -> 571138.11 | AA51: =IF(S51="","",RANK(Z51,Z6:Z65,0)) -> 45 | AF51: 46 | AG51: =IF(AE6<46,"",VLOOKUP(46,O6:AA65,4,FALSE)) -> AUNICKÝ FRANTIŠEK | AH51: =IF(AE6<46,"",VLOOKUP(46,O6:AA65,10,FALSE)) -> 560 | AK51: =IF(AO51="","",AW51) -> 50 | AN51: KALOŠOVÁ DAGMAR | AO51: 99 | AP51: 89 | AQ51: 98 | AR51: 99 | AS51: 113 | AT51: =SUM(AO51:AS51) -> 498 | AU51: =MAX(AO51:AS51) -> 113 | AV51: =SUM(AT51*1000)+AU51+0.11 -> 498113.11 | AW51: =IF(AO51="","",RANK(AV51,AV6:AV65,0)) -> 50 | BB51: 46 | BC51: =IF(BA6<46,"",VLOOKUP(46,AK6:AW65,4,FALSE)) -> ŘEHÁK JAROSLAV | BD51: =IF(BA6<46,"",VLOOKUP(46,AK6:AW65,10,FALSE)) -> 573 | BG51: =IF(BK51="","",BS51) -> 29 | BJ51: BREJCHA JAROSLAV | BK51: 151 | BL51: 117 | BM51: 158 | BN51: 120 | BO51: 137 | BP51: =SUM(BK51:BO51) -> 683 | BQ51: =MAX(BK51:BO51) -> 158 | BR51: =SUM(BP51*1000)+BQ51+0.11 -> 683158.11 | BS51: =IF(BK51="","",RANK(BR51,BR6:BR65,0)) -> 29 | BZ51: 46 | CA51: =IF(BY6<46,"",VLOOKUP(46,BG6:BS65,4,FALSE)) -> ČERMÁK TOMÁŠ | CB51: =IF(BY6<46,"",VLOOKUP(46,BG6:BS65,10,FALSE)) -> 564 | CE51: =IF(CI51="","",CQ51) -> 9 | CH51: KROČIL TOMÁŠ | CI51: 146 | CJ51: 218 | CK51: 142 | CL51: 138 | CM51: 147 | CN51: =SUM(CI51:CM51) -> 791 | CO51: =MAX(CI51:CM51) -> 218 | CP51: =SUM(CN51*1000)+CO51+0.11 -> 791218.11 | CQ51: =IF(CI51="","",RANK(CP51,CP6:CP65,0)) -> 9 | CX51: 46 | CY51: =IF(CW6<46,"",VLOOKUP(46,CE6:CQ65,4,FALSE)) -> TÁBORSKÝ FRANTIŠEK | CZ51: =IF(CW6<46,"",VLOOKUP(46,CE6:CQ65,10,FALSE)) -> 535 | DC51: =IF(DG51="","",DO51) -> 43 | DF51: Novotná Jana | DG51: 99 | DH51: 105 | DI51: 134 | DJ51: 97 | DK51: 150 | DL51: =SUM(DG51:DK51) -> 585 | DM51: =MAX(DG51:DK51) -> 150 | DN51: =SUM(DL51*1000)+DM51+0.11 -> 585150.11 | DO51: =IF(DG51="","",RANK(DN51,DN6:DN65,0)) -> 43 | DV51: 46 | DW51: =IF(DU6<46,"",VLOOKUP(46,DC6:DO65,4,FALSE)) -> Katolický Zdenek | DX51: =IF(DU6<46,"",VLOOKUP(46,DC6:DO65,10,FALSE)) -> 557 | EA51: =IF(EE51="","",EM51) -> 14 | ED51: Bošek Jan | EE51: 169 | EF51: 142 | EG51: 160 | EH51: 161 | EI51: 141 | EJ51: =SUM(EE51:EI51) -> 773 | EK51: =MAX(EE51:EI51) -> 169 | EL51: =SUM(EJ51*1000)+EK51+0.11 -> 773169.11 | EM51: =IF(EE51="","",RANK(EL51,EL6:EL65,0)) -> 14 | ET51: 46 | EU51: =IF(ES6<46,"",VLOOKUP(46,EA6:EM65,4,FALSE)) -> Kovář Jaroslav | EV51: =IF(ES6<46,"",VLOOKUP(46,EA6:EM65,10,FALSE)) -> 596 | EY51: =IF(FC51="","",FK51) -> 23 | FB51: Mysliveček Jaroslav | FC51: 153 | FD51: 150 | FE51: 115 | FF51: 173 | FG51: 126 | FH51: =SUM(FC51:FG51) -> 717 | FI51: =MAX(FC51:FG51) -> 173 | FJ51: =SUM(FH51*1000)+FI51+0.11 -> 717173.11 | FK51: =IF(FC51="","",RANK(FJ51,FJ6:FJ65,0)) -> 23 | FR51: 46 | FS51: =IF(FQ6<46,"",VLOOKUP(46,EY6:FL65,4,FALSE)) -> Pelikán Stanislav | FT51: =IF(FQ6<46,"",VLOOKUP(46,EY6:FL65,10,FALSE)) -> 578 | FW51: =IF(GA51="","",GI51) ->  | GF51: =SUM(GA51:GE51) -> 0 | GG51: =MAX(GA51:GE51) -> 0 | GH51: =SUM(GF51*1000)+GG51+0.11 -> 0.11 | GI51: =IF(GA51="","",RANK(GH51,GH6:GH70,0)) ->  | GP51: 46 | GQ51: =IF(GO6<46,"",VLOOKUP(46,FW6:GI70,4,FALSE)) ->  | GR51: =IF(GO6<46,"",VLOOKUP(46,FW6:GI70,10,FALSE)) -> 
O52: =IF(S52="","",AA52) -> 39 | R52: POSPÍŠIL LUKÁŠ | S52: 170 | T52: 122 | U52: 100 | V52: 128 | W52: 91 | X52: =SUM(S52:W52) -> 611 | Y52: =MAX(S52:W52) -> 170 | Z52: =SUM(X52*1000)+Y52+0.1 -> 611170.1 | AA52: =IF(S52="","",RANK(Z52,Z6:Z65,0)) -> 39 | AF52: 47 | AG52: =IF(AE6<47,"",VLOOKUP(47,O6:AA65,4,FALSE)) -> ŘEHÁK JAROSLAV | AH52: =IF(AE6<47,"",VLOOKUP(47,O6:AA65,10,FALSE)) -> 553 | AK52: =IF(AO52="","",AW52) -> 44 | AN52: LAZUROVÁ JIŘINA | AO52: 115 | AP52: 96 | AQ52: 134 | AR52: 117 | AS52: 136 | AT52: =SUM(AO52:AS52) -> 598 | AU52: =MAX(AO52:AS52) -> 136 | AV52: =SUM(AT52*1000)+AU52+0.1 -> 598136.1 | AW52: =IF(AO52="","",RANK(AV52,AV6:AV65,0)) -> 44 | BB52: 47 | BC52: =IF(BA6<47,"",VLOOKUP(47,AK6:AW65,4,FALSE)) -> TÁBORSKÝ FRANTIŠEK | BD52: =IF(BA6<47,"",VLOOKUP(47,AK6:AW65,10,FALSE)) -> 563 | BG52: =IF(BK52="","",BS52) -> 41 | BJ52: KUTINA PAVEL | BK52: 97 | BL52: 101 | BM52: 119 | BN52: 128 | BO52: 154 | BP52: =SUM(BK52:BO52) -> 599 | BQ52: =MAX(BK52:BO52) -> 154 | BR52: =SUM(BP52*1000)+BQ52+0.1 -> 599154.1 | BS52: =IF(BK52="","",RANK(BR52,BR6:BR65,0)) -> 41 | BZ52: 47 | CA52: =IF(BY6<47,"",VLOOKUP(47,BG6:BS65,4,FALSE)) -> KŘIKAVA MIROSLAV | CB52: =IF(BY6<47,"",VLOOKUP(47,BG6:BS65,10,FALSE)) -> 536 | CE52: =IF(CI52="","",CQ52) -> 1 | CH52: POSPÍŠIL VÁCLAV | CI52: 187 | CJ52: 192 | CK52: 175 | CL52: 168 | CM52: 179 | CN52: =SUM(CI52:CM52) -> 901 | CO52: =MAX(CI52:CM52) -> 192 | CP52: =SUM(CN52*1000)+CO52+0.1 -> 901192.1 | CQ52: =IF(CI52="","",RANK(CP52,CP6:CP65,0)) -> 1 | CX52: 47 | CY52: =IF(CW6<47,"",VLOOKUP(47,CE6:CQ65,4,FALSE)) -> KALOŠOVÁ DAGMAR | CZ52: =IF(CW6<47,"",VLOOKUP(47,CE6:CQ65,10,FALSE)) -> 533 | DC52: =IF(DG52="","",DO52) -> 47 | DF52: Neshyba Jaroslav | DG52: 140 | DH52: 112 | DI52: 97 | DJ52: 109 | DK52: 92 | DL52: =SUM(DG52:DK52) -> 550 | DM52: =MAX(DG52:DK52) -> 140 | DN52: =SUM(DL52*1000)+DM52+0.1 -> 550140.1 | DO52: =IF(DG52="","",RANK(DN52,DN6:DN65,0)) -> 47 | DV52: 47 | DW52: =IF(DU6<47,"",VLOOKUP(47,DC6:DO65,4,FALSE)) -> Neshyba Jaroslav | DX52: =IF(DU6<47,"",VLOOKUP(47,DC6:DO65,10,FALSE)) -> 550 | EA52: =IF(EE52="","",EM52) -> 50 | ED52: Hyková Lucie | EE52: 82 | EF52: 56 | EG52: 65 | EH52: 49 | EI52: 81 | EJ52: =SUM(EE52:EI52) -> 333 | EK52: =MAX(EE52:EI52) -> 82 | EL52: =SUM(EJ52*1000)+EK52+0.1 -> 333082.1 | EM52: =IF(EE52="","",RANK(EL52,EL6:EL65,0)) -> 50 | ET52: 47 | EU52: =IF(ES6<47,"",VLOOKUP(47,EA6:EM65,4,FALSE)) -> Aunický František | EV52: =IF(ES6<47,"",VLOOKUP(47,EA6:EM65,10,FALSE)) -> 593 | EY52: =IF(FC52="","",FK52) -> 29 | FB52: Kollár Pavel | FC52: 141 | FD52: 144 | FE52: 113 | FF52: 140 | FG52: 134 | FH52: =SUM(FC52:FG52) -> 672 | FI52: =MAX(FC52:FG52) -> 144 | FJ52: =SUM(FH52*1000)+FI52+0.1 -> 672144.1 | FK52: =IF(FC52="","",RANK(FJ52,FJ6:FJ65,0)) -> 29 | FR52: 47 | FS52: =IF(FQ6<47,"",VLOOKUP(47,EY6:FL65,4,FALSE)) -> Pospíšil Lukáš | FT52: =IF(FQ6<47,"",VLOOKUP(47,EY6:FL65,10,FALSE)) -> 575 | FW52: =IF(GA52="","",GI52) ->  | GF52: =SUM(GA52:GE52) -> 0 | GG52: =MAX(GA52:GE52) -> 0 | GH52: =SUM(GF52*1000)+GG52+0.1 -> 0.1 | GI52: =IF(GA52="","",RANK(GH52,GH6:GH70,0)) ->  | GP52: 47 | GQ52: =IF(GO6<47,"",VLOOKUP(47,FW6:GI70,4,FALSE)) ->  | GR52: =IF(GO6<47,"",VLOOKUP(47,FW6:GI70,10,FALSE)) -> 
S53: =SUM(S48:S52) -> 685 | T53: =SUM(T48:T52) -> 559 | U53: =SUM(U48:U52) -> 570 | V53: =SUM(V48:V52) -> 649 | W53: =SUM(W48:W52) -> 523 | AB53: =SUM(S53:W53) -> 2986 | AF53: 48 | AG53: =IF(AE6<48,"",VLOOKUP(48,O6:AA65,4,FALSE)) -> TÁBORSKÝ FRANTIŠEK | AH53: =IF(AE6<48,"",VLOOKUP(48,O6:AA65,10,FALSE)) -> 530 | AO53: =SUM(AO48:AO52) -> 598 | AP53: =SUM(AP48:AP52) -> 599 | AQ53: =SUM(AQ48:AQ52) -> 594 | AR53: =SUM(AR48:AR52) -> 567 | AS53: =SUM(AS48:AS52) -> 639 | AX53: =SUM(AO53:AS53) -> 2997 | BB53: 48 | BC53: =IF(BA6<48,"",VLOOKUP(48,AK6:AW65,4,FALSE)) -> KŘIKAVA MIROSLAV | BD53: =IF(BA6<48,"",VLOOKUP(48,AK6:AW65,10,FALSE)) -> 548 | BK53: =SUM(BK48:BK52) -> 704 | BL53: =SUM(BL48:BL52) -> 766 | BM53: =SUM(BM48:BM52) -> 736 | BN53: =SUM(BN48:BN52) -> 636 | BO53: =SUM(BO48:BO52) -> 700 | BT53: =SUM(BK53:BO53) -> 3542 | BU53: =MAX(BK53:BO53) -> 766 | BV53: =IF(BK48="","",SUM(BT53*10000)+BU53) -> 35420766 | BZ53: 48 | CA53: =IF(BY6<48,"",VLOOKUP(48,BG6:BS65,4,FALSE)) -> KOLLÁR PAVEL | CB53: =IF(BY6<48,"",VLOOKUP(48,BG6:BS65,10,FALSE)) -> 529 | CI53: =SUM(CI48:CI52) -> 784 | CJ53: =SUM(CJ48:CJ52) -> 897 | CK53: =SUM(CK48:CK52) -> 746 | CL53: =SUM(CL48:CL52) -> 833 | CM53: =SUM(CM48:CM52) -> 785 | CR53: =SUM(CI53:CM53) -> 4045 | CS53: =MAX(CI53:CM53) -> 897 | CT53: =IF(CI48="","",SUM(CR53*1000)+CS53) -> 4045897 | CX53: 48 | CY53: =IF(CW6<48,"",VLOOKUP(48,CE6:CQ65,4,FALSE)) -> BERGEROVÁ MARCELA | CZ53: =IF(CW6<48,"",VLOOKUP(48,CE6:CQ65,10,FALSE)) -> 511 | DG53: =SUM(DG48:DG52) -> 559 | DH53: =SUM(DH48:DH52) -> 552 | DI53: =SUM(DI48:DI52) -> 634 | DJ53: =SUM(DJ48:DJ52) -> 563 | DK53: =SUM(DK48:DK52) -> 600 | DP53: =SUM(DG53:DK53) -> 2908 | DQ53: =MAX(DG53:DK53) -> 634 | DR53: =IF(DG48="","",SUM(DP53*1000)+DQ53) -> 2908634 | DV53: 48 | DW53: =IF(DU6<48,"",VLOOKUP(48,DC6:DO65,4,FALSE)) -> Fay Vlastimil | DX53: =IF(DU6<48,"",VLOOKUP(48,DC6:DO65,10,FALSE)) -> 539 | EE53: =SUM(EE48:EE52) -> 551 | EF53: =SUM(EF48:EF52) -> 528 | EG53: =SUM(EG48:EG52) -> 568 | EH53: =SUM(EH48:EH52) -> 676 | EI53: =SUM(EI48:EI52) -> 597 | EN53: =SUM(EE53:EI53) -> 2920 | EO53: =MAX(EE53:EI53) -> 676 | EP53: =IF(EE48="","",SUM(EN53*1000)+EO53) -> 2920676 | ET53: 48 | EU53: =IF(ES6<48,"",VLOOKUP(48,EA6:EM65,4,FALSE)) -> Čermák Tomáš | EV53: =IF(ES6<48,"",VLOOKUP(48,EA6:EM65,10,FALSE)) -> 585 | FC53: =SUM(FC48:FC52) -> 664 | FD53: =SUM(FD48:FD52) -> 671 | FE53: =SUM(FE48:FE52) -> 650 | FF53: =SUM(FF48:FF52) -> 698 | FG53: =SUM(FG48:FG52) -> 638 | FL53: =SUM(FC53:FG53) -> 3321 | FM53: =MAX(FC53:FG53) -> 698 | FN53: =IF(FC48="","",SUM(FL53*1000)+FM53) -> 3321698 | FR53: 48 | FS53: =IF(FQ6<48,"",VLOOKUP(48,EY6:FL65,4,FALSE)) -> Lazurová Jiřina | FT53: =IF(FQ6<48,"",VLOOKUP(48,EY6:FL65,10,FALSE)) -> 551 | GA53: =SUM(GA48:GA52) -> 0 | GB53: =SUM(GB48:GB52) -> 0 | GC53: =SUM(GC48:GC52) -> 0 | GD53: =SUM(GD48:GD52) -> 0 | GE53: =SUM(GE48:GE52) -> 0 | GJ53: =SUM(GA53:GE53) -> 0 | GK53: =MAX(GA53:GE53) -> 0 | GL53: =IF(GA48="","",SUM(GJ53*1000)+GK53) ->  | GP53: 48 | GQ53: =IF(GO6<48,"",VLOOKUP(48,FW6:GI70,4,FALSE)) ->  | GR53: =IF(GO6<48,"",VLOOKUP(48,FW6:GI70,10,FALSE)) -> 
O54: =IF(S54="","",AA54) -> 8 | P54: 9 | Q54: KLÍČOV I. | R54: PECKA JIŘÍ | S54: 159 | T54: 144 | U54: 192 | V54: 162 | W54: 157 | X54: =SUM(S54:W54) -> 814 | Y54: =MAX(S54:W54) -> 192 | Z54: =SUM(X54*1000)+Y54+0.09 -> 814192.09 | AA54: =IF(S54="","",RANK(Z54,Z6:Z65,0)) -> 8 | AC54: =RANK(AB59,AB11:AB65,0) -> 4 | AF54: 49 | AG54: =IF(AE6<49,"",VLOOKUP(49,O6:AA65,4,FALSE)) -> KALOŠOVÁ DAGMAR | AH54: =IF(AE6<49,"",VLOOKUP(49,O6:AA65,10,FALSE)) -> 496 | AK54: =IF(AO54="","",AW54) -> 5 | AL54: 9 | AM54: VRŠOVICE I. | AN54: KRUPA JOSEF | AO54: 178 | AP54: 183 | AQ54: 170 | AR54: 189 | AS54: 171 | AT54: =SUM(AO54:AS54) -> 891 | AU54: =MAX(AO54:AS54) -> 189 | AV54: =SUM(AT54*1000)+AU54+0.09 -> 891189.09 | AW54: =IF(AO54="","",RANK(AV54,AV6:AV65,0)) -> 5 | AY54: =RANK(AX59,AX11:AX65,0) -> 1 | BB54: 49 | BC54: =IF(BA6<49,"",VLOOKUP(49,AK6:AW65,4,FALSE)) -> BERGEROVÁ MARCELA | BD54: =IF(BA6<49,"",VLOOKUP(49,AK6:AW65,10,FALSE)) -> 504 | BG54: =IF(BK54="","",BS54) -> 38 | BH54: 9 | BI54: HOSTIVAŘ I. | BJ54: MYSLIVEČEK JAROSLAV | BK54: 121 | BL54: 141 | BM54: 112 | BN54: 150 | BO54: 107 | BP54: =SUM(BK54:BO54) -> 631 | BQ54: =MAX(BK54:BO54) -> 150 | BR54: =SUM(BP54*1000)+BQ54+0.09 -> 631150.09 | BS54: =IF(BK54="","",RANK(BR54,BR6:BR65,0)) -> 38 | BW54: =IF(BK54="","",RANK(BV59,BV11:BV65,0)) -> 4 | BZ54: 49 | CA54: =IF(BY6<49,"",VLOOKUP(49,BG6:BS65,4,FALSE)) -> VYCHNEROVÁ MICHALA | CB54: =IF(BY6<49,"",VLOOKUP(49,BG6:BS65,10,FALSE)) -> 508 | CE54: =IF(CI54="","",CQ54) -> 17 | CF54: 9 | CG54: KAČEROV I. | CH54: HÜBNER JIŘÍ | CI54: 125 | CJ54: 105 | CK54: 179 | CL54: 164 | CM54: 152 | CN54: =SUM(CI54:CM54) -> 725 | CO54: =MAX(CI54:CM54) -> 179 | CP54: =SUM(CN54*1000)+CO54+0.09 -> 725179.09 | CQ54: =IF(CI54="","",RANK(CP54,CP6:CP65,0)) -> 17 | CU54: =IF(CI54="","",RANK(CT59,CT11:CT65,0)) -> 3 | CX54: 49 | CY54: =IF(CW6<49,"",VLOOKUP(49,CE6:CQ65,4,FALSE)) -> SVÍTIL PAVEL | CZ54: =IF(CW6<49,"",VLOOKUP(49,CE6:CQ65,10,FALSE)) -> 490 | DC54: =IF(DG54="","",DO54) -> 4 | DD54: 9 | DE54: ŘEPY I. | DF54: Kocúr Jaroslav | DG54: 187 | DH54: 148 | DI54: 161 | DJ54: 204 | DK54: 154 | DL54: =SUM(DG54:DK54) -> 854 | DM54: =MAX(DG54:DK54) -> 204 | DN54: =SUM(DL54*1000)+DM54+0.09 -> 854204.09 | DO54: =IF(DG54="","",RANK(DN54,DN6:DN65,0)) -> 4 | DS54: =IF(DG54="","",RANK(DR59,DR11:DR65,0)) -> 5 | DV54: 49 | DW54: =IF(DU6<49,"",VLOOKUP(49,DC6:DO65,4,FALSE)) -> Dvořák Petr | DX54: =IF(DU6<49,"",VLOOKUP(49,DC6:DO65,10,FALSE)) -> 524 | EA54: =IF(EE54="","",EM54) -> 6 | EB54: 9 | EC54: KLÍČOV I. | ED54: Pecka Jiří | EE54: 174 | EF54: 172 | EG54: 155 | EH54: 212 | EI54: 141 | EJ54: =SUM(EE54:EI54) -> 854 | EK54: =MAX(EE54:EI54) -> 212 | EL54: =SUM(EJ54*1000)+EK54+0.09 -> 854212.09 | EM54: =IF(EE54="","",RANK(EL54,EL6:EL65,0)) -> 6 | EQ54: =IF(EE54="","",RANK(EP59,EP11:EP65,0)) -> 2 | ET54: 49 | EU54: =IF(ES6<49,"",VLOOKUP(49,EA6:EM65,4,FALSE)) -> Pipek Pavel | EV54: =IF(ES6<49,"",VLOOKUP(49,EA6:EM65,10,FALSE)) -> 538 | EY54: =IF(FC54="","",FK54) -> 4 | EZ54: 9 | FA54: VRŠOVICE I. | FB54: Krupa Jozef | FC54: 180 | FD54: 179 | FE54: 167 | FF54: 144 | FG54: 190 | FH54: =SUM(FC54:FG54) -> 860 | FI54: =MAX(FC54:FG54) -> 190 | FJ54: =SUM(FH54*1000)+FI54+0.09 -> 860190.09 | FK54: =IF(FC54="","",RANK(FJ54,FJ6:FJ65,0)) -> 4 | FO54: =IF(FC54="","",RANK(FN59,FN11:FN65,0)) -> 4 | FR54: 49 | FS54: =IF(FQ6<49,"",VLOOKUP(49,EY6:FL65,4,FALSE)) -> Táborský František | FT54: =IF(FQ6<49,"",VLOOKUP(49,EY6:FL65,10,FALSE)) -> 544 | FW54: =IF(GA54="","",GI54) ->  | FX54: 9 | FY54: KLÍČOV I. | GF54: =SUM(GA54:GE54) -> 0 | GG54: =MAX(GA54:GE54) -> 0 | GH54: =SUM(GF54*1000)+GG54+0.09 -> 0.09 | GI54: =IF(GA54="","",RANK(GH54,GH6:GH70,0)) ->  | GM54: =IF(GA54="","",RANK(GL59,GL11:GL71,0)) ->  | GP54: 49 | GQ54: =IF(GO6<49,"",VLOOKUP(49,FW6:GI70,4,FALSE)) ->  | GR54: =IF(GO6<49,"",VLOOKUP(49,FW6:GI70,10,FALSE)) -> 
O55: =IF(S55="","",AA55) -> 4 | R55: NOVOTNÝ LUKÁŠ | S55: 178 | T55: 170 | U55: 148 | V55: 175 | W55: 189 | X55: =SUM(S55:W55) -> 860 | Y55: =MAX(S55:W55) -> 189 | Z55: =SUM(X55*1000)+Y55+0.08 -> 860189.08 | AA55: =IF(S55="","",RANK(Z55,Z6:Z65,0)) -> 4 | AF55: 50 | AG55: =IF(AE6<50,"",VLOOKUP(50,O6:AA65,4,FALSE)) -> KUTINA PAVEL | AH55: =IF(AE6<50,"",VLOOKUP(50,O6:AA65,10,FALSE)) -> 473 | AK55: =IF(AO55="","",AW55) -> 14 | AN55: HOLKUP JAN | AO55: 139 | AP55: 182 | AQ55: 152 | AR55: 161 | AS55: 156 | AT55: =SUM(AO55:AS55) -> 790 | AU55: =MAX(AO55:AS55) -> 182 | AV55: =SUM(AT55*1000)+AU55+0.08 -> 790182.08 | AW55: =IF(AO55="","",RANK(AV55,AV6:AV65,0)) -> 14 | BB55: 50 | BC55: =IF(BA6<50,"",VLOOKUP(50,AK6:AW65,4,FALSE)) -> KALOŠOVÁ DAGMAR | BD55: =IF(BA6<50,"",VLOOKUP(50,AK6:AW65,10,FALSE)) -> 498 | BG55: =IF(BK55="","",BS55) -> 48 | BJ55: KOLLÁR PAVEL | BK55: 99 | BL55: 115 | BM55: 99 | BN55: 97 | BO55: 119 | BP55: =SUM(BK55:BO55) -> 529 | BQ55: =MAX(BK55:BO55) -> 119 | BR55: =SUM(BP55*1000)+BQ55+0.08 -> 529119.08 | BS55: =IF(BK55="","",RANK(BR55,BR6:BR65,0)) -> 48 | BZ55: 50 | CA55: =IF(BY6<50,"",VLOOKUP(50,BG6:BS65,4,FALSE)) -> SVÍTIL PAVEL | CB55: =IF(BY6<50,"",VLOOKUP(50,BG6:BS65,10,FALSE)) -> 480 | CE55: =IF(CI55="","",CQ55) -> 20 | CH55: TOMÁŠEK ZDENĚK | CI55: 132 | CJ55: 157 | CK55: 137 | CL55: 166 | CM55: 131 | CN55: =SUM(CI55:CM55) -> 723 | CO55: =MAX(CI55:CM55) -> 166 | CP55: =SUM(CN55*1000)+CO55+0.08 -> 723166.08 | CQ55: =IF(CI55="","",RANK(CP55,CP6:CP65,0)) -> 20 | CX55: 50 | CY55: =IF(CW6<50,"",VLOOKUP(50,CE6:CQ65,4,FALSE)) -> ŠTARKOVÁ TEREZA | CZ55: =IF(CW6<50,"",VLOOKUP(50,CE6:CQ65,10,FALSE)) -> 487 | DC55: =IF(DG55="","",DO55) -> 35 | DF55: Sladovník Miloslav | DG55: 126 | DH55: 149 | DI55: 102 | DJ55: 161 | DK55: 130 | DL55: =SUM(DG55:DK55) -> 668 | DM55: =MAX(DG55:DK55) -> 161 | DN55: =SUM(DL55*1000)+DM55+0.08 -> 668161.08 | DO55: =IF(DG55="","",RANK(DN55,DN6:DN65,0)) -> 35 | DV55: 50 | DW55: =IF(DU6<50,"",VLOOKUP(50,DC6:DO65,4,FALSE)) -> Šafrová Martina | DX55: =IF(DU6<50,"",VLOOKUP(50,DC6:DO65,10,FALSE)) -> 518 | EA55: =IF(EE55="","",EM55) -> 20 | ED55: Štěpán Radek | EE55: 119 | EF55: 122 | EG55: 136 | EH55: 157 | EI55: 182 | EJ55: =SUM(EE55:EI55) -> 716 | EK55: =MAX(EE55:EI55) -> 182 | EL55: =SUM(EJ55*1000)+EK55+0.08 -> 716182.08 | EM55: =IF(EE55="","",RANK(EL55,EL6:EL65,0)) -> 20 | ET55: 50 | EU55: =IF(ES6<50,"",VLOOKUP(50,EA6:EM65,4,FALSE)) -> Hyková Lucie | EV55: =IF(ES6<50,"",VLOOKUP(50,EA6:EM65,10,FALSE)) -> 333 | EY55: =IF(FC55="","",FK55) -> 16 | FB55: Věchtík Antoním | FC55: 145 | FD55: 150 | FE55: 152 | FF55: 155 | FG55: 164 | FH55: =SUM(FC55:FG55) -> 766 | FI55: =MAX(FC55:FG55) -> 164 | FJ55: =SUM(FH55*1000)+FI55+0.08 -> 766164.08 | FK55: =IF(FC55="","",RANK(FJ55,FJ6:FJ65,0)) -> 16 | FR55: 50 | FS55: =IF(FQ6<50,"",VLOOKUP(50,EY6:FL65,4,FALSE)) -> Hyková Lucie | FT55: =IF(FQ6<50,"",VLOOKUP(50,EY6:FL65,10,FALSE)) -> 400 | FW55: =IF(GA55="","",GI55) ->  | GF55: =SUM(GA55:GE55) -> 0 | GG55: =MAX(GA55:GE55) -> 0 | GH55: =SUM(GF55*1000)+GG55+0.08 -> 0.08 | GI55: =IF(GA55="","",RANK(GH55,GH6:GH70,0)) ->  | GP55: 50 | GQ55: =IF(GO6<50,"",VLOOKUP(50,FW6:GI70,4,FALSE)) ->  | GR55: =IF(GO6<50,"",VLOOKUP(50,FW6:GI70,10,FALSE)) -> 
O56: =IF(S56="","",AA56) -> 25 | R56: KALFIŘT PETR | S56: 133 | T56: 166 | U56: 140 | V56: 139 | W56: 102 | X56: =SUM(S56:W56) -> 680 | Y56: =MAX(S56:W56) -> 166 | Z56: =SUM(X56*1000)+Y56+0.07 -> 680166.07 | AA56: =IF(S56="","",RANK(Z56,Z6:Z65,0)) -> 25 | AK56: =IF(AO56="","",AW56) -> 18 | AN56: SKRUŽNÁ PAVLA | AO56: 110 | AP56: 145 | AQ56: 186 | AR56: 146 | AS56: 151 | AT56: =SUM(AO56:AS56) -> 738 | AU56: =MAX(AO56:AS56) -> 186 | AV56: =SUM(AT56*1000)+AU56+0.07 -> 738186.07 | AW56: =IF(AO56="","",RANK(AV56,AV6:AV65,0)) -> 18 | BG56: =IF(BK56="","",BS56) -> 14 | BJ56: JELÍNEK JAN | BK56: 156 | BL56: 104 | BM56: 160 | BN56: 190 | BO56: 160 | BP56: =SUM(BK56:BO56) -> 770 | BQ56: =MAX(BK56:BO56) -> 190 | BR56: =SUM(BP56*1000)+BQ56+0.07 -> 770190.07 | BS56: =IF(BK56="","",RANK(BR56,BR6:BR65,0)) -> 14 | CE56: =IF(CI56="","",CQ56) -> 30 | CH56: ONDŘICH FRANTIŠEK | CI56: 118 | CJ56: 139 | CK56: 133 | CL56: 147 | CM56: 127 | CN56: =SUM(CI56:CM56) -> 664 | CO56: =MAX(CI56:CM56) -> 147 | CP56: =SUM(CN56*1000)+CO56+0.07 -> 664147.07 | CQ56: =IF(CI56="","",RANK(CP56,CP6:CP65,0)) -> 30 | DC56: =IF(DG56="","",DO56) -> 49 | DF56: Dvořák Petr | DG56: 140 | DH56: 112 | DI56: 100 | DJ56: 79 | DK56: 93 | DL56: =SUM(DG56:DK56) -> 524 | DM56: =MAX(DG56:DK56) -> 140 | DN56: =SUM(DL56*1000)+DM56+0.07 -> 524140.07 | DO56: =IF(DG56="","",RANK(DN56,DN6:DN65,0)) -> 49 | EA56: =IF(EE56="","",EM56) -> 21 | ED56: Troller Pavel | EE56: 156 | EF56: 177 | EG56: 120 | EH56: 127 | EI56: 121 | EJ56: =SUM(EE56:EI56) -> 701 | EK56: =MAX(EE56:EI56) -> 177 | EL56: =SUM(EJ56*1000)+EK56+0.07 -> 701177.07 | EM56: =IF(EE56="","",RANK(EL56,EL6:EL65,0)) -> 21 | EY56: =IF(FC56="","",FK56) -> 18 | FB56: Podhola Martin | FC56: 124 | FD56: 168 | FE56: 158 | FF56: 166 | FG56: 141 | FH56: =SUM(FC56:FG56) -> 757 | FI56: =MAX(FC56:FG56) -> 168 | FJ56: =SUM(FH56*1000)+FI56+0.07 -> 757168.07 | FK56: =IF(FC56="","",RANK(FJ56,FJ6:FJ65,0)) -> 18 | FW56: =IF(GA56="","",GI56) ->  | GF56: =SUM(GA56:GE56) -> 0 | GG56: =MAX(GA56:GE56) -> 0 | GH56: =SUM(GF56*1000)+GG56+0.07 -> 0.07 | GI56: =IF(GA56="","",RANK(GH56,GH6:GH70,0)) ->  | GP56: 51 | GQ56: =IF(GO6<51,"",VLOOKUP(51,FW6:GI70,4,FALSE)) ->  | GR56: =IF(GO6<51,"",VLOOKUP(51,FW6:GI70,10,FALSE)) -> 
O57: =IF(S57="","",AA57) -> 21 | R57: KŘEMENÁK PETR | S57: 156 | T57: 143 | U57: 171 | V57: 128 | W57: 109 | X57: =SUM(S57:W57) -> 707 | Y57: =MAX(S57:W57) -> 171 | Z57: =SUM(X57*1000)+Y57+0.06 -> 707171.06 | AA57: =IF(S57="","",RANK(Z57,Z6:Z65,0)) -> 21 | AK57: =IF(AO57="","",AW57) -> 29 | AN57: POSPÍŠIL LUKÁŠ | AO57: 121 | AP57: 161 | AQ57: 148 | AR57: 129 | AS57: 124 | AT57: =SUM(AO57:AS57) -> 683 | AU57: =MAX(AO57:AS57) -> 161 | AV57: =SUM(AT57*1000)+AU57+0.06 -> 683161.06 | AW57: =IF(AO57="","",RANK(AV57,AV6:AV65,0)) -> 29 | BG57: =IF(BK57="","",BS57) -> 2 | BJ57: ŠAFAŘÍK LUDĚK | BK57: 179 | BL57: 205 | BM57: 179 | BN57: 135 | BO57: 199 | BP57: =SUM(BK57:BO57) -> 897 | BQ57: =MAX(BK57:BO57) -> 205 | BR57: =SUM(BP57*1000)+BQ57+0.06 -> 897205.06 | BS57: =IF(BK57="","",RANK(BR57,BR6:BR65,0)) -> 2 | CE57: =IF(CI57="","",CQ57) -> 4 | CH57: MAŠÁT PETR | CI57: 153 | CJ57: 243 | CK57: 158 | CL57: 157 | CM57: 143 | CN57: =SUM(CI57:CM57) -> 854 | CO57: =MAX(CI57:CM57) -> 243 | CP57: =SUM(CN57*1000)+CO57+0.06 -> 854243.06 | CQ57: =IF(CI57="","",RANK(CP57,CP6:CP65,0)) -> 4 | DC57: =IF(DG57="","",DO57) -> 9 | DF57: Kročil Tomáš | DG57: 183 | DH57: 162 | DI57: 146 | DJ57: 168 | DK57: 143 | DL57: =SUM(DG57:DK57) -> 802 | DM57: =MAX(DG57:DK57) -> 183 | DN57: =SUM(DL57*1000)+DM57+0.06 -> 802183.06 | DO57: =IF(DG57="","",RANK(DN57,DN6:DN65,0)) -> 9 | EA57: =IF(EE57="","",EM57) -> 3 | ED57: Kalfiřt Petr | EE57: 211 | EF57: 164 | EG57: 184 | EH57: 169 | EI57: 166 | EJ57: =SUM(EE57:EI57) -> 894 | EK57: =MAX(EE57:EI57) -> 211 | EL57: =SUM(EJ57*1000)+EK57+0.06 -> 894211.06 | EM57: =IF(EE57="","",RANK(EL57,EL6:EL65,0)) -> 3 | EY57: =IF(FC57="","",FK57) -> 12 | FB57: Holkup Jan | FC57: 173 | FD57: 144 | FE57: 153 | FF57: 161 | FG57: 171 | FH57: =SUM(FC57:FG57) -> 802 | FI57: =MAX(FC57:FG57) -> 173 | FJ57: =SUM(FH57*1000)+FI57+0.06 -> 802173.06 | FK57: =IF(FC57="","",RANK(FJ57,FJ6:FJ65,0)) -> 12 | FW57: =IF(GA57="","",GI57) ->  | GF57: =SUM(GA57:GE57) -> 0 | GG57: =MAX(GA57:GE57) -> 0 | GH57: =SUM(GF57*1000)+GG57+0.06 -> 0.06 | GI57: =IF(GA57="","",RANK(GH57,GH6:GH70,0)) ->  | GP57: 52 | GQ57: =IF(GO6<52,"",VLOOKUP(52,FW6:GI70,4,FALSE)) ->  | GR57: =IF(GO6<52,"",VLOOKUP(52,FW6:GI70,10,FALSE)) -> 
O58: =IF(S58="","",AA58) -> 24 | R58: TROLLER PAVEL | S58: 136 | T58: 142 | U58: 143 | V58: 156 | W58: 114 | X58: =SUM(S58:W58) -> 691 | Y58: =MAX(S58:W58) -> 156 | Z58: =SUM(X58*1000)+Y58+0.05 -> 691156.05 | AA58: =IF(S58="","",RANK(Z58,Z6:Z65,0)) -> 24 | AK58: =IF(AO58="","",AW58) -> 4 | AN58: PODHOLA MARTIN | AO58: 168 | AP58: 194 | AQ58: 193 | AR58: 180 | AS58: 161 | AT58: =SUM(AO58:AS58) -> 896 | AU58: =MAX(AO58:AS58) -> 194 | AV58: =SUM(AT58*1000)+AU58+0.05 -> 896194.05 | AW58: =IF(AO58="","",RANK(AV58,AV6:AV65,0)) -> 4 | BG58: =IF(BK58="","",BS58) -> 8 | BJ58: LAZUR VLADIMÍR | BK58: 174 | BL58: 167 | BM58: 161 | BN58: 151 | BO58: 178 | BP58: =SUM(BK58:BO58) -> 831 | BQ58: =MAX(BK58:BO58) -> 178 | BR58: =SUM(BP58*1000)+BQ58+0.05 -> 831178.05 | BS58: =IF(BK58="","",RANK(BR58,BR6:BR65,0)) -> 8 | CE58: =IF(CI58="","",CQ58) -> 5 | CH58: CARVAN PAVEL | CI58: 191 | CJ58: 137 | CK58: 200 | CL58: 153 | CM58: 161 | CN58: =SUM(CI58:CM58) -> 842 | CO58: =MAX(CI58:CM58) -> 200 | CP58: =SUM(CN58*1000)+CO58+0.05 -> 842200.05 | CQ58: =IF(CI58="","",RANK(CP58,CP6:CP65,0)) -> 5 | DC58: =IF(DG58="","",DO58) -> 15 | DF58: Pospíšil Václav | DG58: 162 | DH58: 148 | DI58: 128 | DJ58: 183 | DK58: 145 | DL58: =SUM(DG58:DK58) -> 766 | DM58: =MAX(DG58:DK58) -> 183 | DN58: =SUM(DL58*1000)+DM58+0.05 -> 766183.05 | DO58: =IF(DG58="","",RANK(DN58,DN6:DN65,0)) -> 15 | EA58: =IF(EE58="","",EM58) -> 11 | ED58: Novotný Lukáš | EE58: 188 | EF58: 162 | EG58: 160 | EH58: 138 | EI58: 166 | EJ58: =SUM(EE58:EI58) -> 814 | EK58: =MAX(EE58:EI58) -> 188 | EL58: =SUM(EJ58*1000)+EK58+0.05 -> 814188.05 | EM58: =IF(EE58="","",RANK(EL58,EL6:EL65,0)) -> 11 | EY58: =IF(FC58="","",FK58) -> 35 | FB58: Skružná Pavla | FC58: 134 | FD58: 144 | FE58: 158 | FF58: 95 | FG58: 116 | FH58: =SUM(FC58:FG58) -> 647 | FI58: =MAX(FC58:FG58) -> 158 | FJ58: =SUM(FH58*1000)+FI58+0.05 -> 647158.05 | FK58: =IF(FC58="","",RANK(FJ58,FJ6:FJ65,0)) -> 35 | FW58: =IF(GA58="","",GI58) ->  | GF58: =SUM(GA58:GE58) -> 0 | GG58: =MAX(GA58:GE58) -> 0 | GH58: =SUM(GF58*1000)+GG58+0.05 -> 0.05 | GI58: =IF(GA58="","",RANK(GH58,GH6:GH70,0)) ->  | GP58: 53 | GQ58: =IF(GO6<53,"",VLOOKUP(53,FW6:GI70,4,FALSE)) ->  | GR58: =IF(GO6<53,"",VLOOKUP(53,FW6:GI70,10,FALSE)) -> 
S59: =SUM(S54:S58) -> 762 | T59: =SUM(T54:T58) -> 765 | U59: =SUM(U54:U58) -> 794 | V59: =SUM(V54:V58) -> 760 | W59: =SUM(W54:W58) -> 671 | AB59: =SUM(S59:W59) -> 3752 | AO59: =SUM(AO54:AO58) -> 716 | AP59: =SUM(AP54:AP58) -> 865 | AQ59: =SUM(AQ54:AQ58) -> 849 | AR59: =SUM(AR54:AR58) -> 805 | AS59: =SUM(AS54:AS58) -> 763 | AX59: =SUM(AO59:AS59) -> 3998 | BK59: =SUM(BK54:BK58) -> 729 | BL59: =SUM(BL54:BL58) -> 732 | BM59: =SUM(BM54:BM58) -> 711 | BN59: =SUM(BN54:BN58) -> 723 | BO59: =SUM(BO54:BO58) -> 763 | BT59: =SUM(BK59:BO59) -> 3658 | BU59: =MAX(BK59:BO59) -> 763 | BV59: =IF(BK54="","",SUM(BT59*10000)+BU59) -> 36580763 | CI59: =SUM(CI54:CI58) -> 719 | CJ59: =SUM(CJ54:CJ58) -> 781 | CK59: =SUM(CK54:CK58) -> 807 | CL59: =SUM(CL54:CL58) -> 787 | CM59: =SUM(CM54:CM58) -> 714 | CR59: =SUM(CI59:CM59) -> 3808 | CS59: =MAX(CI59:CM59) -> 807 | CT59: =IF(CI54="","",SUM(CR59*1000)+CS59) -> 3808807 | DG59: =SUM(DG54:DG58) -> 798 | DH59: =SUM(DH54:DH58) -> 719 | DI59: =SUM(DI54:DI58) -> 637 | DJ59: =SUM(DJ54:DJ58) -> 795 | DK59: =SUM(DK54:DK58) -> 665 | DP59: =SUM(DG59:DK59) -> 3614 | DQ59: =MAX(DG59:DK59) -> 798 | DR59: =IF(DG54="","",SUM(DP59*1000)+DQ59) -> 3614798 | EE59: =SUM(EE54:EE58) -> 848 | EF59: =SUM(EF54:EF58) -> 797 | EG59: =SUM(EG54:EG58) -> 755 | EH59: =SUM(EH54:EH58) -> 803 | EI59: =SUM(EI54:EI58) -> 776 | EN59: =SUM(EE59:EI59) -> 3979 | EO59: =MAX(EE59:EI59) -> 848 | EP59: =IF(EE54="","",SUM(EN59*1000)+EO59) -> 3979848 | FC59: =SUM(FC54:FC58) -> 756 | FD59: =SUM(FD54:FD58) -> 785 | FE59: =SUM(FE54:FE58) -> 788 | FF59: =SUM(FF54:FF58) -> 721 | FG59: =SUM(FG54:FG58) -> 782 | FL59: =SUM(FC59:FG59) -> 3832 | FM59: =MAX(FC59:FG59) -> 788 | FN59: =IF(FC54="","",SUM(FL59*1000)+FM59) -> 3832788 | GA59: =SUM(GA54:GA58) -> 0 | GB59: =SUM(GB54:GB58) -> 0 | GC59: =SUM(GC54:GC58) -> 0 | GD59: =SUM(GD54:GD58) -> 0 | GE59: =SUM(GE54:GE58) -> 0 | GJ59: =SUM(GA59:GE59) -> 0 | GK59: =MAX(GA59:GE59) -> 0 | GL59: =IF(GA54="","",SUM(GJ59*1000)+GK59) ->  | GP59: 54 | GQ59: =IF(GO6<54,"",VLOOKUP(54,FW6:GI70,4,FALSE)) ->  | GR59: =IF(GO6<54,"",VLOOKUP(54,FW6:GI70,10,FALSE)) -> 
O60: =IF(S60="","",AA60) -> 48 | P60: 10 | Q60: KLÍČOV II. | R60: TÁBORSKÝ FRANTIŠEK | S60: 86 | T60: 98 | U60: 101 | V60: 105 | W60: 140 | X60: =SUM(S60:W60) -> 530 | Y60: =MAX(S60:W60) -> 140 | Z60: =SUM(X60*1000)+Y60+0.04 -> 530140.04 | AA60: =IF(S60="","",RANK(Z60,Z6:Z65,0)) -> 48 | AC60: =RANK(AB65,AB11:AB65,0) -> 10 | AK60: =IF(AO60="","",AW60) -> 42 | AL60: 10 | AM60: VRŠOVICE II. | AN60: AUNICKÝ FRANTIŠEK | AO60: 141 | AP60: 110 | AQ60: 107 | AR60: 132 | AS60: 114 | AT60: =SUM(AO60:AS60) -> 604 | AU60: =MAX(AO60:AS60) -> 141 | AV60: =SUM(AT60*1000)+AU60+0.04 -> 604141.04 | AW60: =IF(AO60="","",RANK(AV60,AV6:AV65,0)) -> 42 | AY60: =RANK(AX65,AX11:AX65,0) -> 7 | BG60: =IF(BK60="","",BS60) -> 46 | BH60: 10 | BI60: HOSTIVAŘ II. | BJ60: ČERMÁK TOMÁŠ | BK60: 109 | BL60: 120 | BM60: 106 | BN60: 112 | BO60: 117 | BP60: =SUM(BK60:BO60) -> 564 | BQ60: =MAX(BK60:BO60) -> 120 | BR60: =SUM(BP60*1000)+BQ60+0.04 -> 564120.04 | BS60: =IF(BK60="","",RANK(BR60,BR6:BR65,0)) -> 46 | BW60: =IF(BK60="","",RANK(BV65,BV11:BV65,0)) -> 9 | CE60: =IF(CI60="","",CQ60) -> 25 | CF60: 10 | CG60: KAČEROV II. | CH60: KUTINA PAVEL | CI60: 144 | CJ60: 135 | CK60: 136 | CL60: 155 | CM60: 112 | CN60: =SUM(CI60:CM60) -> 682 | CO60: =MAX(CI60:CM60) -> 155 | CP60: =SUM(CN60*1000)+CO60+0.04 -> 682155.04 | CQ60: =IF(CI60="","",RANK(CP60,CP6:CP65,0)) -> 25 | CU60: =IF(CI60="","",RANK(CT65,CT11:CT65,0)) -> 4 | DC60: =IF(DG60="","",DO60) -> 39 | DD60: 10 | DE60: ŘEPY II. | DF60: Mottl Pavel | DG60: 138 | DH60: 127 | DI60: 110 | DJ60: 114 | DK60: 141 | DL60: =SUM(DG60:DK60) -> 630 | DM60: =MAX(DG60:DK60) -> 141 | DN60: =SUM(DL60*1000)+DM60+0.04 -> 630141.04 | DO60: =IF(DG60="","",RANK(DN60,DN6:DN65,0)) -> 39 | DS60: =IF(DG60="","",RANK(DR65,DR11:DR65,0)) -> 7 | EA60: =IF(EE60="","",EM60) -> 22 | EB60: 10 | EC60: KLÍČOV II. | ED60: Táborský Lukáš | EE60: 92 | EF60: 124 | EG60: 133 | EH60: 210 | EI60: 136 | EJ60: =SUM(EE60:EI60) -> 695 | EK60: =MAX(EE60:EI60) -> 210 | EL60: =SUM(EJ60*1000)+EK60+0.04 -> 695210.04 | EM60: =IF(EE60="","",RANK(EL60,EL6:EL65,0)) -> 22 | EQ60: =IF(EE60="","",RANK(EP65,EP11:EP65,0)) -> 8 | EY60: =IF(FC60="","",FK60) -> 38 | EZ60: 10 | FA60: VRŠOVICE II. | FB60: Aunický František | FC60: 159 | FD60: 126 | FE60: 83 | FF60: 170 | FG60: 102 | FH60: =SUM(FC60:FG60) -> 640 | FI60: =MAX(FC60:FG60) -> 170 | FJ60: =SUM(FH60*1000)+FI60+0.04 -> 640170.04 | FK60: =IF(FC60="","",RANK(FJ60,FJ6:FJ65,0)) -> 38 | FO60: =IF(FC60="","",RANK(FN65,FN11:FN65,0)) -> 10 | FW60: =IF(GA60="","",GI60) ->  | FX60: 10 | FY60: KLÍČOV II. | GF60: =SUM(GA60:GE60) -> 0 | GG60: =MAX(GA60:GE60) -> 0 | GH60: =SUM(GF60*1000)+GG60+0.04 -> 0.04 | GI60: =IF(GA60="","",RANK(GH60,GH6:GH70,0)) ->  | GM60: =IF(GA60="","",RANK(GL65,GL11:GL71,0)) ->  | GP60: 55 | GQ60: =IF(GO6<55,"",VLOOKUP(55,FW6:GI70,4,FALSE)) ->  | GR60: =IF(GO6<55,"",VLOOKUP(55,FW6:GI70,10,FALSE)) -> 
O61: =IF(S61="","",AA61) -> 28 | R61: TÁBORSKÝ LUKÁŠ | S61: 119 | T61: 125 | U61: 157 | V61: 145 | W61: 115 | X61: =SUM(S61:W61) -> 661 | Y61: =MAX(S61:W61) -> 157 | Z61: =SUM(X61*1000)+Y61+0.03 -> 661157.03 | AA61: =IF(S61="","",RANK(Z61,Z6:Z65,0)) -> 28 | AK61: =IF(AO61="","",AW61) -> 32 | AN61: KAZDA JAN | AO61: 124 | AP61: 123 | AQ61: 139 | AR61: 135 | AS61: 135 | AT61: =SUM(AO61:AS61) -> 656 | AU61: =MAX(AO61:AS61) -> 139 | AV61: =SUM(AT61*1000)+AU61+0.03 -> 656139.03 | AW61: =IF(AO61="","",RANK(AV61,AV6:AV65,0)) -> 32 | BG61: =IF(BK61="","",BS61) -> 16 | BJ61: BERGER MICHAL | BK61: 170 | BL61: 131 | BM61: 158 | BN61: 150 | BO61: 158 | BP61: =SUM(BK61:BO61) -> 767 | BQ61: =MAX(BK61:BO61) -> 170 | BR61: =SUM(BP61*1000)+BQ61+0.03 -> 767170.03 | BS61: =IF(BK61="","",RANK(BR61,BR6:BR65,0)) -> 16 | CE61: =IF(CI61="","",CQ61) -> 10 | CH61: DOUŠA ADAM | CI61: 160 | CJ61: 170 | CK61: 124 | CL61: 170 | CM61: 161 | CN61: =SUM(CI61:CM61) -> 785 | CO61: =MAX(CI61:CM61) -> 170 | CP61: =SUM(CN61*1000)+CO61+0.03 -> 785170.03 | CQ61: =IF(CI61="","",RANK(CP61,CP6:CP65,0)) -> 10 | DC61: =IF(DG61="","",DO61) -> 41 | DF61: Křikava Miroslav | DG61: 136 | DH61: 127 | DI61: 106 | DJ61: 131 | DK61: 119 | DL61: =SUM(DG61:DK61) -> 619 | DM61: =MAX(DG61:DK61) -> 136 | DN61: =SUM(DL61*1000)+DM61+0.03 -> 619136.03 | DO61: =IF(DG61="","",RANK(DN61,DN6:DN65,0)) -> 41 | EA61: =IF(EE61="","",EM61) -> 33 | ED61: Lokvenc Jiří | EE61: 123 | EF61: 131 | EG61: 126 | EH61: 132 | EI61: 133 | EJ61: =SUM(EE61:EI61) -> 645 | EK61: =MAX(EE61:EI61) -> 133 | EL61: =SUM(EJ61*1000)+EK61+0.03 -> 645133.03 | EM61: =IF(EE61="","",RANK(EL61,EL6:EL65,0)) -> 33 | EY61: =IF(FC61="","",FK61) -> 26 | FB61: Kazda Jan | FC61: 127 | FD61: 171 | FE61: 149 | FF61: 149 | FG61: 86 | FH61: =SUM(FC61:FG61) -> 682 | FI61: =MAX(FC61:FG61) -> 171 | FJ61: =SUM(FH61*1000)+FI61+0.03 -> 682171.03 | FK61: =IF(FC61="","",RANK(FJ61,FJ6:FJ65,0)) -> 26 | FW61: =IF(GA61="","",GI61) ->  | GF61: =SUM(GA61:GE61) -> 0 | GG61: =MAX(GA61:GE61) -> 0 | GH61: =SUM(GF61*1000)+GG61+0.03 -> 0.03 | GI61: =IF(GA61="","",RANK(GH61,GH6:GH70,0)) -> 
O62: =IF(S62="","",AA62) -> 40 | R62: NOVOTNÁ PETRA | S62: 140 | T62: 115 | U62: 116 | V62: 107 | W62: 112 | X62: =SUM(S62:W62) -> 590 | Y62: =MAX(S62:W62) -> 140 | Z62: =SUM(X62*1000)+Y62+0.02 -> 590140.02 | AA62: =IF(S62="","",RANK(Z62,Z6:Z65,0)) -> 40 | AK62: =IF(AO62="","",AW62) -> 43 | AN62: FAY VLASTIMIL | AO62: 118 | AP62: 126 | AQ62: 117 | AR62: 131 | AS62: 111 | AT62: =SUM(AO62:AS62) -> 603 | AU62: =MAX(AO62:AS62) -> 131 | AV62: =SUM(AT62*1000)+AU62+0.02 -> 603131.02 | AW62: =IF(AO62="","",RANK(AV62,AV6:AV65,0)) -> 43 | BG62: =IF(BK62="","",BS62) -> 50 | BJ62: SVÍTIL PAVEL | BK62: 85 | BL62: 107 | BM62: 107 | BN62: 113 | BO62: 68 | BP62: =SUM(BK62:BO62) -> 480 | BQ62: =MAX(BK62:BO62) -> 113 | BR62: =SUM(BP62*1000)+BQ62+0.02 -> 480113.02 | BS62: =IF(BK62="","",RANK(BR62,BR6:BR65,0)) -> 50 | CE62: =IF(CI62="","",CQ62) -> 29 | CH62: BROŽ STANISLAV | CI62: 165 | CJ62: 122 | CK62: 137 | CL62: 111 | CM62: 131 | CN62: =SUM(CI62:CM62) -> 666 | CO62: =MAX(CI62:CM62) -> 165 | CP62: =SUM(CN62*1000)+CO62+0.02 -> 666165.02 | CQ62: =IF(CI62="","",RANK(CP62,CP6:CP65,0)) -> 29 | DC62: =IF(DG62="","",DO62) -> 20 | DF62: Sehnal Ivan | DG62: 113 | DH62: 157 | DI62: 134 | DJ62: 167 | DK62: 151 | DL62: =SUM(DG62:DK62) -> 722 | DM62: =MAX(DG62:DK62) -> 167 | DN62: =SUM(DL62*1000)+DM62+0.02 -> 722167.02 | DO62: =IF(DG62="","",RANK(DN62,DN6:DN65,0)) -> 20 | EA62: =IF(EE62="","",EM62) -> 32 | ED62: Kolár Vladimír | EE62: 132 | EF62: 137 | EG62: 129 | EH62: 140 | EI62: 112 | EJ62: =SUM(EE62:EI62) -> 650 | EK62: =MAX(EE62:EI62) -> 140 | EL62: =SUM(EJ62*1000)+EK62+0.02 -> 650140.02 | EM62: =IF(EE62="","",RANK(EL62,EL6:EL65,0)) -> 32 | EY62: =IF(FC62="","",FK62) -> 43 | FB62: Pavlíček Rudolf | FC62: 106 | FD62: 137 | FE62: 133 | FF62: 110 | FG62: 133 | FH62: =SUM(FC62:FG62) -> 619 | FI62: =MAX(FC62:FG62) -> 137 | FJ62: =SUM(FH62*1000)+FI62+0.02 -> 619137.02 | FK62: =IF(FC62="","",RANK(FJ62,FJ6:FJ65,0)) -> 43 | FW62: =IF(GA62="","",GI62) ->  | GF62: =SUM(GA62:GE62) -> 0 | GG62: =MAX(GA62:GE62) -> 0 | GH62: =SUM(GF62*1000)+GG62+0.02 -> 0.02 | GI62: =IF(GA62="","",RANK(GH62,GH6:GH70,0)) -> 
O63: =IF(S63="","",AA63) -> 47 | R63: ŘEHÁK JAROSLAV | S63: 112 | T63: 128 | U63: 120 | V63: 89 | W63: 104 | X63: =SUM(S63:W63) -> 553 | Y63: =MAX(S63:W63) -> 128 | Z63: =SUM(X63*1000)+Y63+0.01 -> 553128.01 | AA63: =IF(S63="","",RANK(Z63,Z6:Z65,0)) -> 47 | AK63: =IF(AO63="","",AW63) -> 21 | AN63: BOŠEK JAN | AO63: 129 | AP63: 140 | AQ63: 148 | AR63: 170 | AS63: 123 | AT63: =SUM(AO63:AS63) -> 710 | AU63: =MAX(AO63:AS63) -> 170 | AV63: =SUM(AT63*1000)+AU63+0.01 -> 710170.01 | AW63: =IF(AO63="","",RANK(AV63,AV6:AV65,0)) -> 21 | BG63: =IF(BK63="","",BS63) -> 35 | BJ63: LAZUROVÁ JIŘINA | BK63: 171 | BL63: 123 | BM63: 122 | BN63: 137 | BO63: 116 | BP63: =SUM(BK63:BO63) -> 669 | BQ63: =MAX(BK63:BO63) -> 171 | BR63: =SUM(BP63*1000)+BQ63+0.01 -> 669171.01 | BS63: =IF(BK63="","",RANK(BR63,BR6:BR65,0)) -> 35 | CE63: =IF(CI63="","",CQ63) -> 15 | CH63: BREJCHA JAROSLAV | CI63: 159 | CJ63: 168 | CK63: 123 | CL63: 151 | CM63: 152 | CN63: =SUM(CI63:CM63) -> 753 | CO63: =MAX(CI63:CM63) -> 168 | CP63: =SUM(CN63*1000)+CO63+0.01 -> 753168.01 | CQ63: =IF(CI63="","",RANK(CP63,CP6:CP65,0)) -> 15 | DC63: =IF(DG63="","",DO63) -> 38 | DF63: Křikavová Miroslava | DG63: 144 | DH63: 103 | DI63: 134 | DJ63: 110 | DK63: 149 | DL63: =SUM(DG63:DK63) -> 640 | DM63: =MAX(DG63:DK63) -> 149 | DN63: =SUM(DL63*1000)+DM63+0.01 -> 640149.01 | DO63: =IF(DG63="","",RANK(DN63,DN6:DN65,0)) -> 38 | EA63: =IF(EE63="","",EM63) -> 41 | ED63: Táborský František | EE63: 123 | EF63: 119 | EG63: 124 | EH63: 147 | EI63: 102 | EJ63: =SUM(EE63:EI63) -> 615 | EK63: =MAX(EE63:EI63) -> 147 | EL63: =SUM(EJ63*1000)+EK63+0.01 -> 615147.01 | EM63: =IF(EE63="","",RANK(EL63,EL6:EL65,0)) -> 41 | EY63: =IF(FC63="","",FK63) -> 47 | FB63: Pospíšil Lukáš | FC63: 116 | FD63: 109 | FE63: 116 | FF63: 115 | FG63: 119 | FH63: =SUM(FC63:FG63) -> 575 | FI63: =MAX(FC63:FG63) -> 119 | FJ63: =SUM(FH63*1000)+FI63+0.01 -> 575119.01 | FK63: =IF(FC63="","",RANK(FJ63,FJ6:FJ65,0)) -> 47 | FW63: =IF(GA63="","",GI63) ->  | GF63: =SUM(GA63:GE63) -> 0 | GG63: =MAX(GA63:GE63) -> 0 | GH63: =SUM(GF63*1000)+GG63+0.01 -> 0.01 | GI63: =IF(GA63="","",RANK(GH63,GH6:GH70,0)) -> 
O64: =IF(S64="","",AA64) -> 35 | R64: KRUPKA JAKUB | S64: 132 | T64: 137 | U64: 139 | V64: 116 | W64: 103 | X64: =SUM(S64:W64) -> 627 | Y64: =MAX(S64:W64) -> 139 | Z64: =SUM(X64*1000)+Y64 -> 627139 | AA64: =IF(S64="","",RANK(Z64,Z6:Z65,0)) -> 35 | AK64: =IF(AO64="","",AW64) -> 31 | AN64: KRUPOVÁ MARTINA | AO64: 122 | AP64: 142 | AQ64: 125 | AR64: 153 | AS64: 120 | AT64: =SUM(AO64:AS64) -> 662 | AU64: =MAX(AO64:AS64) -> 153 | AV64: =SUM(AT64*1000)+AU64 -> 662153 | AW64: =IF(AO64="","",RANK(AV64,AV6:AV65,0)) -> 31 | BG64: =IF(BK64="","",BS64) -> 42 | BJ64: ŠAFÁŘ LADISLAV | BK64: 129 | BL64: 92 | BM64: 111 | BN64: 130 | BO64: 131 | BP64: =SUM(BK64:BO64) -> 593 | BQ64: =MAX(BK64:BO64) -> 131 | BR64: =SUM(BP64*1000)+BQ64 -> 593131 | BS64: =IF(BK64="","",RANK(BR64,BR6:BR65,0)) -> 42 | CE64: =IF(CI64="","",CQ64) -> 24 | CH64: RADOVÁ PETRA | CI64: 137 | CJ64: 152 | CK64: 137 | CL64: 125 | CM64: 137 | CN64: =SUM(CI64:CM64) -> 688 | CO64: =MAX(CI64:CM64) -> 152 | CP64: =SUM(CN64*1000)+CO64 -> 688152 | CQ64: =IF(CI64="","",RANK(CP64,CP6:CP65,0)) -> 24 | DC64: =IF(DG64="","",DO64) -> 14 | DF64: Alba Vladimír | DG64: 161 | DH64: 176 | DI64: 186 | DJ64: 107 | DK64: 146 | DL64: =SUM(DG64:DK64) -> 776 | DM64: =MAX(DG64:DK64) -> 186 | DN64: =SUM(DL64*1000)+DM64 -> 776186 | DO64: =IF(DG64="","",RANK(DN64,DN6:DN65,0)) -> 14 | EA64: =IF(EE64="","",EM64) -> 49 | ED64: Pipek Pavel | EE64: 88 | EF64: 110 | EG64: 124 | EH64: 88 | EI64: 128 | EJ64: =SUM(EE64:EI64) -> 538 | EK64: =MAX(EE64:EI64) -> 128 | EL64: =SUM(EJ64*1000)+EK64 -> 538128 | EM64: =IF(EE64="","",RANK(EL64,EL6:EL65,0)) -> 49 | EY64: =IF(FC64="","",FK64) -> 50 | FB64: Hyková Lucie | FC64: 87 | FD64: 60 | FE64: 97 | FF64: 82 | FG64: 74 | FH64: =SUM(FC64:FG64) -> 400 | FI64: =MAX(FC64:FG64) -> 97 | FJ64: =SUM(FH64*1000)+FI64 -> 400097 | FK64: =IF(FC64="","",RANK(FJ64,FJ6:FJ65,0)) -> 50 | FW64: =IF(GA64="","",GI64) ->  | GF64: =SUM(GA64:GE64) -> 0 | GG64: =MAX(GA64:GE64) -> 0 | GH64: =SUM(GF64*1000)+GG64 -> 0 | GI64: =IF(GA64="","",RANK(GH64,GH6:GH70,0)) -> 
S65: =SUM(S60:S64) -> 589 | T65: =SUM(T60:T64) -> 603 | U65: =SUM(U60:U64) -> 633 | V65: =SUM(V60:V64) -> 562 | W65: =SUM(W60:W64) -> 574 | AB65: =SUM(S65:W65) -> 2961 | AO65: =SUM(AO60:AO64) -> 634 | AP65: =SUM(AP60:AP64) -> 641 | AQ65: =SUM(AQ60:AQ64) -> 636 | AR65: =SUM(AR60:AR64) -> 721 | AS65: =SUM(AS60:AS64) -> 603 | AX65: =SUM(AO65:AS65) -> 3235 | BK65: =SUM(BK60:BK64) -> 664 | BL65: =SUM(BL60:BL64) -> 573 | BM65: =SUM(BM60:BM64) -> 604 | BN65: =SUM(BN60:BN64) -> 642 | BO65: =SUM(BO60:BO64) -> 590 | BT65: =SUM(BK65:BO65) -> 3073 | BU65: =MAX(BK65:BO65) -> 664 | BV65: =IF(BK60="","",SUM(BT65*10000)+BU65) -> 30730664 | CI65: =SUM(CI60:CI64) -> 765 | CJ65: =SUM(CJ60:CJ64) -> 747 | CK65: =SUM(CK60:CK64) -> 657 | CL65: =SUM(CL60:CL64) -> 712 | CM65: =SUM(CM60:CM64) -> 693 | CR65: =SUM(CI65:CM65) -> 3574 | CS65: =MAX(CI65:CM65) -> 765 | CT65: =IF(CI60="","",SUM(CR65*1000)+CS65) -> 3574765 | DG65: =SUM(DG60:DG64) -> 692 | DH65: =SUM(DH60:DH64) -> 690 | DI65: =SUM(DI60:DI64) -> 670 | DJ65: =SUM(DJ60:DJ64) -> 629 | DK65: =SUM(DK60:DK64) -> 706 | DP65: =SUM(DG65:DK65) -> 3387 | DQ65: =MAX(DG65:DK65) -> 706 | DR65: =IF(DG60="","",SUM(DP65*1000)+DQ65) -> 3387706 | EE65: =SUM(EE60:EE64) -> 558 | EF65: =SUM(EF60:EF64) -> 621 | EG65: =SUM(EG60:EG64) -> 636 | EH65: =SUM(EH60:EH64) -> 717 | EI65: =SUM(EI60:EI64) -> 611 | EN65: =SUM(EE65:EI65) -> 3143 | EO65: =MAX(EE65:EI65) -> 717 | EP65: =IF(EE60="","",SUM(EN65*1000)+EO65) -> 3143717 | FC65: =SUM(FC60:FC64) -> 595 | FD65: =SUM(FD60:FD64) -> 603 | FE65: =SUM(FE60:FE64) -> 578 | FF65: =SUM(FF60:FF64) -> 626 | FG65: =SUM(FG60:FG64) -> 514 | FL65: =SUM(FC65:FG65) -> 2916 | FM65: =MAX(FC65:FG65) -> 626 | FN65: =IF(FC60="","",SUM(FL65*1000)+FM65) -> 2916626 | GA65: =SUM(GA60:GA64) -> 0 | GB65: =SUM(GB60:GB64) -> 0 | GC65: =SUM(GC60:GC64) -> 0 | GD65: =SUM(GD60:GD64) -> 0 | GE65: =SUM(GE60:GE64) -> 0 | GJ65: =SUM(GA65:GE65) -> 0 | GK65: =MAX(GA65:GE65) -> 0 | GL65: =IF(GA60="","",SUM(GJ65*1000)+GK65) -> 
FW66: =IF(GA66="","",GI66) ->  | FX66: 11 | FY66: KLÍČOV III. | GF66: =SUM(GA66:GE66) -> 0 | GG66: =MAX(GA66:GE66) -> 0 | GH66: =SUM(GF66*1000)+GG66-0.01 -> -0.01 | GI66: =IF(GA66="","",RANK(GH66,GH6:GH70,0)) ->  | GM66: =IF(GA66="","",RANK(GL71,GL11:GL71,0)) -> 
FW67: =IF(GA67="","",GI67) ->  | GF67: =SUM(GA67:GE67) -> 0 | GG67: =MAX(GA67:GE67) -> 0 | GH67: =SUM(GF67*1000)+GG67-0.02 -> -0.02 | GI67: =IF(GA67="","",RANK(GH67,GH6:GH70,0)) -> 
FW68: =IF(GA68="","",GI68) ->  | GF68: =SUM(GA68:GE68) -> 0 | GG68: =MAX(GA68:GE68) -> 0 | GH68: =SUM(GF68*1000)+GG68-0.03 -> -0.03 | GI68: =IF(GA68="","",RANK(GH68,GH6:GH70,0)) -> 
FW69: =IF(GA69="","",GI69) ->  | GF69: =SUM(GA69:GE69) -> 0 | GG69: =MAX(GA69:GE69) -> 0 | GH69: =SUM(GF69*1000)+GG69-0.04 -> -0.04 | GI69: =IF(GA69="","",RANK(GH69,GH6:GH70,0)) -> 
FW70: =IF(GA70="","",GI70) ->  | GF70: =SUM(GA70:GE70) -> 0 | GG70: =MAX(GA70:GE70) -> 0 | GH70: =SUM(GF70*1000)+GG70-0.05 -> -0.05 | GI70: =IF(GA70="","",RANK(GH70,GH6:GH70,0)) -> 
GA71: =SUM(GA66:GA70) -> 0 | GB71: =SUM(GB66:GB70) -> 0 | GC71: =SUM(GC66:GC70) -> 0 | GD71: =SUM(GD66:GD70) -> 0 | GE71: =SUM(GE66:GE70) -> 0 | GJ71: =SUM(GA71:GE71) -> 0 | GK71: =MAX(GA71:GE71) -> 0 | GL71: =IF(GA66="","",SUM(GJ71*1000)+GK71) -> 

Sheet zápis (hidden)
A1: garáž | B1: jméno | H1: 16.2. | N1: 14.3. | T1: 28.3. | Z1: 18.4. | AF1: 12.9. | AL1: 17.10. | AR1: 7.11. | AS1: kuželky | AU1: průměr
A2: Dejvice | B2: Jošt Michal | H2: =SUM(C2+D2+E2+F2+G2) -> 0 | N2: =SUM(I2+J2+K2+L2+M2) -> 0 | T2: =SUM(O2+P2+Q2+R2+S2) -> 0 | Z2: =SUM(U2+V2+W2+X2+Y2) -> 0 | AF2: =SUM(AA2+AB2+AC2+AD2+AE2) -> 0 | AL2: =SUM(AG2+AH2+AI2+AJ2+AK2) -> 0 | AR2: =SUM(AM2+AN2+AO2+AP2+AQ2) -> 0 | AS2: =SUM(N2,H2,T2,Z2,AF2,AL2,AR2) -> 0 | AT2: =COUNT(C2:G2,I2:M2,O2:S2,U2:Y2,AA2:AE2,AG2:AK2,AM2:AQ2) -> 0 | AU2: =IF(AT2=0,"",AS2/AT2) -> 
A3: Dejvice | B3: Pěchočová Soňa | H3: =SUM(C3+D3+E3+F3+G3) -> 0 | N3: =SUM(I3:M3) -> 0 | T3: =SUM(O3:S3) -> 0 | Z3: =SUM(U3:Y3) -> 0 | AF3: =SUM(AA3:AE3) -> 0 | AL3: =SUM(AG3:AK3) -> 0 | AR3: =SUM(AM3:AQ3) -> 0 | AS3: =SUM(N3,H3,T3,Z3,AF3,AL3,AR3) -> 0 | AT3: =COUNT(C3:G3,I3:M3,O3:S3,U3:Y3,AA3:AE3,AG3:AK3,AM3:AQ3) -> 0 | AU3: =IF(AT3=0,"",AS3/AT3) -> 
A4: Dejvice | B4: Joštová Alena | H4: =SUM(C4+D4+E4+F4+G4) -> 0 | N4: =SUM(I4:M4) -> 0 | T4: =SUM(O4:S4) -> 0 | Z4: =SUM(U4:Y4) -> 0 | AF4: =SUM(AA4:AE4) -> 0 | AL4: =SUM(AG4:AK4) -> 0 | AR4: =SUM(AM4:AQ4) -> 0 | AS4: =SUM(N4,H4,T4,Z4,AF4,AL4,AR4) -> 0 | AT4: =COUNT(C4:G4,I4:M4,O4:S4,U4:Y4,AA4:AE4,AG4:AK4,AM4:AQ4) -> 0 | AU4: =IF(AT4=0,"",AS4/AT4) -> 
A5: Dejvice | B5: Štěrba Ladislav | H5: =SUM(C5+D5+E5+F5+G5) -> 0 | N5: =SUM(I5:M5) -> 0 | T5: =SUM(O5:S5) -> 0 | Z5: =SUM(U5:Y5) -> 0 | AF5: =SUM(AA5:AE5) -> 0 | AL5: =SUM(AG5:AK5) -> 0 | AR5: =SUM(AM5:AQ5) -> 0 | AS5: =SUM(N5,H5,T5,Z5,AF5,AL5,AR5) -> 0 | AT5: =COUNT(C5:G5,I5:M5,O5:S5,U5:Y5,AA5:AE5,AG5:AK5,AM5:AQ5) -> 0 | AU5: =IF(AT5=0,"",AS5/AT5) -> 
A6: Dejvice | B6: Novák Antonín | H6: =SUM(C6+D6+E6+F6+G6) -> 0 | N6: =SUM(I6:M6) -> 0 | T6: =SUM(O6:S6) -> 0 | Z6: =SUM(U6:Y6) -> 0 | AF6: =SUM(AA6:AE6) -> 0 | AL6: =SUM(AG6:AK6) -> 0 | AR6: =SUM(AM6:AQ6) -> 0 | AS6: =SUM(N6,H6,T6,Z6,AF6,AL6,AR6) -> 0 | AT6: =COUNT(C6:G6,I6:M6,O6:S6,U6:Y6,AA6:AE6,AG6:AK6,AM6:AQ6) -> 0 | AU6: =IF(AT6=0,"",AS6/AT6) -> 
AS8: =SUM(AS2:AS7) -> 0 | AT8: =SUM(AT2:AT7) -> 0 | AU8: =IF(AT8=0,"",AS8/AT8) -> 
A10: Hostivař | B10: Šafařík Luděk | C10: 188 | D10: 156 | E10: 153 | F10: 231 | G10: 200 | H10: =SUM(C10+D10+E10+F10+G10) -> 928 | I10: 168 | J10: 181 | K10: 156 | L10: 223 | M10: 177 | N10: =SUM(I10+J10+K10+L10+M10) -> 905 | O10: 179 | P10: 205 | Q10: 179 | R10: 135 | S10: 199 | T10: =SUM(O10+P10+Q10+R10+S10) -> 897 | U10: 145 | V10: 170 | W10: 179 | X10: 212 | Y10: 177 | Z10: =SUM(U10+V10+W10+X10+Y10) -> 883 | AA10: 145 | AB10: 191 | AC10: 153 | AD10: 146 | AE10: 170 | AF10: =SUM(AA10+AB10+AC10+AD10+AE10) -> 805 | AG10: 213 | AH10: 186 | AI10: 202 | AJ10: 186 | AK10: 175 | AL10: =SUM(AG10+AH10+AI10+AJ10+AK10) -> 962 | AM10: 155 | AN10: 193 | AO10: 179 | AP10: 157 | AQ10: 149 | AR10: =SUM(AM10+AN10+AO10+AP10+AQ10) -> 833 | AS10: =SUM(N10,H10,T10,Z10,AF10,AL10,AR10) -> 6213 | AT10: =COUNT(C10:G10,I10:M10,O10:S10,U10:Y10,AA10:AE10,AG10:AK10,AM10:AQ10) -> 35 | AU10: =IF(AT10=0,"",AS10/AT10) -> 177.5142857
A11: Hostivař | B11: Sláma Karel | H11: 0 | N11: 0 | T11: 0 | Z11: 0 | AF11: 0 | AL11: 0 | AR11: 0 | AS11: 0 | AT11: 0
A12: Hostivař | B12: Jelínek Jan | C12: 143 | D12: 158 | E12: 165 | F12: 135 | G12: 126 | H12: 727 | I12: 158 | J12: 152 | K12: 128 | L12: 140 | M12: 141 | N12: 719 | O12: 156 | P12: 104 | Q12: 160 | R12: 190 | S12: 160 | T12: 770 | U12: 114 | V12: 144 | W12: 168 | X12: 134 | Y12: 106 | Z12: 666 | AA12: 161 | AB12: 153 | AC12: 148 | AD12: 145 | AE12: 175 | AF12: 782 | AG12: 134 | AH12: 142 | AI12: 134 | AJ12: 164 | AK12: 201 | AL12: 775 | AM12: 162 | AN12: 149 | AO12: 156 | AP12: 169 | AQ12: 180 | AR12: 816 | AS12: 5255 | AT12: 35 | AU12: 150.1428571
A13: Hostivař | B13: Mysliveček Jaroslav | C13: 124 | D13: 176 | E13: 143 | F13: 147 | G13: 112 | H13: 702 | I13: 172 | J13: 139 | K13: 146 | L13: 167 | M13: 144 | N13: 768 | O13: 121 | P13: 141 | Q13: 112 | R13: 150 | S13: 107 | T13: 631 | U13: 153 | V13: 151 | W13: 105 | X13: 179 | Y13: 166 | Z13: 754 | AA13: 176 | AB13: 136 | AC13: 115 | AD13: 169 | AE13: 105 | AF13: 701 | AG13: 120 | AH13: 128 | AI13: 130 | AJ13: 162 | AK13: 102 | AL13: 642 | AM13: 153 | AN13: 150 | AO13: 115 | AP13: 173 | AQ13: 126 | AR13: 717 | AS13: 4915 | AT13: 35 | AU13: 140.4285714
A14: Hostivař | B14: Jirkovská Iveta | H14: 0 | N14: 0 | T14: 0 | Z14: 0 | AF14: 0 | AL14: 0 | AR14: 0 | AS14: 0 | AT14: 0
A15: Hostivař | B15: Křápek Roman | C15: 115 | D15: 155 | E15: 107 | F15: 145 | G15: 115 | H15: 637 | I15: 135 | J15: 145 | K15: 127 | L15: 111 | M15: 114 | N15: 632 | T15: 0 | Z15: 0 | AA15: 123 | AB15: 223 | AC15: 152 | AD15: 158 | AE15: 178 | AF15: 834 | AG15: 111 | AH15: 105 | AI15: 133 | AJ15: 139 | AK15: 145 | AL15: 633 | AM15: 104 | AN15: 125 | AO15: 160 | AP15: 130 | AQ15: 149 | AR15: 668 | AS15: 3404 | AT15: 25 | AU15: 136.16
A16: Hostivař | B16: Svítil Pavel | H16: 0 | N16: 0 | O16: 85 | P16: 107 | Q16: 107 | R16: 113 | S16: 68 | T16: 480 | U16: 82 | V16: 117 | W16: 66 | X16: 129 | Y16: 96 | Z16: 490 | AF16: 0 | AL16: 0 | AR16: 0 | AS16: 970 | AT16: 10 | AU16: 97
A17: Hostivař | B17: Čermák Tomáš | C17: 126 | D17: 104 | E17: 135 | F17: 123 | G17: 89 | H17: 577 | N17: 0 | O17: 109 | P17: 120 | Q17: 106 | R17: 112 | S17: 117 | T17: 564 | U17: 117 | V17: 125 | W17: 132 | X17: 143 | Y17: 114 | Z17: 631 | AA17: 139 | AB17: 112 | AC17: 78 | AD17: 113 | AE17: 119 | AF17: 561 | AG17: 89 | AH17: 128 | AI17: 121 | AJ17: 133 | AK17: 114 | AL17: 585 | AR17: 0 | AS17: 2918 | AT17: 25 | AU17: 116.72
A18: Hostivař | B18: Buzi Jiří | H18: 0 | N18: 0 | T18: 0 | Z18: 0 | AF18: 0 | AL18: 0 | AR18: 0 | AS18: 0 | AT18: 0
A19: Hostivař | B19: Lazur Ladislav | C19: 159 | D19: 160 | E19: 165 | F19: 176 | G19: 187 | H19: 847 | I19: 223 | J19: 197 | K19: 227 | L19: 147 | M19: 151 | N19: 945 | O19: 174 | P19: 167 | Q19: 161 | R19: 151 | S19: 178 | T19: 831 | Z19: 0 | AA19: 121 | AB19: 154 | AC19: 159 | AD19: 181 | AE19: 179 | AF19: 794 | AG19: 191 | AH19: 145 | AI19: 197 | AJ19: 156 | AK19: 212 | AL19: 901 | AM19: 185 | AN19: 148 | AO19: 223 | AP19: 128 | AQ19: 179 | AR19: 863 | AS19: 5181 | AT19: 30 | AU19: 172.7
A20: Hostivař | B20: Lazurová Jiřina | H20: 0 | I20: 115 | J20: 96 | K20: 134 | L20: 117 | M20: 136 | N20: 598 | O20: 171 | P20: 123 | Q20: 122 | R20: 137 | S20: 116 | T20: 669 | Z20: 0 | AA20: 145 | AB20: 119 | AC20: 166 | AD20: 141 | AE20: 133 | AF20: 704 | AL20: 0 | AM20: 102 | AN20: 116 | AO20: 115 | AP20: 132 | AQ20: 86 | AR20: 551 | AS20: =SUM(N20,H20,T20,Z20,AF20,AL20,AR20) -> 2522 | AT20: =COUNT(C20:G20,I20:M20,O20:S20,U20:Y20,AA20:AE20,AG20:AK20,AM20:AQ20) -> 20 | AU20: =IF(AT20=0,"",AS20/AT20) -> 126.1
A21: Hostivař | B21: Kačena Martin | H21: 0 | N21: 0 | T21: 0 | Z21: 0 | AF21: 0 | AL21: 0 | AR21: 0 | AS21: 0 | AT21: 0
A22: Hostivař | B22: Bulka Miroslav | H22: 0 | N22: 0 | T22: 0 | Z22: 0 | AF22: 0 | AL22: 0 | AR22: 0 | AS22: 0 | AT22: 0
A23: Hostivař | B23: Kalošová Dagmar | C23: 105 | D23: 85 | E23: 127 | F23: 79 | G23: 100 | H23: 496 | I23: 99 | J23: 89 | K23: 98 | L23: 99 | M23: 113 | N23: 498 | T23: 0 | U23: 102 | V23: 69 | W23: 105 | X23: 126 | Y23: 131 | Z23: 533 | AF23: 0 | AL23: 0 | AR23: 0 | AS23: 1527 | AT23: 15 | AU23: 101.8
A24: Hostivař | B24: Berger Michal | H24: 0 | I24: 140 | J24: 144 | K24: 144 | L24: 129 | M24: 132 | N24: 689 | O24: 170 | P24: 131 | Q24: 158 | R24: 150 | S24: 158 | T24: 767 | U24: 123 | V24: 129 | W24: 140 | X24: 212 | Y24: 99 | Z24: 703 | AF24: 0 | AG24: 132 | AH24: 164 | AI24: 147 | AJ24: 153 | AK24: 134 | AL24: 730 | AM24: 133 | AN24: 137 | AO24: 172 | AP24: 132 | AQ24: 155 | AR24: 729 | AS24: 3618 | AT24: 25 | AU24: 144.72
A25: Hostivař | B25: Kollár Pavel | C25: 115 | D25: 141 | E25: 89 | F25: 101 | G25: 125 | H25: 571 | N25: 0 | O25: 99 | P25: 115 | Q25: 99 | R25: 97 | S25: 119 | T25: 529 | U25: 116 | V25: 89 | W25: 107 | X25: 115 | Y25: 131 | Z25: 558 | AA25: 163 | AB25: 90 | AC25: 162 | AD25: 144 | AE25: 122 | AF25: 681 | AG25: 122 | AH25: 170 | AI25: 131 | AJ25: 130 | AK25: 142 | AL25: 695 | AM25: 141 | AN25: 144 | AO25: 113 | AP25: 140 | AQ25: 134 | AR25: 672 | AS25: 3706 | AT25: 30 | AU25: 123.5333333
A26: Hostivař | B26: Šafář Vladimír | C26: 144 | D26: 108 | E26: 98 | F26: 146 | G26: 120 | H26: 616 | I26: 159 | J26: 185 | K26: 109 | L26: 115 | M26: 140 | N26: 708 | O26: 129 | P26: 92 | Q26: 111 | R26: 130 | S26: 131 | T26: 593 | U26: 124 | V26: 127 | W26: 139 | X26: 140 | Y26: 102 | Z26: 632 | AA26: 105 | AB26: 147 | AC26: 143 | AD26: 149 | AE26: 139 | AF26: 683 | AG26: 129 | AH26: 138 | AI26: 133 | AJ26: 115 | AK26: 116 | AL26: 631 | AM26: 135 | AN26: 124 | AO26: 135 | AP26: 121 | AQ26: 137 | AR26: 652 | AS26: =SUM(N26,H26,T26,Z26,AF26,AL26,AR26) -> 4515 | AT26: =COUNT(C26:G26,I26:M26,O26:S26,U26:Y26,AA26:AE26,AG26:AK26,AM26:AQ26) -> 35 | AU26: =IF(AT26=0,"",AS26/AT26) -> 129
A27: Hostivař | B27: Bergerová Marcela | H27: 0 | I27: 85 | J27: 85 | K27: 109 | L27: 107 | M27: 118 | N27: 504 | T27: 0 | U27: 98 | V27: 106 | W27: 118 | X27: 82 | Y27: 107 | Z27: 511 | AF27: 0 | AL27: 0 | AR27: 0 | AS27: =SUM(N27,H27,T27,Z27,AF27,AL27,AR27) -> 1015 | AT27: =COUNT(C27:G27,I27:M27,O27:S27,U27:Y27,AA27:AE27,AG27:AK27,AM27:AQ27) -> 10 | AU27: =IF(AT27=0,"",AS27/AT27) -> 101.5
A28: Hostivař | B28: Růžička Ladislav | C28: 133 | D28: 162 | E28: 155 | F28: 128 | G28: 166 | H28: 744 | N28: 0 | T28: 0 | Z28: 0 | AA28: 122 | AB28: 136 | AC28: 151 | AD28: 130 | AE28: 178 | AF28: 717 | AG28: 123 | AH28: 137 | AI28: 137 | AJ28: 142 | AK28: 125 | AL28: 664 | AM28: 170 | AN28: 163 | AO28: 155 | AP28: 163 | AQ28: 141 | AR28: 792 | AS28: =SUM(N28,H28,T28,Z28,AF28,AL28,AR28) -> 2917 | AT28: =COUNT(C28:G28,I28:M28,O28:S28,U28:Y28,AA28:AE28,AG28:AK28,AM28:AQ28) -> 20 | AU28: =IF(AT28=0,"",AS28/AT28) -> 145.85
AS31: =SUM(AS10:AS27) -> 45759 | AT31: =SUM(AT10:AT27) -> 330 | AU31: =IF(AT31=0,"",AS31/AT31) -> 138.6636364
A33: Kačerov | B33: Carvan Pavel | C33: 136 | D33: 133 | E33: 171 | F33: 159 | G33: 153 | H33: =SUM(C33+D33+E33+F33+G33) -> 752 | I33: 156 | J33: 180 | K33: 178 | L33: 184 | M33: 162 | N33: =SUM(I33+J33+K33+L33+M33) -> 860 | O33: 170 | P33: 127 | Q33: 138 | R33: 133 | S33: 137 | T33: =SUM(O33+P33+Q33+R33+S33) -> 705 | U33: 191 | V33: 137 | W33: 200 | X33: 153 | Y33: 161 | Z33: =SUM(U33+V33+W33+X33+Y33) -> 842 | AA33: 114 | AB33: 110 | AC33: 156 | AD33: 172 | AE33: 131 | AF33: =SUM(AA33+AB33+AC33+AD33+AE33) -> 683 | AG33: 146 | AH33: 192 | AI33: 147 | AJ33: 127 | AK33: 150 | AL33: =SUM(AG33+AH33+AI33+AJ33+AK33) -> 762 | AM33: 160 | AN33: 147 | AO33: 150 | AP33: 185 | AQ33: 168 | AR33: =SUM(AM33+AN33+AO33+AP33+AQ33) -> 810 | AS33: =SUM(N33,H33,T33,Z33,AF33,AL33,AR33) -> 5414 | AT33: =COUNT(C33:G33,I33:M33,O33:S33,U33:Y33,AA33:AE33,AG33:AK33,AM33:AQ33) -> 35 | AU33: =IF(AT33=0,"",AS33/AT33) -> 154.6857143
A34: Kačerov | B34: Brož Stanislav | C34: 122 | D34: 122 | E34: 144 | F34: 127 | G34: 142 | H34: 657 | I34: 121 | J34: 134 | K34: 132 | L34: 134 | M34: 172 | N34: 693 | O34: 156 | P34: 167 | Q34: 144 | R34: 107 | S34: 168 | T34: 742 | U34: 165 | V34: 122 | W34: 137 | X34: 111 | Y34: 131 | Z34: 666 | AF34: 0 | AG34: 140 | AH34: 181 | AI34: 127 | AJ34: 155 | AK34: 120 | AL34: 723 | AM34: 124 | AN34: 135 | AO34: 111 | AP34: 105 | AQ34: 150 | AR34: 625 | AS34: 4106 | AT34: 30 | AU34: 136.8666667
A35: Kačerov | B35: Tomášek Zdeněk | C35: 169 | D35: 128 | E35: 132 | F35: 208 | G35: 188 | H35: 825 | I35: 135 | J35: 143 | K35: 134 | L35: 184 | M35: 132 | N35: 728 | O35: 161 | P35: 145 | Q35: 117 | R35: 179 | S35: 131 | T35: 733 | U35: 132 | V35: 157 | W35: 137 | X35: 166 | Y35: 131 | Z35: 723 | AA35: 128 | AB35: 169 | AC35: 171 | AD35: 98 | AE35: 159 | AF35: 725 | AL35: 0 | AR35: 0 | AS35: 3734 | AT35: 25 | AU35: 149.36
